Workbook

Sheet Oversigt Ændringer
B1: Selskabsnavn | C1: TREFOR Vand
B2: Selskabs ID | C2: V188
B3: Afskrivning referenceår | C3: 2026
B6: Denne fane viser, hvilke ændringer der er foretaget i henholdsvis Produktionsanlæg, Distributionsanlæg og Fællesfunktionsanlæg. Kolonne G viser værdien før ændringen, og kolonne H viser værdien efter ændringen. Det er vigtigt, at I skriver en begrundelse i kolonne I (”Begrundelse”), hvis I har foretaget en ændring. I begrundelsen skal der tydeligt fremgå, hvilken dokumentation I har vedlagt i Vanddata for den givne ændring. Når I er færdige med at ændre i POLKA og har skrevet begrundelser for alle ændringerne, skal I klikke på knappen ”Gem revisorversion”, som skaber et nyt dokument, som jeres revisor skal godkende. Det er vigtigt, at I både uploader den fil, hvor I har foretaget ændringer samt den nye fil til revisor. Hvis I fortryder en ændring, skal I blot nulstille til den oprindelige værdi ved at bruge nulstil-knappen, der vises, når I står i kolonne H.
F8: ="Afskrivning i alt ("&Afskrivning_Referenceår&") →" -> Afskrivning i alt (2026) → | G8: 25831158.92
G9: ↓ Værdi ↓
A11: Nøgle | B11: Anlægstype | C11: Navn anlæg | D11: Anlæg | E11: Komponent | F11: År | G11: Før | H11: Efter | I11: Begrundelse | J11: OK | K11: Celle | L11: Række

Sheet Produktionsanlæg
A1: Produktionsanlæg | B1: Enhed | C1: Standard-levetid | D1: Mængde | E1: Mængde | F1: Mængde | G1: Mængde | H1: Mængde | I1: Mængde | J1: Mængde | K1: Mængde | L1: Mængde | M1: Mængde | N1: Mængde | O1: Mængde | P1: Mængde | Q1: Mængde | R1: Mængde | S1: Mængde | T1: Mængde | U1: Mængde | V1: Mængde | W1: Mængde | X1: Mængde | Y1: Mængde | Z1: Beregnet enhedspris | AA1: Nedskrevet genanskaffelsesværdi pr. år | AW1: Nedskrevet genanskaffelsesværdi i alt | AX1: Nedskrevet anskaffelsesværdi pr. år | BT1: Nedskrevet anskaffelsesværdi i alt | BU1: Nedskrevet standardværdi pr. år | CQ1: Nedskrevet standardværdi i alt
D2: Før 1910 | E2: 1910-1919 | F2: 1920-1929 | G2: 1930-1939 | H2: 1940-1949 | I2: 1950-1959 | J2: 1960-1969 | K2: 1970-1979 | L2: 1980-1984 | M2: 1985-1989 | N2: 1990-1994 | O2: 1995-1999 | P2: 2000 | Q2: =+P2+1 -> 2001 | R2: =+Q2+1 -> 2002 | S2: 2003 | T2: 2004 | U2: 2005 | V2: 2006 | W2: 2007 | X2: 2008 | Y2: 2009 | AA2: Før 1910 | AB2: 1910-1919 | AC2: 1920-1929 | AD2: 1930-1939 | AE2: 1940-1949 | AF2: 1950-1959 | AG2: 1960-1969 | AH2: 1970-1979 | AI2: 1980-1984 | AJ2: 1985-1989 | AK2: 1990-1994 | AL2: 1995-1999 | AM2: 2000 | AN2: =+AM2+1 -> 2001 | AO2: =+AN2+1 -> 2002 | AP2: 2003 | AQ2: 2004 | AR2: 2005 | AS2: 2006 | AT2: 2007 | AU2: 2008 | AV2: 2009 | AX2: Før 1910 | AY2: 1910-1919 | AZ2: 1920-1929 | BA2: 1930-1939 | BB2: 1940-1949 | BC2: 1950-1959 | BD2: 1960-1969 | BE2: 1970-1979 | BF2: 1980-1984 | BG2: 1985-1989 | BH2: 1990-1994 | BI2: 1995-1999 | BJ2: 2000 | BK2: =+BJ2+1 -> 2001 | BL2: =+BK2+1 -> 2002 | BM2: 2003 | BN2: 2004 | BO2: 2005 | BP2: 2006 | BQ2: 2007 | BR2: 2008 | BS2: 2009 | BU2: Før 1910 | BV2: 1910-1919 | BW2: 1920-1929 | BX2: 1930-1939 | BY2: 1940-1949 | BZ2: 1950-1959 | CA2: 1960-1969 | CB2: 1970-1979 | CC2: 1980-1984 | CD2: 1985-1989 | CE2: 1990-1994 | CF2: 1995-1999 | CG2: 2000 | CH2: =+CG2+1 -> 2001 | CI2: =+CH2+1 -> 2002 | CJ2: 2003 | CK2: 2004 | CL2: 2005 | CM2: 2006 | CN2: 2007 | CO2: 2008 | CP2: 2009 | CR2: Mængde
A3: Indeksår | D3: 1905 | E3: =+D3+10 -> 1915 | F3: =+E3+10 -> 1925 | G3: 1935 | H3: 1945 | I3: 1955 | J3: 1965 | K3: 1975 | L3: 1982 | M3: 1987 | N3: =+L3+10 -> 1992 | O3: 1997 | P3: =+P2 -> 2000 | Q3: =+Q2 -> 2001 | R3: 2002 | S3: 2003 | T3: 2004 | U3: 2005 | V3: 2006 | W3: 2007 | X3: 2008 | Y3: 2009 | AA3: 1905 | AB3: =+AA3+10 -> 1915 | AC3: =+AB3+10 -> 1925 | AD3: 1935 | AE3: 1945 | AF3: 1955 | AG3: 1965 | AH3: 1975 | AI3: 1982 | AJ3: 1987 | AK3: =+AI3+10 -> 1992 | AL3: 1997 | AM3: =+AM2 -> 2000 | AN3: 2001 | AO3: 2002 | AP3: 2003 | AQ3: 2004 | AR3: 2005 | AS3: 2006 | AT3: 2007 | AU3: 2008 | AV3: 2009 | AX3: 1905 | AY3: =+AX3+10 -> 1915 | AZ3: =+AY3+10 -> 1925 | BA3: 1935 | BB3: 1945 | BC3: 1955 | BD3: 1965 | BE3: 1975 | BF3: 1982 | BG3: 1987 | BH3: =+BF3+10 -> 1992 | BI3: 1997 | BJ3: =+BJ2 -> 2000 | BK3: 2001 | BL3: 2002 | BM3: 2003 | BN3: 2004 | BO3: 2005 | BP3: 2006 | BQ3: 2007 | BR3: 2008 | BS3: 2009 | BU3: 1905 | BV3: =+BU3+10 -> 1915 | BW3: =+BV3+10 -> 1925 | BX3: 1935 | BY3: 1945 | BZ3: 1955 | CA3: 1965 | CB3: 1975 | CC3: 1982 | CD3: 1987 | CE3: =+CC3+10 -> 1992 | CF3: 1997 | CG3: =+CG2 -> 2000 | CH3: 2001 | CI3: 2002 | CJ3: 2003 | CK3: 2004 | CL3: 2005 | CM3: 2006 | CN3: 2007 | CO3: 2008 | CP3: 2009
A4: Boringer | AW4: =SUM(AW5:AW164) -> 4244353.26 | BT4: =SUM(BT5:BT164) -> 3459841.134 | CQ4: =SUM(CQ5:CQ164) -> 3852097.197
A5: Boring (inkl. etablering, forerør, filter og prøvepumpning) - 1 | B5: dybdemeter | C5: =Genanskaffelsespriser!$E$5 -> 30 | D5: 0 | E5: 0 | F5: 145 | G5: 0 | H5: =258.5-60 -> 198.5 | I5: =723.4-31 -> 692.4 | J5: =2331.3-233 -> 2098.3 | K5: =1975.5-39 -> 1936.5 | L5: =737-34 -> 703 | M5: =1102.8-66 -> 1036.8 | N5: =529.8-54 -> 475.8 | O5: 431.5 | P5: 68.5 | Q5: 140 | R5: 141 | S5: 30 | T5: 117 | U5: 0 | V5: 0 | W5: 0 | X5: 394 | Y5: 0 | AA5: =IF((D5*Genanskaffelsespriser!$D$5-(2009-D$3)/($C5+D6)*Genanskaffelsespriser!$D$5*D5)<0,0,(D5*Genanskaffelsespriser!$D$5-(2009-D$3)/($C5+D6)*Genanskaffelsespriser!$D$5*D5)) -> 0 | AB5: =IF((E5*Genanskaffelsespriser!$D$5-(2009-E$3)/($C5+E6)*Genanskaffelsespriser!$D$5*E5)<0,0,(E5*Genanskaffelsespriser!$D$5-(2009-E$3)/($C5+E6)*Genanskaffelsespriser!$D$5*E5)) -> 0 | AC5: =IF((F5*Genanskaffelsespriser!$D$5-(2009-F$3)/($C5+F6)*Genanskaffelsespriser!$D$5*F5)<0,0,(F5*Genanskaffelsespriser!$D$5-(2009-F$3)/($C5+F6)*Genanskaffelsespriser!$D$5*F5)) -> 0 | AD5: =IF((G5*Genanskaffelsespriser!$D$5-(2009-G$3)/($C5+G6)*Genanskaffelsespriser!$D$5*G5)<0,0,(G5*Genanskaffelsespriser!$D$5-(2009-G$3)/($C5+G6)*Genanskaffelsespriser!$D$5*G5)) -> 0 | AE5: =IF((H5*Genanskaffelsespriser!$D$5-(2009-H$3)/($C5+H6)*Genanskaffelsespriser!$D$5*H5)<0,0,(H5*Genanskaffelsespriser!$D$5-(2009-H$3)/($C5+H6)*Genanskaffelsespriser!$D$5*H5)) -> 0 | AF5: =IF((I5*Genanskaffelsespriser!$D$5-(2009-I$3)/($C5+I6)*Genanskaffelsespriser!$D$5*I5)<0,0,(I5*Genanskaffelsespriser!$D$5-(2009-I$3)/($C5+I6)*Genanskaffelsespriser!$D$5*I5)) -> 0 | AG5: =IF((J5*Genanskaffelsespriser!$D$5-(2009-J$3)/($C5+J6)*Genanskaffelsespriser!$D$5*J5)<0,0,(J5*Genanskaffelsespriser!$D$5-(2009-J$3)/($C5+J6)*Genanskaffelsespriser!$D$5*J5)) -> 0 | AH5: =IF((K5*Genanskaffelsespriser!$D$5-(2009-K$3)/($C5+K6)*Genanskaffelsespriser!$D$5*K5)<0,0,(K5*Genanskaffelsespriser!$D$5-(2009-K$3)/($C5+K6)*Genanskaffelsespriser!$D$5*K5)) -> 0 | AI5: =IF((L5*Genanskaffelsespriser!$D$5-(2009-L$3)/($C5+L6)*Genanskaffelsespriser!$D$5*L5)<0,0,(L5*Genanskaffelsespriser!$D$5-(2009-L$3)/($C5+L6)*Genanskaffelsespriser!$D$5*L5)) -> 178421.4 | AJ5: =IF((M5*Genanskaffelsespriser!$D$5-(2009-M$3)/($C5+M6)*Genanskaffelsespriser!$D$5*M5)<0,0,(M5*Genanskaffelsespriser!$D$5-(2009-M$3)/($C5+M6)*Genanskaffelsespriser!$D$5*M5)) -> 701706.24 | AK5: =IF((N5*Genanskaffelsespriser!$D$5-(2009-N$3)/($C5+N6)*Genanskaffelsespriser!$D$5*N5)<0,0,(N5*Genanskaffelsespriser!$D$5-(2009-N$3)/($C5+N6)*Genanskaffelsespriser!$D$5*N5)) -> 523284.84 | AL5: =IF((O5*Genanskaffelsespriser!$D$5-(2009-O$3)/($C5+O6)*Genanskaffelsespriser!$D$5*O5)<0,0,(O5*Genanskaffelsespriser!$D$5-(2009-O$3)/($C5+O6)*Genanskaffelsespriser!$D$5*O5)) -> 657088.2 | AM5: =IF((P5*Genanskaffelsespriser!$D$5-(2009-P$3)/($C5+P6)*Genanskaffelsespriser!$D$5*P5)<0,0,(P5*Genanskaffelsespriser!$D$5-(2009-P$3)/($C5+P6)*Genanskaffelsespriser!$D$5*P5)) -> 121697.1 | AN5: =IF((Q5*Genanskaffelsespriser!$D$5-(2009-Q$3)/($C5+Q6)*Genanskaffelsespriser!$D$5*Q5)<0,0,(Q5*Genanskaffelsespriser!$D$5-(2009-Q$3)/($C5+Q6)*Genanskaffelsespriser!$D$5*Q5)) -> 260568 | AO5: =IF((R5*Genanskaffelsespriser!$D$5-(2009-R$3)/($C5+R6)*Genanskaffelsespriser!$D$5*R5)<0,0,(R5*Genanskaffelsespriser!$D$5-(2009-R$3)/($C5+R6)*Genanskaffelsespriser!$D$5*R5)) -> 274357.8 | AP5: =IF((S5*Genanskaffelsespriser!$D$5-(2009-S$3)/($C5+S6)*Genanskaffelsespriser!$D$5*S5)<0,0,(S5*Genanskaffelsespriser!$D$5-(2009-S$3)/($C5+S6)*Genanskaffelsespriser!$D$5*S5)) -> 60912 | AQ5: =IF((T5*Genanskaffelsespriser!$D$5-(2009-T$3)/($C5+T6)*Genanskaffelsespriser!$D$5*T5)<0,0,(T5*Genanskaffelsespriser!$D$5-(2009-T$3)/($C5+T6)*Genanskaffelsespriser!$D$5*T5)) -> 247455 | AR5: =IF((U5*Genanskaffelsespriser!$D$5-(2009-U$3)/($C5+U6)*Genanskaffelsespriser!$D$5*U5)<0,0,(U5*Genanskaffelsespriser!$D$5-(2009-U$3)/($C5+U6)*Genanskaffelsespriser!$D$5*U5)) -> 0 | AS5: =IF((V5*Genanskaffelsespriser!$D$5-(2009-V$3)/($C5+V6)*Genanskaffelsespriser!$D$5*V5)<0,0,(V5*Genanskaffelsespriser!$D$5-(2009-V$3)/($C5+V6)*Genanskaffelsespriser!$D$5*V5)) -> 0 | AT5: =IF((W5*Genanskaffelsespriser!$D$5-(2009-W$3)/($C5+W6)*Genanskaffelsespriser!$D$5*W5)<0,0,(W5*Genanskaffelsespriser!$D$5-(2009-W$3)/($C5+W6)*Genanskaffelsespriser!$D$5*W5)) -> 0 | AU5: =IF((X5*Genanskaffelsespriser!$D$5-(2009-X$3)/($C5+X6)*Genanskaffelsespriser!$D$5*X5)<0,0,(X5*Genanskaffelsespriser!$D$5-(2009-X$3)/($C5+X6)*Genanskaffelsespriser!$D$5*X5)) -> 966639.6 | AV5: =IF((Y5*Genanskaffelsespriser!$D$5-(2009-Y$3)/($C5+Y6)*Genanskaffelsespriser!$D$5*Y5)<0,0,(Y5*Genanskaffelsespriser!$D$5-(2009-Y$3)/($C5+Y6)*Genanskaffelsespriser!$D$5*Y5)) -> 0 | AW5: =+SUM(AA5:AV5) -> 3992130.18 | AX5: =VLOOKUP(D$3,Prisindeks!$A$1:$B$111,2,FALSE)/100*AA5 -> 0 | AY5: =VLOOKUP(E$3,Prisindeks!$A$1:$B$111,2,FALSE)/100*AB5 -> 0 | AZ5: =VLOOKUP(F$3,Prisindeks!$A$1:$B$111,2,FALSE)/100*AC5 -> 0 | BA5: =VLOOKUP(G$3,Prisindeks!$A$1:$B$111,2,FALSE)/100*AD5 -> 0 | BB5: =VLOOKUP(H$3,Prisindeks!$A$1:$B$111,2,FALSE)/100*AE5 -> 0 | BC5: =VLOOKUP(I$3,Prisindeks!$A$1:$B$111,2,FALSE)/100*AF5 -> 0 | BD5: =VLOOKUP(J$3,Prisindeks!$A$1:$B$111,2,FALSE)/100*AG5 -> 0 | BE5: =VLOOKUP(K$3,Prisindeks!$A$1:$B$111,2,FALSE)/100*AH5 -> 0 | BF5: =VLOOKUP(L$3,Prisindeks!$A$1:$B$111,2,FALSE)/100*AI5 -> 84084.74896 | BG5: =VLOOKUP(M$3,Prisindeks!$A$1:$B$111,2,FALSE)/100*AJ5 -> 416935.5139 | BH5: =VLOOKUP(N$3,Prisindeks!$A$1:$B$111,2,FALSE)/100*AK5 -> 369431.7066 | BI5: =VLOOKUP(O$3,Prisindeks!$A$1:$B$111,2,FALSE)/100*AL5 -> 530240.4483 | BJ5: =VLOOKUP(P$3,Prisindeks!$A$1:$B$111,2,FALSE)/100*AM5 -> 108087.109 | BK5: =VLOOKUP(Q$3,Prisindeks!$A$1:$B$111,2,FALSE)/100*AN5 -> 235841.3781 | BL5: =VLOOKUP(R$3,Prisindeks!$A$1:$B$111,2,FALSE)/100*AO5 -> 252794.2747 | BM5: =VLOOKUP(S$3,Prisindeks!$A$1:$B$111,2,FALSE)/100*AP5 -> 56483.75752 | BN5: =VLOOKUP(T$3,Prisindeks!$A$1:$B$111,2,FALSE)/100*AQ5 -> 231444.1496 | BO5: =VLOOKUP(U$3,Prisindeks!$A$1:$B$111,2,FALSE)/100*AR5 -> 0 | BP5: =VLOOKUP(V$3,Prisindeks!$A$1:$B$111,2,FALSE)/100*AS5 -> 0 | BQ5: =VLOOKUP(W$3,Prisindeks!$A$1:$B$111,2,FALSE)/100*AT5 -> 0 | BR5: =VLOOKUP(X$3,Prisindeks!$A$1:$B$111,2,FALSE)/100*AU5 -> 1036521.94 | BS5: =VLOOKUP(Y$3,Prisindeks!$A$1:$B$111,2,FALSE)/100*AV5 -> 0 | BT5: =+SUM(AX5:BS5) -> 3321865.027 | BU5: =(AA5+AX5)/2 -> 0 | BV5: =(AB5+AY5)/2 -> 0 | BW5: 0 | BX5: 0 | BY5: 0 | BZ5: 0 | CA5: 0 | CB5: 0 | CC5: 131253.0745 | CD5: 559320.8769 | CE5: 446358.2733 | CF5: 593664.3241 | CG5: 114892.1045 | CH5: 248204.689 | CI5: 263576.0374 | CJ5: 58697.87876 | CK5: 239449.5748 | CL5: 0 | CM5: 0 | CN5: 0 | CO5: 1001580.77 | CP5: 0 | CQ5: =AVERAGE(AW5,BT5) -> 3656997.603 | CR5: =SUM(D5:Y5) -> 8608.3
A6: Levetidsforlængelse | B6: år | C6: - | D6: 0 | E6: 0 | F6: 0 | G6: 0 | H6: 0 | I6: 0 | J6: 0 | K6: 0 | L6: 0 | M6: 0 | N6: 0 | O6: 0 | P6: 0 | Q6: 0 | R6: 0 | S6: 0 | T6: 0 | U6: 0 | V6: 0 | W6: 0 | X6: 0 | Y6: 0
A7: Boring (inkl. etablering, forerør, filter og prøvepumpning) - 2 | B7: dybdemeter | C7: =Genanskaffelsespriser!$E$5 -> 30 | D7: 0 | E7: 0 | F7: 0 | G7: 0 | H7: 0 | I7: 0 | J7: 519.7 | K7: 0 | L7: 0 | M7: 0 | N7: 0 | O7: 0 | P7: 0 | Q7: 0 | R7: 0 | S7: 0 | T7: 0 | U7: 0 | V7: 0 | W7: 0 | X7: 0 | Y7: 0 | AA7: =IF((D7*Genanskaffelsespriser!$D$5-(2009-D$3)/($C7+D8)*Genanskaffelsespriser!$D$5*D7)<0,0,(D7*Genanskaffelsespriser!$D$5-(2009-D$3)/($C7+D8)*Genanskaffelsespriser!$D$5*D7)) -> 0 | AB7: =IF((E7*Genanskaffelsespriser!$D$5-(2009-E$3)/($C7+E8)*Genanskaffelsespriser!$D$5*E7)<0,0,(E7*Genanskaffelsespriser!$D$5-(2009-E$3)/($C7+E8)*Genanskaffelsespriser!$D$5*E7)) -> 0 | AC7: =IF((F7*Genanskaffelsespriser!$D$5-(2009-F$3)/($C7+F8)*Genanskaffelsespriser!$D$5*F7)<0,0,(F7*Genanskaffelsespriser!$D$5-(2009-F$3)/($C7+F8)*Genanskaffelsespriser!$D$5*F7)) -> 0 | AD7: =IF((G7*Genanskaffelsespriser!$D$5-(2009-G$3)/($C7+G8)*Genanskaffelsespriser!$D$5*G7)<0,0,(G7*Genanskaffelsespriser!$D$5-(2009-G$3)/($C7+G8)*Genanskaffelsespriser!$D$5*G7)) -> 0 | AE7: =IF((H7*Genanskaffelsespriser!$D$5-(2009-H$3)/($C7+H8)*Genanskaffelsespriser!$D$5*H7)<0,0,(H7*Genanskaffelsespriser!$D$5-(2009-H$3)/($C7+H8)*Genanskaffelsespriser!$D$5*H7)) -> 0 | AF7: =IF((I7*Genanskaffelsespriser!$D$5-(2009-I$3)/($C7+I8)*Genanskaffelsespriser!$D$5*I7)<0,0,(I7*Genanskaffelsespriser!$D$5-(2009-I$3)/($C7+I8)*Genanskaffelsespriser!$D$5*I7)) -> 0 | AG7: =IF((J7*Genanskaffelsespriser!$D$5-(2009-J$3)/($C7+J8)*Genanskaffelsespriser!$D$5*J7)<0,0,(J7*Genanskaffelsespriser!$D$5-(2009-J$3)/($C7+J8)*Genanskaffelsespriser!$D$5*J7)) -> 29311.08 | AH7: =IF((K7*Genanskaffelsespriser!$D$5-(2009-K$3)/($C7+K8)*Genanskaffelsespriser!$D$5*K7)<0,0,(K7*Genanskaffelsespriser!$D$5-(2009-K$3)/($C7+K8)*Genanskaffelsespriser!$D$5*K7)) -> 0 | AI7: =IF((L7*Genanskaffelsespriser!$D$5-(2009-L$3)/($C7+L8)*Genanskaffelsespriser!$D$5*L7)<0,0,(L7*Genanskaffelsespriser!$D$5-(2009-L$3)/($C7+L8)*Genanskaffelsespriser!$D$5*L7)) -> 0 | AJ7: =IF((M7*Genanskaffelsespriser!$D$5-(2009-M$3)/($C7+M8)*Genanskaffelsespriser!$D$5*M7)<0,0,(M7*Genanskaffelsespriser!$D$5-(2009-M$3)/($C7+M8)*Genanskaffelsespriser!$D$5*M7)) -> 0 | AK7: =IF((N7*Genanskaffelsespriser!$D$5-(2009-N$3)/($C7+N8)*Genanskaffelsespriser!$D$5*N7)<0,0,(N7*Genanskaffelsespriser!$D$5-(2009-N$3)/($C7+N8)*Genanskaffelsespriser!$D$5*N7)) -> 0 | AL7: =IF((O7*Genanskaffelsespriser!$D$5-(2009-O$3)/($C7+O8)*Genanskaffelsespriser!$D$5*O7)<0,0,(O7*Genanskaffelsespriser!$D$5-(2009-O$3)/($C7+O8)*Genanskaffelsespriser!$D$5*O7)) -> 0 | AM7: =IF((P7*Genanskaffelsespriser!$D$5-(2009-P$3)/($C7+P8)*Genanskaffelsespriser!$D$5*P7)<0,0,(P7*Genanskaffelsespriser!$D$5-(2009-P$3)/($C7+P8)*Genanskaffelsespriser!$D$5*P7)) -> 0 | AN7: =IF((Q7*Genanskaffelsespriser!$D$5-(2009-Q$3)/($C7+Q8)*Genanskaffelsespriser!$D$5*Q7)<0,0,(Q7*Genanskaffelsespriser!$D$5-(2009-Q$3)/($C7+Q8)*Genanskaffelsespriser!$D$5*Q7)) -> 0 | AO7: =IF((R7*Genanskaffelsespriser!$D$5-(2009-R$3)/($C7+R8)*Genanskaffelsespriser!$D$5*R7)<0,0,(R7*Genanskaffelsespriser!$D$5-(2009-R$3)/($C7+R8)*Genanskaffelsespriser!$D$5*R7)) -> 0 | AP7: =IF((S7*Genanskaffelsespriser!$D$5-(2009-S$3)/($C7+S8)*Genanskaffelsespriser!$D$5*S7)<0,0,(S7*Genanskaffelsespriser!$D$5-(2009-S$3)/($C7+S8)*Genanskaffelsespriser!$D$5*S7)) -> 0 | AQ7: =IF((T7*Genanskaffelsespriser!$D$5-(2009-T$3)/($C7+T8)*Genanskaffelsespriser!$D$5*T7)<0,0,(T7*Genanskaffelsespriser!$D$5-(2009-T$3)/($C7+T8)*Genanskaffelsespriser!$D$5*T7)) -> 0 | AR7: =IF((U7*Genanskaffelsespriser!$D$5-(2009-U$3)/($C7+U8)*Genanskaffelsespriser!$D$5*U7)<0,0,(U7*Genanskaffelsespriser!$D$5-(2009-U$3)/($C7+U8)*Genanskaffelsespriser!$D$5*U7)) -> 0 | AS7: =IF((V7*Genanskaffelsespriser!$D$5-(2009-V$3)/($C7+V8)*Genanskaffelsespriser!$D$5*V7)<0,0,(V7*Genanskaffelsespriser!$D$5-(2009-V$3)/($C7+V8)*Genanskaffelsespriser!$D$5*V7)) -> 0 | AT7: =IF((W7*Genanskaffelsespriser!$D$5-(2009-W$3)/($C7+W8)*Genanskaffelsespriser!$D$5*W7)<0,0,(W7*Genanskaffelsespriser!$D$5-(2009-W$3)/($C7+W8)*Genanskaffelsespriser!$D$5*W7)) -> 0 | AU7: =IF((X7*Genanskaffelsespriser!$D$5-(2009-X$3)/($C7+X8)*Genanskaffelsespriser!$D$5*X7)<0,0,(X7*Genanskaffelsespriser!$D$5-(2009-X$3)/($C7+X8)*Genanskaffelsespriser!$D$5*X7)) -> 0 | AV7: =IF((Y7*Genanskaffelsespriser!$D$5-(2009-Y$3)/($C7+Y8)*Genanskaffelsespriser!$D$5*Y7)<0,0,(Y7*Genanskaffelsespriser!$D$5-(2009-Y$3)/($C7+Y8)*Genanskaffelsespriser!$D$5*Y7)) -> 0 | AW7: =+SUM(AA7:AV7) -> 29311.08 | AX7: =VLOOKUP(D$3,Prisindeks!$A$1:$B$111,2,FALSE)/100*AA7 -> 0 | AY7: =VLOOKUP(E$3,Prisindeks!$A$1:$B$111,2,FALSE)/100*AB7 -> 0 | AZ7: =VLOOKUP(F$3,Prisindeks!$A$1:$B$111,2,FALSE)/100*AC7 -> 0 | BA7: =VLOOKUP(G$3,Prisindeks!$A$1:$B$111,2,FALSE)/100*AD7 -> 0 | BB7: =VLOOKUP(H$3,Prisindeks!$A$1:$B$111,2,FALSE)/100*AE7 -> 0 | BC7: =VLOOKUP(I$3,Prisindeks!$A$1:$B$111,2,FALSE)/100*AF7 -> 0 | BD7: =VLOOKUP(J$3,Prisindeks!$A$1:$B$111,2,FALSE)/100*AG7 -> 3017.185151 | BE7: =VLOOKUP(K$3,Prisindeks!$A$1:$B$111,2,FALSE)/100*AH7 -> 0 | BF7: =VLOOKUP(L$3,Prisindeks!$A$1:$B$111,2,FALSE)/100*AI7 -> 0 | BG7: =VLOOKUP(M$3,Prisindeks!$A$1:$B$111,2,FALSE)/100*AJ7 -> 0 | BH7: =VLOOKUP(N$3,Prisindeks!$A$1:$B$111,2,FALSE)/100*AK7 -> 0 | BI7: =VLOOKUP(O$3,Prisindeks!$A$1:$B$111,2,FALSE)/100*AL7 -> 0 | BJ7: =VLOOKUP(P$3,Prisindeks!$A$1:$B$111,2,FALSE)/100*AM7 -> 0 | BK7: =VLOOKUP(Q$3,Prisindeks!$A$1:$B$111,2,FALSE)/100*AN7 -> 0 | BL7: =VLOOKUP(R$3,Prisindeks!$A$1:$B$111,2,FALSE)/100*AO7 -> 0 | BM7: =VLOOKUP(S$3,Prisindeks!$A$1:$B$111,2,FALSE)/100*AP7 -> 0 | BN7: =VLOOKUP(T$3,Prisindeks!$A$1:$B$111,2,FALSE)/100*AQ7 -> 0 | BO7: =VLOOKUP(U$3,Prisindeks!$A$1:$B$111,2,FALSE)/100*AR7 -> 0 | BP7: =VLOOKUP(V$3,Prisindeks!$A$1:$B$111,2,FALSE)/100*AS7 -> 0 | BQ7: =VLOOKUP(W$3,Prisindeks!$A$1:$B$111,2,FALSE)/100*AT7 -> 0 | BR7: =VLOOKUP(X$3,Prisindeks!$A$1:$B$111,2,FALSE)/100*AU7 -> 0 | BS7: =VLOOKUP(Y$3,Prisindeks!$A$1:$B$111,2,FALSE)/100*AV7 -> 0 | BT7: =+SUM(AX7:BS7) -> 3017.185151 | BU7: =(AA7+AX7)/2 -> 0 | BV7: 0 | BW7: 0 | BX7: 0 | BY7: 0 | BZ7: 0 | CA7: 16164.13258 | CB7: 0 | CC7: 0 | CD7: 0 | CE7: 0 | CF7: 0 | CG7: 0 | CH7: 0 | CI7: 0 | CJ7: 0 | CK7: 0 | CL7: 0 | CM7: 0 | CN7: 0 | CO7: 0 | CP7: 0 | CQ7: =AVERAGE(AW7,BT7) -> 16164.13258 | CR7: =SUM(D7:Y7) -> 519.7
A8: Levetidsforlængelse | B8: år | C8: - | D8: 0 | E8: 0 | F8: 0 | G8: 0 | H8: 0 | I8: 0 | J8: 15 | K8: 0 | L8: 0 | M8: 0 | N8: 0 | O8: 0 | P8: 0 | Q8: 0 | R8: 0 | S8: 0 | T8: 0 | U8: 0 | V8: 0 | W8: 0 | X8: 0 | Y8: 0
A9: Boring (inkl. etablering, forerør, filter og prøvepumpning) - 3 | B9: dybdemeter | C9: =Genanskaffelsespriser!$E$5 -> 30 | D9: 0 | E9: 0 | F9: 0 | G9: 0 | H9: 0 | I9: 0 | J9: 0 | K9: 0 | L9: 0 | M9: 0 | N9: 0 | O9: 0 | P9: 0 | Q9: 0 | R9: 0 | S9: 60 | T9: 0 | U9: 0 | V9: 0 | W9: 0 | X9: 0 | Y9: 0 | AA9: =IF((D9*Genanskaffelsespriser!$D$5-(2009-D$3)/($C9+D10)*Genanskaffelsespriser!$D$5*D9)<0,0,(D9*Genanskaffelsespriser!$D$5-(2009-D$3)/($C9+D10)*Genanskaffelsespriser!$D$5*D9)) -> 0 | AB9: =IF((E9*Genanskaffelsespriser!$D$5-(2009-E$3)/($C9+E10)*Genanskaffelsespriser!$D$5*E9)<0,0,(E9*Genanskaffelsespriser!$D$5-(2009-E$3)/($C9+E10)*Genanskaffelsespriser!$D$5*E9)) -> 0 | AC9: =IF((F9*Genanskaffelsespriser!$D$5-(2009-F$3)/($C9+F10)*Genanskaffelsespriser!$D$5*F9)<0,0,(F9*Genanskaffelsespriser!$D$5-(2009-F$3)/($C9+F10)*Genanskaffelsespriser!$D$5*F9)) -> 0 | AD9: =IF((G9*Genanskaffelsespriser!$D$5-(2009-G$3)/($C9+G10)*Genanskaffelsespriser!$D$5*G9)<0,0,(G9*Genanskaffelsespriser!$D$5-(2009-G$3)/($C9+G10)*Genanskaffelsespriser!$D$5*G9)) -> 0 | AE9: =IF((H9*Genanskaffelsespriser!$D$5-(2009-H$3)/($C9+H10)*Genanskaffelsespriser!$D$5*H9)<0,0,(H9*Genanskaffelsespriser!$D$5-(2009-H$3)/($C9+H10)*Genanskaffelsespriser!$D$5*H9)) -> 0 | AF9: =IF((I9*Genanskaffelsespriser!$D$5-(2009-I$3)/($C9+I10)*Genanskaffelsespriser!$D$5*I9)<0,0,(I9*Genanskaffelsespriser!$D$5-(2009-I$3)/($C9+I10)*Genanskaffelsespriser!$D$5*I9)) -> 0 | AG9: =IF((J9*Genanskaffelsespriser!$D$5-(2009-J$3)/($C9+J10)*Genanskaffelsespriser!$D$5*J9)<0,0,(J9*Genanskaffelsespriser!$D$5-(2009-J$3)/($C9+J10)*Genanskaffelsespriser!$D$5*J9)) -> 0 | AH9: =IF((K9*Genanskaffelsespriser!$D$5-(2009-K$3)/($C9+K10)*Genanskaffelsespriser!$D$5*K9)<0,0,(K9*Genanskaffelsespriser!$D$5-(2009-K$3)/($C9+K10)*Genanskaffelsespriser!$D$5*K9)) -> 0 | AI9: =IF((L9*Genanskaffelsespriser!$D$5-(2009-L$3)/($C9+L10)*Genanskaffelsespriser!$D$5*L9)<0,0,(L9*Genanskaffelsespriser!$D$5-(2009-L$3)/($C9+L10)*Genanskaffelsespriser!$D$5*L9)) -> 0 | AJ9: =IF((M9*Genanskaffelsespriser!$D$5-(2009-M$3)/($C9+M10)*Genanskaffelsespriser!$D$5*M9)<0,0,(M9*Genanskaffelsespriser!$D$5-(2009-M$3)/($C9+M10)*Genanskaffelsespriser!$D$5*M9)) -> 0 | AK9: =IF((N9*Genanskaffelsespriser!$D$5-(2009-N$3)/($C9+N10)*Genanskaffelsespriser!$D$5*N9)<0,0,(N9*Genanskaffelsespriser!$D$5-(2009-N$3)/($C9+N10)*Genanskaffelsespriser!$D$5*N9)) -> 0 | AL9: =IF((O9*Genanskaffelsespriser!$D$5-(2009-O$3)/($C9+O10)*Genanskaffelsespriser!$D$5*O9)<0,0,(O9*Genanskaffelsespriser!$D$5-(2009-O$3)/($C9+O10)*Genanskaffelsespriser!$D$5*O9)) -> 0 | AM9: =IF((P9*Genanskaffelsespriser!$D$5-(2009-P$3)/($C9+P10)*Genanskaffelsespriser!$D$5*P9)<0,0,(P9*Genanskaffelsespriser!$D$5-(2009-P$3)/($C9+P10)*Genanskaffelsespriser!$D$5*P9)) -> 0 | AN9: =IF((Q9*Genanskaffelsespriser!$D$5-(2009-Q$3)/($C9+Q10)*Genanskaffelsespriser!$D$5*Q9)<0,0,(Q9*Genanskaffelsespriser!$D$5-(2009-Q$3)/($C9+Q10)*Genanskaffelsespriser!$D$5*Q9)) -> 0 | AO9: =IF((R9*Genanskaffelsespriser!$D$5-(2009-R$3)/($C9+R10)*Genanskaffelsespriser!$D$5*R9)<0,0,(R9*Genanskaffelsespriser!$D$5-(2009-R$3)/($C9+R10)*Genanskaffelsespriser!$D$5*R9)) -> 0 | AP9: =IF((S9*Genanskaffelsespriser!$D$5-(2009-S$3)/($C9+S10)*Genanskaffelsespriser!$D$5*S9)<0,0,(S9*Genanskaffelsespriser!$D$5-(2009-S$3)/($C9+S10)*Genanskaffelsespriser!$D$5*S9)) -> 121824 | AQ9: =IF((T9*Genanskaffelsespriser!$D$5-(2009-T$3)/($C9+T10)*Genanskaffelsespriser!$D$5*T9)<0,0,(T9*Genanskaffelsespriser!$D$5-(2009-T$3)/($C9+T10)*Genanskaffelsespriser!$D$5*T9)) -> 0 | AR9: =IF((U9*Genanskaffelsespriser!$D$5-(2009-U$3)/($C9+U10)*Genanskaffelsespriser!$D$5*U9)<0,0,(U9*Genanskaffelsespriser!$D$5-(2009-U$3)/($C9+U10)*Genanskaffelsespriser!$D$5*U9)) -> 0 | AS9: =IF((V9*Genanskaffelsespriser!$D$5-(2009-V$3)/($C9+V10)*Genanskaffelsespriser!$D$5*V9)<0,0,(V9*Genanskaffelsespriser!$D$5-(2009-V$3)/($C9+V10)*Genanskaffelsespriser!$D$5*V9)) -> 0 | AT9: =IF((W9*Genanskaffelsespriser!$D$5-(2009-W$3)/($C9+W10)*Genanskaffelsespriser!$D$5*W9)<0,0,(W9*Genanskaffelsespriser!$D$5-(2009-W$3)/($C9+W10)*Genanskaffelsespriser!$D$5*W9)) -> 0 | AU9: =IF((X9*Genanskaffelsespriser!$D$5-(2009-X$3)/($C9+X10)*Genanskaffelsespriser!$D$5*X9)<0,0,(X9*Genanskaffelsespriser!$D$5-(2009-X$3)/($C9+X10)*Genanskaffelsespriser!$D$5*X9)) -> 0 | AV9: =IF((Y9*Genanskaffelsespriser!$D$5-(2009-Y$3)/($C9+Y10)*Genanskaffelsespriser!$D$5*Y9)<0,0,(Y9*Genanskaffelsespriser!$D$5-(2009-Y$3)/($C9+Y10)*Genanskaffelsespriser!$D$5*Y9)) -> 0 | AW9: =+SUM(AA9:AV9) -> 121824 | AX9: =VLOOKUP(D$3,Prisindeks!$A$1:$B$111,2,FALSE)/100*AA9 -> 0 | AY9: =VLOOKUP(E$3,Prisindeks!$A$1:$B$111,2,FALSE)/100*AB9 -> 0 | AZ9: =VLOOKUP(F$3,Prisindeks!$A$1:$B$111,2,FALSE)/100*AC9 -> 0 | BA9: =VLOOKUP(G$3,Prisindeks!$A$1:$B$111,2,FALSE)/100*AD9 -> 0 | BB9: =VLOOKUP(H$3,Prisindeks!$A$1:$B$111,2,FALSE)/100*AE9 -> 0 | BC9: =VLOOKUP(I$3,Prisindeks!$A$1:$B$111,2,FALSE)/100*AF9 -> 0 | BD9: =VLOOKUP(J$3,Prisindeks!$A$1:$B$111,2,FALSE)/100*AG9 -> 0 | BE9: =VLOOKUP(K$3,Prisindeks!$A$1:$B$111,2,FALSE)/100*AH9 -> 0 | BF9: =VLOOKUP(L$3,Prisindeks!$A$1:$B$111,2,FALSE)/100*AI9 -> 0 | BG9: =VLOOKUP(M$3,Prisindeks!$A$1:$B$111,2,FALSE)/100*AJ9 -> 0 | BH9: =VLOOKUP(N$3,Prisindeks!$A$1:$B$111,2,FALSE)/100*AK9 -> 0 | BI9: =VLOOKUP(O$3,Prisindeks!$A$1:$B$111,2,FALSE)/100*AL9 -> 0 | BJ9: =VLOOKUP(P$3,Prisindeks!$A$1:$B$111,2,FALSE)/100*AM9 -> 0 | BK9: =VLOOKUP(Q$3,Prisindeks!$A$1:$B$111,2,FALSE)/100*AN9 -> 0 | BL9: =VLOOKUP(R$3,Prisindeks!$A$1:$B$111,2,FALSE)/100*AO9 -> 0 | BM9: =VLOOKUP(S$3,Prisindeks!$A$1:$B$111,2,FALSE)/100*AP9 -> 112967.515 | BN9: =VLOOKUP(T$3,Prisindeks!$A$1:$B$111,2,FALSE)/100*AQ9 -> 0 | BO9: =VLOOKUP(U$3,Prisindeks!$A$1:$B$111,2,FALSE)/100*AR9 -> 0 | BP9: =VLOOKUP(V$3,Prisindeks!$A$1:$B$111,2,FALSE)/100*AS9 -> 0 | BQ9: =VLOOKUP(W$3,Prisindeks!$A$1:$B$111,2,FALSE)/100*AT9 -> 0 | BR9: =VLOOKUP(X$3,Prisindeks!$A$1:$B$111,2,FALSE)/100*AU9 -> 0 | BS9: =VLOOKUP(Y$3,Prisindeks!$A$1:$B$111,2,FALSE)/100*AV9 -> 0 | BT9: =+SUM(AX9:BS9) -> 112967.515 | BU9: =(AA9+AX9)/2 -> 0 | BV9: 0 | BW9: 0 | BX9: 0 | BY9: 0 | BZ9: 0 | CA9: 0 | CB9: 0 | CC9: 0 | CD9: 0 | CE9: 0 | CF9: 0 | CG9: 0 | CH9: 0 | CI9: 0 | CJ9: 117395.7575 | CK9: 0 | CL9: 0 | CM9: 0 | CN9: 0 | CO9: 0 | CP9: 0 | CQ9: =AVERAGE(AW9,BT9) -> 117395.7575 | CR9: =SUM(D9:Y9) -> 60
A10: Levetidsforlængelse | B10: år | C10: - | D10: 0 | E10: 0 | F10: 0 | G10: 0 | H10: 0 | I10: 0 | J10: 0 | K10: 0 | L10: 0 | M10: 0 | N10: 0 | O10: 0 | P10: 0 | Q10: 0 | R10: 0 | S10: 0 | T10: 0 | U10: 0 | V10: 0 | W10: 0 | X10: 0 | Y10: 0
A11: Boring (inkl. etablering, forerør, filter og prøvepumpning) - 4 | B11: dybdemeter | C11: =Genanskaffelsespriser!$E$5 -> 30 | D11: 0 | E11: 0 | F11: 0 | G11: 0 | H11: 0 | I11: 0 | J11: 0 | K11: 144 | L11: 0 | M11: 0 | N11: 0 | O11: 0 | P11: 0 | Q11: 0 | R11: 0 | S11: 0 | T11: 0 | U11: 0 | V11: 0 | W11: 0 | X11: 0 | Y11: 0 | AA11: =IF((D11*Genanskaffelsespriser!$D$5-(2009-D$3)/($C11+D12)*Genanskaffelsespriser!$D$5*D11)<0,0,(D11*Genanskaffelsespriser!$D$5-(2009-D$3)/($C11+D12)*Genanskaffelsespriser!$D$5*D11)) -> 0 | AB11: =IF((E11*Genanskaffelsespriser!$D$5-(2009-E$3)/($C11+E12)*Genanskaffelsespriser!$D$5*E11)<0,0,(E11*Genanskaffelsespriser!$D$5-(2009-E$3)/($C11+E12)*Genanskaffelsespriser!$D$5*E11)) -> 0 | AC11: =IF((F11*Genanskaffelsespriser!$D$5-(2009-F$3)/($C11+F12)*Genanskaffelsespriser!$D$5*F11)<0,0,(F11*Genanskaffelsespriser!$D$5-(2009-F$3)/($C11+F12)*Genanskaffelsespriser!$D$5*F11)) -> 0 | AD11: =IF((G11*Genanskaffelsespriser!$D$5-(2009-G$3)/($C11+G12)*Genanskaffelsespriser!$D$5*G11)<0,0,(G11*Genanskaffelsespriser!$D$5-(2009-G$3)/($C11+G12)*Genanskaffelsespriser!$D$5*G11)) -> 0 | AE11: =IF((H11*Genanskaffelsespriser!$D$5-(2009-H$3)/($C11+H12)*Genanskaffelsespriser!$D$5*H11)<0,0,(H11*Genanskaffelsespriser!$D$5-(2009-H$3)/($C11+H12)*Genanskaffelsespriser!$D$5*H11)) -> 0 | AF11: =IF((I11*Genanskaffelsespriser!$D$5-(2009-I$3)/($C11+I12)*Genanskaffelsespriser!$D$5*I11)<0,0,(I11*Genanskaffelsespriser!$D$5-(2009-I$3)/($C11+I12)*Genanskaffelsespriser!$D$5*I11)) -> 0 | AG11: =IF((J11*Genanskaffelsespriser!$D$5-(2009-J$3)/($C11+J12)*Genanskaffelsespriser!$D$5*J11)<0,0,(J11*Genanskaffelsespriser!$D$5-(2009-J$3)/($C11+J12)*Genanskaffelsespriser!$D$5*J11)) -> 0 | AH11: =IF((K11*Genanskaffelsespriser!$D$5-(2009-K$3)/($C11+K12)*Genanskaffelsespriser!$D$5*K11)<0,0,(K11*Genanskaffelsespriser!$D$5-(2009-K$3)/($C11+K12)*Genanskaffelsespriser!$D$5*K11)) -> 101088 | AI11: =IF((L11*Genanskaffelsespriser!$D$5-(2009-L$3)/($C11+L12)*Genanskaffelsespriser!$D$5*L11)<0,0,(L11*Genanskaffelsespriser!$D$5-(2009-L$3)/($C11+L12)*Genanskaffelsespriser!$D$5*L11)) -> 0 | AJ11: =IF((M11*Genanskaffelsespriser!$D$5-(2009-M$3)/($C11+M12)*Genanskaffelsespriser!$D$5*M11)<0,0,(M11*Genanskaffelsespriser!$D$5-(2009-M$3)/($C11+M12)*Genanskaffelsespriser!$D$5*M11)) -> 0 | AK11: =IF((N11*Genanskaffelsespriser!$D$5-(2009-N$3)/($C11+N12)*Genanskaffelsespriser!$D$5*N11)<0,0,(N11*Genanskaffelsespriser!$D$5-(2009-N$3)/($C11+N12)*Genanskaffelsespriser!$D$5*N11)) -> 0 | AL11: =IF((O11*Genanskaffelsespriser!$D$5-(2009-O$3)/($C11+O12)*Genanskaffelsespriser!$D$5*O11)<0,0,(O11*Genanskaffelsespriser!$D$5-(2009-O$3)/($C11+O12)*Genanskaffelsespriser!$D$5*O11)) -> 0 | AM11: =IF((P11*Genanskaffelsespriser!$D$5-(2009-P$3)/($C11+P12)*Genanskaffelsespriser!$D$5*P11)<0,0,(P11*Genanskaffelsespriser!$D$5-(2009-P$3)/($C11+P12)*Genanskaffelsespriser!$D$5*P11)) -> 0 | AN11: =IF((Q11*Genanskaffelsespriser!$D$5-(2009-Q$3)/($C11+Q12)*Genanskaffelsespriser!$D$5*Q11)<0,0,(Q11*Genanskaffelsespriser!$D$5-(2009-Q$3)/($C11+Q12)*Genanskaffelsespriser!$D$5*Q11)) -> 0 | AO11: =IF((R11*Genanskaffelsespriser!$D$5-(2009-R$3)/($C11+R12)*Genanskaffelsespriser!$D$5*R11)<0,0,(R11*Genanskaffelsespriser!$D$5-(2009-R$3)/($C11+R12)*Genanskaffelsespriser!$D$5*R11)) -> 0 | AP11: =IF((S11*Genanskaffelsespriser!$D$5-(2009-S$3)/($C11+S12)*Genanskaffelsespriser!$D$5*S11)<0,0,(S11*Genanskaffelsespriser!$D$5-(2009-S$3)/($C11+S12)*Genanskaffelsespriser!$D$5*S11)) -> 0 | AQ11: =IF((T11*Genanskaffelsespriser!$D$5-(2009-T$3)/($C11+T12)*Genanskaffelsespriser!$D$5*T11)<0,0,(T11*Genanskaffelsespriser!$D$5-(2009-T$3)/($C11+T12)*Genanskaffelsespriser!$D$5*T11)) -> 0 | AR11: =IF((U11*Genanskaffelsespriser!$D$5-(2009-U$3)/($C11+U12)*Genanskaffelsespriser!$D$5*U11)<0,0,(U11*Genanskaffelsespriser!$D$5-(2009-U$3)/($C11+U12)*Genanskaffelsespriser!$D$5*U11)) -> 0 | AS11: =IF((V11*Genanskaffelsespriser!$D$5-(2009-V$3)/($C11+V12)*Genanskaffelsespriser!$D$5*V11)<0,0,(V11*Genanskaffelsespriser!$D$5-(2009-V$3)/($C11+V12)*Genanskaffelsespriser!$D$5*V11)) -> 0 | AT11: =IF((W11*Genanskaffelsespriser!$D$5-(2009-W$3)/($C11+W12)*Genanskaffelsespriser!$D$5*W11)<0,0,(W11*Genanskaffelsespriser!$D$5-(2009-W$3)/($C11+W12)*Genanskaffelsespriser!$D$5*W11)) -> 0 | AU11: =IF((X11*Genanskaffelsespriser!$D$5-(2009-X$3)/($C11+X12)*Genanskaffelsespriser!$D$5*X11)<0,0,(X11*Genanskaffelsespriser!$D$5-(2009-X$3)/($C11+X12)*Genanskaffelsespriser!$D$5*X11)) -> 0 | AV11: =IF((Y11*Genanskaffelsespriser!$D$5-(2009-Y$3)/($C11+Y12)*Genanskaffelsespriser!$D$5*Y11)<0,0,(Y11*Genanskaffelsespriser!$D$5-(2009-Y$3)/($C11+Y12)*Genanskaffelsespriser!$D$5*Y11)) -> 0 | AW11: =+SUM(AA11:AV11) -> 101088 | AX11: =VLOOKUP(D$3,Prisindeks!$A$1:$B$111,2,FALSE)/100*AA11 -> 0 | AY11: =VLOOKUP(E$3,Prisindeks!$A$1:$B$111,2,FALSE)/100*AB11 -> 0 | AZ11: =VLOOKUP(F$3,Prisindeks!$A$1:$B$111,2,FALSE)/100*AC11 -> 0 | BA11: =VLOOKUP(G$3,Prisindeks!$A$1:$B$111,2,FALSE)/100*AD11 -> 0 | BB11: =VLOOKUP(H$3,Prisindeks!$A$1:$B$111,2,FALSE)/100*AE11 -> 0 | BC11: =VLOOKUP(I$3,Prisindeks!$A$1:$B$111,2,FALSE)/100*AF11 -> 0 | BD11: =VLOOKUP(J$3,Prisindeks!$A$1:$B$111,2,FALSE)/100*AG11 -> 0 | BE11: =VLOOKUP(K$3,Prisindeks!$A$1:$B$111,2,FALSE)/100*AH11 -> 21991.40739 | BF11: =VLOOKUP(L$3,Prisindeks!$A$1:$B$111,2,FALSE)/100*AI11 -> 0 | BG11: =VLOOKUP(M$3,Prisindeks!$A$1:$B$111,2,FALSE)/100*AJ11 -> 0 | BH11: =VLOOKUP(N$3,Prisindeks!$A$1:$B$111,2,FALSE)/100*AK11 -> 0 | BI11: =VLOOKUP(O$3,Prisindeks!$A$1:$B$111,2,FALSE)/100*AL11 -> 0 | BJ11: =VLOOKUP(P$3,Prisindeks!$A$1:$B$111,2,FALSE)/100*AM11 -> 0 | BK11: =VLOOKUP(Q$3,Prisindeks!$A$1:$B$111,2,FALSE)/100*AN11 -> 0 | BL11: =VLOOKUP(R$3,Prisindeks!$A$1:$B$111,2,FALSE)/100*AO11 -> 0 | BM11: =VLOOKUP(S$3,Prisindeks!$A$1:$B$111,2,FALSE)/100*AP11 -> 0 | BN11: =VLOOKUP(T$3,Prisindeks!$A$1:$B$111,2,FALSE)/100*AQ11 -> 0 | BO11: =VLOOKUP(U$3,Prisindeks!$A$1:$B$111,2,FALSE)/100*AR11 -> 0 | BP11: =VLOOKUP(V$3,Prisindeks!$A$1:$B$111,2,FALSE)/100*AS11 -> 0 | BQ11: =VLOOKUP(W$3,Prisindeks!$A$1:$B$111,2,FALSE)/100*AT11 -> 0 | BR11: =VLOOKUP(X$3,Prisindeks!$A$1:$B$111,2,FALSE)/100*AU11 -> 0 | BS11: =VLOOKUP(Y$3,Prisindeks!$A$1:$B$111,2,FALSE)/100*AV11 -> 0 | BT11: =+SUM(AX11:BS11) -> 21991.40739 | BU11: =(AA11+AX11)/2 -> 0 | BV11: 0 | BW11: 0 | BX11: 0 | BY11: 0 | BZ11: 0 | CA11: 0 | CB11: 61539.7037 | CC11: 0 | CD11: 0 | CE11: 0 | CF11: 0 | CG11: 0 | CH11: 0 | CI11: 0 | CJ11: 0 | CK11: 0 | CL11: 0 | CM11: 0 | CN11: 0 | CO11: 0 | CP11: 0 | CQ11: =AVERAGE(AW11,BT11) -> 61539.7037 | CR11: =SUM(D11:Y11) -> 144
A12: Levetidsforlængelse | B12: år | C12: - | D12: 0 | E12: 0 | F12: 0 | G12: 0 | H12: 0 | I12: 0 | J12: 0 | K12: 17 | L12: 0 | M12: 0 | N12: 0 | O12: 0 | P12: 0 | Q12: 0 | R12: 0 | S12: 0 | T12: 0 | U12: 0 | V12: 0 | W12: 0 | X12: 0 | Y12: 0
A13: Boring (inkl. etablering, forerør, filter og prøvepumpning) - 5 | B13: dybdemeter | C13: =Genanskaffelsespriser!$E$5 -> 30 | D13: 0 | E13: 0 | F13: 0 | G13: 0 | H13: 0 | I13: 0 | J13: 0 | K13: 39 | L13: 0 | M13: 0 | N13: 0 | O13: 0 | P13: 0 | Q13: 0 | R13: 0 | S13: 0 | T13: 0 | U13: 0 | V13: 0 | W13: 0 | X13: 0 | Y13: 0 | AA13: =IF((D13*Genanskaffelsespriser!$D$5-(2009-D$3)/($C13+D14)*Genanskaffelsespriser!$D$5*D13)<0,0,(D13*Genanskaffelsespriser!$D$5-(2009-D$3)/($C13+D14)*Genanskaffelsespriser!$D$5*D13)) -> 0 | AB13: =IF((E13*Genanskaffelsespriser!$D$5-(2009-E$3)/($C13+E14)*Genanskaffelsespriser!$D$5*E13)<0,0,(E13*Genanskaffelsespriser!$D$5-(2009-E$3)/($C13+E14)*Genanskaffelsespriser!$D$5*E13)) -> 0 | AC13: =IF((F13*Genanskaffelsespriser!$D$5-(2009-F$3)/($C13+F14)*Genanskaffelsespriser!$D$5*F13)<0,0,(F13*Genanskaffelsespriser!$D$5-(2009-F$3)/($C13+F14)*Genanskaffelsespriser!$D$5*F13)) -> 0 | AD13: =IF((G13*Genanskaffelsespriser!$D$5-(2009-G$3)/($C13+G14)*Genanskaffelsespriser!$D$5*G13)<0,0,(G13*Genanskaffelsespriser!$D$5-(2009-G$3)/($C13+G14)*Genanskaffelsespriser!$D$5*G13)) -> 0 | AE13: =IF((H13*Genanskaffelsespriser!$D$5-(2009-H$3)/($C13+H14)*Genanskaffelsespriser!$D$5*H13)<0,0,(H13*Genanskaffelsespriser!$D$5-(2009-H$3)/($C13+H14)*Genanskaffelsespriser!$D$5*H13)) -> 0 | AF13: =IF((I13*Genanskaffelsespriser!$D$5-(2009-I$3)/($C13+I14)*Genanskaffelsespriser!$D$5*I13)<0,0,(I13*Genanskaffelsespriser!$D$5-(2009-I$3)/($C13+I14)*Genanskaffelsespriser!$D$5*I13)) -> 0 | AG13: =IF((J13*Genanskaffelsespriser!$D$5-(2009-J$3)/($C13+J14)*Genanskaffelsespriser!$D$5*J13)<0,0,(J13*Genanskaffelsespriser!$D$5-(2009-J$3)/($C13+J14)*Genanskaffelsespriser!$D$5*J13)) -> 0 | AH13: =IF((K13*Genanskaffelsespriser!$D$5-(2009-K$3)/($C13+K14)*Genanskaffelsespriser!$D$5*K13)<0,0,(K13*Genanskaffelsespriser!$D$5-(2009-K$3)/($C13+K14)*Genanskaffelsespriser!$D$5*K13)) -> 0 | AI13: =IF((L13*Genanskaffelsespriser!$D$5-(2009-L$3)/($C13+L14)*Genanskaffelsespriser!$D$5*L13)<0,0,(L13*Genanskaffelsespriser!$D$5-(2009-L$3)/($C13+L14)*Genanskaffelsespriser!$D$5*L13)) -> 0 | AJ13: =IF((M13*Genanskaffelsespriser!$D$5-(2009-M$3)/($C13+M14)*Genanskaffelsespriser!$D$5*M13)<0,0,(M13*Genanskaffelsespriser!$D$5-(2009-M$3)/($C13+M14)*Genanskaffelsespriser!$D$5*M13)) -> 0 | AK13: =IF((N13*Genanskaffelsespriser!$D$5-(2009-N$3)/($C13+N14)*Genanskaffelsespriser!$D$5*N13)<0,0,(N13*Genanskaffelsespriser!$D$5-(2009-N$3)/($C13+N14)*Genanskaffelsespriser!$D$5*N13)) -> 0 | AL13: =IF((O13*Genanskaffelsespriser!$D$5-(2009-O$3)/($C13+O14)*Genanskaffelsespriser!$D$5*O13)<0,0,(O13*Genanskaffelsespriser!$D$5-(2009-O$3)/($C13+O14)*Genanskaffelsespriser!$D$5*O13)) -> 0 | AM13: =IF((P13*Genanskaffelsespriser!$D$5-(2009-P$3)/($C13+P14)*Genanskaffelsespriser!$D$5*P13)<0,0,(P13*Genanskaffelsespriser!$D$5-(2009-P$3)/($C13+P14)*Genanskaffelsespriser!$D$5*P13)) -> 0 | AN13: =IF((Q13*Genanskaffelsespriser!$D$5-(2009-Q$3)/($C13+Q14)*Genanskaffelsespriser!$D$5*Q13)<0,0,(Q13*Genanskaffelsespriser!$D$5-(2009-Q$3)/($C13+Q14)*Genanskaffelsespriser!$D$5*Q13)) -> 0 | AO13: =IF((R13*Genanskaffelsespriser!$D$5-(2009-R$3)/($C13+R14)*Genanskaffelsespriser!$D$5*R13)<0,0,(R13*Genanskaffelsespriser!$D$5-(2009-R$3)/($C13+R14)*Genanskaffelsespriser!$D$5*R13)) -> 0 | AP13: =IF((S13*Genanskaffelsespriser!$D$5-(2009-S$3)/($C13+S14)*Genanskaffelsespriser!$D$5*S13)<0,0,(S13*Genanskaffelsespriser!$D$5-(2009-S$3)/($C13+S14)*Genanskaffelsespriser!$D$5*S13)) -> 0 | AQ13: =IF((T13*Genanskaffelsespriser!$D$5-(2009-T$3)/($C13+T14)*Genanskaffelsespriser!$D$5*T13)<0,0,(T13*Genanskaffelsespriser!$D$5-(2009-T$3)/($C13+T14)*Genanskaffelsespriser!$D$5*T13)) -> 0 | AR13: =IF((U13*Genanskaffelsespriser!$D$5-(2009-U$3)/($C13+U14)*Genanskaffelsespriser!$D$5*U13)<0,0,(U13*Genanskaffelsespriser!$D$5-(2009-U$3)/($C13+U14)*Genanskaffelsespriser!$D$5*U13)) -> 0 | AS13: =IF((V13*Genanskaffelsespriser!$D$5-(2009-V$3)/($C13+V14)*Genanskaffelsespriser!$D$5*V13)<0,0,(V13*Genanskaffelsespriser!$D$5-(2009-V$3)/($C13+V14)*Genanskaffelsespriser!$D$5*V13)) -> 0 | AT13: =IF((W13*Genanskaffelsespriser!$D$5-(2009-W$3)/($C13+W14)*Genanskaffelsespriser!$D$5*W13)<0,0,(W13*Genanskaffelsespriser!$D$5-(2009-W$3)/($C13+W14)*Genanskaffelsespriser!$D$5*W13)) -> 0 | AU13: =IF((X13*Genanskaffelsespriser!$D$5-(2009-X$3)/($C13+X14)*Genanskaffelsespriser!$D$5*X13)<0,0,(X13*Genanskaffelsespriser!$D$5-(2009-X$3)/($C13+X14)*Genanskaffelsespriser!$D$5*X13)) -> 0 | AV13: =IF((Y13*Genanskaffelsespriser!$D$5-(2009-Y$3)/($C13+Y14)*Genanskaffelsespriser!$D$5*Y13)<0,0,(Y13*Genanskaffelsespriser!$D$5-(2009-Y$3)/($C13+Y14)*Genanskaffelsespriser!$D$5*Y13)) -> 0 | AW13: =+SUM(AA13:AV13) -> 0 | AX13: =VLOOKUP(D$3,Prisindeks!$A$1:$B$111,2,FALSE)/100*AA13 -> 0 | AY13: =VLOOKUP(E$3,Prisindeks!$A$1:$B$111,2,FALSE)/100*AB13 -> 0 | AZ13: =VLOOKUP(F$3,Prisindeks!$A$1:$B$111,2,FALSE)/100*AC13 -> 0 | BA13: =VLOOKUP(G$3,Prisindeks!$A$1:$B$111,2,FALSE)/100*AD13 -> 0 | BB13: =VLOOKUP(H$3,Prisindeks!$A$1:$B$111,2,FALSE)/100*AE13 -> 0 | BC13: =VLOOKUP(I$3,Prisindeks!$A$1:$B$111,2,FALSE)/100*AF13 -> 0 | BD13: =VLOOKUP(J$3,Prisindeks!$A$1:$B$111,2,FALSE)/100*AG13 -> 0 | BE13: =VLOOKUP(K$3,Prisindeks!$A$1:$B$111,2,FALSE)/100*AH13 -> 0 | BF13: =VLOOKUP(L$3,Prisindeks!$A$1:$B$111,2,FALSE)/100*AI13 -> 0 | BG13: =VLOOKUP(M$3,Prisindeks!$A$1:$B$111,2,FALSE)/100*AJ13 -> 0 | BH13: =VLOOKUP(N$3,Prisindeks!$A$1:$B$111,2,FALSE)/100*AK13 -> 0 | BI13: =VLOOKUP(O$3,Prisindeks!$A$1:$B$111,2,FALSE)/100*AL13 -> 0 | BJ13: =VLOOKUP(P$3,Prisindeks!$A$1:$B$111,2,FALSE)/100*AM13 -> 0 | BK13: =VLOOKUP(Q$3,Prisindeks!$A$1:$B$111,2,FALSE)/100*AN13 -> 0 | BL13: =VLOOKUP(R$3,Prisindeks!$A$1:$B$111,2,FALSE)/100*AO13 -> 0 | BM13: =VLOOKUP(S$3,Prisindeks!$A$1:$B$111,2,FALSE)/100*AP13 -> 0 | BN13: =VLOOKUP(T$3,Prisindeks!$A$1:$B$111,2,FALSE)/100*AQ13 -> 0 | BO13: =VLOOKUP(U$3,Prisindeks!$A$1:$B$111,2,FALSE)/100*AR13 -> 0 | BP13: =VLOOKUP(V$3,Prisindeks!$A$1:$B$111,2,FALSE)/100*AS13 -> 0 | BQ13: =VLOOKUP(W$3,Prisindeks!$A$1:$B$111,2,FALSE)/100*AT13 -> 0 | BR13: =VLOOKUP(X$3,Prisindeks!$A$1:$B$111,2,FALSE)/100*AU13 -> 0 | BS13: =VLOOKUP(Y$3,Prisindeks!$A$1:$B$111,2,FALSE)/100*AV13 -> 0 | BT13: =+SUM(AX13:BS13) -> 0 | BU13: =(AA13+AX13)/2 -> 0 | BV13: 0 | BW13: 0 | BX13: 0 | BY13: 0 | BZ13: 0 | CA13: 0 | CB13: 0 | CC13: 0 | CD13: 0 | CE13: 0 | CF13: 0 | CG13: 0 | CH13: 0 | CI13: 0 | CJ13: 0 | CK13: 0 | CL13: 0 | CM13: 0 | CN13: 0 | CO13: 0 | CP13: 0 | CQ13: =AVERAGE(AW13,BT13) -> 0 | CR13: =SUM(D13:Y13) -> 39
A14: Levetidsforlængelse | B14: år | C14: - | D14: 0 | E14: 0 | F14: 0 | G14: 0 | H14: 0 | I14: 0 | J14: 0 | K14: 0 | L14: 0 | M14: 0 | N14: 0 | O14: 0 | P14: 0 | Q14: 0 | R14: 0 | S14: 0 | T14: 0 | U14: 0 | V14: 0 | W14: 0 | X14: 0 | Y14: 0
A15: Boring (inkl. etablering, forerør, filter og prøvepumpning) - 6 | B15: dybdemeter | C15: =Genanskaffelsespriser!$E$5 -> 30 | D15: 0 | E15: 0 | F15: 0 | G15: 0 | H15: 0 | I15: 0 | J15: 0 | K15: 0 | L15: 0 | M15: 0 | N15: 0 | O15: 0 | P15: 0 | Q15: 0 | R15: 0 | S15: 0 | T15: 0 | U15: 0 | V15: 0 | W15: 0 | X15: 0 | Y15: 0 | AA15: =IF((D15*Genanskaffelsespriser!$D$5-(2009-D$3)/($C15+D16)*Genanskaffelsespriser!$D$5*D15)<0,0,(D15*Genanskaffelsespriser!$D$5-(2009-D$3)/($C15+D16)*Genanskaffelsespriser!$D$5*D15)) -> 0 | AB15: =IF((E15*Genanskaffelsespriser!$D$5-(2009-E$3)/($C15+E16)*Genanskaffelsespriser!$D$5*E15)<0,0,(E15*Genanskaffelsespriser!$D$5-(2009-E$3)/($C15+E16)*Genanskaffelsespriser!$D$5*E15)) -> 0 | AC15: =IF((F15*Genanskaffelsespriser!$D$5-(2009-F$3)/($C15+F16)*Genanskaffelsespriser!$D$5*F15)<0,0,(F15*Genanskaffelsespriser!$D$5-(2009-F$3)/($C15+F16)*Genanskaffelsespriser!$D$5*F15)) -> 0 | AD15: =IF((G15*Genanskaffelsespriser!$D$5-(2009-G$3)/($C15+G16)*Genanskaffelsespriser!$D$5*G15)<0,0,(G15*Genanskaffelsespriser!$D$5-(2009-G$3)/($C15+G16)*Genanskaffelsespriser!$D$5*G15)) -> 0 | AE15: =IF((H15*Genanskaffelsespriser!$D$5-(2009-H$3)/($C15+H16)*Genanskaffelsespriser!$D$5*H15)<0,0,(H15*Genanskaffelsespriser!$D$5-(2009-H$3)/($C15+H16)*Genanskaffelsespriser!$D$5*H15)) -> 0 | AF15: =IF((I15*Genanskaffelsespriser!$D$5-(2009-I$3)/($C15+I16)*Genanskaffelsespriser!$D$5*I15)<0,0,(I15*Genanskaffelsespriser!$D$5-(2009-I$3)/($C15+I16)*Genanskaffelsespriser!$D$5*I15)) -> 0 | AG15: =IF((J15*Genanskaffelsespriser!$D$5-(2009-J$3)/($C15+J16)*Genanskaffelsespriser!$D$5*J15)<0,0,(J15*Genanskaffelsespriser!$D$5-(2009-J$3)/($C15+J16)*Genanskaffelsespriser!$D$5*J15)) -> 0 | AH15: =IF((K15*Genanskaffelsespriser!$D$5-(2009-K$3)/($C15+K16)*Genanskaffelsespriser!$D$5*K15)<0,0,(K15*Genanskaffelsespriser!$D$5-(2009-K$3)/($C15+K16)*Genanskaffelsespriser!$D$5*K15)) -> 0 | AI15: =IF((L15*Genanskaffelsespriser!$D$5-(2009-L$3)/($C15+L16)*Genanskaffelsespriser!$D$5*L15)<0,0,(L15*Genanskaffelsespriser!$D$5-(2009-L$3)/($C15+L16)*Genanskaffelsespriser!$D$5*L15)) -> 0 | AJ15: =IF((M15*Genanskaffelsespriser!$D$5-(2009-M$3)/($C15+M16)*Genanskaffelsespriser!$D$5*M15)<0,0,(M15*Genanskaffelsespriser!$D$5-(2009-M$3)/($C15+M16)*Genanskaffelsespriser!$D$5*M15)) -> 0 | AK15: =IF((N15*Genanskaffelsespriser!$D$5-(2009-N$3)/($C15+N16)*Genanskaffelsespriser!$D$5*N15)<0,0,(N15*Genanskaffelsespriser!$D$5-(2009-N$3)/($C15+N16)*Genanskaffelsespriser!$D$5*N15)) -> 0 | AL15: =IF((O15*Genanskaffelsespriser!$D$5-(2009-O$3)/($C15+O16)*Genanskaffelsespriser!$D$5*O15)<0,0,(O15*Genanskaffelsespriser!$D$5-(2009-O$3)/($C15+O16)*Genanskaffelsespriser!$D$5*O15)) -> 0 | AM15: =IF((P15*Genanskaffelsespriser!$D$5-(2009-P$3)/($C15+P16)*Genanskaffelsespriser!$D$5*P15)<0,0,(P15*Genanskaffelsespriser!$D$5-(2009-P$3)/($C15+P16)*Genanskaffelsespriser!$D$5*P15)) -> 0 | AN15: =IF((Q15*Genanskaffelsespriser!$D$5-(2009-Q$3)/($C15+Q16)*Genanskaffelsespriser!$D$5*Q15)<0,0,(Q15*Genanskaffelsespriser!$D$5-(2009-Q$3)/($C15+Q16)*Genanskaffelsespriser!$D$5*Q15)) -> 0 | AO15: =IF((R15*Genanskaffelsespriser!$D$5-(2009-R$3)/($C15+R16)*Genanskaffelsespriser!$D$5*R15)<0,0,(R15*Genanskaffelsespriser!$D$5-(2009-R$3)/($C15+R16)*Genanskaffelsespriser!$D$5*R15)) -> 0 | AP15: =IF((S15*Genanskaffelsespriser!$D$5-(2009-S$3)/($C15+S16)*Genanskaffelsespriser!$D$5*S15)<0,0,(S15*Genanskaffelsespriser!$D$5-(2009-S$3)/($C15+S16)*Genanskaffelsespriser!$D$5*S15)) -> 0 | AQ15: =IF((T15*Genanskaffelsespriser!$D$5-(2009-T$3)/($C15+T16)*Genanskaffelsespriser!$D$5*T15)<0,0,(T15*Genanskaffelsespriser!$D$5-(2009-T$3)/($C15+T16)*Genanskaffelsespriser!$D$5*T15)) -> 0 | AR15: =IF((U15*Genanskaffelsespriser!$D$5-(2009-U$3)/($C15+U16)*Genanskaffelsespriser!$D$5*U15)<0,0,(U15*Genanskaffelsespriser!$D$5-(2009-U$3)/($C15+U16)*Genanskaffelsespriser!$D$5*U15)) -> 0 | AS15: =IF((V15*Genanskaffelsespriser!$D$5-(2009-V$3)/($C15+V16)*Genanskaffelsespriser!$D$5*V15)<0,0,(V15*Genanskaffelsespriser!$D$5-(2009-V$3)/($C15+V16)*Genanskaffelsespriser!$D$5*V15)) -> 0 | AT15: =IF((W15*Genanskaffelsespriser!$D$5-(2009-W$3)/($C15+W16)*Genanskaffelsespriser!$D$5*W15)<0,0,(W15*Genanskaffelsespriser!$D$5-(2009-W$3)/($C15+W16)*Genanskaffelsespriser!$D$5*W15)) -> 0 | AU15: =IF((X15*Genanskaffelsespriser!$D$5-(2009-X$3)/($C15+X16)*Genanskaffelsespriser!$D$5*X15)<0,0,(X15*Genanskaffelsespriser!$D$5-(2009-X$3)/($C15+X16)*Genanskaffelsespriser!$D$5*X15)) -> 0 | AV15: =IF((Y15*Genanskaffelsespriser!$D$5-(2009-Y$3)/($C15+Y16)*Genanskaffelsespriser!$D$5*Y15)<0,0,(Y15*Genanskaffelsespriser!$D$5-(2009-Y$3)/($C15+Y16)*Genanskaffelsespriser!$D$5*Y15)) -> 0 | AW15: =+SUM(AA15:AV15) -> 0 | AX15: =VLOOKUP(D$3,Prisindeks!$A$1:$B$111,2,FALSE)/100*AA15 -> 0 | AY15: =VLOOKUP(E$3,Prisindeks!$A$1:$B$111,2,FALSE)/100*AB15 -> 0 | AZ15: =VLOOKUP(F$3,Prisindeks!$A$1:$B$111,2,FALSE)/100*AC15 -> 0 | BA15: =VLOOKUP(G$3,Prisindeks!$A$1:$B$111,2,FALSE)/100*AD15 -> 0 | BB15: =VLOOKUP(H$3,Prisindeks!$A$1:$B$111,2,FALSE)/100*AE15 -> 0 | BC15: =VLOOKUP(I$3,Prisindeks!$A$1:$B$111,2,FALSE)/100*AF15 -> 0 | BD15: =VLOOKUP(J$3,Prisindeks!$A$1:$B$111,2,FALSE)/100*AG15 -> 0 | BE15: =VLOOKUP(K$3,Prisindeks!$A$1:$B$111,2,FALSE)/100*AH15 -> 0 | BF15: =VLOOKUP(L$3,Prisindeks!$A$1:$B$111,2,FALSE)/100*AI15 -> 0 | BG15: =VLOOKUP(M$3,Prisindeks!$A$1:$B$111,2,FALSE)/100*AJ15 -> 0 | BH15: =VLOOKUP(N$3,Prisindeks!$A$1:$B$111,2,FALSE)/100*AK15 -> 0 | BI15: =VLOOKUP(O$3,Prisindeks!$A$1:$B$111,2,FALSE)/100*AL15 -> 0 | BJ15: =VLOOKUP(P$3,Prisindeks!$A$1:$B$111,2,FALSE)/100*AM15 -> 0 | BK15: =VLOOKUP(Q$3,Prisindeks!$A$1:$B$111,2,FALSE)/100*AN15 -> 0 | BL15: =VLOOKUP(R$3,Prisindeks!$A$1:$B$111,2,FALSE)/100*AO15 -> 0 | BM15: =VLOOKUP(S$3,Prisindeks!$A$1:$B$111,2,FALSE)/100*AP15 -> 0 | BN15: =VLOOKUP(T$3,Prisindeks!$A$1:$B$111,2,FALSE)/100*AQ15 -> 0 | BO15: =VLOOKUP(U$3,Prisindeks!$A$1:$B$111,2,FALSE)/100*AR15 -> 0 | BP15: =VLOOKUP(V$3,Prisindeks!$A$1:$B$111,2,FALSE)/100*AS15 -> 0 | BQ15: =VLOOKUP(W$3,Prisindeks!$A$1:$B$111,2,FALSE)/100*AT15 -> 0 | BR15: =VLOOKUP(X$3,Prisindeks!$A$1:$B$111,2,FALSE)/100*AU15 -> 0 | BS15: =VLOOKUP(Y$3,Prisindeks!$A$1:$B$111,2,FALSE)/100*AV15 -> 0 | BT15: =+SUM(AX15:BS15) -> 0 | BU15: =(AA15+AX15)/2 -> 0 | BV15: 0 | BW15: 0 | BX15: 0 | BY15: 0 | BZ15: 0 | CA15: 0 | CB15: 0 | CC15: 0 | CD15: 0 | CE15: 0 | CF15: 0 | CG15: 0 | CH15: 0 | CI15: 0 | CJ15: 0 | CK15: 0 | CL15: 0 | CM15: 0 | CN15: 0 | CO15: 0 | CP15: 0 | CQ15: =AVERAGE(AW15,BT15) -> 0 | CR15: =SUM(D15:Y15) -> 0
A16: Levetidsforlængelse | B16: år | C16: - | D16: 0 | E16: 0 | F16: 0 | G16: 0 | H16: 0 | I16: 0 | J16: 0 | K16: 0 | L16: 0 | M16: 0 | N16: 0 | O16: 0 | P16: 0 | Q16: 0 | R16: 0 | S16: 0 | T16: 0 | U16: 0 | V16: 0 | W16: 0 | X16: 0 | Y16: 0
A17: Boring (inkl. etablering, forerør, filter og prøvepumpning) - 7 | B17: dybdemeter | C17: =Genanskaffelsespriser!$E$5 -> 30 | D17: 0 | E17: 0 | F17: 0 | G17: 0 | H17: 0 | I17: 0 | J17: 0 | K17: 0 | L17: 0 | M17: 0 | N17: 0 | O17: 0 | P17: 0 | Q17: 0 | R17: 0 | S17: 0 | T17: 0 | U17: 0 | V17: 0 | W17: 0 | X17: 0 | Y17: 0 | AA17: =IF((D17*Genanskaffelsespriser!$D$5-(2009-D$3)/($C17+D18)*Genanskaffelsespriser!$D$5*D17)<0,0,(D17*Genanskaffelsespriser!$D$5-(2009-D$3)/($C17+D18)*Genanskaffelsespriser!$D$5*D17)) -> 0 | AB17: =IF((E17*Genanskaffelsespriser!$D$5-(2009-E$3)/($C17+E18)*Genanskaffelsespriser!$D$5*E17)<0,0,(E17*Genanskaffelsespriser!$D$5-(2009-E$3)/($C17+E18)*Genanskaffelsespriser!$D$5*E17)) -> 0 | AC17: =IF((F17*Genanskaffelsespriser!$D$5-(2009-F$3)/($C17+F18)*Genanskaffelsespriser!$D$5*F17)<0,0,(F17*Genanskaffelsespriser!$D$5-(2009-F$3)/($C17+F18)*Genanskaffelsespriser!$D$5*F17)) -> 0 | AD17: =IF((G17*Genanskaffelsespriser!$D$5-(2009-G$3)/($C17+G18)*Genanskaffelsespriser!$D$5*G17)<0,0,(G17*Genanskaffelsespriser!$D$5-(2009-G$3)/($C17+G18)*Genanskaffelsespriser!$D$5*G17)) -> 0 | AE17: =IF((H17*Genanskaffelsespriser!$D$5-(2009-H$3)/($C17+H18)*Genanskaffelsespriser!$D$5*H17)<0,0,(H17*Genanskaffelsespriser!$D$5-(2009-H$3)/($C17+H18)*Genanskaffelsespriser!$D$5*H17)) -> 0 | AF17: =IF((I17*Genanskaffelsespriser!$D$5-(2009-I$3)/($C17+I18)*Genanskaffelsespriser!$D$5*I17)<0,0,(I17*Genanskaffelsespriser!$D$5-(2009-I$3)/($C17+I18)*Genanskaffelsespriser!$D$5*I17)) -> 0 | AG17: =IF((J17*Genanskaffelsespriser!$D$5-(2009-J$3)/($C17+J18)*Genanskaffelsespriser!$D$5*J17)<0,0,(J17*Genanskaffelsespriser!$D$5-(2009-J$3)/($C17+J18)*Genanskaffelsespriser!$D$5*J17)) -> 0 | AH17: =IF((K17*Genanskaffelsespriser!$D$5-(2009-K$3)/($C17+K18)*Genanskaffelsespriser!$D$5*K17)<0,0,(K17*Genanskaffelsespriser!$D$5-(2009-K$3)/($C17+K18)*Genanskaffelsespriser!$D$5*K17)) -> 0 | AI17: =IF((L17*Genanskaffelsespriser!$D$5-(2009-L$3)/($C17+L18)*Genanskaffelsespriser!$D$5*L17)<0,0,(L17*Genanskaffelsespriser!$D$5-(2009-L$3)/($C17+L18)*Genanskaffelsespriser!$D$5*L17)) -> 0 | AJ17: =IF((M17*Genanskaffelsespriser!$D$5-(2009-M$3)/($C17+M18)*Genanskaffelsespriser!$D$5*M17)<0,0,(M17*Genanskaffelsespriser!$D$5-(2009-M$3)/($C17+M18)*Genanskaffelsespriser!$D$5*M17)) -> 0 | AK17: =IF((N17*Genanskaffelsespriser!$D$5-(2009-N$3)/($C17+N18)*Genanskaffelsespriser!$D$5*N17)<0,0,(N17*Genanskaffelsespriser!$D$5-(2009-N$3)/($C17+N18)*Genanskaffelsespriser!$D$5*N17)) -> 0 | AL17: =IF((O17*Genanskaffelsespriser!$D$5-(2009-O$3)/($C17+O18)*Genanskaffelsespriser!$D$5*O17)<0,0,(O17*Genanskaffelsespriser!$D$5-(2009-O$3)/($C17+O18)*Genanskaffelsespriser!$D$5*O17)) -> 0 | AM17: =IF((P17*Genanskaffelsespriser!$D$5-(2009-P$3)/($C17+P18)*Genanskaffelsespriser!$D$5*P17)<0,0,(P17*Genanskaffelsespriser!$D$5-(2009-P$3)/($C17+P18)*Genanskaffelsespriser!$D$5*P17)) -> 0 | AN17: =IF((Q17*Genanskaffelsespriser!$D$5-(2009-Q$3)/($C17+Q18)*Genanskaffelsespriser!$D$5*Q17)<0,0,(Q17*Genanskaffelsespriser!$D$5-(2009-Q$3)/($C17+Q18)*Genanskaffelsespriser!$D$5*Q17)) -> 0 | AO17: =IF((R17*Genanskaffelsespriser!$D$5-(2009-R$3)/($C17+R18)*Genanskaffelsespriser!$D$5*R17)<0,0,(R17*Genanskaffelsespriser!$D$5-(2009-R$3)/($C17+R18)*Genanskaffelsespriser!$D$5*R17)) -> 0 | AP17: =IF((S17*Genanskaffelsespriser!$D$5-(2009-S$3)/($C17+S18)*Genanskaffelsespriser!$D$5*S17)<0,0,(S17*Genanskaffelsespriser!$D$5-(2009-S$3)/($C17+S18)*Genanskaffelsespriser!$D$5*S17)) -> 0 | AQ17: =IF((T17*Genanskaffelsespriser!$D$5-(2009-T$3)/($C17+T18)*Genanskaffelsespriser!$D$5*T17)<0,0,(T17*Genanskaffelsespriser!$D$5-(2009-T$3)/($C17+T18)*Genanskaffelsespriser!$D$5*T17)) -> 0 | AR17: =IF((U17*Genanskaffelsespriser!$D$5-(2009-U$3)/($C17+U18)*Genanskaffelsespriser!$D$5*U17)<0,0,(U17*Genanskaffelsespriser!$D$5-(2009-U$3)/($C17+U18)*Genanskaffelsespriser!$D$5*U17)) -> 0 | AS17: =IF((V17*Genanskaffelsespriser!$D$5-(2009-V$3)/($C17+V18)*Genanskaffelsespriser!$D$5*V17)<0,0,(V17*Genanskaffelsespriser!$D$5-(2009-V$3)/($C17+V18)*Genanskaffelsespriser!$D$5*V17)) -> 0 | AT17: =IF((W17*Genanskaffelsespriser!$D$5-(2009-W$3)/($C17+W18)*Genanskaffelsespriser!$D$5*W17)<0,0,(W17*Genanskaffelsespriser!$D$5-(2009-W$3)/($C17+W18)*Genanskaffelsespriser!$D$5*W17)) -> 0 | AU17: =IF((X17*Genanskaffelsespriser!$D$5-(2009-X$3)/($C17+X18)*Genanskaffelsespriser!$D$5*X17)<0,0,(X17*Genanskaffelsespriser!$D$5-(2009-X$3)/($C17+X18)*Genanskaffelsespriser!$D$5*X17)) -> 0 | AV17: =IF((Y17*Genanskaffelsespriser!$D$5-(2009-Y$3)/($C17+Y18)*Genanskaffelsespriser!$D$5*Y17)<0,0,(Y17*Genanskaffelsespriser!$D$5-(2009-Y$3)/($C17+Y18)*Genanskaffelsespriser!$D$5*Y17)) -> 0 | AW17: =+SUM(AA17:AV17) -> 0 | AX17: =VLOOKUP(D$3,Prisindeks!$A$1:$B$111,2,FALSE)/100*AA17 -> 0 | AY17: =VLOOKUP(E$3,Prisindeks!$A$1:$B$111,2,FALSE)/100*AB17 -> 0 | AZ17: =VLOOKUP(F$3,Prisindeks!$A$1:$B$111,2,FALSE)/100*AC17 -> 0 | BA17: =VLOOKUP(G$3,Prisindeks!$A$1:$B$111,2,FALSE)/100*AD17 -> 0 | BB17: =VLOOKUP(H$3,Prisindeks!$A$1:$B$111,2,FALSE)/100*AE17 -> 0 | BC17: =VLOOKUP(I$3,Prisindeks!$A$1:$B$111,2,FALSE)/100*AF17 -> 0 | BD17: =VLOOKUP(J$3,Prisindeks!$A$1:$B$111,2,FALSE)/100*AG17 -> 0 | BE17: =VLOOKUP(K$3,Prisindeks!$A$1:$B$111,2,FALSE)/100*AH17 -> 0 | BF17: =VLOOKUP(L$3,Prisindeks!$A$1:$B$111,2,FALSE)/100*AI17 -> 0 | BG17: =VLOOKUP(M$3,Prisindeks!$A$1:$B$111,2,FALSE)/100*AJ17 -> 0 | BH17: =VLOOKUP(N$3,Prisindeks!$A$1:$B$111,2,FALSE)/100*AK17 -> 0 | BI17: =VLOOKUP(O$3,Prisindeks!$A$1:$B$111,2,FALSE)/100*AL17 -> 0 | BJ17: =VLOOKUP(P$3,Prisindeks!$A$1:$B$111,2,FALSE)/100*AM17 -> 0 | BK17: =VLOOKUP(Q$3,Prisindeks!$A$1:$B$111,2,FALSE)/100*AN17 -> 0 | BL17: =VLOOKUP(R$3,Prisindeks!$A$1:$B$111,2,FALSE)/100*AO17 -> 0 | BM17: =VLOOKUP(S$3,Prisindeks!$A$1:$B$111,2,FALSE)/100*AP17 -> 0 | BN17: =VLOOKUP(T$3,Prisindeks!$A$1:$B$111,2,FALSE)/100*AQ17 -> 0 | BO17: =VLOOKUP(U$3,Prisindeks!$A$1:$B$111,2,FALSE)/100*AR17 -> 0 | BP17: =VLOOKUP(V$3,Prisindeks!$A$1:$B$111,2,FALSE)/100*AS17 -> 0 | BQ17: =VLOOKUP(W$3,Prisindeks!$A$1:$B$111,2,FALSE)/100*AT17 -> 0 | BR17: =VLOOKUP(X$3,Prisindeks!$A$1:$B$111,2,FALSE)/100*AU17 -> 0 | BS17: =VLOOKUP(Y$3,Prisindeks!$A$1:$B$111,2,FALSE)/100*AV17 -> 0 | BT17: =+SUM(AX17:BS17) -> 0 | BU17: =(AA17+AX17)/2 -> 0 | BV17: 0 | BW17: 0 | BX17: 0 | BY17: 0 | BZ17: 0 | CA17: 0 | CB17: 0 | CC17: 0 | CD17: 0 | CE17: 0 | CF17: 0 | CG17: 0 | CH17: 0 | CI17: 0 | CJ17: 0 | CK17: 0 | CL17: 0 | CM17: 0 | CN17: 0 | CO17: 0 | CP17: 0 | CQ17: =AVERAGE(AW17,BT17) -> 0 | CR17: =SUM(D17:Y17) -> 0
A18: Levetidsforlængelse | B18: år | C18: - | D18: 0 | E18: 0 | F18: 0 | G18: 0 | H18: 0 | I18: 0 | J18: 0 | K18: 0 | L18: 0 | M18: 0 | N18: 0 | O18: 0 | P18: 0 | Q18: 0 | R18: 0 | S18: 0 | T18: 0 | U18: 0 | V18: 0 | W18: 0 | X18: 0 | Y18: 0
A19: Boring (inkl. etablering, forerør, filter og prøvepumpning) - 8 | B19: dybdemeter | C19: =Genanskaffelsespriser!$E$5 -> 30 | D19: 0 | E19: 0 | F19: 0 | G19: 0 | H19: 0 | I19: 0 | J19: 0 | K19: 0 | L19: 0 | M19: 0 | N19: 0 | O19: 0 | P19: 0 | Q19: 0 | R19: 0 | S19: 0 | T19: 0 | U19: 0 | V19: 0 | W19: 0 | X19: 0 | Y19: 0 | AA19: =IF((D19*Genanskaffelsespriser!$D$5-(2009-D$3)/($C19+D20)*Genanskaffelsespriser!$D$5*D19)<0,0,(D19*Genanskaffelsespriser!$D$5-(2009-D$3)/($C19+D20)*Genanskaffelsespriser!$D$5*D19)) -> 0 | AB19: =IF((E19*Genanskaffelsespriser!$D$5-(2009-E$3)/($C19+E20)*Genanskaffelsespriser!$D$5*E19)<0,0,(E19*Genanskaffelsespriser!$D$5-(2009-E$3)/($C19+E20)*Genanskaffelsespriser!$D$5*E19)) -> 0 | AC19: =IF((F19*Genanskaffelsespriser!$D$5-(2009-F$3)/($C19+F20)*Genanskaffelsespriser!$D$5*F19)<0,0,(F19*Genanskaffelsespriser!$D$5-(2009-F$3)/($C19+F20)*Genanskaffelsespriser!$D$5*F19)) -> 0 | AD19: =IF((G19*Genanskaffelsespriser!$D$5-(2009-G$3)/($C19+G20)*Genanskaffelsespriser!$D$5*G19)<0,0,(G19*Genanskaffelsespriser!$D$5-(2009-G$3)/($C19+G20)*Genanskaffelsespriser!$D$5*G19)) -> 0 | AE19: =IF((H19*Genanskaffelsespriser!$D$5-(2009-H$3)/($C19+H20)*Genanskaffelsespriser!$D$5*H19)<0,0,(H19*Genanskaffelsespriser!$D$5-(2009-H$3)/($C19+H20)*Genanskaffelsespriser!$D$5*H19)) -> 0 | AF19: =IF((I19*Genanskaffelsespriser!$D$5-(2009-I$3)/($C19+I20)*Genanskaffelsespriser!$D$5*I19)<0,0,(I19*Genanskaffelsespriser!$D$5-(2009-I$3)/($C19+I20)*Genanskaffelsespriser!$D$5*I19)) -> 0 | AG19: =IF((J19*Genanskaffelsespriser!$D$5-(2009-J$3)/($C19+J20)*Genanskaffelsespriser!$D$5*J19)<0,0,(J19*Genanskaffelsespriser!$D$5-(2009-J$3)/($C19+J20)*Genanskaffelsespriser!$D$5*J19)) -> 0 | AH19: =IF((K19*Genanskaffelsespriser!$D$5-(2009-K$3)/($C19+K20)*Genanskaffelsespriser!$D$5*K19)<0,0,(K19*Genanskaffelsespriser!$D$5-(2009-K$3)/($C19+K20)*Genanskaffelsespriser!$D$5*K19)) -> 0 | AI19: =IF((L19*Genanskaffelsespriser!$D$5-(2009-L$3)/($C19+L20)*Genanskaffelsespriser!$D$5*L19)<0,0,(L19*Genanskaffelsespriser!$D$5-(2009-L$3)/($C19+L20)*Genanskaffelsespriser!$D$5*L19)) -> 0 | AJ19: =IF((M19*Genanskaffelsespriser!$D$5-(2009-M$3)/($C19+M20)*Genanskaffelsespriser!$D$5*M19)<0,0,(M19*Genanskaffelsespriser!$D$5-(2009-M$3)/($C19+M20)*Genanskaffelsespriser!$D$5*M19)) -> 0 | AK19: =IF((N19*Genanskaffelsespriser!$D$5-(2009-N$3)/($C19+N20)*Genanskaffelsespriser!$D$5*N19)<0,0,(N19*Genanskaffelsespriser!$D$5-(2009-N$3)/($C19+N20)*Genanskaffelsespriser!$D$5*N19)) -> 0 | AL19: =IF((O19*Genanskaffelsespriser!$D$5-(2009-O$3)/($C19+O20)*Genanskaffelsespriser!$D$5*O19)<0,0,(O19*Genanskaffelsespriser!$D$5-(2009-O$3)/($C19+O20)*Genanskaffelsespriser!$D$5*O19)) -> 0 | AM19: =IF((P19*Genanskaffelsespriser!$D$5-(2009-P$3)/($C19+P20)*Genanskaffelsespriser!$D$5*P19)<0,0,(P19*Genanskaffelsespriser!$D$5-(2009-P$3)/($C19+P20)*Genanskaffelsespriser!$D$5*P19)) -> 0 | AN19: =IF((Q19*Genanskaffelsespriser!$D$5-(2009-Q$3)/($C19+Q20)*Genanskaffelsespriser!$D$5*Q19)<0,0,(Q19*Genanskaffelsespriser!$D$5-(2009-Q$3)/($C19+Q20)*Genanskaffelsespriser!$D$5*Q19)) -> 0 | AO19: =IF((R19*Genanskaffelsespriser!$D$5-(2009-R$3)/($C19+R20)*Genanskaffelsespriser!$D$5*R19)<0,0,(R19*Genanskaffelsespriser!$D$5-(2009-R$3)/($C19+R20)*Genanskaffelsespriser!$D$5*R19)) -> 0 | AP19: =IF((S19*Genanskaffelsespriser!$D$5-(2009-S$3)/($C19+S20)*Genanskaffelsespriser!$D$5*S19)<0,0,(S19*Genanskaffelsespriser!$D$5-(2009-S$3)/($C19+S20)*Genanskaffelsespriser!$D$5*S19)) -> 0 | AQ19: =IF((T19*Genanskaffelsespriser!$D$5-(2009-T$3)/($C19+T20)*Genanskaffelsespriser!$D$5*T19)<0,0,(T19*Genanskaffelsespriser!$D$5-(2009-T$3)/($C19+T20)*Genanskaffelsespriser!$D$5*T19)) -> 0 | AR19: =IF((U19*Genanskaffelsespriser!$D$5-(2009-U$3)/($C19+U20)*Genanskaffelsespriser!$D$5*U19)<0,0,(U19*Genanskaffelsespriser!$D$5-(2009-U$3)/($C19+U20)*Genanskaffelsespriser!$D$5*U19)) -> 0 | AS19: =IF((V19*Genanskaffelsespriser!$D$5-(2009-V$3)/($C19+V20)*Genanskaffelsespriser!$D$5*V19)<0,0,(V19*Genanskaffelsespriser!$D$5-(2009-V$3)/($C19+V20)*Genanskaffelsespriser!$D$5*V19)) -> 0 | AT19: =IF((W19*Genanskaffelsespriser!$D$5-(2009-W$3)/($C19+W20)*Genanskaffelsespriser!$D$5*W19)<0,0,(W19*Genanskaffelsespriser!$D$5-(2009-W$3)/($C19+W20)*Genanskaffelsespriser!$D$5*W19)) -> 0 | AU19: =IF((X19*Genanskaffelsespriser!$D$5-(2009-X$3)/($C19+X20)*Genanskaffelsespriser!$D$5*X19)<0,0,(X19*Genanskaffelsespriser!$D$5-(2009-X$3)/($C19+X20)*Genanskaffelsespriser!$D$5*X19)) -> 0 | AV19: =IF((Y19*Genanskaffelsespriser!$D$5-(2009-Y$3)/($C19+Y20)*Genanskaffelsespriser!$D$5*Y19)<0,0,(Y19*Genanskaffelsespriser!$D$5-(2009-Y$3)/($C19+Y20)*Genanskaffelsespriser!$D$5*Y19)) -> 0 | AW19: =+SUM(AA19:AV19) -> 0 | AX19: =VLOOKUP(D$3,Prisindeks!$A$1:$B$111,2,FALSE)/100*AA19 -> 0 | AY19: =VLOOKUP(E$3,Prisindeks!$A$1:$B$111,2,FALSE)/100*AB19 -> 0 | AZ19: =VLOOKUP(F$3,Prisindeks!$A$1:$B$111,2,FALSE)/100*AC19 -> 0 | BA19: =VLOOKUP(G$3,Prisindeks!$A$1:$B$111,2,FALSE)/100*AD19 -> 0 | BB19: =VLOOKUP(H$3,Prisindeks!$A$1:$B$111,2,FALSE)/100*AE19 -> 0 | BC19: =VLOOKUP(I$3,Prisindeks!$A$1:$B$111,2,FALSE)/100*AF19 -> 0 | BD19: =VLOOKUP(J$3,Prisindeks!$A$1:$B$111,2,FALSE)/100*AG19 -> 0 | BE19: =VLOOKUP(K$3,Prisindeks!$A$1:$B$111,2,FALSE)/100*AH19 -> 0 | BF19: =VLOOKUP(L$3,Prisindeks!$A$1:$B$111,2,FALSE)/100*AI19 -> 0 | BG19: =VLOOKUP(M$3,Prisindeks!$A$1:$B$111,2,FALSE)/100*AJ19 -> 0 | BH19: =VLOOKUP(N$3,Prisindeks!$A$1:$B$111,2,FALSE)/100*AK19 -> 0 | BI19: =VLOOKUP(O$3,Prisindeks!$A$1:$B$111,2,FALSE)/100*AL19 -> 0 | BJ19: =VLOOKUP(P$3,Prisindeks!$A$1:$B$111,2,FALSE)/100*AM19 -> 0 | BK19: =VLOOKUP(Q$3,Prisindeks!$A$1:$B$111,2,FALSE)/100*AN19 -> 0 | BL19: =VLOOKUP(R$3,Prisindeks!$A$1:$B$111,2,FALSE)/100*AO19 -> 0 | BM19: =VLOOKUP(S$3,Prisindeks!$A$1:$B$111,2,FALSE)/100*AP19 -> 0 | BN19: =VLOOKUP(T$3,Prisindeks!$A$1:$B$111,2,FALSE)/100*AQ19 -> 0 | BO19: =VLOOKUP(U$3,Prisindeks!$A$1:$B$111,2,FALSE)/100*AR19 -> 0 | BP19: =VLOOKUP(V$3,Prisindeks!$A$1:$B$111,2,FALSE)/100*AS19 -> 0 | BQ19: =VLOOKUP(W$3,Prisindeks!$A$1:$B$111,2,FALSE)/100*AT19 -> 0 | BR19: =VLOOKUP(X$3,Prisindeks!$A$1:$B$111,2,FALSE)/100*AU19 -> 0 | BS19: =VLOOKUP(Y$3,Prisindeks!$A$1:$B$111,2,FALSE)/100*AV19 -> 0 | BT19: =+SUM(AX19:BS19) -> 0 | BU19: =(AA19+AX19)/2 -> 0 | BV19: 0 | BW19: 0 | BX19: 0 | BY19: 0 | BZ19: 0 | CA19: 0 | CB19: 0 | CC19: 0 | CD19: 0 | CE19: 0 | CF19: 0 | CG19: 0 | CH19: 0 | CI19: 0 | CJ19: 0 | CK19: 0 | CL19: 0 | CM19: 0 | CN19: 0 | CO19: 0 | CP19: 0 | CQ19: =AVERAGE(AW19,BT19) -> 0 | CR19: =SUM(D19:Y19) -> 0
A20: Levetidsforlængelse | B20: år | C20: - | D20: 0 | E20: 0 | F20: 0 | G20: 0 | H20: 0 | I20: 0 | J20: 0 | K20: 0 | L20: 0 | M20: 0 | N20: 0 | O20: 0 | P20: 0 | Q20: 0 | R20: 0 | S20: 0 | T20: 0 | U20: 0 | V20: 0 | W20: 0 | X20: 0 | Y20: 0
A21: Boring (inkl. etablering, forerør, filter og prøvepumpning) - 9 | B21: dybdemeter | C21: =Genanskaffelsespriser!$E$5 -> 30 | D21: 0 | E21: 0 | F21: 0 | G21: 0 | H21: 0 | I21: 0 | J21: 0 | K21: 0 | L21: 0 | M21: 0 | N21: 0 | O21: 0 | P21: 0 | Q21: 0 | R21: 0 | S21: 0 | T21: 0 | U21: 0 | V21: 0 | W21: 0 | X21: 0 | Y21: 0 | AA21: =IF((D21*Genanskaffelsespriser!$D$5-(2009-D$3)/($C21+D22)*Genanskaffelsespriser!$D$5*D21)<0,0,(D21*Genanskaffelsespriser!$D$5-(2009-D$3)/($C21+D22)*Genanskaffelsespriser!$D$5*D21)) -> 0 | AB21: =IF((E21*Genanskaffelsespriser!$D$5-(2009-E$3)/($C21+E22)*Genanskaffelsespriser!$D$5*E21)<0,0,(E21*Genanskaffelsespriser!$D$5-(2009-E$3)/($C21+E22)*Genanskaffelsespriser!$D$5*E21)) -> 0 | AC21: =IF((F21*Genanskaffelsespriser!$D$5-(2009-F$3)/($C21+F22)*Genanskaffelsespriser!$D$5*F21)<0,0,(F21*Genanskaffelsespriser!$D$5-(2009-F$3)/($C21+F22)*Genanskaffelsespriser!$D$5*F21)) -> 0 | AD21: =IF((G21*Genanskaffelsespriser!$D$5-(2009-G$3)/($C21+G22)*Genanskaffelsespriser!$D$5*G21)<0,0,(G21*Genanskaffelsespriser!$D$5-(2009-G$3)/($C21+G22)*Genanskaffelsespriser!$D$5*G21)) -> 0 | AE21: =IF((H21*Genanskaffelsespriser!$D$5-(2009-H$3)/($C21+H22)*Genanskaffelsespriser!$D$5*H21)<0,0,(H21*Genanskaffelsespriser!$D$5-(2009-H$3)/($C21+H22)*Genanskaffelsespriser!$D$5*H21)) -> 0 | AF21: =IF((I21*Genanskaffelsespriser!$D$5-(2009-I$3)/($C21+I22)*Genanskaffelsespriser!$D$5*I21)<0,0,(I21*Genanskaffelsespriser!$D$5-(2009-I$3)/($C21+I22)*Genanskaffelsespriser!$D$5*I21)) -> 0 | AG21: =IF((J21*Genanskaffelsespriser!$D$5-(2009-J$3)/($C21+J22)*Genanskaffelsespriser!$D$5*J21)<0,0,(J21*Genanskaffelsespriser!$D$5-(2009-J$3)/($C21+J22)*Genanskaffelsespriser!$D$5*J21)) -> 0 | AH21: =IF((K21*Genanskaffelsespriser!$D$5-(2009-K$3)/($C21+K22)*Genanskaffelsespriser!$D$5*K21)<0,0,(K21*Genanskaffelsespriser!$D$5-(2009-K$3)/($C21+K22)*Genanskaffelsespriser!$D$5*K21)) -> 0 | AI21: =IF((L21*Genanskaffelsespriser!$D$5-(2009-L$3)/($C21+L22)*Genanskaffelsespriser!$D$5*L21)<0,0,(L21*Genanskaffelsespriser!$D$5-(2009-L$3)/($C21+L22)*Genanskaffelsespriser!$D$5*L21)) -> 0 | AJ21: =IF((M21*Genanskaffelsespriser!$D$5-(2009-M$3)/($C21+M22)*Genanskaffelsespriser!$D$5*M21)<0,0,(M21*Genanskaffelsespriser!$D$5-(2009-M$3)/($C21+M22)*Genanskaffelsespriser!$D$5*M21)) -> 0 | AK21: =IF((N21*Genanskaffelsespriser!$D$5-(2009-N$3)/($C21+N22)*Genanskaffelsespriser!$D$5*N21)<0,0,(N21*Genanskaffelsespriser!$D$5-(2009-N$3)/($C21+N22)*Genanskaffelsespriser!$D$5*N21)) -> 0 | AL21: =IF((O21*Genanskaffelsespriser!$D$5-(2009-O$3)/($C21+O22)*Genanskaffelsespriser!$D$5*O21)<0,0,(O21*Genanskaffelsespriser!$D$5-(2009-O$3)/($C21+O22)*Genanskaffelsespriser!$D$5*O21)) -> 0 | AM21: =IF((P21*Genanskaffelsespriser!$D$5-(2009-P$3)/($C21+P22)*Genanskaffelsespriser!$D$5*P21)<0,0,(P21*Genanskaffelsespriser!$D$5-(2009-P$3)/($C21+P22)*Genanskaffelsespriser!$D$5*P21)) -> 0 | AN21: =IF((Q21*Genanskaffelsespriser!$D$5-(2009-Q$3)/($C21+Q22)*Genanskaffelsespriser!$D$5*Q21)<0,0,(Q21*Genanskaffelsespriser!$D$5-(2009-Q$3)/($C21+Q22)*Genanskaffelsespriser!$D$5*Q21)) -> 0 | AO21: =IF((R21*Genanskaffelsespriser!$D$5-(2009-R$3)/($C21+R22)*Genanskaffelsespriser!$D$5*R21)<0,0,(R21*Genanskaffelsespriser!$D$5-(2009-R$3)/($C21+R22)*Genanskaffelsespriser!$D$5*R21)) -> 0 | AP21: =IF((S21*Genanskaffelsespriser!$D$5-(2009-S$3)/($C21+S22)*Genanskaffelsespriser!$D$5*S21)<0,0,(S21*Genanskaffelsespriser!$D$5-(2009-S$3)/($C21+S22)*Genanskaffelsespriser!$D$5*S21)) -> 0 | AQ21: =IF((T21*Genanskaffelsespriser!$D$5-(2009-T$3)/($C21+T22)*Genanskaffelsespriser!$D$5*T21)<0,0,(T21*Genanskaffelsespriser!$D$5-(2009-T$3)/($C21+T22)*Genanskaffelsespriser!$D$5*T21)) -> 0 | AR21: =IF((U21*Genanskaffelsespriser!$D$5-(2009-U$3)/($C21+U22)*Genanskaffelsespriser!$D$5*U21)<0,0,(U21*Genanskaffelsespriser!$D$5-(2009-U$3)/($C21+U22)*Genanskaffelsespriser!$D$5*U21)) -> 0 | AS21: =IF((V21*Genanskaffelsespriser!$D$5-(2009-V$3)/($C21+V22)*Genanskaffelsespriser!$D$5*V21)<0,0,(V21*Genanskaffelsespriser!$D$5-(2009-V$3)/($C21+V22)*Genanskaffelsespriser!$D$5*V21)) -> 0 | AT21: =IF((W21*Genanskaffelsespriser!$D$5-(2009-W$3)/($C21+W22)*Genanskaffelsespriser!$D$5*W21)<0,0,(W21*Genanskaffelsespriser!$D$5-(2009-W$3)/($C21+W22)*Genanskaffelsespriser!$D$5*W21)) -> 0 | AU21: =IF((X21*Genanskaffelsespriser!$D$5-(2009-X$3)/($C21+X22)*Genanskaffelsespriser!$D$5*X21)<0,0,(X21*Genanskaffelsespriser!$D$5-(2009-X$3)/($C21+X22)*Genanskaffelsespriser!$D$5*X21)) -> 0 | AV21: =IF((Y21*Genanskaffelsespriser!$D$5-(2009-Y$3)/($C21+Y22)*Genanskaffelsespriser!$D$5*Y21)<0,0,(Y21*Genanskaffelsespriser!$D$5-(2009-Y$3)/($C21+Y22)*Genanskaffelsespriser!$D$5*Y21)) -> 0 | AW21: =+SUM(AA21:AV21) -> 0 | AX21: =VLOOKUP(D$3,Prisindeks!$A$1:$B$111,2,FALSE)/100*AA21 -> 0 | AY21: =VLOOKUP(E$3,Prisindeks!$A$1:$B$111,2,FALSE)/100*AB21 -> 0 | AZ21: =VLOOKUP(F$3,Prisindeks!$A$1:$B$111,2,FALSE)/100*AC21 -> 0 | BA21: =VLOOKUP(G$3,Prisindeks!$A$1:$B$111,2,FALSE)/100*AD21 -> 0 | BB21: =VLOOKUP(H$3,Prisindeks!$A$1:$B$111,2,FALSE)/100*AE21 -> 0 | BC21: =VLOOKUP(I$3,Prisindeks!$A$1:$B$111,2,FALSE)/100*AF21 -> 0 | BD21: =VLOOKUP(J$3,Prisindeks!$A$1:$B$111,2,FALSE)/100*AG21 -> 0 | BE21: =VLOOKUP(K$3,Prisindeks!$A$1:$B$111,2,FALSE)/100*AH21 -> 0 | BF21: =VLOOKUP(L$3,Prisindeks!$A$1:$B$111,2,FALSE)/100*AI21 -> 0 | BG21: =VLOOKUP(M$3,Prisindeks!$A$1:$B$111,2,FALSE)/100*AJ21 -> 0 | BH21: =VLOOKUP(N$3,Prisindeks!$A$1:$B$111,2,FALSE)/100*AK21 -> 0 | BI21: =VLOOKUP(O$3,Prisindeks!$A$1:$B$111,2,FALSE)/100*AL21 -> 0 | BJ21: =VLOOKUP(P$3,Prisindeks!$A$1:$B$111,2,FALSE)/100*AM21 -> 0 | BK21: =VLOOKUP(Q$3,Prisindeks!$A$1:$B$111,2,FALSE)/100*AN21 -> 0 | BL21: =VLOOKUP(R$3,Prisindeks!$A$1:$B$111,2,FALSE)/100*AO21 -> 0 | BM21: =VLOOKUP(S$3,Prisindeks!$A$1:$B$111,2,FALSE)/100*AP21 -> 0 | BN21: =VLOOKUP(T$3,Prisindeks!$A$1:$B$111,2,FALSE)/100*AQ21 -> 0 | BO21: =VLOOKUP(U$3,Prisindeks!$A$1:$B$111,2,FALSE)/100*AR21 -> 0 | BP21: =VLOOKUP(V$3,Prisindeks!$A$1:$B$111,2,FALSE)/100*AS21 -> 0 | BQ21: =VLOOKUP(W$3,Prisindeks!$A$1:$B$111,2,FALSE)/100*AT21 -> 0 | BR21: =VLOOKUP(X$3,Prisindeks!$A$1:$B$111,2,FALSE)/100*AU21 -> 0 | BS21: =VLOOKUP(Y$3,Prisindeks!$A$1:$B$111,2,FALSE)/100*AV21 -> 0 | BT21: =+SUM(AX21:BS21) -> 0 | BU21: =(AA21+AX21)/2 -> 0 | BV21: 0 | BW21: 0 | BX21: 0 | BY21: 0 | BZ21: 0 | CA21: 0 | CB21: 0 | CC21: 0 | CD21: 0 | CE21: 0 | CF21: 0 | CG21: 0 | CH21: 0 | CI21: 0 | CJ21: 0 | CK21: 0 | CL21: 0 | CM21: 0 | CN21: 0 | CO21: 0 | CP21: 0 | CQ21: =AVERAGE(AW21,BT21) -> 0 | CR21: =SUM(D21:Y21) -> 0
A22: Levetidsforlængelse | B22: år | C22: - | D22: 0 | E22: 0 | F22: 0 | G22: 0 | H22: 0 | I22: 0 | J22: 0 | K22: 0 | L22: 0 | M22: 0 | N22: 0 | O22: 0 | P22: 0 | Q22: 0 | R22: 0 | S22: 0 | T22: 0 | U22: 0 | V22: 0 | W22: 0 | X22: 0 | Y22: 0
A23: Boring (inkl. etablering, forerør, filter og prøvepumpning) - 10 | B23: dybdemeter | C23: =Genanskaffelsespriser!$E$5 -> 30 | D23: 0 | E23: 0 | F23: 0 | G23: 0 | H23: 0 | I23: 0 | J23: 0 | K23: 0 | L23: 0 | M23: 0 | N23: 0 | O23: 0 | P23: 0 | Q23: 0 | R23: 0 | S23: 0 | T23: 0 | U23: 0 | V23: 0 | W23: 0 | X23: 0 | Y23: 0 | AA23: =IF((D23*Genanskaffelsespriser!$D$5-(2009-D$3)/($C23+D24)*Genanskaffelsespriser!$D$5*D23)<0,0,(D23*Genanskaffelsespriser!$D$5-(2009-D$3)/($C23+D24)*Genanskaffelsespriser!$D$5*D23)) -> 0 | AB23: =IF((E23*Genanskaffelsespriser!$D$5-(2009-E$3)/($C23+E24)*Genanskaffelsespriser!$D$5*E23)<0,0,(E23*Genanskaffelsespriser!$D$5-(2009-E$3)/($C23+E24)*Genanskaffelsespriser!$D$5*E23)) -> 0 | AC23: =IF((F23*Genanskaffelsespriser!$D$5-(2009-F$3)/($C23+F24)*Genanskaffelsespriser!$D$5*F23)<0,0,(F23*Genanskaffelsespriser!$D$5-(2009-F$3)/($C23+F24)*Genanskaffelsespriser!$D$5*F23)) -> 0 | AD23: =IF((G23*Genanskaffelsespriser!$D$5-(2009-G$3)/($C23+G24)*Genanskaffelsespriser!$D$5*G23)<0,0,(G23*Genanskaffelsespriser!$D$5-(2009-G$3)/($C23+G24)*Genanskaffelsespriser!$D$5*G23)) -> 0 | AE23: =IF((H23*Genanskaffelsespriser!$D$5-(2009-H$3)/($C23+H24)*Genanskaffelsespriser!$D$5*H23)<0,0,(H23*Genanskaffelsespriser!$D$5-(2009-H$3)/($C23+H24)*Genanskaffelsespriser!$D$5*H23)) -> 0 | AF23: =IF((I23*Genanskaffelsespriser!$D$5-(2009-I$3)/($C23+I24)*Genanskaffelsespriser!$D$5*I23)<0,0,(I23*Genanskaffelsespriser!$D$5-(2009-I$3)/($C23+I24)*Genanskaffelsespriser!$D$5*I23)) -> 0 | AG23: =IF((J23*Genanskaffelsespriser!$D$5-(2009-J$3)/($C23+J24)*Genanskaffelsespriser!$D$5*J23)<0,0,(J23*Genanskaffelsespriser!$D$5-(2009-J$3)/($C23+J24)*Genanskaffelsespriser!$D$5*J23)) -> 0 | AH23: =IF((K23*Genanskaffelsespriser!$D$5-(2009-K$3)/($C23+K24)*Genanskaffelsespriser!$D$5*K23)<0,0,(K23*Genanskaffelsespriser!$D$5-(2009-K$3)/($C23+K24)*Genanskaffelsespriser!$D$5*K23)) -> 0 | AI23: =IF((L23*Genanskaffelsespriser!$D$5-(2009-L$3)/($C23+L24)*Genanskaffelsespriser!$D$5*L23)<0,0,(L23*Genanskaffelsespriser!$D$5-(2009-L$3)/($C23+L24)*Genanskaffelsespriser!$D$5*L23)) -> 0 | AJ23: =IF((M23*Genanskaffelsespriser!$D$5-(2009-M$3)/($C23+M24)*Genanskaffelsespriser!$D$5*M23)<0,0,(M23*Genanskaffelsespriser!$D$5-(2009-M$3)/($C23+M24)*Genanskaffelsespriser!$D$5*M23)) -> 0 | AK23: =IF((N23*Genanskaffelsespriser!$D$5-(2009-N$3)/($C23+N24)*Genanskaffelsespriser!$D$5*N23)<0,0,(N23*Genanskaffelsespriser!$D$5-(2009-N$3)/($C23+N24)*Genanskaffelsespriser!$D$5*N23)) -> 0 | AL23: =IF((O23*Genanskaffelsespriser!$D$5-(2009-O$3)/($C23+O24)*Genanskaffelsespriser!$D$5*O23)<0,0,(O23*Genanskaffelsespriser!$D$5-(2009-O$3)/($C23+O24)*Genanskaffelsespriser!$D$5*O23)) -> 0 | AM23: =IF((P23*Genanskaffelsespriser!$D$5-(2009-P$3)/($C23+P24)*Genanskaffelsespriser!$D$5*P23)<0,0,(P23*Genanskaffelsespriser!$D$5-(2009-P$3)/($C23+P24)*Genanskaffelsespriser!$D$5*P23)) -> 0 | AN23: =IF((Q23*Genanskaffelsespriser!$D$5-(2009-Q$3)/($C23+Q24)*Genanskaffelsespriser!$D$5*Q23)<0,0,(Q23*Genanskaffelsespriser!$D$5-(2009-Q$3)/($C23+Q24)*Genanskaffelsespriser!$D$5*Q23)) -> 0 | AO23: =IF((R23*Genanskaffelsespriser!$D$5-(2009-R$3)/($C23+R24)*Genanskaffelsespriser!$D$5*R23)<0,0,(R23*Genanskaffelsespriser!$D$5-(2009-R$3)/($C23+R24)*Genanskaffelsespriser!$D$5*R23)) -> 0 | AP23: =IF((S23*Genanskaffelsespriser!$D$5-(2009-S$3)/($C23+S24)*Genanskaffelsespriser!$D$5*S23)<0,0,(S23*Genanskaffelsespriser!$D$5-(2009-S$3)/($C23+S24)*Genanskaffelsespriser!$D$5*S23)) -> 0 | AQ23: =IF((T23*Genanskaffelsespriser!$D$5-(2009-T$3)/($C23+T24)*Genanskaffelsespriser!$D$5*T23)<0,0,(T23*Genanskaffelsespriser!$D$5-(2009-T$3)/($C23+T24)*Genanskaffelsespriser!$D$5*T23)) -> 0 | AR23: =IF((U23*Genanskaffelsespriser!$D$5-(2009-U$3)/($C23+U24)*Genanskaffelsespriser!$D$5*U23)<0,0,(U23*Genanskaffelsespriser!$D$5-(2009-U$3)/($C23+U24)*Genanskaffelsespriser!$D$5*U23)) -> 0 | AS23: =IF((V23*Genanskaffelsespriser!$D$5-(2009-V$3)/($C23+V24)*Genanskaffelsespriser!$D$5*V23)<0,0,(V23*Genanskaffelsespriser!$D$5-(2009-V$3)/($C23+V24)*Genanskaffelsespriser!$D$5*V23)) -> 0 | AT23: =IF((W23*Genanskaffelsespriser!$D$5-(2009-W$3)/($C23+W24)*Genanskaffelsespriser!$D$5*W23)<0,0,(W23*Genanskaffelsespriser!$D$5-(2009-W$3)/($C23+W24)*Genanskaffelsespriser!$D$5*W23)) -> 0 | AU23: =IF((X23*Genanskaffelsespriser!$D$5-(2009-X$3)/($C23+X24)*Genanskaffelsespriser!$D$5*X23)<0,0,(X23*Genanskaffelsespriser!$D$5-(2009-X$3)/($C23+X24)*Genanskaffelsespriser!$D$5*X23)) -> 0 | AV23: =IF((Y23*Genanskaffelsespriser!$D$5-(2009-Y$3)/($C23+Y24)*Genanskaffelsespriser!$D$5*Y23)<0,0,(Y23*Genanskaffelsespriser!$D$5-(2009-Y$3)/($C23+Y24)*Genanskaffelsespriser!$D$5*Y23)) -> 0 | AW23: =+SUM(AA23:AV23) -> 0 | AX23: =VLOOKUP(D$3,Prisindeks!$A$1:$B$111,2,FALSE)/100*AA23 -> 0 | AY23: =VLOOKUP(E$3,Prisindeks!$A$1:$B$111,2,FALSE)/100*AB23 -> 0 | AZ23: =VLOOKUP(F$3,Prisindeks!$A$1:$B$111,2,FALSE)/100*AC23 -> 0 | BA23: =VLOOKUP(G$3,Prisindeks!$A$1:$B$111,2,FALSE)/100*AD23 -> 0 | BB23: =VLOOKUP(H$3,Prisindeks!$A$1:$B$111,2,FALSE)/100*AE23 -> 0 | BC23: =VLOOKUP(I$3,Prisindeks!$A$1:$B$111,2,FALSE)/100*AF23 -> 0 | BD23: =VLOOKUP(J$3,Prisindeks!$A$1:$B$111,2,FALSE)/100*AG23 -> 0 | BE23: =VLOOKUP(K$3,Prisindeks!$A$1:$B$111,2,FALSE)/100*AH23 -> 0 | BF23: =VLOOKUP(L$3,Prisindeks!$A$1:$B$111,2,FALSE)/100*AI23 -> 0 | BG23: =VLOOKUP(M$3,Prisindeks!$A$1:$B$111,2,FALSE)/100*AJ23 -> 0 | BH23: =VLOOKUP(N$3,Prisindeks!$A$1:$B$111,2,FALSE)/100*AK23 -> 0 | BI23: =VLOOKUP(O$3,Prisindeks!$A$1:$B$111,2,FALSE)/100*AL23 -> 0 | BJ23: =VLOOKUP(P$3,Prisindeks!$A$1:$B$111,2,FALSE)/100*AM23 -> 0 | BK23: =VLOOKUP(Q$3,Prisindeks!$A$1:$B$111,2,FALSE)/100*AN23 -> 0 | BL23: =VLOOKUP(R$3,Prisindeks!$A$1:$B$111,2,FALSE)/100*AO23 -> 0 | BM23: =VLOOKUP(S$3,Prisindeks!$A$1:$B$111,2,FALSE)/100*AP23 -> 0 | BN23: =VLOOKUP(T$3,Prisindeks!$A$1:$B$111,2,FALSE)/100*AQ23 -> 0 | BO23: =VLOOKUP(U$3,Prisindeks!$A$1:$B$111,2,FALSE)/100*AR23 -> 0 | BP23: =VLOOKUP(V$3,Prisindeks!$A$1:$B$111,2,FALSE)/100*AS23 -> 0 | BQ23: =VLOOKUP(W$3,Prisindeks!$A$1:$B$111,2,FALSE)/100*AT23 -> 0 | BR23: =VLOOKUP(X$3,Prisindeks!$A$1:$B$111,2,FALSE)/100*AU23 -> 0 | BS23: =VLOOKUP(Y$3,Prisindeks!$A$1:$B$111,2,FALSE)/100*AV23 -> 0 | BT23: =+SUM(AX23:BS23) -> 0 | BU23: =(AA23+AX23)/2 -> 0 | BV23: 0 | BW23: 0 | BX23: 0 | BY23: 0 | BZ23: 0 | CA23: 0 | CB23: 0 | CC23: 0 | CD23: 0 | CE23: 0 | CF23: 0 | CG23: 0 | CH23: 0 | CI23: 0 | CJ23: 0 | CK23: 0 | CL23: 0 | CM23: 0 | CN23: 0 | CO23: 0 | CP23: 0 | CQ23: =AVERAGE(AW23,BT23) -> 0 | CR23: =SUM(D23:Y23) -> 0
A24: Levetidsforlængelse | B24: år | C24: - | D24: 0 | E24: 0 | F24: 0 | G24: 0 | H24: 0 | I24: 0 | J24: 0 | K24: 0 | L24: 0 | M24: 0 | N24: 0 | O24: 0 | P24: 0 | Q24: 0 | R24: 0 | S24: 0 | T24: 0 | U24: 0 | V24: 0 | W24: 0 | X24: 0 | Y24: 0
A25: Boring (inkl. etablering, forerør, filter og prøvepumpning) - 11 | B25: dybdemeter | C25: =Genanskaffelsespriser!$E$5 -> 30 | D25: 0 | E25: 0 | F25: 0 | G25: 0 | H25: 0 | I25: 0 | J25: 0 | K25: 0 | L25: 0 | M25: 0 | N25: 0 | O25: 0 | P25: 0 | Q25: 0 | R25: 0 | S25: 0 | T25: 0 | U25: 0 | V25: 0 | W25: 0 | X25: 0 | Y25: 0 | AA25: =IF((D25*Genanskaffelsespriser!$D$5-(2009-D$3)/($C25+D26)*Genanskaffelsespriser!$D$5*D25)<0,0,(D25*Genanskaffelsespriser!$D$5-(2009-D$3)/($C25+D26)*Genanskaffelsespriser!$D$5*D25)) -> 0 | AB25: =IF((E25*Genanskaffelsespriser!$D$5-(2009-E$3)/($C25+E26)*Genanskaffelsespriser!$D$5*E25)<0,0,(E25*Genanskaffelsespriser!$D$5-(2009-E$3)/($C25+E26)*Genanskaffelsespriser!$D$5*E25)) -> 0 | AC25: =IF((F25*Genanskaffelsespriser!$D$5-(2009-F$3)/($C25+F26)*Genanskaffelsespriser!$D$5*F25)<0,0,(F25*Genanskaffelsespriser!$D$5-(2009-F$3)/($C25+F26)*Genanskaffelsespriser!$D$5*F25)) -> 0 | AD25: =IF((G25*Genanskaffelsespriser!$D$5-(2009-G$3)/($C25+G26)*Genanskaffelsespriser!$D$5*G25)<0,0,(G25*Genanskaffelsespriser!$D$5-(2009-G$3)/($C25+G26)*Genanskaffelsespriser!$D$5*G25)) -> 0 | AE25: =IF((H25*Genanskaffelsespriser!$D$5-(2009-H$3)/($C25+H26)*Genanskaffelsespriser!$D$5*H25)<0,0,(H25*Genanskaffelsespriser!$D$5-(2009-H$3)/($C25+H26)*Genanskaffelsespriser!$D$5*H25)) -> 0 | AF25: =IF((I25*Genanskaffelsespriser!$D$5-(2009-I$3)/($C25+I26)*Genanskaffelsespriser!$D$5*I25)<0,0,(I25*Genanskaffelsespriser!$D$5-(2009-I$3)/($C25+I26)*Genanskaffelsespriser!$D$5*I25)) -> 0 | AG25: =IF((J25*Genanskaffelsespriser!$D$5-(2009-J$3)/($C25+J26)*Genanskaffelsespriser!$D$5*J25)<0,0,(J25*Genanskaffelsespriser!$D$5-(2009-J$3)/($C25+J26)*Genanskaffelsespriser!$D$5*J25)) -> 0 | AH25: =IF((K25*Genanskaffelsespriser!$D$5-(2009-K$3)/($C25+K26)*Genanskaffelsespriser!$D$5*K25)<0,0,(K25*Genanskaffelsespriser!$D$5-(2009-K$3)/($C25+K26)*Genanskaffelsespriser!$D$5*K25)) -> 0 | AI25: =IF((L25*Genanskaffelsespriser!$D$5-(2009-L$3)/($C25+L26)*Genanskaffelsespriser!$D$5*L25)<0,0,(L25*Genanskaffelsespriser!$D$5-(2009-L$3)/($C25+L26)*Genanskaffelsespriser!$D$5*L25)) -> 0 | AJ25: =IF((M25*Genanskaffelsespriser!$D$5-(2009-M$3)/($C25+M26)*Genanskaffelsespriser!$D$5*M25)<0,0,(M25*Genanskaffelsespriser!$D$5-(2009-M$3)/($C25+M26)*Genanskaffelsespriser!$D$5*M25)) -> 0 | AK25: =IF((N25*Genanskaffelsespriser!$D$5-(2009-N$3)/($C25+N26)*Genanskaffelsespriser!$D$5*N25)<0,0,(N25*Genanskaffelsespriser!$D$5-(2009-N$3)/($C25+N26)*Genanskaffelsespriser!$D$5*N25)) -> 0 | AL25: =IF((O25*Genanskaffelsespriser!$D$5-(2009-O$3)/($C25+O26)*Genanskaffelsespriser!$D$5*O25)<0,0,(O25*Genanskaffelsespriser!$D$5-(2009-O$3)/($C25+O26)*Genanskaffelsespriser!$D$5*O25)) -> 0 | AM25: =IF((P25*Genanskaffelsespriser!$D$5-(2009-P$3)/($C25+P26)*Genanskaffelsespriser!$D$5*P25)<0,0,(P25*Genanskaffelsespriser!$D$5-(2009-P$3)/($C25+P26)*Genanskaffelsespriser!$D$5*P25)) -> 0 | AN25: =IF((Q25*Genanskaffelsespriser!$D$5-(2009-Q$3)/($C25+Q26)*Genanskaffelsespriser!$D$5*Q25)<0,0,(Q25*Genanskaffelsespriser!$D$5-(2009-Q$3)/($C25+Q26)*Genanskaffelsespriser!$D$5*Q25)) -> 0 | AO25: =IF((R25*Genanskaffelsespriser!$D$5-(2009-R$3)/($C25+R26)*Genanskaffelsespriser!$D$5*R25)<0,0,(R25*Genanskaffelsespriser!$D$5-(2009-R$3)/($C25+R26)*Genanskaffelsespriser!$D$5*R25)) -> 0 | AP25: =IF((S25*Genanskaffelsespriser!$D$5-(2009-S$3)/($C25+S26)*Genanskaffelsespriser!$D$5*S25)<0,0,(S25*Genanskaffelsespriser!$D$5-(2009-S$3)/($C25+S26)*Genanskaffelsespriser!$D$5*S25)) -> 0 | AQ25: =IF((T25*Genanskaffelsespriser!$D$5-(2009-T$3)/($C25+T26)*Genanskaffelsespriser!$D$5*T25)<0,0,(T25*Genanskaffelsespriser!$D$5-(2009-T$3)/($C25+T26)*Genanskaffelsespriser!$D$5*T25)) -> 0 | AR25: =IF((U25*Genanskaffelsespriser!$D$5-(2009-U$3)/($C25+U26)*Genanskaffelsespriser!$D$5*U25)<0,0,(U25*Genanskaffelsespriser!$D$5-(2009-U$3)/($C25+U26)*Genanskaffelsespriser!$D$5*U25)) -> 0 | AS25: =IF((V25*Genanskaffelsespriser!$D$5-(2009-V$3)/($C25+V26)*Genanskaffelsespriser!$D$5*V25)<0,0,(V25*Genanskaffelsespriser!$D$5-(2009-V$3)/($C25+V26)*Genanskaffelsespriser!$D$5*V25)) -> 0 | AT25: =IF((W25*Genanskaffelsespriser!$D$5-(2009-W$3)/($C25+W26)*Genanskaffelsespriser!$D$5*W25)<0,0,(W25*Genanskaffelsespriser!$D$5-(2009-W$3)/($C25+W26)*Genanskaffelsespriser!$D$5*W25)) -> 0 | AU25: =IF((X25*Genanskaffelsespriser!$D$5-(2009-X$3)/($C25+X26)*Genanskaffelsespriser!$D$5*X25)<0,0,(X25*Genanskaffelsespriser!$D$5-(2009-X$3)/($C25+X26)*Genanskaffelsespriser!$D$5*X25)) -> 0 | AV25: =IF((Y25*Genanskaffelsespriser!$D$5-(2009-Y$3)/($C25+Y26)*Genanskaffelsespriser!$D$5*Y25)<0,0,(Y25*Genanskaffelsespriser!$D$5-(2009-Y$3)/($C25+Y26)*Genanskaffelsespriser!$D$5*Y25)) -> 0 | AW25: =+SUM(AA25:AV25) -> 0 | AX25: =VLOOKUP(D$3,Prisindeks!$A$1:$B$111,2,FALSE)/100*AA25 -> 0 | AY25: =VLOOKUP(E$3,Prisindeks!$A$1:$B$111,2,FALSE)/100*AB25 -> 0 | AZ25: =VLOOKUP(F$3,Prisindeks!$A$1:$B$111,2,FALSE)/100*AC25 -> 0 | BA25: =VLOOKUP(G$3,Prisindeks!$A$1:$B$111,2,FALSE)/100*AD25 -> 0 | BB25: =VLOOKUP(H$3,Prisindeks!$A$1:$B$111,2,FALSE)/100*AE25 -> 0 | BC25: =VLOOKUP(I$3,Prisindeks!$A$1:$B$111,2,FALSE)/100*AF25 -> 0 | BD25: =VLOOKUP(J$3,Prisindeks!$A$1:$B$111,2,FALSE)/100*AG25 -> 0 | BE25: =VLOOKUP(K$3,Prisindeks!$A$1:$B$111,2,FALSE)/100*AH25 -> 0 | BF25: =VLOOKUP(L$3,Prisindeks!$A$1:$B$111,2,FALSE)/100*AI25 -> 0 | BG25: =VLOOKUP(M$3,Prisindeks!$A$1:$B$111,2,FALSE)/100*AJ25 -> 0 | BH25: =VLOOKUP(N$3,Prisindeks!$A$1:$B$111,2,FALSE)/100*AK25 -> 0 | BI25: =VLOOKUP(O$3,Prisindeks!$A$1:$B$111,2,FALSE)/100*AL25 -> 0 | BJ25: =VLOOKUP(P$3,Prisindeks!$A$1:$B$111,2,FALSE)/100*AM25 -> 0 | BK25: =VLOOKUP(Q$3,Prisindeks!$A$1:$B$111,2,FALSE)/100*AN25 -> 0 | BL25: =VLOOKUP(R$3,Prisindeks!$A$1:$B$111,2,FALSE)/100*AO25 -> 0 | BM25: =VLOOKUP(S$3,Prisindeks!$A$1:$B$111,2,FALSE)/100*AP25 -> 0 | BN25: =VLOOKUP(T$3,Prisindeks!$A$1:$B$111,2,FALSE)/100*AQ25 -> 0 | BO25: =VLOOKUP(U$3,Prisindeks!$A$1:$B$111,2,FALSE)/100*AR25 -> 0 | BP25: =VLOOKUP(V$3,Prisindeks!$A$1:$B$111,2,FALSE)/100*AS25 -> 0 | BQ25: =VLOOKUP(W$3,Prisindeks!$A$1:$B$111,2,FALSE)/100*AT25 -> 0 | BR25: =VLOOKUP(X$3,Prisindeks!$A$1:$B$111,2,FALSE)/100*AU25 -> 0 | BS25: =VLOOKUP(Y$3,Prisindeks!$A$1:$B$111,2,FALSE)/100*AV25 -> 0 | BT25: =+SUM(AX25:BS25) -> 0 | BU25: =(AA25+AX25)/2 -> 0 | BV25: 0 | BW25: 0 | BX25: 0 | BY25: 0 | BZ25: 0 | CA25: 0 | CB25: 0 | CC25: 0 | CD25: 0 | CE25: 0 | CF25: 0 | CG25: 0 | CH25: 0 | CI25: 0 | CJ25: 0 | CK25: 0 | CL25: 0 | CM25: 0 | CN25: 0 | CO25: 0 | CP25: 0 | CQ25: =AVERAGE(AW25,BT25) -> 0 | CR25: =SUM(D25:Y25) -> 0
A26: Levetidsforlængelse | B26: år | C26: - | D26: 0 | E26: 0 | F26: 0 | G26: 0 | H26: 0 | I26: 0 | J26: 0 | K26: 0 | L26: 0 | M26: 0 | N26: 0 | O26: 0 | P26: 0 | Q26: 0 | R26: 0 | S26: 0 | T26: 0 | U26: 0 | V26: 0 | W26: 0 | X26: 0 | Y26: 0
A27: Boring (inkl. etablering, forerør, filter og prøvepumpning) - 12 | B27: dybdemeter | C27: =Genanskaffelsespriser!$E$5 -> 30 | D27: 0 | E27: 0 | F27: 0 | G27: 0 | H27: 0 | I27: 0 | J27: 0 | K27: 0 | L27: 0 | M27: 0 | N27: 0 | O27: 0 | P27: 0 | Q27: 0 | R27: 0 | S27: 0 | T27: 0 | U27: 0 | V27: 0 | W27: 0 | X27: 0 | Y27: 0 | AA27: =IF((D27*Genanskaffelsespriser!$D$5-(2009-D$3)/($C27+D28)*Genanskaffelsespriser!$D$5*D27)<0,0,(D27*Genanskaffelsespriser!$D$5-(2009-D$3)/($C27+D28)*Genanskaffelsespriser!$D$5*D27)) -> 0 | AB27: =IF((E27*Genanskaffelsespriser!$D$5-(2009-E$3)/($C27+E28)*Genanskaffelsespriser!$D$5*E27)<0,0,(E27*Genanskaffelsespriser!$D$5-(2009-E$3)/($C27+E28)*Genanskaffelsespriser!$D$5*E27)) -> 0 | AC27: =IF((F27*Genanskaffelsespriser!$D$5-(2009-F$3)/($C27+F28)*Genanskaffelsespriser!$D$5*F27)<0,0,(F27*Genanskaffelsespriser!$D$5-(2009-F$3)/($C27+F28)*Genanskaffelsespriser!$D$5*F27)) -> 0 | AD27: =IF((G27*Genanskaffelsespriser!$D$5-(2009-G$3)/($C27+G28)*Genanskaffelsespriser!$D$5*G27)<0,0,(G27*Genanskaffelsespriser!$D$5-(2009-G$3)/($C27+G28)*Genanskaffelsespriser!$D$5*G27)) -> 0 | AE27: =IF((H27*Genanskaffelsespriser!$D$5-(2009-H$3)/($C27+H28)*Genanskaffelsespriser!$D$5*H27)<0,0,(H27*Genanskaffelsespriser!$D$5-(2009-H$3)/($C27+H28)*Genanskaffelsespriser!$D$5*H27)) -> 0 | AF27: =IF((I27*Genanskaffelsespriser!$D$5-(2009-I$3)/($C27+I28)*Genanskaffelsespriser!$D$5*I27)<0,0,(I27*Genanskaffelsespriser!$D$5-(2009-I$3)/($C27+I28)*Genanskaffelsespriser!$D$5*I27)) -> 0 | AG27: =IF((J27*Genanskaffelsespriser!$D$5-(2009-J$3)/($C27+J28)*Genanskaffelsespriser!$D$5*J27)<0,0,(J27*Genanskaffelsespriser!$D$5-(2009-J$3)/($C27+J28)*Genanskaffelsespriser!$D$5*J27)) -> 0 | AH27: =IF((K27*Genanskaffelsespriser!$D$5-(2009-K$3)/($C27+K28)*Genanskaffelsespriser!$D$5*K27)<0,0,(K27*Genanskaffelsespriser!$D$5-(2009-K$3)/($C27+K28)*Genanskaffelsespriser!$D$5*K27)) -> 0 | AI27: =IF((L27*Genanskaffelsespriser!$D$5-(2009-L$3)/($C27+L28)*Genanskaffelsespriser!$D$5*L27)<0,0,(L27*Genanskaffelsespriser!$D$5-(2009-L$3)/($C27+L28)*Genanskaffelsespriser!$D$5*L27)) -> 0 | AJ27: =IF((M27*Genanskaffelsespriser!$D$5-(2009-M$3)/($C27+M28)*Genanskaffelsespriser!$D$5*M27)<0,0,(M27*Genanskaffelsespriser!$D$5-(2009-M$3)/($C27+M28)*Genanskaffelsespriser!$D$5*M27)) -> 0 | AK27: =IF((N27*Genanskaffelsespriser!$D$5-(2009-N$3)/($C27+N28)*Genanskaffelsespriser!$D$5*N27)<0,0,(N27*Genanskaffelsespriser!$D$5-(2009-N$3)/($C27+N28)*Genanskaffelsespriser!$D$5*N27)) -> 0 | AL27: =IF((O27*Genanskaffelsespriser!$D$5-(2009-O$3)/($C27+O28)*Genanskaffelsespriser!$D$5*O27)<0,0,(O27*Genanskaffelsespriser!$D$5-(2009-O$3)/($C27+O28)*Genanskaffelsespriser!$D$5*O27)) -> 0 | AM27: =IF((P27*Genanskaffelsespriser!$D$5-(2009-P$3)/($C27+P28)*Genanskaffelsespriser!$D$5*P27)<0,0,(P27*Genanskaffelsespriser!$D$5-(2009-P$3)/($C27+P28)*Genanskaffelsespriser!$D$5*P27)) -> 0 | AN27: =IF((Q27*Genanskaffelsespriser!$D$5-(2009-Q$3)/($C27+Q28)*Genanskaffelsespriser!$D$5*Q27)<0,0,(Q27*Genanskaffelsespriser!$D$5-(2009-Q$3)/($C27+Q28)*Genanskaffelsespriser!$D$5*Q27)) -> 0 | AO27: =IF((R27*Genanskaffelsespriser!$D$5-(2009-R$3)/($C27+R28)*Genanskaffelsespriser!$D$5*R27)<0,0,(R27*Genanskaffelsespriser!$D$5-(2009-R$3)/($C27+R28)*Genanskaffelsespriser!$D$5*R27)) -> 0 | AP27: =IF((S27*Genanskaffelsespriser!$D$5-(2009-S$3)/($C27+S28)*Genanskaffelsespriser!$D$5*S27)<0,0,(S27*Genanskaffelsespriser!$D$5-(2009-S$3)/($C27+S28)*Genanskaffelsespriser!$D$5*S27)) -> 0 | AQ27: =IF((T27*Genanskaffelsespriser!$D$5-(2009-T$3)/($C27+T28)*Genanskaffelsespriser!$D$5*T27)<0,0,(T27*Genanskaffelsespriser!$D$5-(2009-T$3)/($C27+T28)*Genanskaffelsespriser!$D$5*T27)) -> 0 | AR27: =IF((U27*Genanskaffelsespriser!$D$5-(2009-U$3)/($C27+U28)*Genanskaffelsespriser!$D$5*U27)<0,0,(U27*Genanskaffelsespriser!$D$5-(2009-U$3)/($C27+U28)*Genanskaffelsespriser!$D$5*U27)) -> 0 | AS27: =IF((V27*Genanskaffelsespriser!$D$5-(2009-V$3)/($C27+V28)*Genanskaffelsespriser!$D$5*V27)<0,0,(V27*Genanskaffelsespriser!$D$5-(2009-V$3)/($C27+V28)*Genanskaffelsespriser!$D$5*V27)) -> 0 | AT27: =IF((W27*Genanskaffelsespriser!$D$5-(2009-W$3)/($C27+W28)*Genanskaffelsespriser!$D$5*W27)<0,0,(W27*Genanskaffelsespriser!$D$5-(2009-W$3)/($C27+W28)*Genanskaffelsespriser!$D$5*W27)) -> 0 | AU27: =IF((X27*Genanskaffelsespriser!$D$5-(2009-X$3)/($C27+X28)*Genanskaffelsespriser!$D$5*X27)<0,0,(X27*Genanskaffelsespriser!$D$5-(2009-X$3)/($C27+X28)*Genanskaffelsespriser!$D$5*X27)) -> 0 | AV27: =IF((Y27*Genanskaffelsespriser!$D$5-(2009-Y$3)/($C27+Y28)*Genanskaffelsespriser!$D$5*Y27)<0,0,(Y27*Genanskaffelsespriser!$D$5-(2009-Y$3)/($C27+Y28)*Genanskaffelsespriser!$D$5*Y27)) -> 0 | AW27: =+SUM(AA27:AV27) -> 0 | AX27: =VLOOKUP(D$3,Prisindeks!$A$1:$B$111,2,FALSE)/100*AA27 -> 0 | AY27: =VLOOKUP(E$3,Prisindeks!$A$1:$B$111,2,FALSE)/100*AB27 -> 0 | AZ27: =VLOOKUP(F$3,Prisindeks!$A$1:$B$111,2,FALSE)/100*AC27 -> 0 | BA27: =VLOOKUP(G$3,Prisindeks!$A$1:$B$111,2,FALSE)/100*AD27 -> 0 | BB27: =VLOOKUP(H$3,Prisindeks!$A$1:$B$111,2,FALSE)/100*AE27 -> 0 | BC27: =VLOOKUP(I$3,Prisindeks!$A$1:$B$111,2,FALSE)/100*AF27 -> 0 | BD27: =VLOOKUP(J$3,Prisindeks!$A$1:$B$111,2,FALSE)/100*AG27 -> 0 | BE27: =VLOOKUP(K$3,Prisindeks!$A$1:$B$111,2,FALSE)/100*AH27 -> 0 | BF27: =VLOOKUP(L$3,Prisindeks!$A$1:$B$111,2,FALSE)/100*AI27 -> 0 | BG27: =VLOOKUP(M$3,Prisindeks!$A$1:$B$111,2,FALSE)/100*AJ27 -> 0 | BH27: =VLOOKUP(N$3,Prisindeks!$A$1:$B$111,2,FALSE)/100*AK27 -> 0 | BI27: =VLOOKUP(O$3,Prisindeks!$A$1:$B$111,2,FALSE)/100*AL27 -> 0 | BJ27: =VLOOKUP(P$3,Prisindeks!$A$1:$B$111,2,FALSE)/100*AM27 -> 0 | BK27: =VLOOKUP(Q$3,Prisindeks!$A$1:$B$111,2,FALSE)/100*AN27 -> 0 | BL27: =VLOOKUP(R$3,Prisindeks!$A$1:$B$111,2,FALSE)/100*AO27 -> 0 | BM27: =VLOOKUP(S$3,Prisindeks!$A$1:$B$111,2,FALSE)/100*AP27 -> 0 | BN27: =VLOOKUP(T$3,Prisindeks!$A$1:$B$111,2,FALSE)/100*AQ27 -> 0 | BO27: =VLOOKUP(U$3,Prisindeks!$A$1:$B$111,2,FALSE)/100*AR27 -> 0 | BP27: =VLOOKUP(V$3,Prisindeks!$A$1:$B$111,2,FALSE)/100*AS27 -> 0 | BQ27: =VLOOKUP(W$3,Prisindeks!$A$1:$B$111,2,FALSE)/100*AT27 -> 0 | BR27: =VLOOKUP(X$3,Prisindeks!$A$1:$B$111,2,FALSE)/100*AU27 -> 0 | BS27: =VLOOKUP(Y$3,Prisindeks!$A$1:$B$111,2,FALSE)/100*AV27 -> 0 | BT27: =+SUM(AX27:BS27) -> 0 | BU27: =(AA27+AX27)/2 -> 0 | BV27: 0 | BW27: 0 | BX27: 0 | BY27: 0 | BZ27: 0 | CA27: 0 | CB27: 0 | CC27: 0 | CD27: 0 | CE27: 0 | CF27: 0 | CG27: 0 | CH27: 0 | CI27: 0 | CJ27: 0 | CK27: 0 | CL27: 0 | CM27: 0 | CN27: 0 | CO27: 0 | CP27: 0 | CQ27: =AVERAGE(AW27,BT27) -> 0 | CR27: =SUM(D27:Y27) -> 0
A28: Levetidsforlængelse | B28: år | C28: - | D28: 0 | E28: 0 | F28: 0 | G28: 0 | H28: 0 | I28: 0 | J28: 0 | K28: 0 | L28: 0 | M28: 0 | N28: 0 | O28: 0 | P28: 0 | Q28: 0 | R28: 0 | S28: 0 | T28: 0 | U28: 0 | V28: 0 | W28: 0 | X28: 0 | Y28: 0
A29: Boring (inkl. etablering, forerør, filter og prøvepumpning) - 13 | B29: dybdemeter | C29: =Genanskaffelsespriser!$E$5 -> 30 | D29: 0 | E29: 0 | F29: 0 | G29: 0 | H29: 0 | I29: 0 | J29: 0 | K29: 0 | L29: 0 | M29: 0 | N29: 0 | O29: 0 | P29: 0 | Q29: 0 | R29: 0 | S29: 0 | T29: 0 | U29: 0 | V29: 0 | W29: 0 | X29: 0 | Y29: 0 | AA29: =IF((D29*Genanskaffelsespriser!$D$5-(2009-D$3)/($C29+D30)*Genanskaffelsespriser!$D$5*D29)<0,0,(D29*Genanskaffelsespriser!$D$5-(2009-D$3)/($C29+D30)*Genanskaffelsespriser!$D$5*D29)) -> 0 | AB29: =IF((E29*Genanskaffelsespriser!$D$5-(2009-E$3)/($C29+E30)*Genanskaffelsespriser!$D$5*E29)<0,0,(E29*Genanskaffelsespriser!$D$5-(2009-E$3)/($C29+E30)*Genanskaffelsespriser!$D$5*E29)) -> 0 | AC29: =IF((F29*Genanskaffelsespriser!$D$5-(2009-F$3)/($C29+F30)*Genanskaffelsespriser!$D$5*F29)<0,0,(F29*Genanskaffelsespriser!$D$5-(2009-F$3)/($C29+F30)*Genanskaffelsespriser!$D$5*F29)) -> 0 | AD29: =IF((G29*Genanskaffelsespriser!$D$5-(2009-G$3)/($C29+G30)*Genanskaffelsespriser!$D$5*G29)<0,0,(G29*Genanskaffelsespriser!$D$5-(2009-G$3)/($C29+G30)*Genanskaffelsespriser!$D$5*G29)) -> 0 | AE29: =IF((H29*Genanskaffelsespriser!$D$5-(2009-H$3)/($C29+H30)*Genanskaffelsespriser!$D$5*H29)<0,0,(H29*Genanskaffelsespriser!$D$5-(2009-H$3)/($C29+H30)*Genanskaffelsespriser!$D$5*H29)) -> 0 | AF29: =IF((I29*Genanskaffelsespriser!$D$5-(2009-I$3)/($C29+I30)*Genanskaffelsespriser!$D$5*I29)<0,0,(I29*Genanskaffelsespriser!$D$5-(2009-I$3)/($C29+I30)*Genanskaffelsespriser!$D$5*I29)) -> 0 | AG29: =IF((J29*Genanskaffelsespriser!$D$5-(2009-J$3)/($C29+J30)*Genanskaffelsespriser!$D$5*J29)<0,0,(J29*Genanskaffelsespriser!$D$5-(2009-J$3)/($C29+J30)*Genanskaffelsespriser!$D$5*J29)) -> 0 | AH29: =IF((K29*Genanskaffelsespriser!$D$5-(2009-K$3)/($C29+K30)*Genanskaffelsespriser!$D$5*K29)<0,0,(K29*Genanskaffelsespriser!$D$5-(2009-K$3)/($C29+K30)*Genanskaffelsespriser!$D$5*K29)) -> 0 | AI29: =IF((L29*Genanskaffelsespriser!$D$5-(2009-L$3)/($C29+L30)*Genanskaffelsespriser!$D$5*L29)<0,0,(L29*Genanskaffelsespriser!$D$5-(2009-L$3)/($C29+L30)*Genanskaffelsespriser!$D$5*L29)) -> 0 | AJ29: =IF((M29*Genanskaffelsespriser!$D$5-(2009-M$3)/($C29+M30)*Genanskaffelsespriser!$D$5*M29)<0,0,(M29*Genanskaffelsespriser!$D$5-(2009-M$3)/($C29+M30)*Genanskaffelsespriser!$D$5*M29)) -> 0 | AK29: =IF((N29*Genanskaffelsespriser!$D$5-(2009-N$3)/($C29+N30)*Genanskaffelsespriser!$D$5*N29)<0,0,(N29*Genanskaffelsespriser!$D$5-(2009-N$3)/($C29+N30)*Genanskaffelsespriser!$D$5*N29)) -> 0 | AL29: =IF((O29*Genanskaffelsespriser!$D$5-(2009-O$3)/($C29+O30)*Genanskaffelsespriser!$D$5*O29)<0,0,(O29*Genanskaffelsespriser!$D$5-(2009-O$3)/($C29+O30)*Genanskaffelsespriser!$D$5*O29)) -> 0 | AM29: =IF((P29*Genanskaffelsespriser!$D$5-(2009-P$3)/($C29+P30)*Genanskaffelsespriser!$D$5*P29)<0,0,(P29*Genanskaffelsespriser!$D$5-(2009-P$3)/($C29+P30)*Genanskaffelsespriser!$D$5*P29)) -> 0 | AN29: =IF((Q29*Genanskaffelsespriser!$D$5-(2009-Q$3)/($C29+Q30)*Genanskaffelsespriser!$D$5*Q29)<0,0,(Q29*Genanskaffelsespriser!$D$5-(2009-Q$3)/($C29+Q30)*Genanskaffelsespriser!$D$5*Q29)) -> 0 | AO29: =IF((R29*Genanskaffelsespriser!$D$5-(2009-R$3)/($C29+R30)*Genanskaffelsespriser!$D$5*R29)<0,0,(R29*Genanskaffelsespriser!$D$5-(2009-R$3)/($C29+R30)*Genanskaffelsespriser!$D$5*R29)) -> 0 | AP29: =IF((S29*Genanskaffelsespriser!$D$5-(2009-S$3)/($C29+S30)*Genanskaffelsespriser!$D$5*S29)<0,0,(S29*Genanskaffelsespriser!$D$5-(2009-S$3)/($C29+S30)*Genanskaffelsespriser!$D$5*S29)) -> 0 | AQ29: =IF((T29*Genanskaffelsespriser!$D$5-(2009-T$3)/($C29+T30)*Genanskaffelsespriser!$D$5*T29)<0,0,(T29*Genanskaffelsespriser!$D$5-(2009-T$3)/($C29+T30)*Genanskaffelsespriser!$D$5*T29)) -> 0 | AR29: =IF((U29*Genanskaffelsespriser!$D$5-(2009-U$3)/($C29+U30)*Genanskaffelsespriser!$D$5*U29)<0,0,(U29*Genanskaffelsespriser!$D$5-(2009-U$3)/($C29+U30)*Genanskaffelsespriser!$D$5*U29)) -> 0 | AS29: =IF((V29*Genanskaffelsespriser!$D$5-(2009-V$3)/($C29+V30)*Genanskaffelsespriser!$D$5*V29)<0,0,(V29*Genanskaffelsespriser!$D$5-(2009-V$3)/($C29+V30)*Genanskaffelsespriser!$D$5*V29)) -> 0 | AT29: =IF((W29*Genanskaffelsespriser!$D$5-(2009-W$3)/($C29+W30)*Genanskaffelsespriser!$D$5*W29)<0,0,(W29*Genanskaffelsespriser!$D$5-(2009-W$3)/($C29+W30)*Genanskaffelsespriser!$D$5*W29)) -> 0 | AU29: =IF((X29*Genanskaffelsespriser!$D$5-(2009-X$3)/($C29+X30)*Genanskaffelsespriser!$D$5*X29)<0,0,(X29*Genanskaffelsespriser!$D$5-(2009-X$3)/($C29+X30)*Genanskaffelsespriser!$D$5*X29)) -> 0 | AV29: =IF((Y29*Genanskaffelsespriser!$D$5-(2009-Y$3)/($C29+Y30)*Genanskaffelsespriser!$D$5*Y29)<0,0,(Y29*Genanskaffelsespriser!$D$5-(2009-Y$3)/($C29+Y30)*Genanskaffelsespriser!$D$5*Y29)) -> 0 | AW29: =+SUM(AA29:AV29) -> 0 | AX29: =VLOOKUP(D$3,Prisindeks!$A$1:$B$111,2,FALSE)/100*AA29 -> 0 | AY29: =VLOOKUP(E$3,Prisindeks!$A$1:$B$111,2,FALSE)/100*AB29 -> 0 | AZ29: =VLOOKUP(F$3,Prisindeks!$A$1:$B$111,2,FALSE)/100*AC29 -> 0 | BA29: =VLOOKUP(G$3,Prisindeks!$A$1:$B$111,2,FALSE)/100*AD29 -> 0 | BB29: =VLOOKUP(H$3,Prisindeks!$A$1:$B$111,2,FALSE)/100*AE29 -> 0 | BC29: =VLOOKUP(I$3,Prisindeks!$A$1:$B$111,2,FALSE)/100*AF29 -> 0 | BD29: =VLOOKUP(J$3,Prisindeks!$A$1:$B$111,2,FALSE)/100*AG29 -> 0 | BE29: =VLOOKUP(K$3,Prisindeks!$A$1:$B$111,2,FALSE)/100*AH29 -> 0 | BF29: =VLOOKUP(L$3,Prisindeks!$A$1:$B$111,2,FALSE)/100*AI29 -> 0 | BG29: =VLOOKUP(M$3,Prisindeks!$A$1:$B$111,2,FALSE)/100*AJ29 -> 0 | BH29: =VLOOKUP(N$3,Prisindeks!$A$1:$B$111,2,FALSE)/100*AK29 -> 0 | BI29: =VLOOKUP(O$3,Prisindeks!$A$1:$B$111,2,FALSE)/100*AL29 -> 0 | BJ29: =VLOOKUP(P$3,Prisindeks!$A$1:$B$111,2,FALSE)/100*AM29 -> 0 | BK29: =VLOOKUP(Q$3,Prisindeks!$A$1:$B$111,2,FALSE)/100*AN29 -> 0 | BL29: =VLOOKUP(R$3,Prisindeks!$A$1:$B$111,2,FALSE)/100*AO29 -> 0 | BM29: =VLOOKUP(S$3,Prisindeks!$A$1:$B$111,2,FALSE)/100*AP29 -> 0 | BN29: =VLOOKUP(T$3,Prisindeks!$A$1:$B$111,2,FALSE)/100*AQ29 -> 0 | BO29: =VLOOKUP(U$3,Prisindeks!$A$1:$B$111,2,FALSE)/100*AR29 -> 0 | BP29: =VLOOKUP(V$3,Prisindeks!$A$1:$B$111,2,FALSE)/100*AS29 -> 0 | BQ29: =VLOOKUP(W$3,Prisindeks!$A$1:$B$111,2,FALSE)/100*AT29 -> 0 | BR29: =VLOOKUP(X$3,Prisindeks!$A$1:$B$111,2,FALSE)/100*AU29 -> 0 | BS29: =VLOOKUP(Y$3,Prisindeks!$A$1:$B$111,2,FALSE)/100*AV29 -> 0 | BT29: =+SUM(AX29:BS29) -> 0 | BU29: =(AA29+AX29)/2 -> 0 | BV29: 0 | BW29: 0 | BX29: 0 | BY29: 0 | BZ29: 0 | CA29: 0 | CB29: 0 | CC29: 0 | CD29: 0 | CE29: 0 | CF29: 0 | CG29: 0 | CH29: 0 | CI29: 0 | CJ29: 0 | CK29: 0 | CL29: 0 | CM29: 0 | CN29: 0 | CO29: 0 | CP29: 0 | CQ29: =AVERAGE(AW29,BT29) -> 0 | CR29: =SUM(D29:Y29) -> 0
A30: Levetidsforlængelse | B30: år | C30: - | D30: 0 | E30: 0 | F30: 0 | G30: 0 | H30: 0 | I30: 0 | J30: 0 | K30: 0 | L30: 0 | M30: 0 | N30: 0 | O30: 0 | P30: 0 | Q30: 0 | R30: 0 | S30: 0 | T30: 0 | U30: 0 | V30: 0 | W30: 0 | X30: 0 | Y30: 0
A31: Boring (inkl. etablering, forerør, filter og prøvepumpning) - 14 | B31: dybdemeter | C31: =Genanskaffelsespriser!$E$5 -> 30 | D31: 0 | E31: 0 | F31: 0 | G31: 0 | H31: 0 | I31: 0 | J31: 0 | K31: 0 | L31: 0 | M31: 0 | N31: 0 | O31: 0 | P31: 0 | Q31: 0 | R31: 0 | S31: 0 | T31: 0 | U31: 0 | V31: 0 | W31: 0 | X31: 0 | Y31: 0 | AA31: =IF((D31*Genanskaffelsespriser!$D$5-(2009-D$3)/($C31+D32)*Genanskaffelsespriser!$D$5*D31)<0,0,(D31*Genanskaffelsespriser!$D$5-(2009-D$3)/($C31+D32)*Genanskaffelsespriser!$D$5*D31)) -> 0 | AB31: =IF((E31*Genanskaffelsespriser!$D$5-(2009-E$3)/($C31+E32)*Genanskaffelsespriser!$D$5*E31)<0,0,(E31*Genanskaffelsespriser!$D$5-(2009-E$3)/($C31+E32)*Genanskaffelsespriser!$D$5*E31)) -> 0 | AC31: =IF((F31*Genanskaffelsespriser!$D$5-(2009-F$3)/($C31+F32)*Genanskaffelsespriser!$D$5*F31)<0,0,(F31*Genanskaffelsespriser!$D$5-(2009-F$3)/($C31+F32)*Genanskaffelsespriser!$D$5*F31)) -> 0 | AD31: =IF((G31*Genanskaffelsespriser!$D$5-(2009-G$3)/($C31+G32)*Genanskaffelsespriser!$D$5*G31)<0,0,(G31*Genanskaffelsespriser!$D$5-(2009-G$3)/($C31+G32)*Genanskaffelsespriser!$D$5*G31)) -> 0 | AE31: =IF((H31*Genanskaffelsespriser!$D$5-(2009-H$3)/($C31+H32)*Genanskaffelsespriser!$D$5*H31)<0,0,(H31*Genanskaffelsespriser!$D$5-(2009-H$3)/($C31+H32)*Genanskaffelsespriser!$D$5*H31)) -> 0 | AF31: =IF((I31*Genanskaffelsespriser!$D$5-(2009-I$3)/($C31+I32)*Genanskaffelsespriser!$D$5*I31)<0,0,(I31*Genanskaffelsespriser!$D$5-(2009-I$3)/($C31+I32)*Genanskaffelsespriser!$D$5*I31)) -> 0 | AG31: =IF((J31*Genanskaffelsespriser!$D$5-(2009-J$3)/($C31+J32)*Genanskaffelsespriser!$D$5*J31)<0,0,(J31*Genanskaffelsespriser!$D$5-(2009-J$3)/($C31+J32)*Genanskaffelsespriser!$D$5*J31)) -> 0 | AH31: =IF((K31*Genanskaffelsespriser!$D$5-(2009-K$3)/($C31+K32)*Genanskaffelsespriser!$D$5*K31)<0,0,(K31*Genanskaffelsespriser!$D$5-(2009-K$3)/($C31+K32)*Genanskaffelsespriser!$D$5*K31)) -> 0 | AI31: =IF((L31*Genanskaffelsespriser!$D$5-(2009-L$3)/($C31+L32)*Genanskaffelsespriser!$D$5*L31)<0,0,(L31*Genanskaffelsespriser!$D$5-(2009-L$3)/($C31+L32)*Genanskaffelsespriser!$D$5*L31)) -> 0 | AJ31: =IF((M31*Genanskaffelsespriser!$D$5-(2009-M$3)/($C31+M32)*Genanskaffelsespriser!$D$5*M31)<0,0,(M31*Genanskaffelsespriser!$D$5-(2009-M$3)/($C31+M32)*Genanskaffelsespriser!$D$5*M31)) -> 0 | AK31: =IF((N31*Genanskaffelsespriser!$D$5-(2009-N$3)/($C31+N32)*Genanskaffelsespriser!$D$5*N31)<0,0,(N31*Genanskaffelsespriser!$D$5-(2009-N$3)/($C31+N32)*Genanskaffelsespriser!$D$5*N31)) -> 0 | AL31: =IF((O31*Genanskaffelsespriser!$D$5-(2009-O$3)/($C31+O32)*Genanskaffelsespriser!$D$5*O31)<0,0,(O31*Genanskaffelsespriser!$D$5-(2009-O$3)/($C31+O32)*Genanskaffelsespriser!$D$5*O31)) -> 0 | AM31: =IF((P31*Genanskaffelsespriser!$D$5-(2009-P$3)/($C31+P32)*Genanskaffelsespriser!$D$5*P31)<0,0,(P31*Genanskaffelsespriser!$D$5-(2009-P$3)/($C31+P32)*Genanskaffelsespriser!$D$5*P31)) -> 0 | AN31: =IF((Q31*Genanskaffelsespriser!$D$5-(2009-Q$3)/($C31+Q32)*Genanskaffelsespriser!$D$5*Q31)<0,0,(Q31*Genanskaffelsespriser!$D$5-(2009-Q$3)/($C31+Q32)*Genanskaffelsespriser!$D$5*Q31)) -> 0 | AO31: =IF((R31*Genanskaffelsespriser!$D$5-(2009-R$3)/($C31+R32)*Genanskaffelsespriser!$D$5*R31)<0,0,(R31*Genanskaffelsespriser!$D$5-(2009-R$3)/($C31+R32)*Genanskaffelsespriser!$D$5*R31)) -> 0 | AP31: =IF((S31*Genanskaffelsespriser!$D$5-(2009-S$3)/($C31+S32)*Genanskaffelsespriser!$D$5*S31)<0,0,(S31*Genanskaffelsespriser!$D$5-(2009-S$3)/($C31+S32)*Genanskaffelsespriser!$D$5*S31)) -> 0 | AQ31: =IF((T31*Genanskaffelsespriser!$D$5-(2009-T$3)/($C31+T32)*Genanskaffelsespriser!$D$5*T31)<0,0,(T31*Genanskaffelsespriser!$D$5-(2009-T$3)/($C31+T32)*Genanskaffelsespriser!$D$5*T31)) -> 0 | AR31: =IF((U31*Genanskaffelsespriser!$D$5-(2009-U$3)/($C31+U32)*Genanskaffelsespriser!$D$5*U31)<0,0,(U31*Genanskaffelsespriser!$D$5-(2009-U$3)/($C31+U32)*Genanskaffelsespriser!$D$5*U31)) -> 0 | AS31: =IF((V31*Genanskaffelsespriser!$D$5-(2009-V$3)/($C31+V32)*Genanskaffelsespriser!$D$5*V31)<0,0,(V31*Genanskaffelsespriser!$D$5-(2009-V$3)/($C31+V32)*Genanskaffelsespriser!$D$5*V31)) -> 0 | AT31: =IF((W31*Genanskaffelsespriser!$D$5-(2009-W$3)/($C31+W32)*Genanskaffelsespriser!$D$5*W31)<0,0,(W31*Genanskaffelsespriser!$D$5-(2009-W$3)/($C31+W32)*Genanskaffelsespriser!$D$5*W31)) -> 0 | AU31: =IF((X31*Genanskaffelsespriser!$D$5-(2009-X$3)/($C31+X32)*Genanskaffelsespriser!$D$5*X31)<0,0,(X31*Genanskaffelsespriser!$D$5-(2009-X$3)/($C31+X32)*Genanskaffelsespriser!$D$5*X31)) -> 0 | AV31: =IF((Y31*Genanskaffelsespriser!$D$5-(2009-Y$3)/($C31+Y32)*Genanskaffelsespriser!$D$5*Y31)<0,0,(Y31*Genanskaffelsespriser!$D$5-(2009-Y$3)/($C31+Y32)*Genanskaffelsespriser!$D$5*Y31)) -> 0 | AW31: =+SUM(AA31:AV31) -> 0 | AX31: =VLOOKUP(D$3,Prisindeks!$A$1:$B$111,2,FALSE)/100*AA31 -> 0 | AY31: =VLOOKUP(E$3,Prisindeks!$A$1:$B$111,2,FALSE)/100*AB31 -> 0 | AZ31: =VLOOKUP(F$3,Prisindeks!$A$1:$B$111,2,FALSE)/100*AC31 -> 0 | BA31: =VLOOKUP(G$3,Prisindeks!$A$1:$B$111,2,FALSE)/100*AD31 -> 0 | BB31: =VLOOKUP(H$3,Prisindeks!$A$1:$B$111,2,FALSE)/100*AE31 -> 0 | BC31: =VLOOKUP(I$3,Prisindeks!$A$1:$B$111,2,FALSE)/100*AF31 -> 0 | BD31: =VLOOKUP(J$3,Prisindeks!$A$1:$B$111,2,FALSE)/100*AG31 -> 0 | BE31: =VLOOKUP(K$3,Prisindeks!$A$1:$B$111,2,FALSE)/100*AH31 -> 0 | BF31: =VLOOKUP(L$3,Prisindeks!$A$1:$B$111,2,FALSE)/100*AI31 -> 0 | BG31: =VLOOKUP(M$3,Prisindeks!$A$1:$B$111,2,FALSE)/100*AJ31 -> 0 | BH31: =VLOOKUP(N$3,Prisindeks!$A$1:$B$111,2,FALSE)/100*AK31 -> 0 | BI31: =VLOOKUP(O$3,Prisindeks!$A$1:$B$111,2,FALSE)/100*AL31 -> 0 | BJ31: =VLOOKUP(P$3,Prisindeks!$A$1:$B$111,2,FALSE)/100*AM31 -> 0 | BK31: =VLOOKUP(Q$3,Prisindeks!$A$1:$B$111,2,FALSE)/100*AN31 -> 0 | BL31: =VLOOKUP(R$3,Prisindeks!$A$1:$B$111,2,FALSE)/100*AO31 -> 0 | BM31: =VLOOKUP(S$3,Prisindeks!$A$1:$B$111,2,FALSE)/100*AP31 -> 0 | BN31: =VLOOKUP(T$3,Prisindeks!$A$1:$B$111,2,FALSE)/100*AQ31 -> 0 | BO31: =VLOOKUP(U$3,Prisindeks!$A$1:$B$111,2,FALSE)/100*AR31 -> 0 | BP31: =VLOOKUP(V$3,Prisindeks!$A$1:$B$111,2,FALSE)/100*AS31 -> 0 | BQ31: =VLOOKUP(W$3,Prisindeks!$A$1:$B$111,2,FALSE)/100*AT31 -> 0 | BR31: =VLOOKUP(X$3,Prisindeks!$A$1:$B$111,2,FALSE)/100*AU31 -> 0 | BS31: =VLOOKUP(Y$3,Prisindeks!$A$1:$B$111,2,FALSE)/100*AV31 -> 0 | BT31: =+SUM(AX31:BS31) -> 0 | BU31: =(AA31+AX31)/2 -> 0 | BV31: 0 | BW31: 0 | BX31: 0 | BY31: 0 | BZ31: 0 | CA31: 0 | CB31: 0 | CC31: 0 | CD31: 0 | CE31: 0 | CF31: 0 | CG31: 0 | CH31: 0 | CI31: 0 | CJ31: 0 | CK31: 0 | CL31: 0 | CM31: 0 | CN31: 0 | CO31: 0 | CP31: 0 | CQ31: =AVERAGE(AW31,BT31) -> 0 | CR31: =SUM(D31:Y31) -> 0
A32: Levetidsforlængelse | B32: år | C32: - | D32: 0 | E32: 0 | F32: 0 | G32: 0 | H32: 0 | I32: 0 | J32: 0 | K32: 0 | L32: 0 | M32: 0 | N32: 0 | O32: 0 | P32: 0 | Q32: 0 | R32: 0 | S32: 0 | T32: 0 | U32: 0 | V32: 0 | W32: 0 | X32: 0 | Y32: 0
A33: Boring (inkl. etablering, forerør, filter og prøvepumpning) - 15 | B33: dybdemeter | C33: =Genanskaffelsespriser!$E$5 -> 30 | D33: 0 | E33: 0 | F33: 0 | G33: 0 | H33: 0 | I33: 0 | J33: 0 | K33: 0 | L33: 0 | M33: 0 | N33: 0 | O33: 0 | P33: 0 | Q33: 0 | R33: 0 | S33: 0 | T33: 0 | U33: 0 | V33: 0 | W33: 0 | X33: 0 | Y33: 0 | AA33: =IF((D33*Genanskaffelsespriser!$D$5-(2009-D$3)/($C33+D34)*Genanskaffelsespriser!$D$5*D33)<0,0,(D33*Genanskaffelsespriser!$D$5-(2009-D$3)/($C33+D34)*Genanskaffelsespriser!$D$5*D33)) -> 0 | AB33: =IF((E33*Genanskaffelsespriser!$D$5-(2009-E$3)/($C33+E34)*Genanskaffelsespriser!$D$5*E33)<0,0,(E33*Genanskaffelsespriser!$D$5-(2009-E$3)/($C33+E34)*Genanskaffelsespriser!$D$5*E33)) -> 0 | AC33: =IF((F33*Genanskaffelsespriser!$D$5-(2009-F$3)/($C33+F34)*Genanskaffelsespriser!$D$5*F33)<0,0,(F33*Genanskaffelsespriser!$D$5-(2009-F$3)/($C33+F34)*Genanskaffelsespriser!$D$5*F33)) -> 0 | AD33: =IF((G33*Genanskaffelsespriser!$D$5-(2009-G$3)/($C33+G34)*Genanskaffelsespriser!$D$5*G33)<0,0,(G33*Genanskaffelsespriser!$D$5-(2009-G$3)/($C33+G34)*Genanskaffelsespriser!$D$5*G33)) -> 0 | AE33: =IF((H33*Genanskaffelsespriser!$D$5-(2009-H$3)/($C33+H34)*Genanskaffelsespriser!$D$5*H33)<0,0,(H33*Genanskaffelsespriser!$D$5-(2009-H$3)/($C33+H34)*Genanskaffelsespriser!$D$5*H33)) -> 0 | AF33: =IF((I33*Genanskaffelsespriser!$D$5-(2009-I$3)/($C33+I34)*Genanskaffelsespriser!$D$5*I33)<0,0,(I33*Genanskaffelsespriser!$D$5-(2009-I$3)/($C33+I34)*Genanskaffelsespriser!$D$5*I33)) -> 0 | AG33: =IF((J33*Genanskaffelsespriser!$D$5-(2009-J$3)/($C33+J34)*Genanskaffelsespriser!$D$5*J33)<0,0,(J33*Genanskaffelsespriser!$D$5-(2009-J$3)/($C33+J34)*Genanskaffelsespriser!$D$5*J33)) -> 0 | AH33: =IF((K33*Genanskaffelsespriser!$D$5-(2009-K$3)/($C33+K34)*Genanskaffelsespriser!$D$5*K33)<0,0,(K33*Genanskaffelsespriser!$D$5-(2009-K$3)/($C33+K34)*Genanskaffelsespriser!$D$5*K33)) -> 0 | AI33: =IF((L33*Genanskaffelsespriser!$D$5-(2009-L$3)/($C33+L34)*Genanskaffelsespriser!$D$5*L33)<0,0,(L33*Genanskaffelsespriser!$D$5-(2009-L$3)/($C33+L34)*Genanskaffelsespriser!$D$5*L33)) -> 0 | AJ33: =IF((M33*Genanskaffelsespriser!$D$5-(2009-M$3)/($C33+M34)*Genanskaffelsespriser!$D$5*M33)<0,0,(M33*Genanskaffelsespriser!$D$5-(2009-M$3)/($C33+M34)*Genanskaffelsespriser!$D$5*M33)) -> 0 | AK33: =IF((N33*Genanskaffelsespriser!$D$5-(2009-N$3)/($C33+N34)*Genanskaffelsespriser!$D$5*N33)<0,0,(N33*Genanskaffelsespriser!$D$5-(2009-N$3)/($C33+N34)*Genanskaffelsespriser!$D$5*N33)) -> 0 | AL33: =IF((O33*Genanskaffelsespriser!$D$5-(2009-O$3)/($C33+O34)*Genanskaffelsespriser!$D$5*O33)<0,0,(O33*Genanskaffelsespriser!$D$5-(2009-O$3)/($C33+O34)*Genanskaffelsespriser!$D$5*O33)) -> 0 | AM33: =IF((P33*Genanskaffelsespriser!$D$5-(2009-P$3)/($C33+P34)*Genanskaffelsespriser!$D$5*P33)<0,0,(P33*Genanskaffelsespriser!$D$5-(2009-P$3)/($C33+P34)*Genanskaffelsespriser!$D$5*P33)) -> 0 | AN33: =IF((Q33*Genanskaffelsespriser!$D$5-(2009-Q$3)/($C33+Q34)*Genanskaffelsespriser!$D$5*Q33)<0,0,(Q33*Genanskaffelsespriser!$D$5-(2009-Q$3)/($C33+Q34)*Genanskaffelsespriser!$D$5*Q33)) -> 0 | AO33: =IF((R33*Genanskaffelsespriser!$D$5-(2009-R$3)/($C33+R34)*Genanskaffelsespriser!$D$5*R33)<0,0,(R33*Genanskaffelsespriser!$D$5-(2009-R$3)/($C33+R34)*Genanskaffelsespriser!$D$5*R33)) -> 0 | AP33: =IF((S33*Genanskaffelsespriser!$D$5-(2009-S$3)/($C33+S34)*Genanskaffelsespriser!$D$5*S33)<0,0,(S33*Genanskaffelsespriser!$D$5-(2009-S$3)/($C33+S34)*Genanskaffelsespriser!$D$5*S33)) -> 0 | AQ33: =IF((T33*Genanskaffelsespriser!$D$5-(2009-T$3)/($C33+T34)*Genanskaffelsespriser!$D$5*T33)<0,0,(T33*Genanskaffelsespriser!$D$5-(2009-T$3)/($C33+T34)*Genanskaffelsespriser!$D$5*T33)) -> 0 | AR33: =IF((U33*Genanskaffelsespriser!$D$5-(2009-U$3)/($C33+U34)*Genanskaffelsespriser!$D$5*U33)<0,0,(U33*Genanskaffelsespriser!$D$5-(2009-U$3)/($C33+U34)*Genanskaffelsespriser!$D$5*U33)) -> 0 | AS33: =IF((V33*Genanskaffelsespriser!$D$5-(2009-V$3)/($C33+V34)*Genanskaffelsespriser!$D$5*V33)<0,0,(V33*Genanskaffelsespriser!$D$5-(2009-V$3)/($C33+V34)*Genanskaffelsespriser!$D$5*V33)) -> 0 | AT33: =IF((W33*Genanskaffelsespriser!$D$5-(2009-W$3)/($C33+W34)*Genanskaffelsespriser!$D$5*W33)<0,0,(W33*Genanskaffelsespriser!$D$5-(2009-W$3)/($C33+W34)*Genanskaffelsespriser!$D$5*W33)) -> 0 | AU33: =IF((X33*Genanskaffelsespriser!$D$5-(2009-X$3)/($C33+X34)*Genanskaffelsespriser!$D$5*X33)<0,0,(X33*Genanskaffelsespriser!$D$5-(2009-X$3)/($C33+X34)*Genanskaffelsespriser!$D$5*X33)) -> 0 | AV33: =IF((Y33*Genanskaffelsespriser!$D$5-(2009-Y$3)/($C33+Y34)*Genanskaffelsespriser!$D$5*Y33)<0,0,(Y33*Genanskaffelsespriser!$D$5-(2009-Y$3)/($C33+Y34)*Genanskaffelsespriser!$D$5*Y33)) -> 0 | AW33: =+SUM(AA33:AV33) -> 0 | AX33: =VLOOKUP(D$3,Prisindeks!$A$1:$B$111,2,FALSE)/100*AA33 -> 0 | AY33: =VLOOKUP(E$3,Prisindeks!$A$1:$B$111,2,FALSE)/100*AB33 -> 0 | AZ33: =VLOOKUP(F$3,Prisindeks!$A$1:$B$111,2,FALSE)/100*AC33 -> 0 | BA33: =VLOOKUP(G$3,Prisindeks!$A$1:$B$111,2,FALSE)/100*AD33 -> 0 | BB33: =VLOOKUP(H$3,Prisindeks!$A$1:$B$111,2,FALSE)/100*AE33 -> 0 | BC33: =VLOOKUP(I$3,Prisindeks!$A$1:$B$111,2,FALSE)/100*AF33 -> 0 | BD33: =VLOOKUP(J$3,Prisindeks!$A$1:$B$111,2,FALSE)/100*AG33 -> 0 | BE33: =VLOOKUP(K$3,Prisindeks!$A$1:$B$111,2,FALSE)/100*AH33 -> 0 | BF33: =VLOOKUP(L$3,Prisindeks!$A$1:$B$111,2,FALSE)/100*AI33 -> 0 | BG33: =VLOOKUP(M$3,Prisindeks!$A$1:$B$111,2,FALSE)/100*AJ33 -> 0 | BH33: =VLOOKUP(N$3,Prisindeks!$A$1:$B$111,2,FALSE)/100*AK33 -> 0 | BI33: =VLOOKUP(O$3,Prisindeks!$A$1:$B$111,2,FALSE)/100*AL33 -> 0 | BJ33: =VLOOKUP(P$3,Prisindeks!$A$1:$B$111,2,FALSE)/100*AM33 -> 0 | BK33: =VLOOKUP(Q$3,Prisindeks!$A$1:$B$111,2,FALSE)/100*AN33 -> 0 | BL33: =VLOOKUP(R$3,Prisindeks!$A$1:$B$111,2,FALSE)/100*AO33 -> 0 | BM33: =VLOOKUP(S$3,Prisindeks!$A$1:$B$111,2,FALSE)/100*AP33 -> 0 | BN33: =VLOOKUP(T$3,Prisindeks!$A$1:$B$111,2,FALSE)/100*AQ33 -> 0 | BO33: =VLOOKUP(U$3,Prisindeks!$A$1:$B$111,2,FALSE)/100*AR33 -> 0 | BP33: =VLOOKUP(V$3,Prisindeks!$A$1:$B$111,2,FALSE)/100*AS33 -> 0 | BQ33: =VLOOKUP(W$3,Prisindeks!$A$1:$B$111,2,FALSE)/100*AT33 -> 0 | BR33: =VLOOKUP(X$3,Prisindeks!$A$1:$B$111,2,FALSE)/100*AU33 -> 0 | BS33: =VLOOKUP(Y$3,Prisindeks!$A$1:$B$111,2,FALSE)/100*AV33 -> 0 | BT33: =+SUM(AX33:BS33) -> 0 | BU33: =(AA33+AX33)/2 -> 0 | BV33: 0 | BW33: 0 | BX33: 0 | BY33: 0 | BZ33: 0 | CA33: 0 | CB33: 0 | CC33: 0 | CD33: 0 | CE33: 0 | CF33: 0 | CG33: 0 | CH33: 0 | CI33: 0 | CJ33: 0 | CK33: 0 | CL33: 0 | CM33: 0 | CN33: 0 | CO33: 0 | CP33: 0 | CQ33: =AVERAGE(AW33,BT33) -> 0 | CR33: =SUM(D33:Y33) -> 0
A34: Levetidsforlængelse | B34: år | C34: - | D34: 0 | E34: 0 | F34: 0 | G34: 0 | H34: 0 | I34: 0 | J34: 0 | K34: 0 | L34: 0 | M34: 0 | N34: 0 | O34: 0 | P34: 0 | Q34: 0 | R34: 0 | S34: 0 | T34: 0 | U34: 0 | V34: 0 | W34: 0 | X34: 0 | Y34: 0
A35: Boring (inkl. etablering, forerør, filter og prøvepumpning) - 16 | B35: dybdemeter | C35: =Genanskaffelsespriser!$E$5 -> 30 | D35: 0 | E35: 0 | F35: 0 | G35: 0 | H35: 0 | I35: 0 | J35: 0 | K35: 0 | L35: 0 | M35: 0 | N35: 0 | O35: 0 | P35: 0 | Q35: 0 | R35: 0 | S35: 0 | T35: 0 | U35: 0 | V35: 0 | W35: 0 | X35: 0 | Y35: 0 | AA35: =IF((D35*Genanskaffelsespriser!$D$5-(2009-D$3)/($C35+D36)*Genanskaffelsespriser!$D$5*D35)<0,0,(D35*Genanskaffelsespriser!$D$5-(2009-D$3)/($C35+D36)*Genanskaffelsespriser!$D$5*D35)) -> 0 | AB35: =IF((E35*Genanskaffelsespriser!$D$5-(2009-E$3)/($C35+E36)*Genanskaffelsespriser!$D$5*E35)<0,0,(E35*Genanskaffelsespriser!$D$5-(2009-E$3)/($C35+E36)*Genanskaffelsespriser!$D$5*E35)) -> 0 | AC35: =IF((F35*Genanskaffelsespriser!$D$5-(2009-F$3)/($C35+F36)*Genanskaffelsespriser!$D$5*F35)<0,0,(F35*Genanskaffelsespriser!$D$5-(2009-F$3)/($C35+F36)*Genanskaffelsespriser!$D$5*F35)) -> 0 | AD35: =IF((G35*Genanskaffelsespriser!$D$5-(2009-G$3)/($C35+G36)*Genanskaffelsespriser!$D$5*G35)<0,0,(G35*Genanskaffelsespriser!$D$5-(2009-G$3)/($C35+G36)*Genanskaffelsespriser!$D$5*G35)) -> 0 | AE35: =IF((H35*Genanskaffelsespriser!$D$5-(2009-H$3)/($C35+H36)*Genanskaffelsespriser!$D$5*H35)<0,0,(H35*Genanskaffelsespriser!$D$5-(2009-H$3)/($C35+H36)*Genanskaffelsespriser!$D$5*H35)) -> 0 | AF35: =IF((I35*Genanskaffelsespriser!$D$5-(2009-I$3)/($C35+I36)*Genanskaffelsespriser!$D$5*I35)<0,0,(I35*Genanskaffelsespriser!$D$5-(2009-I$3)/($C35+I36)*Genanskaffelsespriser!$D$5*I35)) -> 0 | AG35: =IF((J35*Genanskaffelsespriser!$D$5-(2009-J$3)/($C35+J36)*Genanskaffelsespriser!$D$5*J35)<0,0,(J35*Genanskaffelsespriser!$D$5-(2009-J$3)/($C35+J36)*Genanskaffelsespriser!$D$5*J35)) -> 0 | AH35: =IF((K35*Genanskaffelsespriser!$D$5-(2009-K$3)/($C35+K36)*Genanskaffelsespriser!$D$5*K35)<0,0,(K35*Genanskaffelsespriser!$D$5-(2009-K$3)/($C35+K36)*Genanskaffelsespriser!$D$5*K35)) -> 0 | AI35: =IF((L35*Genanskaffelsespriser!$D$5-(2009-L$3)/($C35+L36)*Genanskaffelsespriser!$D$5*L35)<0,0,(L35*Genanskaffelsespriser!$D$5-(2009-L$3)/($C35+L36)*Genanskaffelsespriser!$D$5*L35)) -> 0 | AJ35: =IF((M35*Genanskaffelsespriser!$D$5-(2009-M$3)/($C35+M36)*Genanskaffelsespriser!$D$5*M35)<0,0,(M35*Genanskaffelsespriser!$D$5-(2009-M$3)/($C35+M36)*Genanskaffelsespriser!$D$5*M35)) -> 0 | AK35: =IF((N35*Genanskaffelsespriser!$D$5-(2009-N$3)/($C35+N36)*Genanskaffelsespriser!$D$5*N35)<0,0,(N35*Genanskaffelsespriser!$D$5-(2009-N$3)/($C35+N36)*Genanskaffelsespriser!$D$5*N35)) -> 0 | AL35: =IF((O35*Genanskaffelsespriser!$D$5-(2009-O$3)/($C35+O36)*Genanskaffelsespriser!$D$5*O35)<0,0,(O35*Genanskaffelsespriser!$D$5-(2009-O$3)/($C35+O36)*Genanskaffelsespriser!$D$5*O35)) -> 0 | AM35: =IF((P35*Genanskaffelsespriser!$D$5-(2009-P$3)/($C35+P36)*Genanskaffelsespriser!$D$5*P35)<0,0,(P35*Genanskaffelsespriser!$D$5-(2009-P$3)/($C35+P36)*Genanskaffelsespriser!$D$5*P35)) -> 0 | AN35: =IF((Q35*Genanskaffelsespriser!$D$5-(2009-Q$3)/($C35+Q36)*Genanskaffelsespriser!$D$5*Q35)<0,0,(Q35*Genanskaffelsespriser!$D$5-(2009-Q$3)/($C35+Q36)*Genanskaffelsespriser!$D$5*Q35)) -> 0 | AO35: =IF((R35*Genanskaffelsespriser!$D$5-(2009-R$3)/($C35+R36)*Genanskaffelsespriser!$D$5*R35)<0,0,(R35*Genanskaffelsespriser!$D$5-(2009-R$3)/($C35+R36)*Genanskaffelsespriser!$D$5*R35)) -> 0 | AP35: =IF((S35*Genanskaffelsespriser!$D$5-(2009-S$3)/($C35+S36)*Genanskaffelsespriser!$D$5*S35)<0,0,(S35*Genanskaffelsespriser!$D$5-(2009-S$3)/($C35+S36)*Genanskaffelsespriser!$D$5*S35)) -> 0 | AQ35: =IF((T35*Genanskaffelsespriser!$D$5-(2009-T$3)/($C35+T36)*Genanskaffelsespriser!$D$5*T35)<0,0,(T35*Genanskaffelsespriser!$D$5-(2009-T$3)/($C35+T36)*Genanskaffelsespriser!$D$5*T35)) -> 0 | AR35: =IF((U35*Genanskaffelsespriser!$D$5-(2009-U$3)/($C35+U36)*Genanskaffelsespriser!$D$5*U35)<0,0,(U35*Genanskaffelsespriser!$D$5-(2009-U$3)/($C35+U36)*Genanskaffelsespriser!$D$5*U35)) -> 0 | AS35: =IF((V35*Genanskaffelsespriser!$D$5-(2009-V$3)/($C35+V36)*Genanskaffelsespriser!$D$5*V35)<0,0,(V35*Genanskaffelsespriser!$D$5-(2009-V$3)/($C35+V36)*Genanskaffelsespriser!$D$5*V35)) -> 0 | AT35: =IF((W35*Genanskaffelsespriser!$D$5-(2009-W$3)/($C35+W36)*Genanskaffelsespriser!$D$5*W35)<0,0,(W35*Genanskaffelsespriser!$D$5-(2009-W$3)/($C35+W36)*Genanskaffelsespriser!$D$5*W35)) -> 0 | AU35: =IF((X35*Genanskaffelsespriser!$D$5-(2009-X$3)/($C35+X36)*Genanskaffelsespriser!$D$5*X35)<0,0,(X35*Genanskaffelsespriser!$D$5-(2009-X$3)/($C35+X36)*Genanskaffelsespriser!$D$5*X35)) -> 0 | AV35: =IF((Y35*Genanskaffelsespriser!$D$5-(2009-Y$3)/($C35+Y36)*Genanskaffelsespriser!$D$5*Y35)<0,0,(Y35*Genanskaffelsespriser!$D$5-(2009-Y$3)/($C35+Y36)*Genanskaffelsespriser!$D$5*Y35)) -> 0 | AW35: =+SUM(AA35:AV35) -> 0 | AX35: =VLOOKUP(D$3,Prisindeks!$A$1:$B$111,2,FALSE)/100*AA35 -> 0 | AY35: =VLOOKUP(E$3,Prisindeks!$A$1:$B$111,2,FALSE)/100*AB35 -> 0 | AZ35: =VLOOKUP(F$3,Prisindeks!$A$1:$B$111,2,FALSE)/100*AC35 -> 0 | BA35: =VLOOKUP(G$3,Prisindeks!$A$1:$B$111,2,FALSE)/100*AD35 -> 0 | BB35: =VLOOKUP(H$3,Prisindeks!$A$1:$B$111,2,FALSE)/100*AE35 -> 0 | BC35: =VLOOKUP(I$3,Prisindeks!$A$1:$B$111,2,FALSE)/100*AF35 -> 0 | BD35: =VLOOKUP(J$3,Prisindeks!$A$1:$B$111,2,FALSE)/100*AG35 -> 0 | BE35: =VLOOKUP(K$3,Prisindeks!$A$1:$B$111,2,FALSE)/100*AH35 -> 0 | BF35: =VLOOKUP(L$3,Prisindeks!$A$1:$B$111,2,FALSE)/100*AI35 -> 0 | BG35: =VLOOKUP(M$3,Prisindeks!$A$1:$B$111,2,FALSE)/100*AJ35 -> 0 | BH35: =VLOOKUP(N$3,Prisindeks!$A$1:$B$111,2,FALSE)/100*AK35 -> 0 | BI35: =VLOOKUP(O$3,Prisindeks!$A$1:$B$111,2,FALSE)/100*AL35 -> 0 | BJ35: =VLOOKUP(P$3,Prisindeks!$A$1:$B$111,2,FALSE)/100*AM35 -> 0 | BK35: =VLOOKUP(Q$3,Prisindeks!$A$1:$B$111,2,FALSE)/100*AN35 -> 0 | BL35: =VLOOKUP(R$3,Prisindeks!$A$1:$B$111,2,FALSE)/100*AO35 -> 0 | BM35: =VLOOKUP(S$3,Prisindeks!$A$1:$B$111,2,FALSE)/100*AP35 -> 0 | BN35: =VLOOKUP(T$3,Prisindeks!$A$1:$B$111,2,FALSE)/100*AQ35 -> 0 | BO35: =VLOOKUP(U$3,Prisindeks!$A$1:$B$111,2,FALSE)/100*AR35 -> 0 | BP35: =VLOOKUP(V$3,Prisindeks!$A$1:$B$111,2,FALSE)/100*AS35 -> 0 | BQ35: =VLOOKUP(W$3,Prisindeks!$A$1:$B$111,2,FALSE)/100*AT35 -> 0 | BR35: =VLOOKUP(X$3,Prisindeks!$A$1:$B$111,2,FALSE)/100*AU35 -> 0 | BS35: =VLOOKUP(Y$3,Prisindeks!$A$1:$B$111,2,FALSE)/100*AV35 -> 0 | BT35: =+SUM(AX35:BS35) -> 0 | BU35: =(AA35+AX35)/2 -> 0 | BV35: 0 | BW35: 0 | BX35: 0 | BY35: 0 | BZ35: 0 | CA35: 0 | CB35: 0 | CC35: 0 | CD35: 0 | CE35: 0 | CF35: 0 | CG35: 0 | CH35: 0 | CI35: 0 | CJ35: 0 | CK35: 0 | CL35: 0 | CM35: 0 | CN35: 0 | CO35: 0 | CP35: 0 | CQ35: =AVERAGE(AW35,BT35) -> 0 | CR35: =SUM(D35:Y35) -> 0
A36: Levetidsforlængelse | B36: år | C36: - | D36: 0 | E36: 0 | F36: 0 | G36: 0 | H36: 0 | I36: 0 | J36: 0 | K36: 0 | L36: 0 | M36: 0 | N36: 0 | O36: 0 | P36: 0 | Q36: 0 | R36: 0 | S36: 0 | T36: 0 | U36: 0 | V36: 0 | W36: 0 | X36: 0 | Y36: 0
A37: Boring (inkl. etablering, forerør, filter og prøvepumpning) - 17 | B37: dybdemeter | C37: =Genanskaffelsespriser!$E$5 -> 30 | D37: 0 | E37: 0 | F37: 0 | G37: 0 | H37: 0 | I37: 0 | J37: 0 | K37: 0 | L37: 0 | M37: 0 | N37: 0 | O37: 0 | P37: 0 | Q37: 0 | R37: 0 | S37: 0 | T37: 0 | U37: 0 | V37: 0 | W37: 0 | X37: 0 | Y37: 0 | AA37: =IF((D37*Genanskaffelsespriser!$D$5-(2009-D$3)/($C37+D38)*Genanskaffelsespriser!$D$5*D37)<0,0,(D37*Genanskaffelsespriser!$D$5-(2009-D$3)/($C37+D38)*Genanskaffelsespriser!$D$5*D37)) -> 0 | AB37: =IF((E37*Genanskaffelsespriser!$D$5-(2009-E$3)/($C37+E38)*Genanskaffelsespriser!$D$5*E37)<0,0,(E37*Genanskaffelsespriser!$D$5-(2009-E$3)/($C37+E38)*Genanskaffelsespriser!$D$5*E37)) -> 0 | AC37: =IF((F37*Genanskaffelsespriser!$D$5-(2009-F$3)/($C37+F38)*Genanskaffelsespriser!$D$5*F37)<0,0,(F37*Genanskaffelsespriser!$D$5-(2009-F$3)/($C37+F38)*Genanskaffelsespriser!$D$5*F37)) -> 0 | AD37: =IF((G37*Genanskaffelsespriser!$D$5-(2009-G$3)/($C37+G38)*Genanskaffelsespriser!$D$5*G37)<0,0,(G37*Genanskaffelsespriser!$D$5-(2009-G$3)/($C37+G38)*Genanskaffelsespriser!$D$5*G37)) -> 0 | AE37: =IF((H37*Genanskaffelsespriser!$D$5-(2009-H$3)/($C37+H38)*Genanskaffelsespriser!$D$5*H37)<0,0,(H37*Genanskaffelsespriser!$D$5-(2009-H$3)/($C37+H38)*Genanskaffelsespriser!$D$5*H37)) -> 0 | AF37: =IF((I37*Genanskaffelsespriser!$D$5-(2009-I$3)/($C37+I38)*Genanskaffelsespriser!$D$5*I37)<0,0,(I37*Genanskaffelsespriser!$D$5-(2009-I$3)/($C37+I38)*Genanskaffelsespriser!$D$5*I37)) -> 0 | AG37: =IF((J37*Genanskaffelsespriser!$D$5-(2009-J$3)/($C37+J38)*Genanskaffelsespriser!$D$5*J37)<0,0,(J37*Genanskaffelsespriser!$D$5-(2009-J$3)/($C37+J38)*Genanskaffelsespriser!$D$5*J37)) -> 0 | AH37: =IF((K37*Genanskaffelsespriser!$D$5-(2009-K$3)/($C37+K38)*Genanskaffelsespriser!$D$5*K37)<0,0,(K37*Genanskaffelsespriser!$D$5-(2009-K$3)/($C37+K38)*Genanskaffelsespriser!$D$5*K37)) -> 0 | AI37: =IF((L37*Genanskaffelsespriser!$D$5-(2009-L$3)/($C37+L38)*Genanskaffelsespriser!$D$5*L37)<0,0,(L37*Genanskaffelsespriser!$D$5-(2009-L$3)/($C37+L38)*Genanskaffelsespriser!$D$5*L37)) -> 0 | AJ37: =IF((M37*Genanskaffelsespriser!$D$5-(2009-M$3)/($C37+M38)*Genanskaffelsespriser!$D$5*M37)<0,0,(M37*Genanskaffelsespriser!$D$5-(2009-M$3)/($C37+M38)*Genanskaffelsespriser!$D$5*M37)) -> 0 | AK37: =IF((N37*Genanskaffelsespriser!$D$5-(2009-N$3)/($C37+N38)*Genanskaffelsespriser!$D$5*N37)<0,0,(N37*Genanskaffelsespriser!$D$5-(2009-N$3)/($C37+N38)*Genanskaffelsespriser!$D$5*N37)) -> 0 | AL37: =IF((O37*Genanskaffelsespriser!$D$5-(2009-O$3)/($C37+O38)*Genanskaffelsespriser!$D$5*O37)<0,0,(O37*Genanskaffelsespriser!$D$5-(2009-O$3)/($C37+O38)*Genanskaffelsespriser!$D$5*O37)) -> 0 | AM37: =IF((P37*Genanskaffelsespriser!$D$5-(2009-P$3)/($C37+P38)*Genanskaffelsespriser!$D$5*P37)<0,0,(P37*Genanskaffelsespriser!$D$5-(2009-P$3)/($C37+P38)*Genanskaffelsespriser!$D$5*P37)) -> 0 | AN37: =IF((Q37*Genanskaffelsespriser!$D$5-(2009-Q$3)/($C37+Q38)*Genanskaffelsespriser!$D$5*Q37)<0,0,(Q37*Genanskaffelsespriser!$D$5-(2009-Q$3)/($C37+Q38)*Genanskaffelsespriser!$D$5*Q37)) -> 0 | AO37: =IF((R37*Genanskaffelsespriser!$D$5-(2009-R$3)/($C37+R38)*Genanskaffelsespriser!$D$5*R37)<0,0,(R37*Genanskaffelsespriser!$D$5-(2009-R$3)/($C37+R38)*Genanskaffelsespriser!$D$5*R37)) -> 0 | AP37: =IF((S37*Genanskaffelsespriser!$D$5-(2009-S$3)/($C37+S38)*Genanskaffelsespriser!$D$5*S37)<0,0,(S37*Genanskaffelsespriser!$D$5-(2009-S$3)/($C37+S38)*Genanskaffelsespriser!$D$5*S37)) -> 0 | AQ37: =IF((T37*Genanskaffelsespriser!$D$5-(2009-T$3)/($C37+T38)*Genanskaffelsespriser!$D$5*T37)<0,0,(T37*Genanskaffelsespriser!$D$5-(2009-T$3)/($C37+T38)*Genanskaffelsespriser!$D$5*T37)) -> 0 | AR37: =IF((U37*Genanskaffelsespriser!$D$5-(2009-U$3)/($C37+U38)*Genanskaffelsespriser!$D$5*U37)<0,0,(U37*Genanskaffelsespriser!$D$5-(2009-U$3)/($C37+U38)*Genanskaffelsespriser!$D$5*U37)) -> 0 | AS37: =IF((V37*Genanskaffelsespriser!$D$5-(2009-V$3)/($C37+V38)*Genanskaffelsespriser!$D$5*V37)<0,0,(V37*Genanskaffelsespriser!$D$5-(2009-V$3)/($C37+V38)*Genanskaffelsespriser!$D$5*V37)) -> 0 | AT37: =IF((W37*Genanskaffelsespriser!$D$5-(2009-W$3)/($C37+W38)*Genanskaffelsespriser!$D$5*W37)<0,0,(W37*Genanskaffelsespriser!$D$5-(2009-W$3)/($C37+W38)*Genanskaffelsespriser!$D$5*W37)) -> 0 | AU37: =IF((X37*Genanskaffelsespriser!$D$5-(2009-X$3)/($C37+X38)*Genanskaffelsespriser!$D$5*X37)<0,0,(X37*Genanskaffelsespriser!$D$5-(2009-X$3)/($C37+X38)*Genanskaffelsespriser!$D$5*X37)) -> 0 | AV37: =IF((Y37*Genanskaffelsespriser!$D$5-(2009-Y$3)/($C37+Y38)*Genanskaffelsespriser!$D$5*Y37)<0,0,(Y37*Genanskaffelsespriser!$D$5-(2009-Y$3)/($C37+Y38)*Genanskaffelsespriser!$D$5*Y37)) -> 0 | AW37: =+SUM(AA37:AV37) -> 0 | AX37: =VLOOKUP(D$3,Prisindeks!$A$1:$B$111,2,FALSE)/100*AA37 -> 0 | AY37: =VLOOKUP(E$3,Prisindeks!$A$1:$B$111,2,FALSE)/100*AB37 -> 0 | AZ37: =VLOOKUP(F$3,Prisindeks!$A$1:$B$111,2,FALSE)/100*AC37 -> 0 | BA37: =VLOOKUP(G$3,Prisindeks!$A$1:$B$111,2,FALSE)/100*AD37 -> 0 | BB37: =VLOOKUP(H$3,Prisindeks!$A$1:$B$111,2,FALSE)/100*AE37 -> 0 | BC37: =VLOOKUP(I$3,Prisindeks!$A$1:$B$111,2,FALSE)/100*AF37 -> 0 | BD37: =VLOOKUP(J$3,Prisindeks!$A$1:$B$111,2,FALSE)/100*AG37 -> 0 | BE37: =VLOOKUP(K$3,Prisindeks!$A$1:$B$111,2,FALSE)/100*AH37 -> 0 | BF37: =VLOOKUP(L$3,Prisindeks!$A$1:$B$111,2,FALSE)/100*AI37 -> 0 | BG37: =VLOOKUP(M$3,Prisindeks!$A$1:$B$111,2,FALSE)/100*AJ37 -> 0 | BH37: =VLOOKUP(N$3,Prisindeks!$A$1:$B$111,2,FALSE)/100*AK37 -> 0 | BI37: =VLOOKUP(O$3,Prisindeks!$A$1:$B$111,2,FALSE)/100*AL37 -> 0 | BJ37: =VLOOKUP(P$3,Prisindeks!$A$1:$B$111,2,FALSE)/100*AM37 -> 0 | BK37: =VLOOKUP(Q$3,Prisindeks!$A$1:$B$111,2,FALSE)/100*AN37 -> 0 | BL37: =VLOOKUP(R$3,Prisindeks!$A$1:$B$111,2,FALSE)/100*AO37 -> 0 | BM37: =VLOOKUP(S$3,Prisindeks!$A$1:$B$111,2,FALSE)/100*AP37 -> 0 | BN37: =VLOOKUP(T$3,Prisindeks!$A$1:$B$111,2,FALSE)/100*AQ37 -> 0 | BO37: =VLOOKUP(U$3,Prisindeks!$A$1:$B$111,2,FALSE)/100*AR37 -> 0 | BP37: =VLOOKUP(V$3,Prisindeks!$A$1:$B$111,2,FALSE)/100*AS37 -> 0 | BQ37: =VLOOKUP(W$3,Prisindeks!$A$1:$B$111,2,FALSE)/100*AT37 -> 0 | BR37: =VLOOKUP(X$3,Prisindeks!$A$1:$B$111,2,FALSE)/100*AU37 -> 0 | BS37: =VLOOKUP(Y$3,Prisindeks!$A$1:$B$111,2,FALSE)/100*AV37 -> 0 | BT37: =+SUM(AX37:BS37) -> 0 | BU37: =(AA37+AX37)/2 -> 0 | BV37: 0 | BW37: 0 | BX37: 0 | BY37: 0 | BZ37: 0 | CA37: 0 | CB37: 0 | CC37: 0 | CD37: 0 | CE37: 0 | CF37: 0 | CG37: 0 | CH37: 0 | CI37: 0 | CJ37: 0 | CK37: 0 | CL37: 0 | CM37: 0 | CN37: 0 | CO37: 0 | CP37: 0 | CQ37: =AVERAGE(AW37,BT37) -> 0 | CR37: =SUM(D37:Y37) -> 0
A38: Levetidsforlængelse | B38: år | C38: - | D38: 0 | E38: 0 | F38: 0 | G38: 0 | H38: 0 | I38: 0 | J38: 0 | K38: 0 | L38: 0 | M38: 0 | N38: 0 | O38: 0 | P38: 0 | Q38: 0 | R38: 0 | S38: 0 | T38: 0 | U38: 0 | V38: 0 | W38: 0 | X38: 0 | Y38: 0
A39: Boring (inkl. etablering, forerør, filter og prøvepumpning) - 18 | B39: dybdemeter | C39: =Genanskaffelsespriser!$E$5 -> 30 | D39: 0 | E39: 0 | F39: 0 | G39: 0 | H39: 0 | I39: 0 | J39: 0 | K39: 0 | L39: 0 | M39: 0 | N39: 0 | O39: 0 | P39: 0 | Q39: 0 | R39: 0 | S39: 0 | T39: 0 | U39: 0 | V39: 0 | W39: 0 | X39: 0 | Y39: 0 | AA39: =IF((D39*Genanskaffelsespriser!$D$5-(2009-D$3)/($C39+D40)*Genanskaffelsespriser!$D$5*D39)<0,0,(D39*Genanskaffelsespriser!$D$5-(2009-D$3)/($C39+D40)*Genanskaffelsespriser!$D$5*D39)) -> 0 | AB39: =IF((E39*Genanskaffelsespriser!$D$5-(2009-E$3)/($C39+E40)*Genanskaffelsespriser!$D$5*E39)<0,0,(E39*Genanskaffelsespriser!$D$5-(2009-E$3)/($C39+E40)*Genanskaffelsespriser!$D$5*E39)) -> 0 | AC39: =IF((F39*Genanskaffelsespriser!$D$5-(2009-F$3)/($C39+F40)*Genanskaffelsespriser!$D$5*F39)<0,0,(F39*Genanskaffelsespriser!$D$5-(2009-F$3)/($C39+F40)*Genanskaffelsespriser!$D$5*F39)) -> 0 | AD39: =IF((G39*Genanskaffelsespriser!$D$5-(2009-G$3)/($C39+G40)*Genanskaffelsespriser!$D$5*G39)<0,0,(G39*Genanskaffelsespriser!$D$5-(2009-G$3)/($C39+G40)*Genanskaffelsespriser!$D$5*G39)) -> 0 | AE39: =IF((H39*Genanskaffelsespriser!$D$5-(2009-H$3)/($C39+H40)*Genanskaffelsespriser!$D$5*H39)<0,0,(H39*Genanskaffelsespriser!$D$5-(2009-H$3)/($C39+H40)*Genanskaffelsespriser!$D$5*H39)) -> 0 | AF39: =IF((I39*Genanskaffelsespriser!$D$5-(2009-I$3)/($C39+I40)*Genanskaffelsespriser!$D$5*I39)<0,0,(I39*Genanskaffelsespriser!$D$5-(2009-I$3)/($C39+I40)*Genanskaffelsespriser!$D$5*I39)) -> 0 | AG39: =IF((J39*Genanskaffelsespriser!$D$5-(2009-J$3)/($C39+J40)*Genanskaffelsespriser!$D$5*J39)<0,0,(J39*Genanskaffelsespriser!$D$5-(2009-J$3)/($C39+J40)*Genanskaffelsespriser!$D$5*J39)) -> 0 | AH39: =IF((K39*Genanskaffelsespriser!$D$5-(2009-K$3)/($C39+K40)*Genanskaffelsespriser!$D$5*K39)<0,0,(K39*Genanskaffelsespriser!$D$5-(2009-K$3)/($C39+K40)*Genanskaffelsespriser!$D$5*K39)) -> 0 | AI39: =IF((L39*Genanskaffelsespriser!$D$5-(2009-L$3)/($C39+L40)*Genanskaffelsespriser!$D$5*L39)<0,0,(L39*Genanskaffelsespriser!$D$5-(2009-L$3)/($C39+L40)*Genanskaffelsespriser!$D$5*L39)) -> 0 | AJ39: =IF((M39*Genanskaffelsespriser!$D$5-(2009-M$3)/($C39+M40)*Genanskaffelsespriser!$D$5*M39)<0,0,(M39*Genanskaffelsespriser!$D$5-(2009-M$3)/($C39+M40)*Genanskaffelsespriser!$D$5*M39)) -> 0 | AK39: =IF((N39*Genanskaffelsespriser!$D$5-(2009-N$3)/($C39+N40)*Genanskaffelsespriser!$D$5*N39)<0,0,(N39*Genanskaffelsespriser!$D$5-(2009-N$3)/($C39+N40)*Genanskaffelsespriser!$D$5*N39)) -> 0 | AL39: =IF((O39*Genanskaffelsespriser!$D$5-(2009-O$3)/($C39+O40)*Genanskaffelsespriser!$D$5*O39)<0,0,(O39*Genanskaffelsespriser!$D$5-(2009-O$3)/($C39+O40)*Genanskaffelsespriser!$D$5*O39)) -> 0 | AM39: =IF((P39*Genanskaffelsespriser!$D$5-(2009-P$3)/($C39+P40)*Genanskaffelsespriser!$D$5*P39)<0,0,(P39*Genanskaffelsespriser!$D$5-(2009-P$3)/($C39+P40)*Genanskaffelsespriser!$D$5*P39)) -> 0 | AN39: =IF((Q39*Genanskaffelsespriser!$D$5-(2009-Q$3)/($C39+Q40)*Genanskaffelsespriser!$D$5*Q39)<0,0,(Q39*Genanskaffelsespriser!$D$5-(2009-Q$3)/($C39+Q40)*Genanskaffelsespriser!$D$5*Q39)) -> 0 | AO39: =IF((R39*Genanskaffelsespriser!$D$5-(2009-R$3)/($C39+R40)*Genanskaffelsespriser!$D$5*R39)<0,0,(R39*Genanskaffelsespriser!$D$5-(2009-R$3)/($C39+R40)*Genanskaffelsespriser!$D$5*R39)) -> 0 | AP39: =IF((S39*Genanskaffelsespriser!$D$5-(2009-S$3)/($C39+S40)*Genanskaffelsespriser!$D$5*S39)<0,0,(S39*Genanskaffelsespriser!$D$5-(2009-S$3)/($C39+S40)*Genanskaffelsespriser!$D$5*S39)) -> 0 | AQ39: =IF((T39*Genanskaffelsespriser!$D$5-(2009-T$3)/($C39+T40)*Genanskaffelsespriser!$D$5*T39)<0,0,(T39*Genanskaffelsespriser!$D$5-(2009-T$3)/($C39+T40)*Genanskaffelsespriser!$D$5*T39)) -> 0 | AR39: =IF((U39*Genanskaffelsespriser!$D$5-(2009-U$3)/($C39+U40)*Genanskaffelsespriser!$D$5*U39)<0,0,(U39*Genanskaffelsespriser!$D$5-(2009-U$3)/($C39+U40)*Genanskaffelsespriser!$D$5*U39)) -> 0 | AS39: =IF((V39*Genanskaffelsespriser!$D$5-(2009-V$3)/($C39+V40)*Genanskaffelsespriser!$D$5*V39)<0,0,(V39*Genanskaffelsespriser!$D$5-(2009-V$3)/($C39+V40)*Genanskaffelsespriser!$D$5*V39)) -> 0 | AT39: =IF((W39*Genanskaffelsespriser!$D$5-(2009-W$3)/($C39+W40)*Genanskaffelsespriser!$D$5*W39)<0,0,(W39*Genanskaffelsespriser!$D$5-(2009-W$3)/($C39+W40)*Genanskaffelsespriser!$D$5*W39)) -> 0 | AU39: =IF((X39*Genanskaffelsespriser!$D$5-(2009-X$3)/($C39+X40)*Genanskaffelsespriser!$D$5*X39)<0,0,(X39*Genanskaffelsespriser!$D$5-(2009-X$3)/($C39+X40)*Genanskaffelsespriser!$D$5*X39)) -> 0 | AV39: =IF((Y39*Genanskaffelsespriser!$D$5-(2009-Y$3)/($C39+Y40)*Genanskaffelsespriser!$D$5*Y39)<0,0,(Y39*Genanskaffelsespriser!$D$5-(2009-Y$3)/($C39+Y40)*Genanskaffelsespriser!$D$5*Y39)) -> 0 | AW39: =+SUM(AA39:AV39) -> 0 | AX39: =VLOOKUP(D$3,Prisindeks!$A$1:$B$111,2,FALSE)/100*AA39 -> 0 | AY39: =VLOOKUP(E$3,Prisindeks!$A$1:$B$111,2,FALSE)/100*AB39 -> 0 | AZ39: =VLOOKUP(F$3,Prisindeks!$A$1:$B$111,2,FALSE)/100*AC39 -> 0 | BA39: =VLOOKUP(G$3,Prisindeks!$A$1:$B$111,2,FALSE)/100*AD39 -> 0 | BB39: =VLOOKUP(H$3,Prisindeks!$A$1:$B$111,2,FALSE)/100*AE39 -> 0 | BC39: =VLOOKUP(I$3,Prisindeks!$A$1:$B$111,2,FALSE)/100*AF39 -> 0 | BD39: =VLOOKUP(J$3,Prisindeks!$A$1:$B$111,2,FALSE)/100*AG39 -> 0 | BE39: =VLOOKUP(K$3,Prisindeks!$A$1:$B$111,2,FALSE)/100*AH39 -> 0 | BF39: =VLOOKUP(L$3,Prisindeks!$A$1:$B$111,2,FALSE)/100*AI39 -> 0 | BG39: =VLOOKUP(M$3,Prisindeks!$A$1:$B$111,2,FALSE)/100*AJ39 -> 0 | BH39: =VLOOKUP(N$3,Prisindeks!$A$1:$B$111,2,FALSE)/100*AK39 -> 0 | BI39: =VLOOKUP(O$3,Prisindeks!$A$1:$B$111,2,FALSE)/100*AL39 -> 0 | BJ39: =VLOOKUP(P$3,Prisindeks!$A$1:$B$111,2,FALSE)/100*AM39 -> 0 | BK39: =VLOOKUP(Q$3,Prisindeks!$A$1:$B$111,2,FALSE)/100*AN39 -> 0 | BL39: =VLOOKUP(R$3,Prisindeks!$A$1:$B$111,2,FALSE)/100*AO39 -> 0 | BM39: =VLOOKUP(S$3,Prisindeks!$A$1:$B$111,2,FALSE)/100*AP39 -> 0 | BN39: =VLOOKUP(T$3,Prisindeks!$A$1:$B$111,2,FALSE)/100*AQ39 -> 0 | BO39: =VLOOKUP(U$3,Prisindeks!$A$1:$B$111,2,FALSE)/100*AR39 -> 0 | BP39: =VLOOKUP(V$3,Prisindeks!$A$1:$B$111,2,FALSE)/100*AS39 -> 0 | BQ39: =VLOOKUP(W$3,Prisindeks!$A$1:$B$111,2,FALSE)/100*AT39 -> 0 | BR39: =VLOOKUP(X$3,Prisindeks!$A$1:$B$111,2,FALSE)/100*AU39 -> 0 | BS39: =VLOOKUP(Y$3,Prisindeks!$A$1:$B$111,2,FALSE)/100*AV39 -> 0 | BT39: =+SUM(AX39:BS39) -> 0 | BU39: =(AA39+AX39)/2 -> 0 | BV39: 0 | BW39: 0 | BX39: 0 | BY39: 0 | BZ39: 0 | CA39: 0 | CB39: 0 | CC39: 0 | CD39: 0 | CE39: 0 | CF39: 0 | CG39: 0 | CH39: 0 | CI39: 0 | CJ39: 0 | CK39: 0 | CL39: 0 | CM39: 0 | CN39: 0 | CO39: 0 | CP39: 0 | CQ39: =AVERAGE(AW39,BT39) -> 0 | CR39: =SUM(D39:Y39) -> 0
A40: Levetidsforlængelse | B40: år | C40: - | D40: 0 | E40: 0 | F40: 0 | G40: 0 | H40: 0 | I40: 0 | J40: 0 | K40: 0 | L40: 0 | M40: 0 | N40: 0 | O40: 0 | P40: 0 | Q40: 0 | R40: 0 | S40: 0 | T40: 0 | U40: 0 | V40: 0 | W40: 0 | X40: 0 | Y40: 0
A41: Boring (inkl. etablering, forerør, filter og prøvepumpning) - 19 | B41: dybdemeter | C41: =Genanskaffelsespriser!$E$5 -> 30 | D41: 0 | E41: 0 | F41: 0 | G41: 0 | H41: 0 | I41: 0 | J41: 0 | K41: 0 | L41: 0 | M41: 0 | N41: 0 | O41: 0 | P41: 0 | Q41: 0 | R41: 0 | S41: 0 | T41: 0 | U41: 0 | V41: 0 | W41: 0 | X41: 0 | Y41: 0 | AA41: =IF((D41*Genanskaffelsespriser!$D$5-(2009-D$3)/($C41+D42)*Genanskaffelsespriser!$D$5*D41)<0,0,(D41*Genanskaffelsespriser!$D$5-(2009-D$3)/($C41+D42)*Genanskaffelsespriser!$D$5*D41)) -> 0 | AB41: =IF((E41*Genanskaffelsespriser!$D$5-(2009-E$3)/($C41+E42)*Genanskaffelsespriser!$D$5*E41)<0,0,(E41*Genanskaffelsespriser!$D$5-(2009-E$3)/($C41+E42)*Genanskaffelsespriser!$D$5*E41)) -> 0 | AC41: =IF((F41*Genanskaffelsespriser!$D$5-(2009-F$3)/($C41+F42)*Genanskaffelsespriser!$D$5*F41)<0,0,(F41*Genanskaffelsespriser!$D$5-(2009-F$3)/($C41+F42)*Genanskaffelsespriser!$D$5*F41)) -> 0 | AD41: =IF((G41*Genanskaffelsespriser!$D$5-(2009-G$3)/($C41+G42)*Genanskaffelsespriser!$D$5*G41)<0,0,(G41*Genanskaffelsespriser!$D$5-(2009-G$3)/($C41+G42)*Genanskaffelsespriser!$D$5*G41)) -> 0 | AE41: =IF((H41*Genanskaffelsespriser!$D$5-(2009-H$3)/($C41+H42)*Genanskaffelsespriser!$D$5*H41)<0,0,(H41*Genanskaffelsespriser!$D$5-(2009-H$3)/($C41+H42)*Genanskaffelsespriser!$D$5*H41)) -> 0 | AF41: =IF((I41*Genanskaffelsespriser!$D$5-(2009-I$3)/($C41+I42)*Genanskaffelsespriser!$D$5*I41)<0,0,(I41*Genanskaffelsespriser!$D$5-(2009-I$3)/($C41+I42)*Genanskaffelsespriser!$D$5*I41)) -> 0 | AG41: =IF((J41*Genanskaffelsespriser!$D$5-(2009-J$3)/($C41+J42)*Genanskaffelsespriser!$D$5*J41)<0,0,(J41*Genanskaffelsespriser!$D$5-(2009-J$3)/($C41+J42)*Genanskaffelsespriser!$D$5*J41)) -> 0 | AH41: =IF((K41*Genanskaffelsespriser!$D$5-(2009-K$3)/($C41+K42)*Genanskaffelsespriser!$D$5*K41)<0,0,(K41*Genanskaffelsespriser!$D$5-(2009-K$3)/($C41+K42)*Genanskaffelsespriser!$D$5*K41)) -> 0 | AI41: =IF((L41*Genanskaffelsespriser!$D$5-(2009-L$3)/($C41+L42)*Genanskaffelsespriser!$D$5*L41)<0,0,(L41*Genanskaffelsespriser!$D$5-(2009-L$3)/($C41+L42)*Genanskaffelsespriser!$D$5*L41)) -> 0 | AJ41: =IF((M41*Genanskaffelsespriser!$D$5-(2009-M$3)/($C41+M42)*Genanskaffelsespriser!$D$5*M41)<0,0,(M41*Genanskaffelsespriser!$D$5-(2009-M$3)/($C41+M42)*Genanskaffelsespriser!$D$5*M41)) -> 0 | AK41: =IF((N41*Genanskaffelsespriser!$D$5-(2009-N$3)/($C41+N42)*Genanskaffelsespriser!$D$5*N41)<0,0,(N41*Genanskaffelsespriser!$D$5-(2009-N$3)/($C41+N42)*Genanskaffelsespriser!$D$5*N41)) -> 0 | AL41: =IF((O41*Genanskaffelsespriser!$D$5-(2009-O$3)/($C41+O42)*Genanskaffelsespriser!$D$5*O41)<0,0,(O41*Genanskaffelsespriser!$D$5-(2009-O$3)/($C41+O42)*Genanskaffelsespriser!$D$5*O41)) -> 0 | AM41: =IF((P41*Genanskaffelsespriser!$D$5-(2009-P$3)/($C41+P42)*Genanskaffelsespriser!$D$5*P41)<0,0,(P41*Genanskaffelsespriser!$D$5-(2009-P$3)/($C41+P42)*Genanskaffelsespriser!$D$5*P41)) -> 0 | AN41: =IF((Q41*Genanskaffelsespriser!$D$5-(2009-Q$3)/($C41+Q42)*Genanskaffelsespriser!$D$5*Q41)<0,0,(Q41*Genanskaffelsespriser!$D$5-(2009-Q$3)/($C41+Q42)*Genanskaffelsespriser!$D$5*Q41)) -> 0 | AO41: =IF((R41*Genanskaffelsespriser!$D$5-(2009-R$3)/($C41+R42)*Genanskaffelsespriser!$D$5*R41)<0,0,(R41*Genanskaffelsespriser!$D$5-(2009-R$3)/($C41+R42)*Genanskaffelsespriser!$D$5*R41)) -> 0 | AP41: =IF((S41*Genanskaffelsespriser!$D$5-(2009-S$3)/($C41+S42)*Genanskaffelsespriser!$D$5*S41)<0,0,(S41*Genanskaffelsespriser!$D$5-(2009-S$3)/($C41+S42)*Genanskaffelsespriser!$D$5*S41)) -> 0 | AQ41: =IF((T41*Genanskaffelsespriser!$D$5-(2009-T$3)/($C41+T42)*Genanskaffelsespriser!$D$5*T41)<0,0,(T41*Genanskaffelsespriser!$D$5-(2009-T$3)/($C41+T42)*Genanskaffelsespriser!$D$5*T41)) -> 0 | AR41: =IF((U41*Genanskaffelsespriser!$D$5-(2009-U$3)/($C41+U42)*Genanskaffelsespriser!$D$5*U41)<0,0,(U41*Genanskaffelsespriser!$D$5-(2009-U$3)/($C41+U42)*Genanskaffelsespriser!$D$5*U41)) -> 0 | AS41: =IF((V41*Genanskaffelsespriser!$D$5-(2009-V$3)/($C41+V42)*Genanskaffelsespriser!$D$5*V41)<0,0,(V41*Genanskaffelsespriser!$D$5-(2009-V$3)/($C41+V42)*Genanskaffelsespriser!$D$5*V41)) -> 0 | AT41: =IF((W41*Genanskaffelsespriser!$D$5-(2009-W$3)/($C41+W42)*Genanskaffelsespriser!$D$5*W41)<0,0,(W41*Genanskaffelsespriser!$D$5-(2009-W$3)/($C41+W42)*Genanskaffelsespriser!$D$5*W41)) -> 0 | AU41: =IF((X41*Genanskaffelsespriser!$D$5-(2009-X$3)/($C41+X42)*Genanskaffelsespriser!$D$5*X41)<0,0,(X41*Genanskaffelsespriser!$D$5-(2009-X$3)/($C41+X42)*Genanskaffelsespriser!$D$5*X41)) -> 0 | AV41: =IF((Y41*Genanskaffelsespriser!$D$5-(2009-Y$3)/($C41+Y42)*Genanskaffelsespriser!$D$5*Y41)<0,0,(Y41*Genanskaffelsespriser!$D$5-(2009-Y$3)/($C41+Y42)*Genanskaffelsespriser!$D$5*Y41)) -> 0 | AW41: =+SUM(AA41:AV41) -> 0 | AX41: =VLOOKUP(D$3,Prisindeks!$A$1:$B$111,2,FALSE)/100*AA41 -> 0 | AY41: =VLOOKUP(E$3,Prisindeks!$A$1:$B$111,2,FALSE)/100*AB41 -> 0 | AZ41: =VLOOKUP(F$3,Prisindeks!$A$1:$B$111,2,FALSE)/100*AC41 -> 0 | BA41: =VLOOKUP(G$3,Prisindeks!$A$1:$B$111,2,FALSE)/100*AD41 -> 0 | BB41: =VLOOKUP(H$3,Prisindeks!$A$1:$B$111,2,FALSE)/100*AE41 -> 0 | BC41: =VLOOKUP(I$3,Prisindeks!$A$1:$B$111,2,FALSE)/100*AF41 -> 0 | BD41: =VLOOKUP(J$3,Prisindeks!$A$1:$B$111,2,FALSE)/100*AG41 -> 0 | BE41: =VLOOKUP(K$3,Prisindeks!$A$1:$B$111,2,FALSE)/100*AH41 -> 0 | BF41: =VLOOKUP(L$3,Prisindeks!$A$1:$B$111,2,FALSE)/100*AI41 -> 0 | BG41: =VLOOKUP(M$3,Prisindeks!$A$1:$B$111,2,FALSE)/100*AJ41 -> 0 | BH41: =VLOOKUP(N$3,Prisindeks!$A$1:$B$111,2,FALSE)/100*AK41 -> 0 | BI41: =VLOOKUP(O$3,Prisindeks!$A$1:$B$111,2,FALSE)/100*AL41 -> 0 | BJ41: =VLOOKUP(P$3,Prisindeks!$A$1:$B$111,2,FALSE)/100*AM41 -> 0 | BK41: =VLOOKUP(Q$3,Prisindeks!$A$1:$B$111,2,FALSE)/100*AN41 -> 0 | BL41: =VLOOKUP(R$3,Prisindeks!$A$1:$B$111,2,FALSE)/100*AO41 -> 0 | BM41: =VLOOKUP(S$3,Prisindeks!$A$1:$B$111,2,FALSE)/100*AP41 -> 0 | BN41: =VLOOKUP(T$3,Prisindeks!$A$1:$B$111,2,FALSE)/100*AQ41 -> 0 | BO41: =VLOOKUP(U$3,Prisindeks!$A$1:$B$111,2,FALSE)/100*AR41 -> 0 | BP41: =VLOOKUP(V$3,Prisindeks!$A$1:$B$111,2,FALSE)/100*AS41 -> 0 | BQ41: =VLOOKUP(W$3,Prisindeks!$A$1:$B$111,2,FALSE)/100*AT41 -> 0 | BR41: =VLOOKUP(X$3,Prisindeks!$A$1:$B$111,2,FALSE)/100*AU41 -> 0 | BS41: =VLOOKUP(Y$3,Prisindeks!$A$1:$B$111,2,FALSE)/100*AV41 -> 0 | BT41: =+SUM(AX41:BS41) -> 0 | BU41: =(AA41+AX41)/2 -> 0 | BV41: 0 | BW41: 0 | BX41: 0 | BY41: 0 | BZ41: 0 | CA41: 0 | CB41: 0 | CC41: 0 | CD41: 0 | CE41: 0 | CF41: 0 | CG41: 0 | CH41: 0 | CI41: 0 | CJ41: 0 | CK41: 0 | CL41: 0 | CM41: 0 | CN41: 0 | CO41: 0 | CP41: 0 | CQ41: =AVERAGE(AW41,BT41) -> 0 | CR41: =SUM(D41:Y41) -> 0
A42: Levetidsforlængelse | B42: år | C42: - | D42: 0 | E42: 0 | F42: 0 | G42: 0 | H42: 0 | I42: 0 | J42: 0 | K42: 0 | L42: 0 | M42: 0 | N42: 0 | O42: 0 | P42: 0 | Q42: 0 | R42: 0 | S42: 0 | T42: 0 | U42: 0 | V42: 0 | W42: 0 | X42: 0 | Y42: 0
A43: Boring (inkl. etablering, forerør, filter og prøvepumpning) - 20 | B43: dybdemeter | C43: =Genanskaffelsespriser!$E$5 -> 30 | D43: 0 | E43: 0 | F43: 0 | G43: 0 | H43: 0 | I43: 0 | J43: 0 | K43: 0 | L43: 0 | M43: 0 | N43: 0 | O43: 0 | P43: 0 | Q43: 0 | R43: 0 | S43: 0 | T43: 0 | U43: 0 | V43: 0 | W43: 0 | X43: 0 | Y43: 0 | AA43: =IF((D43*Genanskaffelsespriser!$D$5-(2009-D$3)/($C43+D44)*Genanskaffelsespriser!$D$5*D43)<0,0,(D43*Genanskaffelsespriser!$D$5-(2009-D$3)/($C43+D44)*Genanskaffelsespriser!$D$5*D43)) -> 0 | AB43: =IF((E43*Genanskaffelsespriser!$D$5-(2009-E$3)/($C43+E44)*Genanskaffelsespriser!$D$5*E43)<0,0,(E43*Genanskaffelsespriser!$D$5-(2009-E$3)/($C43+E44)*Genanskaffelsespriser!$D$5*E43)) -> 0 | AC43: =IF((F43*Genanskaffelsespriser!$D$5-(2009-F$3)/($C43+F44)*Genanskaffelsespriser!$D$5*F43)<0,0,(F43*Genanskaffelsespriser!$D$5-(2009-F$3)/($C43+F44)*Genanskaffelsespriser!$D$5*F43)) -> 0 | AD43: =IF((G43*Genanskaffelsespriser!$D$5-(2009-G$3)/($C43+G44)*Genanskaffelsespriser!$D$5*G43)<0,0,(G43*Genanskaffelsespriser!$D$5-(2009-G$3)/($C43+G44)*Genanskaffelsespriser!$D$5*G43)) -> 0 | AE43: =IF((H43*Genanskaffelsespriser!$D$5-(2009-H$3)/($C43+H44)*Genanskaffelsespriser!$D$5*H43)<0,0,(H43*Genanskaffelsespriser!$D$5-(2009-H$3)/($C43+H44)*Genanskaffelsespriser!$D$5*H43)) -> 0 | AF43: =IF((I43*Genanskaffelsespriser!$D$5-(2009-I$3)/($C43+I44)*Genanskaffelsespriser!$D$5*I43)<0,0,(I43*Genanskaffelsespriser!$D$5-(2009-I$3)/($C43+I44)*Genanskaffelsespriser!$D$5*I43)) -> 0 | AG43: =IF((J43*Genanskaffelsespriser!$D$5-(2009-J$3)/($C43+J44)*Genanskaffelsespriser!$D$5*J43)<0,0,(J43*Genanskaffelsespriser!$D$5-(2009-J$3)/($C43+J44)*Genanskaffelsespriser!$D$5*J43)) -> 0 | AH43: =IF((K43*Genanskaffelsespriser!$D$5-(2009-K$3)/($C43+K44)*Genanskaffelsespriser!$D$5*K43)<0,0,(K43*Genanskaffelsespriser!$D$5-(2009-K$3)/($C43+K44)*Genanskaffelsespriser!$D$5*K43)) -> 0 | AI43: =IF((L43*Genanskaffelsespriser!$D$5-(2009-L$3)/($C43+L44)*Genanskaffelsespriser!$D$5*L43)<0,0,(L43*Genanskaffelsespriser!$D$5-(2009-L$3)/($C43+L44)*Genanskaffelsespriser!$D$5*L43)) -> 0 | AJ43: =IF((M43*Genanskaffelsespriser!$D$5-(2009-M$3)/($C43+M44)*Genanskaffelsespriser!$D$5*M43)<0,0,(M43*Genanskaffelsespriser!$D$5-(2009-M$3)/($C43+M44)*Genanskaffelsespriser!$D$5*M43)) -> 0 | AK43: =IF((N43*Genanskaffelsespriser!$D$5-(2009-N$3)/($C43+N44)*Genanskaffelsespriser!$D$5*N43)<0,0,(N43*Genanskaffelsespriser!$D$5-(2009-N$3)/($C43+N44)*Genanskaffelsespriser!$D$5*N43)) -> 0 | AL43: =IF((O43*Genanskaffelsespriser!$D$5-(2009-O$3)/($C43+O44)*Genanskaffelsespriser!$D$5*O43)<0,0,(O43*Genanskaffelsespriser!$D$5-(2009-O$3)/($C43+O44)*Genanskaffelsespriser!$D$5*O43)) -> 0 | AM43: =IF((P43*Genanskaffelsespriser!$D$5-(2009-P$3)/($C43+P44)*Genanskaffelsespriser!$D$5*P43)<0,0,(P43*Genanskaffelsespriser!$D$5-(2009-P$3)/($C43+P44)*Genanskaffelsespriser!$D$5*P43)) -> 0 | AN43: =IF((Q43*Genanskaffelsespriser!$D$5-(2009-Q$3)/($C43+Q44)*Genanskaffelsespriser!$D$5*Q43)<0,0,(Q43*Genanskaffelsespriser!$D$5-(2009-Q$3)/($C43+Q44)*Genanskaffelsespriser!$D$5*Q43)) -> 0 | AO43: =IF((R43*Genanskaffelsespriser!$D$5-(2009-R$3)/($C43+R44)*Genanskaffelsespriser!$D$5*R43)<0,0,(R43*Genanskaffelsespriser!$D$5-(2009-R$3)/($C43+R44)*Genanskaffelsespriser!$D$5*R43)) -> 0 | AP43: =IF((S43*Genanskaffelsespriser!$D$5-(2009-S$3)/($C43+S44)*Genanskaffelsespriser!$D$5*S43)<0,0,(S43*Genanskaffelsespriser!$D$5-(2009-S$3)/($C43+S44)*Genanskaffelsespriser!$D$5*S43)) -> 0 | AQ43: =IF((T43*Genanskaffelsespriser!$D$5-(2009-T$3)/($C43+T44)*Genanskaffelsespriser!$D$5*T43)<0,0,(T43*Genanskaffelsespriser!$D$5-(2009-T$3)/($C43+T44)*Genanskaffelsespriser!$D$5*T43)) -> 0 | AR43: =IF((U43*Genanskaffelsespriser!$D$5-(2009-U$3)/($C43+U44)*Genanskaffelsespriser!$D$5*U43)<0,0,(U43*Genanskaffelsespriser!$D$5-(2009-U$3)/($C43+U44)*Genanskaffelsespriser!$D$5*U43)) -> 0 | AS43: =IF((V43*Genanskaffelsespriser!$D$5-(2009-V$3)/($C43+V44)*Genanskaffelsespriser!$D$5*V43)<0,0,(V43*Genanskaffelsespriser!$D$5-(2009-V$3)/($C43+V44)*Genanskaffelsespriser!$D$5*V43)) -> 0 | AT43: =IF((W43*Genanskaffelsespriser!$D$5-(2009-W$3)/($C43+W44)*Genanskaffelsespriser!$D$5*W43)<0,0,(W43*Genanskaffelsespriser!$D$5-(2009-W$3)/($C43+W44)*Genanskaffelsespriser!$D$5*W43)) -> 0 | AU43: =IF((X43*Genanskaffelsespriser!$D$5-(2009-X$3)/($C43+X44)*Genanskaffelsespriser!$D$5*X43)<0,0,(X43*Genanskaffelsespriser!$D$5-(2009-X$3)/($C43+X44)*Genanskaffelsespriser!$D$5*X43)) -> 0 | AV43: =IF((Y43*Genanskaffelsespriser!$D$5-(2009-Y$3)/($C43+Y44)*Genanskaffelsespriser!$D$5*Y43)<0,0,(Y43*Genanskaffelsespriser!$D$5-(2009-Y$3)/($C43+Y44)*Genanskaffelsespriser!$D$5*Y43)) -> 0 | AW43: =+SUM(AA43:AV43) -> 0 | AX43: =VLOOKUP(D$3,Prisindeks!$A$1:$B$111,2,FALSE)/100*AA43 -> 0 | AY43: =VLOOKUP(E$3,Prisindeks!$A$1:$B$111,2,FALSE)/100*AB43 -> 0 | AZ43: =VLOOKUP(F$3,Prisindeks!$A$1:$B$111,2,FALSE)/100*AC43 -> 0 | BA43: =VLOOKUP(G$3,Prisindeks!$A$1:$B$111,2,FALSE)/100*AD43 -> 0 | BB43: =VLOOKUP(H$3,Prisindeks!$A$1:$B$111,2,FALSE)/100*AE43 -> 0 | BC43: =VLOOKUP(I$3,Prisindeks!$A$1:$B$111,2,FALSE)/100*AF43 -> 0 | BD43: =VLOOKUP(J$3,Prisindeks!$A$1:$B$111,2,FALSE)/100*AG43 -> 0 | BE43: =VLOOKUP(K$3,Prisindeks!$A$1:$B$111,2,FALSE)/100*AH43 -> 0 | BF43: =VLOOKUP(L$3,Prisindeks!$A$1:$B$111,2,FALSE)/100*AI43 -> 0 | BG43: =VLOOKUP(M$3,Prisindeks!$A$1:$B$111,2,FALSE)/100*AJ43 -> 0 | BH43: =VLOOKUP(N$3,Prisindeks!$A$1:$B$111,2,FALSE)/100*AK43 -> 0 | BI43: =VLOOKUP(O$3,Prisindeks!$A$1:$B$111,2,FALSE)/100*AL43 -> 0 | BJ43: =VLOOKUP(P$3,Prisindeks!$A$1:$B$111,2,FALSE)/100*AM43 -> 0 | BK43: =VLOOKUP(Q$3,Prisindeks!$A$1:$B$111,2,FALSE)/100*AN43 -> 0 | BL43: =VLOOKUP(R$3,Prisindeks!$A$1:$B$111,2,FALSE)/100*AO43 -> 0 | BM43: =VLOOKUP(S$3,Prisindeks!$A$1:$B$111,2,FALSE)/100*AP43 -> 0 | BN43: =VLOOKUP(T$3,Prisindeks!$A$1:$B$111,2,FALSE)/100*AQ43 -> 0 | BO43: =VLOOKUP(U$3,Prisindeks!$A$1:$B$111,2,FALSE)/100*AR43 -> 0 | BP43: =VLOOKUP(V$3,Prisindeks!$A$1:$B$111,2,FALSE)/100*AS43 -> 0 | BQ43: =VLOOKUP(W$3,Prisindeks!$A$1:$B$111,2,FALSE)/100*AT43 -> 0 | BR43: =VLOOKUP(X$3,Prisindeks!$A$1:$B$111,2,FALSE)/100*AU43 -> 0 | BS43: =VLOOKUP(Y$3,Prisindeks!$A$1:$B$111,2,FALSE)/100*AV43 -> 0 | BT43: =+SUM(AX43:BS43) -> 0 | BU43: =(AA43+AX43)/2 -> 0 | BV43: 0 | BW43: 0 | BX43: 0 | BY43: 0 | BZ43: 0 | CA43: 0 | CB43: 0 | CC43: 0 | CD43: 0 | CE43: 0 | CF43: 0 | CG43: 0 | CH43: 0 | CI43: 0 | CJ43: 0 | CK43: 0 | CL43: 0 | CM43: 0 | CN43: 0 | CO43: 0 | CP43: 0 | CQ43: =AVERAGE(AW43,BT43) -> 0 | CR43: =SUM(D43:Y43) -> 0
A44: Levetidsforlængelse | B44: år | C44: - | D44: 0 | E44: 0 | F44: 0 | G44: 0 | H44: 0 | I44: 0 | J44: 0 | K44: 0 | L44: 0 | M44: 0 | N44: 0 | O44: 0 | P44: 0 | Q44: 0 | R44: 0 | S44: 0 | T44: 0 | U44: 0 | V44: 0 | W44: 0 | X44: 0 | Y44: 0
A45: Boring (inkl. etablering, forerør, filter og prøvepumpning) - 21 | B45: dybdemeter | C45: =Genanskaffelsespriser!$E$5 -> 30 | D45: 0 | E45: 0 | F45: 0 | G45: 0 | H45: 0 | I45: 0 | J45: 0 | K45: 0 | L45: 0 | M45: 0 | N45: 0 | O45: 0 | P45: 0 | Q45: 0 | R45: 0 | S45: 0 | T45: 0 | U45: 0 | V45: 0 | W45: 0 | X45: 0 | Y45: 0 | AA45: =IF((D45*Genanskaffelsespriser!$D$5-(2009-D$3)/($C45+D46)*Genanskaffelsespriser!$D$5*D45)<0,0,(D45*Genanskaffelsespriser!$D$5-(2009-D$3)/($C45+D46)*Genanskaffelsespriser!$D$5*D45)) -> 0 | AB45: =IF((E45*Genanskaffelsespriser!$D$5-(2009-E$3)/($C45+E46)*Genanskaffelsespriser!$D$5*E45)<0,0,(E45*Genanskaffelsespriser!$D$5-(2009-E$3)/($C45+E46)*Genanskaffelsespriser!$D$5*E45)) -> 0 | AC45: =IF((F45*Genanskaffelsespriser!$D$5-(2009-F$3)/($C45+F46)*Genanskaffelsespriser!$D$5*F45)<0,0,(F45*Genanskaffelsespriser!$D$5-(2009-F$3)/($C45+F46)*Genanskaffelsespriser!$D$5*F45)) -> 0 | AD45: =IF((G45*Genanskaffelsespriser!$D$5-(2009-G$3)/($C45+G46)*Genanskaffelsespriser!$D$5*G45)<0,0,(G45*Genanskaffelsespriser!$D$5-(2009-G$3)/($C45+G46)*Genanskaffelsespriser!$D$5*G45)) -> 0 | AE45: =IF((H45*Genanskaffelsespriser!$D$5-(2009-H$3)/($C45+H46)*Genanskaffelsespriser!$D$5*H45)<0,0,(H45*Genanskaffelsespriser!$D$5-(2009-H$3)/($C45+H46)*Genanskaffelsespriser!$D$5*H45)) -> 0 | AF45: =IF((I45*Genanskaffelsespriser!$D$5-(2009-I$3)/($C45+I46)*Genanskaffelsespriser!$D$5*I45)<0,0,(I45*Genanskaffelsespriser!$D$5-(2009-I$3)/($C45+I46)*Genanskaffelsespriser!$D$5*I45)) -> 0 | AG45: =IF((J45*Genanskaffelsespriser!$D$5-(2009-J$3)/($C45+J46)*Genanskaffelsespriser!$D$5*J45)<0,0,(J45*Genanskaffelsespriser!$D$5-(2009-J$3)/($C45+J46)*Genanskaffelsespriser!$D$5*J45)) -> 0 | AH45: =IF((K45*Genanskaffelsespriser!$D$5-(2009-K$3)/($C45+K46)*Genanskaffelsespriser!$D$5*K45)<0,0,(K45*Genanskaffelsespriser!$D$5-(2009-K$3)/($C45+K46)*Genanskaffelsespriser!$D$5*K45)) -> 0 | AI45: =IF((L45*Genanskaffelsespriser!$D$5-(2009-L$3)/($C45+L46)*Genanskaffelsespriser!$D$5*L45)<0,0,(L45*Genanskaffelsespriser!$D$5-(2009-L$3)/($C45+L46)*Genanskaffelsespriser!$D$5*L45)) -> 0 | AJ45: =IF((M45*Genanskaffelsespriser!$D$5-(2009-M$3)/($C45+M46)*Genanskaffelsespriser!$D$5*M45)<0,0,(M45*Genanskaffelsespriser!$D$5-(2009-M$3)/($C45+M46)*Genanskaffelsespriser!$D$5*M45)) -> 0 | AK45: =IF((N45*Genanskaffelsespriser!$D$5-(2009-N$3)/($C45+N46)*Genanskaffelsespriser!$D$5*N45)<0,0,(N45*Genanskaffelsespriser!$D$5-(2009-N$3)/($C45+N46)*Genanskaffelsespriser!$D$5*N45)) -> 0 | AL45: =IF((O45*Genanskaffelsespriser!$D$5-(2009-O$3)/($C45+O46)*Genanskaffelsespriser!$D$5*O45)<0,0,(O45*Genanskaffelsespriser!$D$5-(2009-O$3)/($C45+O46)*Genanskaffelsespriser!$D$5*O45)) -> 0 | AM45: =IF((P45*Genanskaffelsespriser!$D$5-(2009-P$3)/($C45+P46)*Genanskaffelsespriser!$D$5*P45)<0,0,(P45*Genanskaffelsespriser!$D$5-(2009-P$3)/($C45+P46)*Genanskaffelsespriser!$D$5*P45)) -> 0 | AN45: =IF((Q45*Genanskaffelsespriser!$D$5-(2009-Q$3)/($C45+Q46)*Genanskaffelsespriser!$D$5*Q45)<0,0,(Q45*Genanskaffelsespriser!$D$5-(2009-Q$3)/($C45+Q46)*Genanskaffelsespriser!$D$5*Q45)) -> 0 | AO45: =IF((R45*Genanskaffelsespriser!$D$5-(2009-R$3)/($C45+R46)*Genanskaffelsespriser!$D$5*R45)<0,0,(R45*Genanskaffelsespriser!$D$5-(2009-R$3)/($C45+R46)*Genanskaffelsespriser!$D$5*R45)) -> 0 | AP45: =IF((S45*Genanskaffelsespriser!$D$5-(2009-S$3)/($C45+S46)*Genanskaffelsespriser!$D$5*S45)<0,0,(S45*Genanskaffelsespriser!$D$5-(2009-S$3)/($C45+S46)*Genanskaffelsespriser!$D$5*S45)) -> 0 | AQ45: =IF((T45*Genanskaffelsespriser!$D$5-(2009-T$3)/($C45+T46)*Genanskaffelsespriser!$D$5*T45)<0,0,(T45*Genanskaffelsespriser!$D$5-(2009-T$3)/($C45+T46)*Genanskaffelsespriser!$D$5*T45)) -> 0 | AR45: =IF((U45*Genanskaffelsespriser!$D$5-(2009-U$3)/($C45+U46)*Genanskaffelsespriser!$D$5*U45)<0,0,(U45*Genanskaffelsespriser!$D$5-(2009-U$3)/($C45+U46)*Genanskaffelsespriser!$D$5*U45)) -> 0 | AS45: =IF((V45*Genanskaffelsespriser!$D$5-(2009-V$3)/($C45+V46)*Genanskaffelsespriser!$D$5*V45)<0,0,(V45*Genanskaffelsespriser!$D$5-(2009-V$3)/($C45+V46)*Genanskaffelsespriser!$D$5*V45)) -> 0 | AT45: =IF((W45*Genanskaffelsespriser!$D$5-(2009-W$3)/($C45+W46)*Genanskaffelsespriser!$D$5*W45)<0,0,(W45*Genanskaffelsespriser!$D$5-(2009-W$3)/($C45+W46)*Genanskaffelsespriser!$D$5*W45)) -> 0 | AU45: =IF((X45*Genanskaffelsespriser!$D$5-(2009-X$3)/($C45+X46)*Genanskaffelsespriser!$D$5*X45)<0,0,(X45*Genanskaffelsespriser!$D$5-(2009-X$3)/($C45+X46)*Genanskaffelsespriser!$D$5*X45)) -> 0 | AV45: =IF((Y45*Genanskaffelsespriser!$D$5-(2009-Y$3)/($C45+Y46)*Genanskaffelsespriser!$D$5*Y45)<0,0,(Y45*Genanskaffelsespriser!$D$5-(2009-Y$3)/($C45+Y46)*Genanskaffelsespriser!$D$5*Y45)) -> 0 | AW45: =+SUM(AA45:AV45) -> 0 | AX45: =VLOOKUP(D$3,Prisindeks!$A$1:$B$111,2,FALSE)/100*AA45 -> 0 | AY45: =VLOOKUP(E$3,Prisindeks!$A$1:$B$111,2,FALSE)/100*AB45 -> 0 | AZ45: =VLOOKUP(F$3,Prisindeks!$A$1:$B$111,2,FALSE)/100*AC45 -> 0 | BA45: =VLOOKUP(G$3,Prisindeks!$A$1:$B$111,2,FALSE)/100*AD45 -> 0 | BB45: =VLOOKUP(H$3,Prisindeks!$A$1:$B$111,2,FALSE)/100*AE45 -> 0 | BC45: =VLOOKUP(I$3,Prisindeks!$A$1:$B$111,2,FALSE)/100*AF45 -> 0 | BD45: =VLOOKUP(J$3,Prisindeks!$A$1:$B$111,2,FALSE)/100*AG45 -> 0 | BE45: =VLOOKUP(K$3,Prisindeks!$A$1:$B$111,2,FALSE)/100*AH45 -> 0 | BF45: =VLOOKUP(L$3,Prisindeks!$A$1:$B$111,2,FALSE)/100*AI45 -> 0 | BG45: =VLOOKUP(M$3,Prisindeks!$A$1:$B$111,2,FALSE)/100*AJ45 -> 0 | BH45: =VLOOKUP(N$3,Prisindeks!$A$1:$B$111,2,FALSE)/100*AK45 -> 0 | BI45: =VLOOKUP(O$3,Prisindeks!$A$1:$B$111,2,FALSE)/100*AL45 -> 0 | BJ45: =VLOOKUP(P$3,Prisindeks!$A$1:$B$111,2,FALSE)/100*AM45 -> 0 | BK45: =VLOOKUP(Q$3,Prisindeks!$A$1:$B$111,2,FALSE)/100*AN45 -> 0 | BL45: =VLOOKUP(R$3,Prisindeks!$A$1:$B$111,2,FALSE)/100*AO45 -> 0 | BM45: =VLOOKUP(S$3,Prisindeks!$A$1:$B$111,2,FALSE)/100*AP45 -> 0 | BN45: =VLOOKUP(T$3,Prisindeks!$A$1:$B$111,2,FALSE)/100*AQ45 -> 0 | BO45: =VLOOKUP(U$3,Prisindeks!$A$1:$B$111,2,FALSE)/100*AR45 -> 0 | BP45: =VLOOKUP(V$3,Prisindeks!$A$1:$B$111,2,FALSE)/100*AS45 -> 0 | BQ45: =VLOOKUP(W$3,Prisindeks!$A$1:$B$111,2,FALSE)/100*AT45 -> 0 | BR45: =VLOOKUP(X$3,Prisindeks!$A$1:$B$111,2,FALSE)/100*AU45 -> 0 | BS45: =VLOOKUP(Y$3,Prisindeks!$A$1:$B$111,2,FALSE)/100*AV45 -> 0 | BT45: =+SUM(AX45:BS45) -> 0 | BU45: =(AA45+AX45)/2 -> 0 | BV45: 0 | BW45: 0 | BX45: 0 | BY45: 0 | BZ45: 0 | CA45: 0 | CB45: 0 | CC45: 0 | CD45: 0 | CE45: 0 | CF45: 0 | CG45: 0 | CH45: 0 | CI45: 0 | CJ45: 0 | CK45: 0 | CL45: 0 | CM45: 0 | CN45: 0 | CO45: 0 | CP45: 0 | CQ45: =AVERAGE(AW45,BT45) -> 0 | CR45: =SUM(D45:Y45) -> 0
A46: Levetidsforlængelse | B46: år | C46: - | D46: 0 | E46: 0 | F46: 0 | G46: 0 | H46: 0 | I46: 0 | J46: 0 | K46: 0 | L46: 0 | M46: 0 | N46: 0 | O46: 0 | P46: 0 | Q46: 0 | R46: 0 | S46: 0 | T46: 0 | U46: 0 | V46: 0 | W46: 0 | X46: 0 | Y46: 0
A47: Boring (inkl. etablering, forerør, filter og prøvepumpning) - 22 | B47: dybdemeter | C47: =Genanskaffelsespriser!$E$5 -> 30 | D47: 0 | E47: 0 | F47: 0 | G47: 0 | H47: 0 | I47: 0 | J47: 0 | K47: 0 | L47: 0 | M47: 0 | N47: 0 | O47: 0 | P47: 0 | Q47: 0 | R47: 0 | S47: 0 | T47: 0 | U47: 0 | V47: 0 | W47: 0 | X47: 0 | Y47: 0 | AA47: =IF((D47*Genanskaffelsespriser!$D$5-(2009-D$3)/($C47+D48)*Genanskaffelsespriser!$D$5*D47)<0,0,(D47*Genanskaffelsespriser!$D$5-(2009-D$3)/($C47+D48)*Genanskaffelsespriser!$D$5*D47)) -> 0 | AB47: =IF((E47*Genanskaffelsespriser!$D$5-(2009-E$3)/($C47+E48)*Genanskaffelsespriser!$D$5*E47)<0,0,(E47*Genanskaffelsespriser!$D$5-(2009-E$3)/($C47+E48)*Genanskaffelsespriser!$D$5*E47)) -> 0 | AC47: =IF((F47*Genanskaffelsespriser!$D$5-(2009-F$3)/($C47+F48)*Genanskaffelsespriser!$D$5*F47)<0,0,(F47*Genanskaffelsespriser!$D$5-(2009-F$3)/($C47+F48)*Genanskaffelsespriser!$D$5*F47)) -> 0 | AD47: =IF((G47*Genanskaffelsespriser!$D$5-(2009-G$3)/($C47+G48)*Genanskaffelsespriser!$D$5*G47)<0,0,(G47*Genanskaffelsespriser!$D$5-(2009-G$3)/($C47+G48)*Genanskaffelsespriser!$D$5*G47)) -> 0 | AE47: =IF((H47*Genanskaffelsespriser!$D$5-(2009-H$3)/($C47+H48)*Genanskaffelsespriser!$D$5*H47)<0,0,(H47*Genanskaffelsespriser!$D$5-(2009-H$3)/($C47+H48)*Genanskaffelsespriser!$D$5*H47)) -> 0 | AF47: =IF((I47*Genanskaffelsespriser!$D$5-(2009-I$3)/($C47+I48)*Genanskaffelsespriser!$D$5*I47)<0,0,(I47*Genanskaffelsespriser!$D$5-(2009-I$3)/($C47+I48)*Genanskaffelsespriser!$D$5*I47)) -> 0 | AG47: =IF((J47*Genanskaffelsespriser!$D$5-(2009-J$3)/($C47+J48)*Genanskaffelsespriser!$D$5*J47)<0,0,(J47*Genanskaffelsespriser!$D$5-(2009-J$3)/($C47+J48)*Genanskaffelsespriser!$D$5*J47)) -> 0 | AH47: =IF((K47*Genanskaffelsespriser!$D$5-(2009-K$3)/($C47+K48)*Genanskaffelsespriser!$D$5*K47)<0,0,(K47*Genanskaffelsespriser!$D$5-(2009-K$3)/($C47+K48)*Genanskaffelsespriser!$D$5*K47)) -> 0 | AI47: =IF((L47*Genanskaffelsespriser!$D$5-(2009-L$3)/($C47+L48)*Genanskaffelsespriser!$D$5*L47)<0,0,(L47*Genanskaffelsespriser!$D$5-(2009-L$3)/($C47+L48)*Genanskaffelsespriser!$D$5*L47)) -> 0 | AJ47: =IF((M47*Genanskaffelsespriser!$D$5-(2009-M$3)/($C47+M48)*Genanskaffelsespriser!$D$5*M47)<0,0,(M47*Genanskaffelsespriser!$D$5-(2009-M$3)/($C47+M48)*Genanskaffelsespriser!$D$5*M47)) -> 0 | AK47: =IF((N47*Genanskaffelsespriser!$D$5-(2009-N$3)/($C47+N48)*Genanskaffelsespriser!$D$5*N47)<0,0,(N47*Genanskaffelsespriser!$D$5-(2009-N$3)/($C47+N48)*Genanskaffelsespriser!$D$5*N47)) -> 0 | AL47: =IF((O47*Genanskaffelsespriser!$D$5-(2009-O$3)/($C47+O48)*Genanskaffelsespriser!$D$5*O47)<0,0,(O47*Genanskaffelsespriser!$D$5-(2009-O$3)/($C47+O48)*Genanskaffelsespriser!$D$5*O47)) -> 0 | AM47: =IF((P47*Genanskaffelsespriser!$D$5-(2009-P$3)/($C47+P48)*Genanskaffelsespriser!$D$5*P47)<0,0,(P47*Genanskaffelsespriser!$D$5-(2009-P$3)/($C47+P48)*Genanskaffelsespriser!$D$5*P47)) -> 0 | AN47: =IF((Q47*Genanskaffelsespriser!$D$5-(2009-Q$3)/($C47+Q48)*Genanskaffelsespriser!$D$5*Q47)<0,0,(Q47*Genanskaffelsespriser!$D$5-(2009-Q$3)/($C47+Q48)*Genanskaffelsespriser!$D$5*Q47)) -> 0 | AO47: =IF((R47*Genanskaffelsespriser!$D$5-(2009-R$3)/($C47+R48)*Genanskaffelsespriser!$D$5*R47)<0,0,(R47*Genanskaffelsespriser!$D$5-(2009-R$3)/($C47+R48)*Genanskaffelsespriser!$D$5*R47)) -> 0 | AP47: =IF((S47*Genanskaffelsespriser!$D$5-(2009-S$3)/($C47+S48)*Genanskaffelsespriser!$D$5*S47)<0,0,(S47*Genanskaffelsespriser!$D$5-(2009-S$3)/($C47+S48)*Genanskaffelsespriser!$D$5*S47)) -> 0 | AQ47: =IF((T47*Genanskaffelsespriser!$D$5-(2009-T$3)/($C47+T48)*Genanskaffelsespriser!$D$5*T47)<0,0,(T47*Genanskaffelsespriser!$D$5-(2009-T$3)/($C47+T48)*Genanskaffelsespriser!$D$5*T47)) -> 0 | AR47: =IF((U47*Genanskaffelsespriser!$D$5-(2009-U$3)/($C47+U48)*Genanskaffelsespriser!$D$5*U47)<0,0,(U47*Genanskaffelsespriser!$D$5-(2009-U$3)/($C47+U48)*Genanskaffelsespriser!$D$5*U47)) -> 0 | AS47: =IF((V47*Genanskaffelsespriser!$D$5-(2009-V$3)/($C47+V48)*Genanskaffelsespriser!$D$5*V47)<0,0,(V47*Genanskaffelsespriser!$D$5-(2009-V$3)/($C47+V48)*Genanskaffelsespriser!$D$5*V47)) -> 0 | AT47: =IF((W47*Genanskaffelsespriser!$D$5-(2009-W$3)/($C47+W48)*Genanskaffelsespriser!$D$5*W47)<0,0,(W47*Genanskaffelsespriser!$D$5-(2009-W$3)/($C47+W48)*Genanskaffelsespriser!$D$5*W47)) -> 0 | AU47: =IF((X47*Genanskaffelsespriser!$D$5-(2009-X$3)/($C47+X48)*Genanskaffelsespriser!$D$5*X47)<0,0,(X47*Genanskaffelsespriser!$D$5-(2009-X$3)/($C47+X48)*Genanskaffelsespriser!$D$5*X47)) -> 0 | AV47: =IF((Y47*Genanskaffelsespriser!$D$5-(2009-Y$3)/($C47+Y48)*Genanskaffelsespriser!$D$5*Y47)<0,0,(Y47*Genanskaffelsespriser!$D$5-(2009-Y$3)/($C47+Y48)*Genanskaffelsespriser!$D$5*Y47)) -> 0 | AW47: =+SUM(AA47:AV47) -> 0 | AX47: =VLOOKUP(D$3,Prisindeks!$A$1:$B$111,2,FALSE)/100*AA47 -> 0 | AY47: =VLOOKUP(E$3,Prisindeks!$A$1:$B$111,2,FALSE)/100*AB47 -> 0 | AZ47: =VLOOKUP(F$3,Prisindeks!$A$1:$B$111,2,FALSE)/100*AC47 -> 0 | BA47: =VLOOKUP(G$3,Prisindeks!$A$1:$B$111,2,FALSE)/100*AD47 -> 0 | BB47: =VLOOKUP(H$3,Prisindeks!$A$1:$B$111,2,FALSE)/100*AE47 -> 0 | BC47: =VLOOKUP(I$3,Prisindeks!$A$1:$B$111,2,FALSE)/100*AF47 -> 0 | BD47: =VLOOKUP(J$3,Prisindeks!$A$1:$B$111,2,FALSE)/100*AG47 -> 0 | BE47: =VLOOKUP(K$3,Prisindeks!$A$1:$B$111,2,FALSE)/100*AH47 -> 0 | BF47: =VLOOKUP(L$3,Prisindeks!$A$1:$B$111,2,FALSE)/100*AI47 -> 0 | BG47: =VLOOKUP(M$3,Prisindeks!$A$1:$B$111,2,FALSE)/100*AJ47 -> 0 | BH47: =VLOOKUP(N$3,Prisindeks!$A$1:$B$111,2,FALSE)/100*AK47 -> 0 | BI47: =VLOOKUP(O$3,Prisindeks!$A$1:$B$111,2,FALSE)/100*AL47 -> 0 | BJ47: =VLOOKUP(P$3,Prisindeks!$A$1:$B$111,2,FALSE)/100*AM47 -> 0 | BK47: =VLOOKUP(Q$3,Prisindeks!$A$1:$B$111,2,FALSE)/100*AN47 -> 0 | BL47: =VLOOKUP(R$3,Prisindeks!$A$1:$B$111,2,FALSE)/100*AO47 -> 0 | BM47: =VLOOKUP(S$3,Prisindeks!$A$1:$B$111,2,FALSE)/100*AP47 -> 0 | BN47: =VLOOKUP(T$3,Prisindeks!$A$1:$B$111,2,FALSE)/100*AQ47 -> 0 | BO47: =VLOOKUP(U$3,Prisindeks!$A$1:$B$111,2,FALSE)/100*AR47 -> 0 | BP47: =VLOOKUP(V$3,Prisindeks!$A$1:$B$111,2,FALSE)/100*AS47 -> 0 | BQ47: =VLOOKUP(W$3,Prisindeks!$A$1:$B$111,2,FALSE)/100*AT47 -> 0 | BR47: =VLOOKUP(X$3,Prisindeks!$A$1:$B$111,2,FALSE)/100*AU47 -> 0 | BS47: =VLOOKUP(Y$3,Prisindeks!$A$1:$B$111,2,FALSE)/100*AV47 -> 0 | BT47: =+SUM(AX47:BS47) -> 0 | BU47: =(AA47+AX47)/2 -> 0 | BV47: 0 | BW47: 0 | BX47: 0 | BY47: 0 | BZ47: 0 | CA47: 0 | CB47: 0 | CC47: 0 | CD47: 0 | CE47: 0 | CF47: 0 | CG47: 0 | CH47: 0 | CI47: 0 | CJ47: 0 | CK47: 0 | CL47: 0 | CM47: 0 | CN47: 0 | CO47: 0 | CP47: 0 | CQ47: =AVERAGE(AW47,BT47) -> 0 | CR47: =SUM(D47:Y47) -> 0
A48: Levetidsforlængelse | B48: år | C48: - | D48: 0 | E48: 0 | F48: 0 | G48: 0 | H48: 0 | I48: 0 | J48: 0 | K48: 0 | L48: 0 | M48: 0 | N48: 0 | O48: 0 | P48: 0 | Q48: 0 | R48: 0 | S48: 0 | T48: 0 | U48: 0 | V48: 0 | W48: 0 | X48: 0 | Y48: 0
A49: Boring (inkl. etablering, forerør, filter og prøvepumpning) - 23 | B49: dybdemeter | C49: =Genanskaffelsespriser!$E$5 -> 30 | D49: 0 | E49: 0 | F49: 0 | G49: 0 | H49: 0 | I49: 0 | J49: 0 | K49: 0 | L49: 0 | M49: 0 | N49: 0 | O49: 0 | P49: 0 | Q49: 0 | R49: 0 | S49: 0 | T49: 0 | U49: 0 | V49: 0 | W49: 0 | X49: 0 | Y49: 0 | AA49: =IF((D49*Genanskaffelsespriser!$D$5-(2009-D$3)/($C49+D50)*Genanskaffelsespriser!$D$5*D49)<0,0,(D49*Genanskaffelsespriser!$D$5-(2009-D$3)/($C49+D50)*Genanskaffelsespriser!$D$5*D49)) -> 0 | AB49: =IF((E49*Genanskaffelsespriser!$D$5-(2009-E$3)/($C49+E50)*Genanskaffelsespriser!$D$5*E49)<0,0,(E49*Genanskaffelsespriser!$D$5-(2009-E$3)/($C49+E50)*Genanskaffelsespriser!$D$5*E49)) -> 0 | AC49: =IF((F49*Genanskaffelsespriser!$D$5-(2009-F$3)/($C49+F50)*Genanskaffelsespriser!$D$5*F49)<0,0,(F49*Genanskaffelsespriser!$D$5-(2009-F$3)/($C49+F50)*Genanskaffelsespriser!$D$5*F49)) -> 0 | AD49: =IF((G49*Genanskaffelsespriser!$D$5-(2009-G$3)/($C49+G50)*Genanskaffelsespriser!$D$5*G49)<0,0,(G49*Genanskaffelsespriser!$D$5-(2009-G$3)/($C49+G50)*Genanskaffelsespriser!$D$5*G49)) -> 0 | AE49: =IF((H49*Genanskaffelsespriser!$D$5-(2009-H$3)/($C49+H50)*Genanskaffelsespriser!$D$5*H49)<0,0,(H49*Genanskaffelsespriser!$D$5-(2009-H$3)/($C49+H50)*Genanskaffelsespriser!$D$5*H49)) -> 0 | AF49: =IF((I49*Genanskaffelsespriser!$D$5-(2009-I$3)/($C49+I50)*Genanskaffelsespriser!$D$5*I49)<0,0,(I49*Genanskaffelsespriser!$D$5-(2009-I$3)/($C49+I50)*Genanskaffelsespriser!$D$5*I49)) -> 0 | AG49: =IF((J49*Genanskaffelsespriser!$D$5-(2009-J$3)/($C49+J50)*Genanskaffelsespriser!$D$5*J49)<0,0,(J49*Genanskaffelsespriser!$D$5-(2009-J$3)/($C49+J50)*Genanskaffelsespriser!$D$5*J49)) -> 0 | AH49: =IF((K49*Genanskaffelsespriser!$D$5-(2009-K$3)/($C49+K50)*Genanskaffelsespriser!$D$5*K49)<0,0,(K49*Genanskaffelsespriser!$D$5-(2009-K$3)/($C49+K50)*Genanskaffelsespriser!$D$5*K49)) -> 0 | AI49: =IF((L49*Genanskaffelsespriser!$D$5-(2009-L$3)/($C49+L50)*Genanskaffelsespriser!$D$5*L49)<0,0,(L49*Genanskaffelsespriser!$D$5-(2009-L$3)/($C49+L50)*Genanskaffelsespriser!$D$5*L49)) -> 0 | AJ49: =IF((M49*Genanskaffelsespriser!$D$5-(2009-M$3)/($C49+M50)*Genanskaffelsespriser!$D$5*M49)<0,0,(M49*Genanskaffelsespriser!$D$5-(2009-M$3)/($C49+M50)*Genanskaffelsespriser!$D$5*M49)) -> 0 | AK49: =IF((N49*Genanskaffelsespriser!$D$5-(2009-N$3)/($C49+N50)*Genanskaffelsespriser!$D$5*N49)<0,0,(N49*Genanskaffelsespriser!$D$5-(2009-N$3)/($C49+N50)*Genanskaffelsespriser!$D$5*N49)) -> 0 | AL49: =IF((O49*Genanskaffelsespriser!$D$5-(2009-O$3)/($C49+O50)*Genanskaffelsespriser!$D$5*O49)<0,0,(O49*Genanskaffelsespriser!$D$5-(2009-O$3)/($C49+O50)*Genanskaffelsespriser!$D$5*O49)) -> 0 | AM49: =IF((P49*Genanskaffelsespriser!$D$5-(2009-P$3)/($C49+P50)*Genanskaffelsespriser!$D$5*P49)<0,0,(P49*Genanskaffelsespriser!$D$5-(2009-P$3)/($C49+P50)*Genanskaffelsespriser!$D$5*P49)) -> 0 | AN49: =IF((Q49*Genanskaffelsespriser!$D$5-(2009-Q$3)/($C49+Q50)*Genanskaffelsespriser!$D$5*Q49)<0,0,(Q49*Genanskaffelsespriser!$D$5-(2009-Q$3)/($C49+Q50)*Genanskaffelsespriser!$D$5*Q49)) -> 0 | AO49: =IF((R49*Genanskaffelsespriser!$D$5-(2009-R$3)/($C49+R50)*Genanskaffelsespriser!$D$5*R49)<0,0,(R49*Genanskaffelsespriser!$D$5-(2009-R$3)/($C49+R50)*Genanskaffelsespriser!$D$5*R49)) -> 0 | AP49: =IF((S49*Genanskaffelsespriser!$D$5-(2009-S$3)/($C49+S50)*Genanskaffelsespriser!$D$5*S49)<0,0,(S49*Genanskaffelsespriser!$D$5-(2009-S$3)/($C49+S50)*Genanskaffelsespriser!$D$5*S49)) -> 0 | AQ49: =IF((T49*Genanskaffelsespriser!$D$5-(2009-T$3)/($C49+T50)*Genanskaffelsespriser!$D$5*T49)<0,0,(T49*Genanskaffelsespriser!$D$5-(2009-T$3)/($C49+T50)*Genanskaffelsespriser!$D$5*T49)) -> 0 | AR49: =IF((U49*Genanskaffelsespriser!$D$5-(2009-U$3)/($C49+U50)*Genanskaffelsespriser!$D$5*U49)<0,0,(U49*Genanskaffelsespriser!$D$5-(2009-U$3)/($C49+U50)*Genanskaffelsespriser!$D$5*U49)) -> 0 | AS49: =IF((V49*Genanskaffelsespriser!$D$5-(2009-V$3)/($C49+V50)*Genanskaffelsespriser!$D$5*V49)<0,0,(V49*Genanskaffelsespriser!$D$5-(2009-V$3)/($C49+V50)*Genanskaffelsespriser!$D$5*V49)) -> 0 | AT49: =IF((W49*Genanskaffelsespriser!$D$5-(2009-W$3)/($C49+W50)*Genanskaffelsespriser!$D$5*W49)<0,0,(W49*Genanskaffelsespriser!$D$5-(2009-W$3)/($C49+W50)*Genanskaffelsespriser!$D$5*W49)) -> 0 | AU49: =IF((X49*Genanskaffelsespriser!$D$5-(2009-X$3)/($C49+X50)*Genanskaffelsespriser!$D$5*X49)<0,0,(X49*Genanskaffelsespriser!$D$5-(2009-X$3)/($C49+X50)*Genanskaffelsespriser!$D$5*X49)) -> 0 | AV49: =IF((Y49*Genanskaffelsespriser!$D$5-(2009-Y$3)/($C49+Y50)*Genanskaffelsespriser!$D$5*Y49)<0,0,(Y49*Genanskaffelsespriser!$D$5-(2009-Y$3)/($C49+Y50)*Genanskaffelsespriser!$D$5*Y49)) -> 0 | AW49: =+SUM(AA49:AV49) -> 0 | AX49: =VLOOKUP(D$3,Prisindeks!$A$1:$B$111,2,FALSE)/100*AA49 -> 0 | AY49: =VLOOKUP(E$3,Prisindeks!$A$1:$B$111,2,FALSE)/100*AB49 -> 0 | AZ49: =VLOOKUP(F$3,Prisindeks!$A$1:$B$111,2,FALSE)/100*AC49 -> 0 | BA49: =VLOOKUP(G$3,Prisindeks!$A$1:$B$111,2,FALSE)/100*AD49 -> 0 | BB49: =VLOOKUP(H$3,Prisindeks!$A$1:$B$111,2,FALSE)/100*AE49 -> 0 | BC49: =VLOOKUP(I$3,Prisindeks!$A$1:$B$111,2,FALSE)/100*AF49 -> 0 | BD49: =VLOOKUP(J$3,Prisindeks!$A$1:$B$111,2,FALSE)/100*AG49 -> 0 | BE49: =VLOOKUP(K$3,Prisindeks!$A$1:$B$111,2,FALSE)/100*AH49 -> 0 | BF49: =VLOOKUP(L$3,Prisindeks!$A$1:$B$111,2,FALSE)/100*AI49 -> 0 | BG49: =VLOOKUP(M$3,Prisindeks!$A$1:$B$111,2,FALSE)/100*AJ49 -> 0 | BH49: =VLOOKUP(N$3,Prisindeks!$A$1:$B$111,2,FALSE)/100*AK49 -> 0 | BI49: =VLOOKUP(O$3,Prisindeks!$A$1:$B$111,2,FALSE)/100*AL49 -> 0 | BJ49: =VLOOKUP(P$3,Prisindeks!$A$1:$B$111,2,FALSE)/100*AM49 -> 0 | BK49: =VLOOKUP(Q$3,Prisindeks!$A$1:$B$111,2,FALSE)/100*AN49 -> 0 | BL49: =VLOOKUP(R$3,Prisindeks!$A$1:$B$111,2,FALSE)/100*AO49 -> 0 | BM49: =VLOOKUP(S$3,Prisindeks!$A$1:$B$111,2,FALSE)/100*AP49 -> 0 | BN49: =VLOOKUP(T$3,Prisindeks!$A$1:$B$111,2,FALSE)/100*AQ49 -> 0 | BO49: =VLOOKUP(U$3,Prisindeks!$A$1:$B$111,2,FALSE)/100*AR49 -> 0 | BP49: =VLOOKUP(V$3,Prisindeks!$A$1:$B$111,2,FALSE)/100*AS49 -> 0 | BQ49: =VLOOKUP(W$3,Prisindeks!$A$1:$B$111,2,FALSE)/100*AT49 -> 0 | BR49: =VLOOKUP(X$3,Prisindeks!$A$1:$B$111,2,FALSE)/100*AU49 -> 0 | BS49: =VLOOKUP(Y$3,Prisindeks!$A$1:$B$111,2,FALSE)/100*AV49 -> 0 | BT49: =+SUM(AX49:BS49) -> 0 | BU49: =(AA49+AX49)/2 -> 0 | BV49: 0 | BW49: 0 | BX49: 0 | BY49: 0 | BZ49: 0 | CA49: 0 | CB49: 0 | CC49: 0 | CD49: 0 | CE49: 0 | CF49: 0 | CG49: 0 | CH49: 0 | CI49: 0 | CJ49: 0 | CK49: 0 | CL49: 0 | CM49: 0 | CN49: 0 | CO49: 0 | CP49: 0 | CQ49: =AVERAGE(AW49,BT49) -> 0 | CR49: =SUM(D49:Y49) -> 0
A50: Levetidsforlængelse | B50: år | C50: - | D50: 0 | E50: 0 | F50: 0 | G50: 0 | H50: 0 | I50: 0 | J50: 0 | K50: 0 | L50: 0 | M50: 0 | N50: 0 | O50: 0 | P50: 0 | Q50: 0 | R50: 0 | S50: 0 | T50: 0 | U50: 0 | V50: 0 | W50: 0 | X50: 0 | Y50: 0
A51: Boring (inkl. etablering, forerør, filter og prøvepumpning) - 24 | B51: dybdemeter | C51: =Genanskaffelsespriser!$E$5 -> 30 | D51: 0 | E51: 0 | F51: 0 | G51: 0 | H51: 0 | I51: 0 | J51: 0 | K51: 0 | L51: 0 | M51: 0 | N51: 0 | O51: 0 | P51: 0 | Q51: 0 | R51: 0 | S51: 0 | T51: 0 | U51: 0 | V51: 0 | W51: 0 | X51: 0 | Y51: 0 | AA51: =IF((D51*Genanskaffelsespriser!$D$5-(2009-D$3)/($C51+D52)*Genanskaffelsespriser!$D$5*D51)<0,0,(D51*Genanskaffelsespriser!$D$5-(2009-D$3)/($C51+D52)*Genanskaffelsespriser!$D$5*D51)) -> 0 | AB51: =IF((E51*Genanskaffelsespriser!$D$5-(2009-E$3)/($C51+E52)*Genanskaffelsespriser!$D$5*E51)<0,0,(E51*Genanskaffelsespriser!$D$5-(2009-E$3)/($C51+E52)*Genanskaffelsespriser!$D$5*E51)) -> 0 | AC51: =IF((F51*Genanskaffelsespriser!$D$5-(2009-F$3)/($C51+F52)*Genanskaffelsespriser!$D$5*F51)<0,0,(F51*Genanskaffelsespriser!$D$5-(2009-F$3)/($C51+F52)*Genanskaffelsespriser!$D$5*F51)) -> 0 | AD51: =IF((G51*Genanskaffelsespriser!$D$5-(2009-G$3)/($C51+G52)*Genanskaffelsespriser!$D$5*G51)<0,0,(G51*Genanskaffelsespriser!$D$5-(2009-G$3)/($C51+G52)*Genanskaffelsespriser!$D$5*G51)) -> 0 | AE51: =IF((H51*Genanskaffelsespriser!$D$5-(2009-H$3)/($C51+H52)*Genanskaffelsespriser!$D$5*H51)<0,0,(H51*Genanskaffelsespriser!$D$5-(2009-H$3)/($C51+H52)*Genanskaffelsespriser!$D$5*H51)) -> 0 | AF51: =IF((I51*Genanskaffelsespriser!$D$5-(2009-I$3)/($C51+I52)*Genanskaffelsespriser!$D$5*I51)<0,0,(I51*Genanskaffelsespriser!$D$5-(2009-I$3)/($C51+I52)*Genanskaffelsespriser!$D$5*I51)) -> 0 | AG51: =IF((J51*Genanskaffelsespriser!$D$5-(2009-J$3)/($C51+J52)*Genanskaffelsespriser!$D$5*J51)<0,0,(J51*Genanskaffelsespriser!$D$5-(2009-J$3)/($C51+J52)*Genanskaffelsespriser!$D$5*J51)) -> 0 | AH51: =IF((K51*Genanskaffelsespriser!$D$5-(2009-K$3)/($C51+K52)*Genanskaffelsespriser!$D$5*K51)<0,0,(K51*Genanskaffelsespriser!$D$5-(2009-K$3)/($C51+K52)*Genanskaffelsespriser!$D$5*K51)) -> 0 | AI51: =IF((L51*Genanskaffelsespriser!$D$5-(2009-L$3)/($C51+L52)*Genanskaffelsespriser!$D$5*L51)<0,0,(L51*Genanskaffelsespriser!$D$5-(2009-L$3)/($C51+L52)*Genanskaffelsespriser!$D$5*L51)) -> 0 | AJ51: =IF((M51*Genanskaffelsespriser!$D$5-(2009-M$3)/($C51+M52)*Genanskaffelsespriser!$D$5*M51)<0,0,(M51*Genanskaffelsespriser!$D$5-(2009-M$3)/($C51+M52)*Genanskaffelsespriser!$D$5*M51)) -> 0 | AK51: =IF((N51*Genanskaffelsespriser!$D$5-(2009-N$3)/($C51+N52)*Genanskaffelsespriser!$D$5*N51)<0,0,(N51*Genanskaffelsespriser!$D$5-(2009-N$3)/($C51+N52)*Genanskaffelsespriser!$D$5*N51)) -> 0 | AL51: =IF((O51*Genanskaffelsespriser!$D$5-(2009-O$3)/($C51+O52)*Genanskaffelsespriser!$D$5*O51)<0,0,(O51*Genanskaffelsespriser!$D$5-(2009-O$3)/($C51+O52)*Genanskaffelsespriser!$D$5*O51)) -> 0 | AM51: =IF((P51*Genanskaffelsespriser!$D$5-(2009-P$3)/($C51+P52)*Genanskaffelsespriser!$D$5*P51)<0,0,(P51*Genanskaffelsespriser!$D$5-(2009-P$3)/($C51+P52)*Genanskaffelsespriser!$D$5*P51)) -> 0 | AN51: =IF((Q51*Genanskaffelsespriser!$D$5-(2009-Q$3)/($C51+Q52)*Genanskaffelsespriser!$D$5*Q51)<0,0,(Q51*Genanskaffelsespriser!$D$5-(2009-Q$3)/($C51+Q52)*Genanskaffelsespriser!$D$5*Q51)) -> 0 | AO51: =IF((R51*Genanskaffelsespriser!$D$5-(2009-R$3)/($C51+R52)*Genanskaffelsespriser!$D$5*R51)<0,0,(R51*Genanskaffelsespriser!$D$5-(2009-R$3)/($C51+R52)*Genanskaffelsespriser!$D$5*R51)) -> 0 | AP51: =IF((S51*Genanskaffelsespriser!$D$5-(2009-S$3)/($C51+S52)*Genanskaffelsespriser!$D$5*S51)<0,0,(S51*Genanskaffelsespriser!$D$5-(2009-S$3)/($C51+S52)*Genanskaffelsespriser!$D$5*S51)) -> 0 | AQ51: =IF((T51*Genanskaffelsespriser!$D$5-(2009-T$3)/($C51+T52)*Genanskaffelsespriser!$D$5*T51)<0,0,(T51*Genanskaffelsespriser!$D$5-(2009-T$3)/($C51+T52)*Genanskaffelsespriser!$D$5*T51)) -> 0 | AR51: =IF((U51*Genanskaffelsespriser!$D$5-(2009-U$3)/($C51+U52)*Genanskaffelsespriser!$D$5*U51)<0,0,(U51*Genanskaffelsespriser!$D$5-(2009-U$3)/($C51+U52)*Genanskaffelsespriser!$D$5*U51)) -> 0 | AS51: =IF((V51*Genanskaffelsespriser!$D$5-(2009-V$3)/($C51+V52)*Genanskaffelsespriser!$D$5*V51)<0,0,(V51*Genanskaffelsespriser!$D$5-(2009-V$3)/($C51+V52)*Genanskaffelsespriser!$D$5*V51)) -> 0 | AT51: =IF((W51*Genanskaffelsespriser!$D$5-(2009-W$3)/($C51+W52)*Genanskaffelsespriser!$D$5*W51)<0,0,(W51*Genanskaffelsespriser!$D$5-(2009-W$3)/($C51+W52)*Genanskaffelsespriser!$D$5*W51)) -> 0 | AU51: =IF((X51*Genanskaffelsespriser!$D$5-(2009-X$3)/($C51+X52)*Genanskaffelsespriser!$D$5*X51)<0,0,(X51*Genanskaffelsespriser!$D$5-(2009-X$3)/($C51+X52)*Genanskaffelsespriser!$D$5*X51)) -> 0 | AV51: =IF((Y51*Genanskaffelsespriser!$D$5-(2009-Y$3)/($C51+Y52)*Genanskaffelsespriser!$D$5*Y51)<0,0,(Y51*Genanskaffelsespriser!$D$5-(2009-Y$3)/($C51+Y52)*Genanskaffelsespriser!$D$5*Y51)) -> 0 | AW51: =+SUM(AA51:AV51) -> 0 | AX51: =VLOOKUP(D$3,Prisindeks!$A$1:$B$111,2,FALSE)/100*AA51 -> 0 | AY51: =VLOOKUP(E$3,Prisindeks!$A$1:$B$111,2,FALSE)/100*AB51 -> 0 | AZ51: =VLOOKUP(F$3,Prisindeks!$A$1:$B$111,2,FALSE)/100*AC51 -> 0 | BA51: =VLOOKUP(G$3,Prisindeks!$A$1:$B$111,2,FALSE)/100*AD51 -> 0 | BB51: =VLOOKUP(H$3,Prisindeks!$A$1:$B$111,2,FALSE)/100*AE51 -> 0 | BC51: =VLOOKUP(I$3,Prisindeks!$A$1:$B$111,2,FALSE)/100*AF51 -> 0 | BD51: =VLOOKUP(J$3,Prisindeks!$A$1:$B$111,2,FALSE)/100*AG51 -> 0 | BE51: =VLOOKUP(K$3,Prisindeks!$A$1:$B$111,2,FALSE)/100*AH51 -> 0 | BF51: =VLOOKUP(L$3,Prisindeks!$A$1:$B$111,2,FALSE)/100*AI51 -> 0 | BG51: =VLOOKUP(M$3,Prisindeks!$A$1:$B$111,2,FALSE)/100*AJ51 -> 0 | BH51: =VLOOKUP(N$3,Prisindeks!$A$1:$B$111,2,FALSE)/100*AK51 -> 0 | BI51: =VLOOKUP(O$3,Prisindeks!$A$1:$B$111,2,FALSE)/100*AL51 -> 0 | BJ51: =VLOOKUP(P$3,Prisindeks!$A$1:$B$111,2,FALSE)/100*AM51 -> 0 | BK51: =VLOOKUP(Q$3,Prisindeks!$A$1:$B$111,2,FALSE)/100*AN51 -> 0 | BL51: =VLOOKUP(R$3,Prisindeks!$A$1:$B$111,2,FALSE)/100*AO51 -> 0 | BM51: =VLOOKUP(S$3,Prisindeks!$A$1:$B$111,2,FALSE)/100*AP51 -> 0 | BN51: =VLOOKUP(T$3,Prisindeks!$A$1:$B$111,2,FALSE)/100*AQ51 -> 0 | BO51: =VLOOKUP(U$3,Prisindeks!$A$1:$B$111,2,FALSE)/100*AR51 -> 0 | BP51: =VLOOKUP(V$3,Prisindeks!$A$1:$B$111,2,FALSE)/100*AS51 -> 0 | BQ51: =VLOOKUP(W$3,Prisindeks!$A$1:$B$111,2,FALSE)/100*AT51 -> 0 | BR51: =VLOOKUP(X$3,Prisindeks!$A$1:$B$111,2,FALSE)/100*AU51 -> 0 | BS51: =VLOOKUP(Y$3,Prisindeks!$A$1:$B$111,2,FALSE)/100*AV51 -> 0 | BT51: =+SUM(AX51:BS51) -> 0 | BU51: =(AA51+AX51)/2 -> 0 | BV51: 0 | BW51: 0 | BX51: 0 | BY51: 0 | BZ51: 0 | CA51: 0 | CB51: 0 | CC51: 0 | CD51: 0 | CE51: 0 | CF51: 0 | CG51: 0 | CH51: 0 | CI51: 0 | CJ51: 0 | CK51: 0 | CL51: 0 | CM51: 0 | CN51: 0 | CO51: 0 | CP51: 0 | CQ51: =AVERAGE(AW51,BT51) -> 0 | CR51: =SUM(D51:Y51) -> 0
A52: Levetidsforlængelse | B52: år | C52: - | D52: 0 | E52: 0 | F52: 0 | G52: 0 | H52: 0 | I52: 0 | J52: 0 | K52: 0 | L52: 0 | M52: 0 | N52: 0 | O52: 0 | P52: 0 | Q52: 0 | R52: 0 | S52: 0 | T52: 0 | U52: 0 | V52: 0 | W52: 0 | X52: 0 | Y52: 0
A53: Boring (inkl. etablering, forerør, filter og prøvepumpning) - 25 | B53: dybdemeter | C53: =Genanskaffelsespriser!$E$5 -> 30 | D53: 0 | E53: 0 | F53: 0 | G53: 0 | H53: 0 | I53: 0 | J53: 0 | K53: 0 | L53: 0 | M53: 0 | N53: 0 | O53: 0 | P53: 0 | Q53: 0 | R53: 0 | S53: 0 | T53: 0 | U53: 0 | V53: 0 | W53: 0 | X53: 0 | Y53: 0 | AA53: =IF((D53*Genanskaffelsespriser!$D$5-(2009-D$3)/($C53+D54)*Genanskaffelsespriser!$D$5*D53)<0,0,(D53*Genanskaffelsespriser!$D$5-(2009-D$3)/($C53+D54)*Genanskaffelsespriser!$D$5*D53)) -> 0 | AB53: =IF((E53*Genanskaffelsespriser!$D$5-(2009-E$3)/($C53+E54)*Genanskaffelsespriser!$D$5*E53)<0,0,(E53*Genanskaffelsespriser!$D$5-(2009-E$3)/($C53+E54)*Genanskaffelsespriser!$D$5*E53)) -> 0 | AC53: =IF((F53*Genanskaffelsespriser!$D$5-(2009-F$3)/($C53+F54)*Genanskaffelsespriser!$D$5*F53)<0,0,(F53*Genanskaffelsespriser!$D$5-(2009-F$3)/($C53+F54)*Genanskaffelsespriser!$D$5*F53)) -> 0 | AD53: =IF((G53*Genanskaffelsespriser!$D$5-(2009-G$3)/($C53+G54)*Genanskaffelsespriser!$D$5*G53)<0,0,(G53*Genanskaffelsespriser!$D$5-(2009-G$3)/($C53+G54)*Genanskaffelsespriser!$D$5*G53)) -> 0 | AE53: =IF((H53*Genanskaffelsespriser!$D$5-(2009-H$3)/($C53+H54)*Genanskaffelsespriser!$D$5*H53)<0,0,(H53*Genanskaffelsespriser!$D$5-(2009-H$3)/($C53+H54)*Genanskaffelsespriser!$D$5*H53)) -> 0 | AF53: =IF((I53*Genanskaffelsespriser!$D$5-(2009-I$3)/($C53+I54)*Genanskaffelsespriser!$D$5*I53)<0,0,(I53*Genanskaffelsespriser!$D$5-(2009-I$3)/($C53+I54)*Genanskaffelsespriser!$D$5*I53)) -> 0 | AG53: =IF((J53*Genanskaffelsespriser!$D$5-(2009-J$3)/($C53+J54)*Genanskaffelsespriser!$D$5*J53)<0,0,(J53*Genanskaffelsespriser!$D$5-(2009-J$3)/($C53+J54)*Genanskaffelsespriser!$D$5*J53)) -> 0 | AH53: =IF((K53*Genanskaffelsespriser!$D$5-(2009-K$3)/($C53+K54)*Genanskaffelsespriser!$D$5*K53)<0,0,(K53*Genanskaffelsespriser!$D$5-(2009-K$3)/($C53+K54)*Genanskaffelsespriser!$D$5*K53)) -> 0 | AI53: =IF((L53*Genanskaffelsespriser!$D$5-(2009-L$3)/($C53+L54)*Genanskaffelsespriser!$D$5*L53)<0,0,(L53*Genanskaffelsespriser!$D$5-(2009-L$3)/($C53+L54)*Genanskaffelsespriser!$D$5*L53)) -> 0 | AJ53: =IF((M53*Genanskaffelsespriser!$D$5-(2009-M$3)/($C53+M54)*Genanskaffelsespriser!$D$5*M53)<0,0,(M53*Genanskaffelsespriser!$D$5-(2009-M$3)/($C53+M54)*Genanskaffelsespriser!$D$5*M53)) -> 0 | AK53: =IF((N53*Genanskaffelsespriser!$D$5-(2009-N$3)/($C53+N54)*Genanskaffelsespriser!$D$5*N53)<0,0,(N53*Genanskaffelsespriser!$D$5-(2009-N$3)/($C53+N54)*Genanskaffelsespriser!$D$5*N53)) -> 0 | AL53: =IF((O53*Genanskaffelsespriser!$D$5-(2009-O$3)/($C53+O54)*Genanskaffelsespriser!$D$5*O53)<0,0,(O53*Genanskaffelsespriser!$D$5-(2009-O$3)/($C53+O54)*Genanskaffelsespriser!$D$5*O53)) -> 0 | AM53: =IF((P53*Genanskaffelsespriser!$D$5-(2009-P$3)/($C53+P54)*Genanskaffelsespriser!$D$5*P53)<0,0,(P53*Genanskaffelsespriser!$D$5-(2009-P$3)/($C53+P54)*Genanskaffelsespriser!$D$5*P53)) -> 0 | AN53: =IF((Q53*Genanskaffelsespriser!$D$5-(2009-Q$3)/($C53+Q54)*Genanskaffelsespriser!$D$5*Q53)<0,0,(Q53*Genanskaffelsespriser!$D$5-(2009-Q$3)/($C53+Q54)*Genanskaffelsespriser!$D$5*Q53)) -> 0 | AO53: =IF((R53*Genanskaffelsespriser!$D$5-(2009-R$3)/($C53+R54)*Genanskaffelsespriser!$D$5*R53)<0,0,(R53*Genanskaffelsespriser!$D$5-(2009-R$3)/($C53+R54)*Genanskaffelsespriser!$D$5*R53)) -> 0 | AP53: =IF((S53*Genanskaffelsespriser!$D$5-(2009-S$3)/($C53+S54)*Genanskaffelsespriser!$D$5*S53)<0,0,(S53*Genanskaffelsespriser!$D$5-(2009-S$3)/($C53+S54)*Genanskaffelsespriser!$D$5*S53)) -> 0 | AQ53: =IF((T53*Genanskaffelsespriser!$D$5-(2009-T$3)/($C53+T54)*Genanskaffelsespriser!$D$5*T53)<0,0,(T53*Genanskaffelsespriser!$D$5-(2009-T$3)/($C53+T54)*Genanskaffelsespriser!$D$5*T53)) -> 0 | AR53: =IF((U53*Genanskaffelsespriser!$D$5-(2009-U$3)/($C53+U54)*Genanskaffelsespriser!$D$5*U53)<0,0,(U53*Genanskaffelsespriser!$D$5-(2009-U$3)/($C53+U54)*Genanskaffelsespriser!$D$5*U53)) -> 0 | AS53: =IF((V53*Genanskaffelsespriser!$D$5-(2009-V$3)/($C53+V54)*Genanskaffelsespriser!$D$5*V53)<0,0,(V53*Genanskaffelsespriser!$D$5-(2009-V$3)/($C53+V54)*Genanskaffelsespriser!$D$5*V53)) -> 0 | AT53: =IF((W53*Genanskaffelsespriser!$D$5-(2009-W$3)/($C53+W54)*Genanskaffelsespriser!$D$5*W53)<0,0,(W53*Genanskaffelsespriser!$D$5-(2009-W$3)/($C53+W54)*Genanskaffelsespriser!$D$5*W53)) -> 0 | AU53: =IF((X53*Genanskaffelsespriser!$D$5-(2009-X$3)/($C53+X54)*Genanskaffelsespriser!$D$5*X53)<0,0,(X53*Genanskaffelsespriser!$D$5-(2009-X$3)/($C53+X54)*Genanskaffelsespriser!$D$5*X53)) -> 0 | AV53: =IF((Y53*Genanskaffelsespriser!$D$5-(2009-Y$3)/($C53+Y54)*Genanskaffelsespriser!$D$5*Y53)<0,0,(Y53*Genanskaffelsespriser!$D$5-(2009-Y$3)/($C53+Y54)*Genanskaffelsespriser!$D$5*Y53)) -> 0 | AW53: =+SUM(AA53:AV53) -> 0 | AX53: =VLOOKUP(D$3,Prisindeks!$A$1:$B$111,2,FALSE)/100*AA53 -> 0 | AY53: =VLOOKUP(E$3,Prisindeks!$A$1:$B$111,2,FALSE)/100*AB53 -> 0 | AZ53: =VLOOKUP(F$3,Prisindeks!$A$1:$B$111,2,FALSE)/100*AC53 -> 0 | BA53: =VLOOKUP(G$3,Prisindeks!$A$1:$B$111,2,FALSE)/100*AD53 -> 0 | BB53: =VLOOKUP(H$3,Prisindeks!$A$1:$B$111,2,FALSE)/100*AE53 -> 0 | BC53: =VLOOKUP(I$3,Prisindeks!$A$1:$B$111,2,FALSE)/100*AF53 -> 0 | BD53: =VLOOKUP(J$3,Prisindeks!$A$1:$B$111,2,FALSE)/100*AG53 -> 0 | BE53: =VLOOKUP(K$3,Prisindeks!$A$1:$B$111,2,FALSE)/100*AH53 -> 0 | BF53: =VLOOKUP(L$3,Prisindeks!$A$1:$B$111,2,FALSE)/100*AI53 -> 0 | BG53: =VLOOKUP(M$3,Prisindeks!$A$1:$B$111,2,FALSE)/100*AJ53 -> 0 | BH53: =VLOOKUP(N$3,Prisindeks!$A$1:$B$111,2,FALSE)/100*AK53 -> 0 | BI53: =VLOOKUP(O$3,Prisindeks!$A$1:$B$111,2,FALSE)/100*AL53 -> 0 | BJ53: =VLOOKUP(P$3,Prisindeks!$A$1:$B$111,2,FALSE)/100*AM53 -> 0 | BK53: =VLOOKUP(Q$3,Prisindeks!$A$1:$B$111,2,FALSE)/100*AN53 -> 0 | BL53: =VLOOKUP(R$3,Prisindeks!$A$1:$B$111,2,FALSE)/100*AO53 -> 0 | BM53: =VLOOKUP(S$3,Prisindeks!$A$1:$B$111,2,FALSE)/100*AP53 -> 0 | BN53: =VLOOKUP(T$3,Prisindeks!$A$1:$B$111,2,FALSE)/100*AQ53 -> 0 | BO53: =VLOOKUP(U$3,Prisindeks!$A$1:$B$111,2,FALSE)/100*AR53 -> 0 | BP53: =VLOOKUP(V$3,Prisindeks!$A$1:$B$111,2,FALSE)/100*AS53 -> 0 | BQ53: =VLOOKUP(W$3,Prisindeks!$A$1:$B$111,2,FALSE)/100*AT53 -> 0 | BR53: =VLOOKUP(X$3,Prisindeks!$A$1:$B$111,2,FALSE)/100*AU53 -> 0 | BS53: =VLOOKUP(Y$3,Prisindeks!$A$1:$B$111,2,FALSE)/100*AV53 -> 0 | BT53: =+SUM(AX53:BS53) -> 0 | BU53: =(AA53+AX53)/2 -> 0 | BV53: 0 | BW53: 0 | BX53: 0 | BY53: 0 | BZ53: 0 | CA53: 0 | CB53: 0 | CC53: 0 | CD53: 0 | CE53: 0 | CF53: 0 | CG53: 0 | CH53: 0 | CI53: 0 | CJ53: 0 | CK53: 0 | CL53: 0 | CM53: 0 | CN53: 0 | CO53: 0 | CP53: 0 | CQ53: =AVERAGE(AW53,BT53) -> 0 | CR53: =SUM(D53:Y53) -> 0
A54: Levetidsforlængelse | B54: år | C54: - | D54: 0 | E54: 0 | F54: 0 | G54: 0 | H54: 0 | I54: 0 | J54: 0 | K54: 0 | L54: 0 | M54: 0 | N54: 0 | O54: 0 | P54: 0 | Q54: 0 | R54: 0 | S54: 0 | T54: 0 | U54: 0 | V54: 0 | W54: 0 | X54: 0 | Y54: 0
A55: Boring (inkl. etablering, forerør, filter og prøvepumpning) - 26 | B55: dybdemeter | C55: =Genanskaffelsespriser!$E$5 -> 30 | D55: 0 | E55: 0 | F55: 0 | G55: 0 | H55: 0 | I55: 0 | J55: 0 | K55: 0 | L55: 0 | M55: 0 | N55: 0 | O55: 0 | P55: 0 | Q55: 0 | R55: 0 | S55: 0 | T55: 0 | U55: 0 | V55: 0 | W55: 0 | X55: 0 | Y55: 0 | AA55: =IF((D55*Genanskaffelsespriser!$D$5-(2009-D$3)/($C55+D56)*Genanskaffelsespriser!$D$5*D55)<0,0,(D55*Genanskaffelsespriser!$D$5-(2009-D$3)/($C55+D56)*Genanskaffelsespriser!$D$5*D55)) -> 0 | AB55: =IF((E55*Genanskaffelsespriser!$D$5-(2009-E$3)/($C55+E56)*Genanskaffelsespriser!$D$5*E55)<0,0,(E55*Genanskaffelsespriser!$D$5-(2009-E$3)/($C55+E56)*Genanskaffelsespriser!$D$5*E55)) -> 0 | AC55: =IF((F55*Genanskaffelsespriser!$D$5-(2009-F$3)/($C55+F56)*Genanskaffelsespriser!$D$5*F55)<0,0,(F55*Genanskaffelsespriser!$D$5-(2009-F$3)/($C55+F56)*Genanskaffelsespriser!$D$5*F55)) -> 0 | AD55: =IF((G55*Genanskaffelsespriser!$D$5-(2009-G$3)/($C55+G56)*Genanskaffelsespriser!$D$5*G55)<0,0,(G55*Genanskaffelsespriser!$D$5-(2009-G$3)/($C55+G56)*Genanskaffelsespriser!$D$5*G55)) -> 0 | AE55: =IF((H55*Genanskaffelsespriser!$D$5-(2009-H$3)/($C55+H56)*Genanskaffelsespriser!$D$5*H55)<0,0,(H55*Genanskaffelsespriser!$D$5-(2009-H$3)/($C55+H56)*Genanskaffelsespriser!$D$5*H55)) -> 0 | AF55: =IF((I55*Genanskaffelsespriser!$D$5-(2009-I$3)/($C55+I56)*Genanskaffelsespriser!$D$5*I55)<0,0,(I55*Genanskaffelsespriser!$D$5-(2009-I$3)/($C55+I56)*Genanskaffelsespriser!$D$5*I55)) -> 0 | AG55: =IF((J55*Genanskaffelsespriser!$D$5-(2009-J$3)/($C55+J56)*Genanskaffelsespriser!$D$5*J55)<0,0,(J55*Genanskaffelsespriser!$D$5-(2009-J$3)/($C55+J56)*Genanskaffelsespriser!$D$5*J55)) -> 0 | AH55: =IF((K55*Genanskaffelsespriser!$D$5-(2009-K$3)/($C55+K56)*Genanskaffelsespriser!$D$5*K55)<0,0,(K55*Genanskaffelsespriser!$D$5-(2009-K$3)/($C55+K56)*Genanskaffelsespriser!$D$5*K55)) -> 0 | AI55: =IF((L55*Genanskaffelsespriser!$D$5-(2009-L$3)/($C55+L56)*Genanskaffelsespriser!$D$5*L55)<0,0,(L55*Genanskaffelsespriser!$D$5-(2009-L$3)/($C55+L56)*Genanskaffelsespriser!$D$5*L55)) -> 0 | AJ55: =IF((M55*Genanskaffelsespriser!$D$5-(2009-M$3)/($C55+M56)*Genanskaffelsespriser!$D$5*M55)<0,0,(M55*Genanskaffelsespriser!$D$5-(2009-M$3)/($C55+M56)*Genanskaffelsespriser!$D$5*M55)) -> 0 | AK55: =IF((N55*Genanskaffelsespriser!$D$5-(2009-N$3)/($C55+N56)*Genanskaffelsespriser!$D$5*N55)<0,0,(N55*Genanskaffelsespriser!$D$5-(2009-N$3)/($C55+N56)*Genanskaffelsespriser!$D$5*N55)) -> 0 | AL55: =IF((O55*Genanskaffelsespriser!$D$5-(2009-O$3)/($C55+O56)*Genanskaffelsespriser!$D$5*O55)<0,0,(O55*Genanskaffelsespriser!$D$5-(2009-O$3)/($C55+O56)*Genanskaffelsespriser!$D$5*O55)) -> 0 | AM55: =IF((P55*Genanskaffelsespriser!$D$5-(2009-P$3)/($C55+P56)*Genanskaffelsespriser!$D$5*P55)<0,0,(P55*Genanskaffelsespriser!$D$5-(2009-P$3)/($C55+P56)*Genanskaffelsespriser!$D$5*P55)) -> 0 | AN55: =IF((Q55*Genanskaffelsespriser!$D$5-(2009-Q$3)/($C55+Q56)*Genanskaffelsespriser!$D$5*Q55)<0,0,(Q55*Genanskaffelsespriser!$D$5-(2009-Q$3)/($C55+Q56)*Genanskaffelsespriser!$D$5*Q55)) -> 0 | AO55: =IF((R55*Genanskaffelsespriser!$D$5-(2009-R$3)/($C55+R56)*Genanskaffelsespriser!$D$5*R55)<0,0,(R55*Genanskaffelsespriser!$D$5-(2009-R$3)/($C55+R56)*Genanskaffelsespriser!$D$5*R55)) -> 0 | AP55: =IF((S55*Genanskaffelsespriser!$D$5-(2009-S$3)/($C55+S56)*Genanskaffelsespriser!$D$5*S55)<0,0,(S55*Genanskaffelsespriser!$D$5-(2009-S$3)/($C55+S56)*Genanskaffelsespriser!$D$5*S55)) -> 0 | AQ55: =IF((T55*Genanskaffelsespriser!$D$5-(2009-T$3)/($C55+T56)*Genanskaffelsespriser!$D$5*T55)<0,0,(T55*Genanskaffelsespriser!$D$5-(2009-T$3)/($C55+T56)*Genanskaffelsespriser!$D$5*T55)) -> 0 | AR55: =IF((U55*Genanskaffelsespriser!$D$5-(2009-U$3)/($C55+U56)*Genanskaffelsespriser!$D$5*U55)<0,0,(U55*Genanskaffelsespriser!$D$5-(2009-U$3)/($C55+U56)*Genanskaffelsespriser!$D$5*U55)) -> 0 | AS55: =IF((V55*Genanskaffelsespriser!$D$5-(2009-V$3)/($C55+V56)*Genanskaffelsespriser!$D$5*V55)<0,0,(V55*Genanskaffelsespriser!$D$5-(2009-V$3)/($C55+V56)*Genanskaffelsespriser!$D$5*V55)) -> 0 | AT55: =IF((W55*Genanskaffelsespriser!$D$5-(2009-W$3)/($C55+W56)*Genanskaffelsespriser!$D$5*W55)<0,0,(W55*Genanskaffelsespriser!$D$5-(2009-W$3)/($C55+W56)*Genanskaffelsespriser!$D$5*W55)) -> 0 | AU55: =IF((X55*Genanskaffelsespriser!$D$5-(2009-X$3)/($C55+X56)*Genanskaffelsespriser!$D$5*X55)<0,0,(X55*Genanskaffelsespriser!$D$5-(2009-X$3)/($C55+X56)*Genanskaffelsespriser!$D$5*X55)) -> 0 | AV55: =IF((Y55*Genanskaffelsespriser!$D$5-(2009-Y$3)/($C55+Y56)*Genanskaffelsespriser!$D$5*Y55)<0,0,(Y55*Genanskaffelsespriser!$D$5-(2009-Y$3)/($C55+Y56)*Genanskaffelsespriser!$D$5*Y55)) -> 0 | AW55: =+SUM(AA55:AV55) -> 0 | AX55: =VLOOKUP(D$3,Prisindeks!$A$1:$B$111,2,FALSE)/100*AA55 -> 0 | AY55: =VLOOKUP(E$3,Prisindeks!$A$1:$B$111,2,FALSE)/100*AB55 -> 0 | AZ55: =VLOOKUP(F$3,Prisindeks!$A$1:$B$111,2,FALSE)/100*AC55 -> 0 | BA55: =VLOOKUP(G$3,Prisindeks!$A$1:$B$111,2,FALSE)/100*AD55 -> 0 | BB55: =VLOOKUP(H$3,Prisindeks!$A$1:$B$111,2,FALSE)/100*AE55 -> 0 | BC55: =VLOOKUP(I$3,Prisindeks!$A$1:$B$111,2,FALSE)/100*AF55 -> 0 | BD55: =VLOOKUP(J$3,Prisindeks!$A$1:$B$111,2,FALSE)/100*AG55 -> 0 | BE55: =VLOOKUP(K$3,Prisindeks!$A$1:$B$111,2,FALSE)/100*AH55 -> 0 | BF55: =VLOOKUP(L$3,Prisindeks!$A$1:$B$111,2,FALSE)/100*AI55 -> 0 | BG55: =VLOOKUP(M$3,Prisindeks!$A$1:$B$111,2,FALSE)/100*AJ55 -> 0 | BH55: =VLOOKUP(N$3,Prisindeks!$A$1:$B$111,2,FALSE)/100*AK55 -> 0 | BI55: =VLOOKUP(O$3,Prisindeks!$A$1:$B$111,2,FALSE)/100*AL55 -> 0 | BJ55: =VLOOKUP(P$3,Prisindeks!$A$1:$B$111,2,FALSE)/100*AM55 -> 0 | BK55: =VLOOKUP(Q$3,Prisindeks!$A$1:$B$111,2,FALSE)/100*AN55 -> 0 | BL55: =VLOOKUP(R$3,Prisindeks!$A$1:$B$111,2,FALSE)/100*AO55 -> 0 | BM55: =VLOOKUP(S$3,Prisindeks!$A$1:$B$111,2,FALSE)/100*AP55 -> 0 | BN55: =VLOOKUP(T$3,Prisindeks!$A$1:$B$111,2,FALSE)/100*AQ55 -> 0 | BO55: =VLOOKUP(U$3,Prisindeks!$A$1:$B$111,2,FALSE)/100*AR55 -> 0 | BP55: =VLOOKUP(V$3,Prisindeks!$A$1:$B$111,2,FALSE)/100*AS55 -> 0 | BQ55: =VLOOKUP(W$3,Prisindeks!$A$1:$B$111,2,FALSE)/100*AT55 -> 0 | BR55: =VLOOKUP(X$3,Prisindeks!$A$1:$B$111,2,FALSE)/100*AU55 -> 0 | BS55: =VLOOKUP(Y$3,Prisindeks!$A$1:$B$111,2,FALSE)/100*AV55 -> 0 | BT55: =+SUM(AX55:BS55) -> 0 | BU55: =(AA55+AX55)/2 -> 0 | BV55: 0 | BW55: 0 | BX55: 0 | BY55: 0 | BZ55: 0 | CA55: 0 | CB55: 0 | CC55: 0 | CD55: 0 | CE55: 0 | CF55: 0 | CG55: 0 | CH55: 0 | CI55: 0 | CJ55: 0 | CK55: 0 | CL55: 0 | CM55: 0 | CN55: 0 | CO55: 0 | CP55: 0 | CQ55: =AVERAGE(AW55,BT55) -> 0 | CR55: =SUM(D55:Y55) -> 0
A56: Levetidsforlængelse | B56: år | C56: - | D56: 0 | E56: 0 | F56: 0 | G56: 0 | H56: 0 | I56: 0 | J56: 0 | K56: 0 | L56: 0 | M56: 0 | N56: 0 | O56: 0 | P56: 0 | Q56: 0 | R56: 0 | S56: 0 | T56: 0 | U56: 0 | V56: 0 | W56: 0 | X56: 0 | Y56: 0
A57: Boring (inkl. etablering, forerør, filter og prøvepumpning) - 27 | B57: dybdemeter | C57: =Genanskaffelsespriser!$E$5 -> 30 | D57: 0 | E57: 0 | F57: 0 | G57: 0 | H57: 0 | I57: 0 | J57: 0 | K57: 0 | L57: 0 | M57: 0 | N57: 0 | O57: 0 | P57: 0 | Q57: 0 | R57: 0 | S57: 0 | T57: 0 | U57: 0 | V57: 0 | W57: 0 | X57: 0 | Y57: 0 | AA57: =IF((D57*Genanskaffelsespriser!$D$5-(2009-D$3)/($C57+D58)*Genanskaffelsespriser!$D$5*D57)<0,0,(D57*Genanskaffelsespriser!$D$5-(2009-D$3)/($C57+D58)*Genanskaffelsespriser!$D$5*D57)) -> 0 | AB57: =IF((E57*Genanskaffelsespriser!$D$5-(2009-E$3)/($C57+E58)*Genanskaffelsespriser!$D$5*E57)<0,0,(E57*Genanskaffelsespriser!$D$5-(2009-E$3)/($C57+E58)*Genanskaffelsespriser!$D$5*E57)) -> 0 | AC57: =IF((F57*Genanskaffelsespriser!$D$5-(2009-F$3)/($C57+F58)*Genanskaffelsespriser!$D$5*F57)<0,0,(F57*Genanskaffelsespriser!$D$5-(2009-F$3)/($C57+F58)*Genanskaffelsespriser!$D$5*F57)) -> 0 | AD57: =IF((G57*Genanskaffelsespriser!$D$5-(2009-G$3)/($C57+G58)*Genanskaffelsespriser!$D$5*G57)<0,0,(G57*Genanskaffelsespriser!$D$5-(2009-G$3)/($C57+G58)*Genanskaffelsespriser!$D$5*G57)) -> 0 | AE57: =IF((H57*Genanskaffelsespriser!$D$5-(2009-H$3)/($C57+H58)*Genanskaffelsespriser!$D$5*H57)<0,0,(H57*Genanskaffelsespriser!$D$5-(2009-H$3)/($C57+H58)*Genanskaffelsespriser!$D$5*H57)) -> 0 | AF57: =IF((I57*Genanskaffelsespriser!$D$5-(2009-I$3)/($C57+I58)*Genanskaffelsespriser!$D$5*I57)<0,0,(I57*Genanskaffelsespriser!$D$5-(2009-I$3)/($C57+I58)*Genanskaffelsespriser!$D$5*I57)) -> 0 | AG57: =IF((J57*Genanskaffelsespriser!$D$5-(2009-J$3)/($C57+J58)*Genanskaffelsespriser!$D$5*J57)<0,0,(J57*Genanskaffelsespriser!$D$5-(2009-J$3)/($C57+J58)*Genanskaffelsespriser!$D$5*J57)) -> 0 | AH57: =IF((K57*Genanskaffelsespriser!$D$5-(2009-K$3)/($C57+K58)*Genanskaffelsespriser!$D$5*K57)<0,0,(K57*Genanskaffelsespriser!$D$5-(2009-K$3)/($C57+K58)*Genanskaffelsespriser!$D$5*K57)) -> 0 | AI57: =IF((L57*Genanskaffelsespriser!$D$5-(2009-L$3)/($C57+L58)*Genanskaffelsespriser!$D$5*L57)<0,0,(L57*Genanskaffelsespriser!$D$5-(2009-L$3)/($C57+L58)*Genanskaffelsespriser!$D$5*L57)) -> 0 | AJ57: =IF((M57*Genanskaffelsespriser!$D$5-(2009-M$3)/($C57+M58)*Genanskaffelsespriser!$D$5*M57)<0,0,(M57*Genanskaffelsespriser!$D$5-(2009-M$3)/($C57+M58)*Genanskaffelsespriser!$D$5*M57)) -> 0 | AK57: =IF((N57*Genanskaffelsespriser!$D$5-(2009-N$3)/($C57+N58)*Genanskaffelsespriser!$D$5*N57)<0,0,(N57*Genanskaffelsespriser!$D$5-(2009-N$3)/($C57+N58)*Genanskaffelsespriser!$D$5*N57)) -> 0 | AL57: =IF((O57*Genanskaffelsespriser!$D$5-(2009-O$3)/($C57+O58)*Genanskaffelsespriser!$D$5*O57)<0,0,(O57*Genanskaffelsespriser!$D$5-(2009-O$3)/($C57+O58)*Genanskaffelsespriser!$D$5*O57)) -> 0 | AM57: =IF((P57*Genanskaffelsespriser!$D$5-(2009-P$3)/($C57+P58)*Genanskaffelsespriser!$D$5*P57)<0,0,(P57*Genanskaffelsespriser!$D$5-(2009-P$3)/($C57+P58)*Genanskaffelsespriser!$D$5*P57)) -> 0 | AN57: =IF((Q57*Genanskaffelsespriser!$D$5-(2009-Q$3)/($C57+Q58)*Genanskaffelsespriser!$D$5*Q57)<0,0,(Q57*Genanskaffelsespriser!$D$5-(2009-Q$3)/($C57+Q58)*Genanskaffelsespriser!$D$5*Q57)) -> 0 | AO57: =IF((R57*Genanskaffelsespriser!$D$5-(2009-R$3)/($C57+R58)*Genanskaffelsespriser!$D$5*R57)<0,0,(R57*Genanskaffelsespriser!$D$5-(2009-R$3)/($C57+R58)*Genanskaffelsespriser!$D$5*R57)) -> 0 | AP57: =IF((S57*Genanskaffelsespriser!$D$5-(2009-S$3)/($C57+S58)*Genanskaffelsespriser!$D$5*S57)<0,0,(S57*Genanskaffelsespriser!$D$5-(2009-S$3)/($C57+S58)*Genanskaffelsespriser!$D$5*S57)) -> 0 | AQ57: =IF((T57*Genanskaffelsespriser!$D$5-(2009-T$3)/($C57+T58)*Genanskaffelsespriser!$D$5*T57)<0,0,(T57*Genanskaffelsespriser!$D$5-(2009-T$3)/($C57+T58)*Genanskaffelsespriser!$D$5*T57)) -> 0 | AR57: =IF((U57*Genanskaffelsespriser!$D$5-(2009-U$3)/($C57+U58)*Genanskaffelsespriser!$D$5*U57)<0,0,(U57*Genanskaffelsespriser!$D$5-(2009-U$3)/($C57+U58)*Genanskaffelsespriser!$D$5*U57)) -> 0 | AS57: =IF((V57*Genanskaffelsespriser!$D$5-(2009-V$3)/($C57+V58)*Genanskaffelsespriser!$D$5*V57)<0,0,(V57*Genanskaffelsespriser!$D$5-(2009-V$3)/($C57+V58)*Genanskaffelsespriser!$D$5*V57)) -> 0 | AT57: =IF((W57*Genanskaffelsespriser!$D$5-(2009-W$3)/($C57+W58)*Genanskaffelsespriser!$D$5*W57)<0,0,(W57*Genanskaffelsespriser!$D$5-(2009-W$3)/($C57+W58)*Genanskaffelsespriser!$D$5*W57)) -> 0 | AU57: =IF((X57*Genanskaffelsespriser!$D$5-(2009-X$3)/($C57+X58)*Genanskaffelsespriser!$D$5*X57)<0,0,(X57*Genanskaffelsespriser!$D$5-(2009-X$3)/($C57+X58)*Genanskaffelsespriser!$D$5*X57)) -> 0 | AV57: =IF((Y57*Genanskaffelsespriser!$D$5-(2009-Y$3)/($C57+Y58)*Genanskaffelsespriser!$D$5*Y57)<0,0,(Y57*Genanskaffelsespriser!$D$5-(2009-Y$3)/($C57+Y58)*Genanskaffelsespriser!$D$5*Y57)) -> 0 | AW57: =+SUM(AA57:AV57) -> 0 | AX57: =VLOOKUP(D$3,Prisindeks!$A$1:$B$111,2,FALSE)/100*AA57 -> 0 | AY57: =VLOOKUP(E$3,Prisindeks!$A$1:$B$111,2,FALSE)/100*AB57 -> 0 | AZ57: =VLOOKUP(F$3,Prisindeks!$A$1:$B$111,2,FALSE)/100*AC57 -> 0 | BA57: =VLOOKUP(G$3,Prisindeks!$A$1:$B$111,2,FALSE)/100*AD57 -> 0 | BB57: =VLOOKUP(H$3,Prisindeks!$A$1:$B$111,2,FALSE)/100*AE57 -> 0 | BC57: =VLOOKUP(I$3,Prisindeks!$A$1:$B$111,2,FALSE)/100*AF57 -> 0 | BD57: =VLOOKUP(J$3,Prisindeks!$A$1:$B$111,2,FALSE)/100*AG57 -> 0 | BE57: =VLOOKUP(K$3,Prisindeks!$A$1:$B$111,2,FALSE)/100*AH57 -> 0 | BF57: =VLOOKUP(L$3,Prisindeks!$A$1:$B$111,2,FALSE)/100*AI57 -> 0 | BG57: =VLOOKUP(M$3,Prisindeks!$A$1:$B$111,2,FALSE)/100*AJ57 -> 0 | BH57: =VLOOKUP(N$3,Prisindeks!$A$1:$B$111,2,FALSE)/100*AK57 -> 0 | BI57: =VLOOKUP(O$3,Prisindeks!$A$1:$B$111,2,FALSE)/100*AL57 -> 0 | BJ57: =VLOOKUP(P$3,Prisindeks!$A$1:$B$111,2,FALSE)/100*AM57 -> 0 | BK57: =VLOOKUP(Q$3,Prisindeks!$A$1:$B$111,2,FALSE)/100*AN57 -> 0 | BL57: =VLOOKUP(R$3,Prisindeks!$A$1:$B$111,2,FALSE)/100*AO57 -> 0 | BM57: =VLOOKUP(S$3,Prisindeks!$A$1:$B$111,2,FALSE)/100*AP57 -> 0 | BN57: =VLOOKUP(T$3,Prisindeks!$A$1:$B$111,2,FALSE)/100*AQ57 -> 0 | BO57: =VLOOKUP(U$3,Prisindeks!$A$1:$B$111,2,FALSE)/100*AR57 -> 0 | BP57: =VLOOKUP(V$3,Prisindeks!$A$1:$B$111,2,FALSE)/100*AS57 -> 0 | BQ57: =VLOOKUP(W$3,Prisindeks!$A$1:$B$111,2,FALSE)/100*AT57 -> 0 | BR57: =VLOOKUP(X$3,Prisindeks!$A$1:$B$111,2,FALSE)/100*AU57 -> 0 | BS57: =VLOOKUP(Y$3,Prisindeks!$A$1:$B$111,2,FALSE)/100*AV57 -> 0 | BT57: =+SUM(AX57:BS57) -> 0 | BU57: =(AA57+AX57)/2 -> 0 | BV57: 0 | BW57: 0 | BX57: 0 | BY57: 0 | BZ57: 0 | CA57: 0 | CB57: 0 | CC57: 0 | CD57: 0 | CE57: 0 | CF57: 0 | CG57: 0 | CH57: 0 | CI57: 0 | CJ57: 0 | CK57: 0 | CL57: 0 | CM57: 0 | CN57: 0 | CO57: 0 | CP57: 0 | CQ57: =AVERAGE(AW57,BT57) -> 0 | CR57: =SUM(D57:Y57) -> 0
A58: Levetidsforlængelse | B58: år | C58: - | D58: 0 | E58: 0 | F58: 0 | G58: 0 | H58: 0 | I58: 0 | J58: 0 | K58: 0 | L58: 0 | M58: 0 | N58: 0 | O58: 0 | P58: 0 | Q58: 0 | R58: 0 | S58: 0 | T58: 0 | U58: 0 | V58: 0 | W58: 0 | X58: 0 | Y58: 0
A59: Boring (inkl. etablering, forerør, filter og prøvepumpning) - 28 | B59: dybdemeter | C59: =Genanskaffelsespriser!$E$5 -> 30 | D59: 0 | E59: 0 | F59: 0 | G59: 0 | H59: 0 | I59: 0 | J59: 0 | K59: 0 | L59: 0 | M59: 0 | N59: 0 | O59: 0 | P59: 0 | Q59: 0 | R59: 0 | S59: 0 | T59: 0 | U59: 0 | V59: 0 | W59: 0 | X59: 0 | Y59: 0 | AA59: =IF((D59*Genanskaffelsespriser!$D$5-(2009-D$3)/($C59+D60)*Genanskaffelsespriser!$D$5*D59)<0,0,(D59*Genanskaffelsespriser!$D$5-(2009-D$3)/($C59+D60)*Genanskaffelsespriser!$D$5*D59)) -> 0 | AB59: =IF((E59*Genanskaffelsespriser!$D$5-(2009-E$3)/($C59+E60)*Genanskaffelsespriser!$D$5*E59)<0,0,(E59*Genanskaffelsespriser!$D$5-(2009-E$3)/($C59+E60)*Genanskaffelsespriser!$D$5*E59)) -> 0 | AC59: =IF((F59*Genanskaffelsespriser!$D$5-(2009-F$3)/($C59+F60)*Genanskaffelsespriser!$D$5*F59)<0,0,(F59*Genanskaffelsespriser!$D$5-(2009-F$3)/($C59+F60)*Genanskaffelsespriser!$D$5*F59)) -> 0 | AD59: =IF((G59*Genanskaffelsespriser!$D$5-(2009-G$3)/($C59+G60)*Genanskaffelsespriser!$D$5*G59)<0,0,(G59*Genanskaffelsespriser!$D$5-(2009-G$3)/($C59+G60)*Genanskaffelsespriser!$D$5*G59)) -> 0 | AE59: =IF((H59*Genanskaffelsespriser!$D$5-(2009-H$3)/($C59+H60)*Genanskaffelsespriser!$D$5*H59)<0,0,(H59*Genanskaffelsespriser!$D$5-(2009-H$3)/($C59+H60)*Genanskaffelsespriser!$D$5*H59)) -> 0 | AF59: =IF((I59*Genanskaffelsespriser!$D$5-(2009-I$3)/($C59+I60)*Genanskaffelsespriser!$D$5*I59)<0,0,(I59*Genanskaffelsespriser!$D$5-(2009-I$3)/($C59+I60)*Genanskaffelsespriser!$D$5*I59)) -> 0 | AG59: =IF((J59*Genanskaffelsespriser!$D$5-(2009-J$3)/($C59+J60)*Genanskaffelsespriser!$D$5*J59)<0,0,(J59*Genanskaffelsespriser!$D$5-(2009-J$3)/($C59+J60)*Genanskaffelsespriser!$D$5*J59)) -> 0 | AH59: =IF((K59*Genanskaffelsespriser!$D$5-(2009-K$3)/($C59+K60)*Genanskaffelsespriser!$D$5*K59)<0,0,(K59*Genanskaffelsespriser!$D$5-(2009-K$3)/($C59+K60)*Genanskaffelsespriser!$D$5*K59)) -> 0 | AI59: =IF((L59*Genanskaffelsespriser!$D$5-(2009-L$3)/($C59+L60)*Genanskaffelsespriser!$D$5*L59)<0,0,(L59*Genanskaffelsespriser!$D$5-(2009-L$3)/($C59+L60)*Genanskaffelsespriser!$D$5*L59)) -> 0 | AJ59: =IF((M59*Genanskaffelsespriser!$D$5-(2009-M$3)/($C59+M60)*Genanskaffelsespriser!$D$5*M59)<0,0,(M59*Genanskaffelsespriser!$D$5-(2009-M$3)/($C59+M60)*Genanskaffelsespriser!$D$5*M59)) -> 0 | AK59: =IF((N59*Genanskaffelsespriser!$D$5-(2009-N$3)/($C59+N60)*Genanskaffelsespriser!$D$5*N59)<0,0,(N59*Genanskaffelsespriser!$D$5-(2009-N$3)/($C59+N60)*Genanskaffelsespriser!$D$5*N59)) -> 0 | AL59: =IF((O59*Genanskaffelsespriser!$D$5-(2009-O$3)/($C59+O60)*Genanskaffelsespriser!$D$5*O59)<0,0,(O59*Genanskaffelsespriser!$D$5-(2009-O$3)/($C59+O60)*Genanskaffelsespriser!$D$5*O59)) -> 0 | AM59: =IF((P59*Genanskaffelsespriser!$D$5-(2009-P$3)/($C59+P60)*Genanskaffelsespriser!$D$5*P59)<0,0,(P59*Genanskaffelsespriser!$D$5-(2009-P$3)/($C59+P60)*Genanskaffelsespriser!$D$5*P59)) -> 0 | AN59: =IF((Q59*Genanskaffelsespriser!$D$5-(2009-Q$3)/($C59+Q60)*Genanskaffelsespriser!$D$5*Q59)<0,0,(Q59*Genanskaffelsespriser!$D$5-(2009-Q$3)/($C59+Q60)*Genanskaffelsespriser!$D$5*Q59)) -> 0 | AO59: =IF((R59*Genanskaffelsespriser!$D$5-(2009-R$3)/($C59+R60)*Genanskaffelsespriser!$D$5*R59)<0,0,(R59*Genanskaffelsespriser!$D$5-(2009-R$3)/($C59+R60)*Genanskaffelsespriser!$D$5*R59)) -> 0 | AP59: =IF((S59*Genanskaffelsespriser!$D$5-(2009-S$3)/($C59+S60)*Genanskaffelsespriser!$D$5*S59)<0,0,(S59*Genanskaffelsespriser!$D$5-(2009-S$3)/($C59+S60)*Genanskaffelsespriser!$D$5*S59)) -> 0 | AQ59: =IF((T59*Genanskaffelsespriser!$D$5-(2009-T$3)/($C59+T60)*Genanskaffelsespriser!$D$5*T59)<0,0,(T59*Genanskaffelsespriser!$D$5-(2009-T$3)/($C59+T60)*Genanskaffelsespriser!$D$5*T59)) -> 0 | AR59: =IF((U59*Genanskaffelsespriser!$D$5-(2009-U$3)/($C59+U60)*Genanskaffelsespriser!$D$5*U59)<0,0,(U59*Genanskaffelsespriser!$D$5-(2009-U$3)/($C59+U60)*Genanskaffelsespriser!$D$5*U59)) -> 0 | AS59: =IF((V59*Genanskaffelsespriser!$D$5-(2009-V$3)/($C59+V60)*Genanskaffelsespriser!$D$5*V59)<0,0,(V59*Genanskaffelsespriser!$D$5-(2009-V$3)/($C59+V60)*Genanskaffelsespriser!$D$5*V59)) -> 0 | AT59: =IF((W59*Genanskaffelsespriser!$D$5-(2009-W$3)/($C59+W60)*Genanskaffelsespriser!$D$5*W59)<0,0,(W59*Genanskaffelsespriser!$D$5-(2009-W$3)/($C59+W60)*Genanskaffelsespriser!$D$5*W59)) -> 0 | AU59: =IF((X59*Genanskaffelsespriser!$D$5-(2009-X$3)/($C59+X60)*Genanskaffelsespriser!$D$5*X59)<0,0,(X59*Genanskaffelsespriser!$D$5-(2009-X$3)/($C59+X60)*Genanskaffelsespriser!$D$5*X59)) -> 0 | AV59: =IF((Y59*Genanskaffelsespriser!$D$5-(2009-Y$3)/($C59+Y60)*Genanskaffelsespriser!$D$5*Y59)<0,0,(Y59*Genanskaffelsespriser!$D$5-(2009-Y$3)/($C59+Y60)*Genanskaffelsespriser!$D$5*Y59)) -> 0 | AW59: =+SUM(AA59:AV59) -> 0 | AX59: =VLOOKUP(D$3,Prisindeks!$A$1:$B$111,2,FALSE)/100*AA59 -> 0 | AY59: =VLOOKUP(E$3,Prisindeks!$A$1:$B$111,2,FALSE)/100*AB59 -> 0 | AZ59: =VLOOKUP(F$3,Prisindeks!$A$1:$B$111,2,FALSE)/100*AC59 -> 0 | BA59: =VLOOKUP(G$3,Prisindeks!$A$1:$B$111,2,FALSE)/100*AD59 -> 0 | BB59: =VLOOKUP(H$3,Prisindeks!$A$1:$B$111,2,FALSE)/100*AE59 -> 0 | BC59: =VLOOKUP(I$3,Prisindeks!$A$1:$B$111,2,FALSE)/100*AF59 -> 0 | BD59: =VLOOKUP(J$3,Prisindeks!$A$1:$B$111,2,FALSE)/100*AG59 -> 0 | BE59: =VLOOKUP(K$3,Prisindeks!$A$1:$B$111,2,FALSE)/100*AH59 -> 0 | BF59: =VLOOKUP(L$3,Prisindeks!$A$1:$B$111,2,FALSE)/100*AI59 -> 0 | BG59: =VLOOKUP(M$3,Prisindeks!$A$1:$B$111,2,FALSE)/100*AJ59 -> 0 | BH59: =VLOOKUP(N$3,Prisindeks!$A$1:$B$111,2,FALSE)/100*AK59 -> 0 | BI59: =VLOOKUP(O$3,Prisindeks!$A$1:$B$111,2,FALSE)/100*AL59 -> 0 | BJ59: =VLOOKUP(P$3,Prisindeks!$A$1:$B$111,2,FALSE)/100*AM59 -> 0 | BK59: =VLOOKUP(Q$3,Prisindeks!$A$1:$B$111,2,FALSE)/100*AN59 -> 0 | BL59: =VLOOKUP(R$3,Prisindeks!$A$1:$B$111,2,FALSE)/100*AO59 -> 0 | BM59: =VLOOKUP(S$3,Prisindeks!$A$1:$B$111,2,FALSE)/100*AP59 -> 0 | BN59: =VLOOKUP(T$3,Prisindeks!$A$1:$B$111,2,FALSE)/100*AQ59 -> 0 | BO59: =VLOOKUP(U$3,Prisindeks!$A$1:$B$111,2,FALSE)/100*AR59 -> 0 | BP59: =VLOOKUP(V$3,Prisindeks!$A$1:$B$111,2,FALSE)/100*AS59 -> 0 | BQ59: =VLOOKUP(W$3,Prisindeks!$A$1:$B$111,2,FALSE)/100*AT59 -> 0 | BR59: =VLOOKUP(X$3,Prisindeks!$A$1:$B$111,2,FALSE)/100*AU59 -> 0 | BS59: =VLOOKUP(Y$3,Prisindeks!$A$1:$B$111,2,FALSE)/100*AV59 -> 0 | BT59: =+SUM(AX59:BS59) -> 0 | BU59: =(AA59+AX59)/2 -> 0 | BV59: 0 | BW59: 0 | BX59: 0 | BY59: 0 | BZ59: 0 | CA59: 0 | CB59: 0 | CC59: 0 | CD59: 0 | CE59: 0 | CF59: 0 | CG59: 0 | CH59: 0 | CI59: 0 | CJ59: 0 | CK59: 0 | CL59: 0 | CM59: 0 | CN59: 0 | CO59: 0 | CP59: 0 | CQ59: =AVERAGE(AW59,BT59) -> 0 | CR59: =SUM(D59:Y59) -> 0
A60: Levetidsforlængelse | B60: år | C60: - | D60: 0 | E60: 0 | F60: 0 | G60: 0 | H60: 0 | I60: 0 | J60: 0 | K60: 0 | L60: 0 | M60: 0 | N60: 0 | O60: 0 | P60: 0 | Q60: 0 | R60: 0 | S60: 0 | T60: 0 | U60: 0 | V60: 0 | W60: 0 | X60: 0 | Y60: 0
A61: Boring (inkl. etablering, forerør, filter og prøvepumpning) - 29 | B61: dybdemeter | C61: =Genanskaffelsespriser!$E$5 -> 30 | D61: 0 | E61: 0 | F61: 0 | G61: 0 | H61: 0 | I61: 0 | J61: 0 | K61: 0 | L61: 0 | M61: 0 | N61: 0 | O61: 0 | P61: 0 | Q61: 0 | R61: 0 | S61: 0 | T61: 0 | U61: 0 | V61: 0 | W61: 0 | X61: 0 | Y61: 0 | AA61: =IF((D61*Genanskaffelsespriser!$D$5-(2009-D$3)/($C61+D62)*Genanskaffelsespriser!$D$5*D61)<0,0,(D61*Genanskaffelsespriser!$D$5-(2009-D$3)/($C61+D62)*Genanskaffelsespriser!$D$5*D61)) -> 0 | AB61: =IF((E61*Genanskaffelsespriser!$D$5-(2009-E$3)/($C61+E62)*Genanskaffelsespriser!$D$5*E61)<0,0,(E61*Genanskaffelsespriser!$D$5-(2009-E$3)/($C61+E62)*Genanskaffelsespriser!$D$5*E61)) -> 0 | AC61: =IF((F61*Genanskaffelsespriser!$D$5-(2009-F$3)/($C61+F62)*Genanskaffelsespriser!$D$5*F61)<0,0,(F61*Genanskaffelsespriser!$D$5-(2009-F$3)/($C61+F62)*Genanskaffelsespriser!$D$5*F61)) -> 0 | AD61: =IF((G61*Genanskaffelsespriser!$D$5-(2009-G$3)/($C61+G62)*Genanskaffelsespriser!$D$5*G61)<0,0,(G61*Genanskaffelsespriser!$D$5-(2009-G$3)/($C61+G62)*Genanskaffelsespriser!$D$5*G61)) -> 0 | AE61: =IF((H61*Genanskaffelsespriser!$D$5-(2009-H$3)/($C61+H62)*Genanskaffelsespriser!$D$5*H61)<0,0,(H61*Genanskaffelsespriser!$D$5-(2009-H$3)/($C61+H62)*Genanskaffelsespriser!$D$5*H61)) -> 0 | AF61: =IF((I61*Genanskaffelsespriser!$D$5-(2009-I$3)/($C61+I62)*Genanskaffelsespriser!$D$5*I61)<0,0,(I61*Genanskaffelsespriser!$D$5-(2009-I$3)/($C61+I62)*Genanskaffelsespriser!$D$5*I61)) -> 0 | AG61: =IF((J61*Genanskaffelsespriser!$D$5-(2009-J$3)/($C61+J62)*Genanskaffelsespriser!$D$5*J61)<0,0,(J61*Genanskaffelsespriser!$D$5-(2009-J$3)/($C61+J62)*Genanskaffelsespriser!$D$5*J61)) -> 0 | AH61: =IF((K61*Genanskaffelsespriser!$D$5-(2009-K$3)/($C61+K62)*Genanskaffelsespriser!$D$5*K61)<0,0,(K61*Genanskaffelsespriser!$D$5-(2009-K$3)/($C61+K62)*Genanskaffelsespriser!$D$5*K61)) -> 0 | AI61: =IF((L61*Genanskaffelsespriser!$D$5-(2009-L$3)/($C61+L62)*Genanskaffelsespriser!$D$5*L61)<0,0,(L61*Genanskaffelsespriser!$D$5-(2009-L$3)/($C61+L62)*Genanskaffelsespriser!$D$5*L61)) -> 0 | AJ61: =IF((M61*Genanskaffelsespriser!$D$5-(2009-M$3)/($C61+M62)*Genanskaffelsespriser!$D$5*M61)<0,0,(M61*Genanskaffelsespriser!$D$5-(2009-M$3)/($C61+M62)*Genanskaffelsespriser!$D$5*M61)) -> 0 | AK61: =IF((N61*Genanskaffelsespriser!$D$5-(2009-N$3)/($C61+N62)*Genanskaffelsespriser!$D$5*N61)<0,0,(N61*Genanskaffelsespriser!$D$5-(2009-N$3)/($C61+N62)*Genanskaffelsespriser!$D$5*N61)) -> 0 | AL61: =IF((O61*Genanskaffelsespriser!$D$5-(2009-O$3)/($C61+O62)*Genanskaffelsespriser!$D$5*O61)<0,0,(O61*Genanskaffelsespriser!$D$5-(2009-O$3)/($C61+O62)*Genanskaffelsespriser!$D$5*O61)) -> 0 | AM61: =IF((P61*Genanskaffelsespriser!$D$5-(2009-P$3)/($C61+P62)*Genanskaffelsespriser!$D$5*P61)<0,0,(P61*Genanskaffelsespriser!$D$5-(2009-P$3)/($C61+P62)*Genanskaffelsespriser!$D$5*P61)) -> 0 | AN61: =IF((Q61*Genanskaffelsespriser!$D$5-(2009-Q$3)/($C61+Q62)*Genanskaffelsespriser!$D$5*Q61)<0,0,(Q61*Genanskaffelsespriser!$D$5-(2009-Q$3)/($C61+Q62)*Genanskaffelsespriser!$D$5*Q61)) -> 0 | AO61: =IF((R61*Genanskaffelsespriser!$D$5-(2009-R$3)/($C61+R62)*Genanskaffelsespriser!$D$5*R61)<0,0,(R61*Genanskaffelsespriser!$D$5-(2009-R$3)/($C61+R62)*Genanskaffelsespriser!$D$5*R61)) -> 0 | AP61: =IF((S61*Genanskaffelsespriser!$D$5-(2009-S$3)/($C61+S62)*Genanskaffelsespriser!$D$5*S61)<0,0,(S61*Genanskaffelsespriser!$D$5-(2009-S$3)/($C61+S62)*Genanskaffelsespriser!$D$5*S61)) -> 0 | AQ61: =IF((T61*Genanskaffelsespriser!$D$5-(2009-T$3)/($C61+T62)*Genanskaffelsespriser!$D$5*T61)<0,0,(T61*Genanskaffelsespriser!$D$5-(2009-T$3)/($C61+T62)*Genanskaffelsespriser!$D$5*T61)) -> 0 | AR61: =IF((U61*Genanskaffelsespriser!$D$5-(2009-U$3)/($C61+U62)*Genanskaffelsespriser!$D$5*U61)<0,0,(U61*Genanskaffelsespriser!$D$5-(2009-U$3)/($C61+U62)*Genanskaffelsespriser!$D$5*U61)) -> 0 | AS61: =IF((V61*Genanskaffelsespriser!$D$5-(2009-V$3)/($C61+V62)*Genanskaffelsespriser!$D$5*V61)<0,0,(V61*Genanskaffelsespriser!$D$5-(2009-V$3)/($C61+V62)*Genanskaffelsespriser!$D$5*V61)) -> 0 | AT61: =IF((W61*Genanskaffelsespriser!$D$5-(2009-W$3)/($C61+W62)*Genanskaffelsespriser!$D$5*W61)<0,0,(W61*Genanskaffelsespriser!$D$5-(2009-W$3)/($C61+W62)*Genanskaffelsespriser!$D$5*W61)) -> 0 | AU61: =IF((X61*Genanskaffelsespriser!$D$5-(2009-X$3)/($C61+X62)*Genanskaffelsespriser!$D$5*X61)<0,0,(X61*Genanskaffelsespriser!$D$5-(2009-X$3)/($C61+X62)*Genanskaffelsespriser!$D$5*X61)) -> 0 | AV61: =IF((Y61*Genanskaffelsespriser!$D$5-(2009-Y$3)/($C61+Y62)*Genanskaffelsespriser!$D$5*Y61)<0,0,(Y61*Genanskaffelsespriser!$D$5-(2009-Y$3)/($C61+Y62)*Genanskaffelsespriser!$D$5*Y61)) -> 0 | AW61: =+SUM(AA61:AV61) -> 0 | AX61: =VLOOKUP(D$3,Prisindeks!$A$1:$B$111,2,FALSE)/100*AA61 -> 0 | AY61: =VLOOKUP(E$3,Prisindeks!$A$1:$B$111,2,FALSE)/100*AB61 -> 0 | AZ61: =VLOOKUP(F$3,Prisindeks!$A$1:$B$111,2,FALSE)/100*AC61 -> 0 | BA61: =VLOOKUP(G$3,Prisindeks!$A$1:$B$111,2,FALSE)/100*AD61 -> 0 | BB61: =VLOOKUP(H$3,Prisindeks!$A$1:$B$111,2,FALSE)/100*AE61 -> 0 | BC61: =VLOOKUP(I$3,Prisindeks!$A$1:$B$111,2,FALSE)/100*AF61 -> 0 | BD61: =VLOOKUP(J$3,Prisindeks!$A$1:$B$111,2,FALSE)/100*AG61 -> 0 | BE61: =VLOOKUP(K$3,Prisindeks!$A$1:$B$111,2,FALSE)/100*AH61 -> 0 | BF61: =VLOOKUP(L$3,Prisindeks!$A$1:$B$111,2,FALSE)/100*AI61 -> 0 | BG61: =VLOOKUP(M$3,Prisindeks!$A$1:$B$111,2,FALSE)/100*AJ61 -> 0 | BH61: =VLOOKUP(N$3,Prisindeks!$A$1:$B$111,2,FALSE)/100*AK61 -> 0 | BI61: =VLOOKUP(O$3,Prisindeks!$A$1:$B$111,2,FALSE)/100*AL61 -> 0 | BJ61: =VLOOKUP(P$3,Prisindeks!$A$1:$B$111,2,FALSE)/100*AM61 -> 0 | BK61: =VLOOKUP(Q$3,Prisindeks!$A$1:$B$111,2,FALSE)/100*AN61 -> 0 | BL61: =VLOOKUP(R$3,Prisindeks!$A$1:$B$111,2,FALSE)/100*AO61 -> 0 | BM61: =VLOOKUP(S$3,Prisindeks!$A$1:$B$111,2,FALSE)/100*AP61 -> 0 | BN61: =VLOOKUP(T$3,Prisindeks!$A$1:$B$111,2,FALSE)/100*AQ61 -> 0 | BO61: =VLOOKUP(U$3,Prisindeks!$A$1:$B$111,2,FALSE)/100*AR61 -> 0 | BP61: =VLOOKUP(V$3,Prisindeks!$A$1:$B$111,2,FALSE)/100*AS61 -> 0 | BQ61: =VLOOKUP(W$3,Prisindeks!$A$1:$B$111,2,FALSE)/100*AT61 -> 0 | BR61: =VLOOKUP(X$3,Prisindeks!$A$1:$B$111,2,FALSE)/100*AU61 -> 0 | BS61: =VLOOKUP(Y$3,Prisindeks!$A$1:$B$111,2,FALSE)/100*AV61 -> 0 | BT61: =+SUM(AX61:BS61) -> 0 | BU61: =(AA61+AX61)/2 -> 0 | BV61: 0 | BW61: 0 | BX61: 0 | BY61: 0 | BZ61: 0 | CA61: 0 | CB61: 0 | CC61: 0 | CD61: 0 | CE61: 0 | CF61: 0 | CG61: 0 | CH61: 0 | CI61: 0 | CJ61: 0 | CK61: 0 | CL61: 0 | CM61: 0 | CN61: 0 | CO61: 0 | CP61: 0 | CQ61: =AVERAGE(AW61,BT61) -> 0 | CR61: =SUM(D61:Y61) -> 0
A62: Levetidsforlængelse | B62: år | C62: - | D62: 0 | E62: 0 | F62: 0 | G62: 0 | H62: 0 | I62: 0 | J62: 0 | K62: 0 | L62: 0 | M62: 0 | N62: 0 | O62: 0 | P62: 0 | Q62: 0 | R62: 0 | S62: 0 | T62: 0 | U62: 0 | V62: 0 | W62: 0 | X62: 0 | Y62: 0
A63: Boring (inkl. etablering, forerør, filter og prøvepumpning) - 30 | B63: dybdemeter | C63: =Genanskaffelsespriser!$E$5 -> 30 | D63: 0 | E63: 0 | F63: 0 | G63: 0 | H63: 0 | I63: 0 | J63: 0 | K63: 0 | L63: 0 | M63: 0 | N63: 0 | O63: 0 | P63: 0 | Q63: 0 | R63: 0 | S63: 0 | T63: 0 | U63: 0 | V63: 0 | W63: 0 | X63: 0 | Y63: 0 | AA63: =IF((D63*Genanskaffelsespriser!$D$5-(2009-D$3)/($C63+D64)*Genanskaffelsespriser!$D$5*D63)<0,0,(D63*Genanskaffelsespriser!$D$5-(2009-D$3)/($C63+D64)*Genanskaffelsespriser!$D$5*D63)) -> 0 | AB63: =IF((E63*Genanskaffelsespriser!$D$5-(2009-E$3)/($C63+E64)*Genanskaffelsespriser!$D$5*E63)<0,0,(E63*Genanskaffelsespriser!$D$5-(2009-E$3)/($C63+E64)*Genanskaffelsespriser!$D$5*E63)) -> 0 | AC63: =IF((F63*Genanskaffelsespriser!$D$5-(2009-F$3)/($C63+F64)*Genanskaffelsespriser!$D$5*F63)<0,0,(F63*Genanskaffelsespriser!$D$5-(2009-F$3)/($C63+F64)*Genanskaffelsespriser!$D$5*F63)) -> 0 | AD63: =IF((G63*Genanskaffelsespriser!$D$5-(2009-G$3)/($C63+G64)*Genanskaffelsespriser!$D$5*G63)<0,0,(G63*Genanskaffelsespriser!$D$5-(2009-G$3)/($C63+G64)*Genanskaffelsespriser!$D$5*G63)) -> 0 | AE63: =IF((H63*Genanskaffelsespriser!$D$5-(2009-H$3)/($C63+H64)*Genanskaffelsespriser!$D$5*H63)<0,0,(H63*Genanskaffelsespriser!$D$5-(2009-H$3)/($C63+H64)*Genanskaffelsespriser!$D$5*H63)) -> 0 | AF63: =IF((I63*Genanskaffelsespriser!$D$5-(2009-I$3)/($C63+I64)*Genanskaffelsespriser!$D$5*I63)<0,0,(I63*Genanskaffelsespriser!$D$5-(2009-I$3)/($C63+I64)*Genanskaffelsespriser!$D$5*I63)) -> 0 | AG63: =IF((J63*Genanskaffelsespriser!$D$5-(2009-J$3)/($C63+J64)*Genanskaffelsespriser!$D$5*J63)<0,0,(J63*Genanskaffelsespriser!$D$5-(2009-J$3)/($C63+J64)*Genanskaffelsespriser!$D$5*J63)) -> 0 | AH63: =IF((K63*Genanskaffelsespriser!$D$5-(2009-K$3)/($C63+K64)*Genanskaffelsespriser!$D$5*K63)<0,0,(K63*Genanskaffelsespriser!$D$5-(2009-K$3)/($C63+K64)*Genanskaffelsespriser!$D$5*K63)) -> 0 | AI63: =IF((L63*Genanskaffelsespriser!$D$5-(2009-L$3)/($C63+L64)*Genanskaffelsespriser!$D$5*L63)<0,0,(L63*Genanskaffelsespriser!$D$5-(2009-L$3)/($C63+L64)*Genanskaffelsespriser!$D$5*L63)) -> 0 | AJ63: =IF((M63*Genanskaffelsespriser!$D$5-(2009-M$3)/($C63+M64)*Genanskaffelsespriser!$D$5*M63)<0,0,(M63*Genanskaffelsespriser!$D$5-(2009-M$3)/($C63+M64)*Genanskaffelsespriser!$D$5*M63)) -> 0 | AK63: =IF((N63*Genanskaffelsespriser!$D$5-(2009-N$3)/($C63+N64)*Genanskaffelsespriser!$D$5*N63)<0,0,(N63*Genanskaffelsespriser!$D$5-(2009-N$3)/($C63+N64)*Genanskaffelsespriser!$D$5*N63)) -> 0 | AL63: =IF((O63*Genanskaffelsespriser!$D$5-(2009-O$3)/($C63+O64)*Genanskaffelsespriser!$D$5*O63)<0,0,(O63*Genanskaffelsespriser!$D$5-(2009-O$3)/($C63+O64)*Genanskaffelsespriser!$D$5*O63)) -> 0 | AM63: =IF((P63*Genanskaffelsespriser!$D$5-(2009-P$3)/($C63+P64)*Genanskaffelsespriser!$D$5*P63)<0,0,(P63*Genanskaffelsespriser!$D$5-(2009-P$3)/($C63+P64)*Genanskaffelsespriser!$D$5*P63)) -> 0 | AN63: =IF((Q63*Genanskaffelsespriser!$D$5-(2009-Q$3)/($C63+Q64)*Genanskaffelsespriser!$D$5*Q63)<0,0,(Q63*Genanskaffelsespriser!$D$5-(2009-Q$3)/($C63+Q64)*Genanskaffelsespriser!$D$5*Q63)) -> 0 | AO63: =IF((R63*Genanskaffelsespriser!$D$5-(2009-R$3)/($C63+R64)*Genanskaffelsespriser!$D$5*R63)<0,0,(R63*Genanskaffelsespriser!$D$5-(2009-R$3)/($C63+R64)*Genanskaffelsespriser!$D$5*R63)) -> 0 | AP63: =IF((S63*Genanskaffelsespriser!$D$5-(2009-S$3)/($C63+S64)*Genanskaffelsespriser!$D$5*S63)<0,0,(S63*Genanskaffelsespriser!$D$5-(2009-S$3)/($C63+S64)*Genanskaffelsespriser!$D$5*S63)) -> 0 | AQ63: =IF((T63*Genanskaffelsespriser!$D$5-(2009-T$3)/($C63+T64)*Genanskaffelsespriser!$D$5*T63)<0,0,(T63*Genanskaffelsespriser!$D$5-(2009-T$3)/($C63+T64)*Genanskaffelsespriser!$D$5*T63)) -> 0 | AR63: =IF((U63*Genanskaffelsespriser!$D$5-(2009-U$3)/($C63+U64)*Genanskaffelsespriser!$D$5*U63)<0,0,(U63*Genanskaffelsespriser!$D$5-(2009-U$3)/($C63+U64)*Genanskaffelsespriser!$D$5*U63)) -> 0 | AS63: =IF((V63*Genanskaffelsespriser!$D$5-(2009-V$3)/($C63+V64)*Genanskaffelsespriser!$D$5*V63)<0,0,(V63*Genanskaffelsespriser!$D$5-(2009-V$3)/($C63+V64)*Genanskaffelsespriser!$D$5*V63)) -> 0 | AT63: =IF((W63*Genanskaffelsespriser!$D$5-(2009-W$3)/($C63+W64)*Genanskaffelsespriser!$D$5*W63)<0,0,(W63*Genanskaffelsespriser!$D$5-(2009-W$3)/($C63+W64)*Genanskaffelsespriser!$D$5*W63)) -> 0 | AU63: =IF((X63*Genanskaffelsespriser!$D$5-(2009-X$3)/($C63+X64)*Genanskaffelsespriser!$D$5*X63)<0,0,(X63*Genanskaffelsespriser!$D$5-(2009-X$3)/($C63+X64)*Genanskaffelsespriser!$D$5*X63)) -> 0 | AV63: =IF((Y63*Genanskaffelsespriser!$D$5-(2009-Y$3)/($C63+Y64)*Genanskaffelsespriser!$D$5*Y63)<0,0,(Y63*Genanskaffelsespriser!$D$5-(2009-Y$3)/($C63+Y64)*Genanskaffelsespriser!$D$5*Y63)) -> 0 | AW63: =+SUM(AA63:AV63) -> 0 | AX63: =VLOOKUP(D$3,Prisindeks!$A$1:$B$111,2,FALSE)/100*AA63 -> 0 | AY63: =VLOOKUP(E$3,Prisindeks!$A$1:$B$111,2,FALSE)/100*AB63 -> 0 | AZ63: =VLOOKUP(F$3,Prisindeks!$A$1:$B$111,2,FALSE)/100*AC63 -> 0 | BA63: =VLOOKUP(G$3,Prisindeks!$A$1:$B$111,2,FALSE)/100*AD63 -> 0 | BB63: =VLOOKUP(H$3,Prisindeks!$A$1:$B$111,2,FALSE)/100*AE63 -> 0 | BC63: =VLOOKUP(I$3,Prisindeks!$A$1:$B$111,2,FALSE)/100*AF63 -> 0 | BD63: =VLOOKUP(J$3,Prisindeks!$A$1:$B$111,2,FALSE)/100*AG63 -> 0 | BE63: =VLOOKUP(K$3,Prisindeks!$A$1:$B$111,2,FALSE)/100*AH63 -> 0 | BF63: =VLOOKUP(L$3,Prisindeks!$A$1:$B$111,2,FALSE)/100*AI63 -> 0 | BG63: =VLOOKUP(M$3,Prisindeks!$A$1:$B$111,2,FALSE)/100*AJ63 -> 0 | BH63: =VLOOKUP(N$3,Prisindeks!$A$1:$B$111,2,FALSE)/100*AK63 -> 0 | BI63: =VLOOKUP(O$3,Prisindeks!$A$1:$B$111,2,FALSE)/100*AL63 -> 0 | BJ63: =VLOOKUP(P$3,Prisindeks!$A$1:$B$111,2,FALSE)/100*AM63 -> 0 | BK63: =VLOOKUP(Q$3,Prisindeks!$A$1:$B$111,2,FALSE)/100*AN63 -> 0 | BL63: =VLOOKUP(R$3,Prisindeks!$A$1:$B$111,2,FALSE)/100*AO63 -> 0 | BM63: =VLOOKUP(S$3,Prisindeks!$A$1:$B$111,2,FALSE)/100*AP63 -> 0 | BN63: =VLOOKUP(T$3,Prisindeks!$A$1:$B$111,2,FALSE)/100*AQ63 -> 0 | BO63: =VLOOKUP(U$3,Prisindeks!$A$1:$B$111,2,FALSE)/100*AR63 -> 0 | BP63: =VLOOKUP(V$3,Prisindeks!$A$1:$B$111,2,FALSE)/100*AS63 -> 0 | BQ63: =VLOOKUP(W$3,Prisindeks!$A$1:$B$111,2,FALSE)/100*AT63 -> 0 | BR63: =VLOOKUP(X$3,Prisindeks!$A$1:$B$111,2,FALSE)/100*AU63 -> 0 | BS63: =VLOOKUP(Y$3,Prisindeks!$A$1:$B$111,2,FALSE)/100*AV63 -> 0 | BT63: =+SUM(AX63:BS63) -> 0 | BU63: =(AA63+AX63)/2 -> 0 | BV63: 0 | BW63: 0 | BX63: 0 | BY63: 0 | BZ63: 0 | CA63: 0 | CB63: 0 | CC63: 0 | CD63: 0 | CE63: 0 | CF63: 0 | CG63: 0 | CH63: 0 | CI63: 0 | CJ63: 0 | CK63: 0 | CL63: 0 | CM63: 0 | CN63: 0 | CO63: 0 | CP63: 0 | CQ63: =AVERAGE(AW63,BT63) -> 0 | CR63: =SUM(D63:Y63) -> 0
A64: Levetidsforlængelse | B64: år | C64: - | D64: 0 | E64: 0 | F64: 0 | G64: 0 | H64: 0 | I64: 0 | J64: 0 | K64: 0 | L64: 0 | M64: 0 | N64: 0 | O64: 0 | P64: 0 | Q64: 0 | R64: 0 | S64: 0 | T64: 0 | U64: 0 | V64: 0 | W64: 0 | X64: 0 | Y64: 0
A65: Boring (inkl. etablering, forerør, filter og prøvepumpning) - 31 | B65: dybdemeter | C65: =Genanskaffelsespriser!$E$5 -> 30 | D65: 0 | E65: 0 | F65: 0 | G65: 0 | H65: 0 | I65: 0 | J65: 0 | K65: 0 | L65: 0 | M65: 0 | N65: 0 | O65: 0 | P65: 0 | Q65: 0 | R65: 0 | S65: 0 | T65: 0 | U65: 0 | V65: 0 | W65: 0 | X65: 0 | Y65: 0 | AA65: =IF((D65*Genanskaffelsespriser!$D$5-(2009-D$3)/($C65+D66)*Genanskaffelsespriser!$D$5*D65)<0,0,(D65*Genanskaffelsespriser!$D$5-(2009-D$3)/($C65+D66)*Genanskaffelsespriser!$D$5*D65)) -> 0 | AB65: =IF((E65*Genanskaffelsespriser!$D$5-(2009-E$3)/($C65+E66)*Genanskaffelsespriser!$D$5*E65)<0,0,(E65*Genanskaffelsespriser!$D$5-(2009-E$3)/($C65+E66)*Genanskaffelsespriser!$D$5*E65)) -> 0 | AC65: =IF((F65*Genanskaffelsespriser!$D$5-(2009-F$3)/($C65+F66)*Genanskaffelsespriser!$D$5*F65)<0,0,(F65*Genanskaffelsespriser!$D$5-(2009-F$3)/($C65+F66)*Genanskaffelsespriser!$D$5*F65)) -> 0 | AD65: =IF((G65*Genanskaffelsespriser!$D$5-(2009-G$3)/($C65+G66)*Genanskaffelsespriser!$D$5*G65)<0,0,(G65*Genanskaffelsespriser!$D$5-(2009-G$3)/($C65+G66)*Genanskaffelsespriser!$D$5*G65)) -> 0 | AE65: =IF((H65*Genanskaffelsespriser!$D$5-(2009-H$3)/($C65+H66)*Genanskaffelsespriser!$D$5*H65)<0,0,(H65*Genanskaffelsespriser!$D$5-(2009-H$3)/($C65+H66)*Genanskaffelsespriser!$D$5*H65)) -> 0 | AF65: =IF((I65*Genanskaffelsespriser!$D$5-(2009-I$3)/($C65+I66)*Genanskaffelsespriser!$D$5*I65)<0,0,(I65*Genanskaffelsespriser!$D$5-(2009-I$3)/($C65+I66)*Genanskaffelsespriser!$D$5*I65)) -> 0 | AG65: =IF((J65*Genanskaffelsespriser!$D$5-(2009-J$3)/($C65+J66)*Genanskaffelsespriser!$D$5*J65)<0,0,(J65*Genanskaffelsespriser!$D$5-(2009-J$3)/($C65+J66)*Genanskaffelsespriser!$D$5*J65)) -> 0 | AH65: =IF((K65*Genanskaffelsespriser!$D$5-(2009-K$3)/($C65+K66)*Genanskaffelsespriser!$D$5*K65)<0,0,(K65*Genanskaffelsespriser!$D$5-(2009-K$3)/($C65+K66)*Genanskaffelsespriser!$D$5*K65)) -> 0 | AI65: =IF((L65*Genanskaffelsespriser!$D$5-(2009-L$3)/($C65+L66)*Genanskaffelsespriser!$D$5*L65)<0,0,(L65*Genanskaffelsespriser!$D$5-(2009-L$3)/($C65+L66)*Genanskaffelsespriser!$D$5*L65)) -> 0 | AJ65: =IF((M65*Genanskaffelsespriser!$D$5-(2009-M$3)/($C65+M66)*Genanskaffelsespriser!$D$5*M65)<0,0,(M65*Genanskaffelsespriser!$D$5-(2009-M$3)/($C65+M66)*Genanskaffelsespriser!$D$5*M65)) -> 0 | AK65: =IF((N65*Genanskaffelsespriser!$D$5-(2009-N$3)/($C65+N66)*Genanskaffelsespriser!$D$5*N65)<0,0,(N65*Genanskaffelsespriser!$D$5-(2009-N$3)/($C65+N66)*Genanskaffelsespriser!$D$5*N65)) -> 0 | AL65: =IF((O65*Genanskaffelsespriser!$D$5-(2009-O$3)/($C65+O66)*Genanskaffelsespriser!$D$5*O65)<0,0,(O65*Genanskaffelsespriser!$D$5-(2009-O$3)/($C65+O66)*Genanskaffelsespriser!$D$5*O65)) -> 0 | AM65: =IF((P65*Genanskaffelsespriser!$D$5-(2009-P$3)/($C65+P66)*Genanskaffelsespriser!$D$5*P65)<0,0,(P65*Genanskaffelsespriser!$D$5-(2009-P$3)/($C65+P66)*Genanskaffelsespriser!$D$5*P65)) -> 0 | AN65: =IF((Q65*Genanskaffelsespriser!$D$5-(2009-Q$3)/($C65+Q66)*Genanskaffelsespriser!$D$5*Q65)<0,0,(Q65*Genanskaffelsespriser!$D$5-(2009-Q$3)/($C65+Q66)*Genanskaffelsespriser!$D$5*Q65)) -> 0 | AO65: =IF((R65*Genanskaffelsespriser!$D$5-(2009-R$3)/($C65+R66)*Genanskaffelsespriser!$D$5*R65)<0,0,(R65*Genanskaffelsespriser!$D$5-(2009-R$3)/($C65+R66)*Genanskaffelsespriser!$D$5*R65)) -> 0 | AP65: =IF((S65*Genanskaffelsespriser!$D$5-(2009-S$3)/($C65+S66)*Genanskaffelsespriser!$D$5*S65)<0,0,(S65*Genanskaffelsespriser!$D$5-(2009-S$3)/($C65+S66)*Genanskaffelsespriser!$D$5*S65)) -> 0 | AQ65: =IF((T65*Genanskaffelsespriser!$D$5-(2009-T$3)/($C65+T66)*Genanskaffelsespriser!$D$5*T65)<0,0,(T65*Genanskaffelsespriser!$D$5-(2009-T$3)/($C65+T66)*Genanskaffelsespriser!$D$5*T65)) -> 0 | AR65: =IF((U65*Genanskaffelsespriser!$D$5-(2009-U$3)/($C65+U66)*Genanskaffelsespriser!$D$5*U65)<0,0,(U65*Genanskaffelsespriser!$D$5-(2009-U$3)/($C65+U66)*Genanskaffelsespriser!$D$5*U65)) -> 0 | AS65: =IF((V65*Genanskaffelsespriser!$D$5-(2009-V$3)/($C65+V66)*Genanskaffelsespriser!$D$5*V65)<0,0,(V65*Genanskaffelsespriser!$D$5-(2009-V$3)/($C65+V66)*Genanskaffelsespriser!$D$5*V65)) -> 0 | AT65: =IF((W65*Genanskaffelsespriser!$D$5-(2009-W$3)/($C65+W66)*Genanskaffelsespriser!$D$5*W65)<0,0,(W65*Genanskaffelsespriser!$D$5-(2009-W$3)/($C65+W66)*Genanskaffelsespriser!$D$5*W65)) -> 0 | AU65: =IF((X65*Genanskaffelsespriser!$D$5-(2009-X$3)/($C65+X66)*Genanskaffelsespriser!$D$5*X65)<0,0,(X65*Genanskaffelsespriser!$D$5-(2009-X$3)/($C65+X66)*Genanskaffelsespriser!$D$5*X65)) -> 0 | AV65: =IF((Y65*Genanskaffelsespriser!$D$5-(2009-Y$3)/($C65+Y66)*Genanskaffelsespriser!$D$5*Y65)<0,0,(Y65*Genanskaffelsespriser!$D$5-(2009-Y$3)/($C65+Y66)*Genanskaffelsespriser!$D$5*Y65)) -> 0 | AW65: =+SUM(AA65:AV65) -> 0 | AX65: =VLOOKUP(D$3,Prisindeks!$A$1:$B$111,2,FALSE)/100*AA65 -> 0 | AY65: =VLOOKUP(E$3,Prisindeks!$A$1:$B$111,2,FALSE)/100*AB65 -> 0 | AZ65: =VLOOKUP(F$3,Prisindeks!$A$1:$B$111,2,FALSE)/100*AC65 -> 0 | BA65: =VLOOKUP(G$3,Prisindeks!$A$1:$B$111,2,FALSE)/100*AD65 -> 0 | BB65: =VLOOKUP(H$3,Prisindeks!$A$1:$B$111,2,FALSE)/100*AE65 -> 0 | BC65: =VLOOKUP(I$3,Prisindeks!$A$1:$B$111,2,FALSE)/100*AF65 -> 0 | BD65: =VLOOKUP(J$3,Prisindeks!$A$1:$B$111,2,FALSE)/100*AG65 -> 0 | BE65: =VLOOKUP(K$3,Prisindeks!$A$1:$B$111,2,FALSE)/100*AH65 -> 0 | BF65: =VLOOKUP(L$3,Prisindeks!$A$1:$B$111,2,FALSE)/100*AI65 -> 0 | BG65: =VLOOKUP(M$3,Prisindeks!$A$1:$B$111,2,FALSE)/100*AJ65 -> 0 | BH65: =VLOOKUP(N$3,Prisindeks!$A$1:$B$111,2,FALSE)/100*AK65 -> 0 | BI65: =VLOOKUP(O$3,Prisindeks!$A$1:$B$111,2,FALSE)/100*AL65 -> 0 | BJ65: =VLOOKUP(P$3,Prisindeks!$A$1:$B$111,2,FALSE)/100*AM65 -> 0 | BK65: =VLOOKUP(Q$3,Prisindeks!$A$1:$B$111,2,FALSE)/100*AN65 -> 0 | BL65: =VLOOKUP(R$3,Prisindeks!$A$1:$B$111,2,FALSE)/100*AO65 -> 0 | BM65: =VLOOKUP(S$3,Prisindeks!$A$1:$B$111,2,FALSE)/100*AP65 -> 0 | BN65: =VLOOKUP(T$3,Prisindeks!$A$1:$B$111,2,FALSE)/100*AQ65 -> 0 | BO65: =VLOOKUP(U$3,Prisindeks!$A$1:$B$111,2,FALSE)/100*AR65 -> 0 | BP65: =VLOOKUP(V$3,Prisindeks!$A$1:$B$111,2,FALSE)/100*AS65 -> 0 | BQ65: =VLOOKUP(W$3,Prisindeks!$A$1:$B$111,2,FALSE)/100*AT65 -> 0 | BR65: =VLOOKUP(X$3,Prisindeks!$A$1:$B$111,2,FALSE)/100*AU65 -> 0 | BS65: =VLOOKUP(Y$3,Prisindeks!$A$1:$B$111,2,FALSE)/100*AV65 -> 0 | BT65: =+SUM(AX65:BS65) -> 0 | BU65: =(AA65+AX65)/2 -> 0 | BV65: 0 | BW65: 0 | BX65: 0 | BY65: 0 | BZ65: 0 | CA65: 0 | CB65: 0 | CC65: 0 | CD65: 0 | CE65: 0 | CF65: 0 | CG65: 0 | CH65: 0 | CI65: 0 | CJ65: 0 | CK65: 0 | CL65: 0 | CM65: 0 | CN65: 0 | CO65: 0 | CP65: 0 | CQ65: =AVERAGE(AW65,BT65) -> 0 | CR65: =SUM(D65:Y65) -> 0
A66: Levetidsforlængelse | B66: år | C66: - | D66: 0 | E66: 0 | F66: 0 | G66: 0 | H66: 0 | I66: 0 | J66: 0 | K66: 0 | L66: 0 | M66: 0 | N66: 0 | O66: 0 | P66: 0 | Q66: 0 | R66: 0 | S66: 0 | T66: 0 | U66: 0 | V66: 0 | W66: 0 | X66: 0 | Y66: 0
A67: Boring (inkl. etablering, forerør, filter og prøvepumpning) - 32 | B67: dybdemeter | C67: =Genanskaffelsespriser!$E$5 -> 30 | D67: 0 | E67: 0 | F67: 0 | G67: 0 | H67: 0 | I67: 0 | J67: 0 | K67: 0 | L67: 0 | M67: 0 | N67: 0 | O67: 0 | P67: 0 | Q67: 0 | R67: 0 | S67: 0 | T67: 0 | U67: 0 | V67: 0 | W67: 0 | X67: 0 | Y67: 0 | AA67: =IF((D67*Genanskaffelsespriser!$D$5-(2009-D$3)/($C67+D68)*Genanskaffelsespriser!$D$5*D67)<0,0,(D67*Genanskaffelsespriser!$D$5-(2009-D$3)/($C67+D68)*Genanskaffelsespriser!$D$5*D67)) -> 0 | AB67: =IF((E67*Genanskaffelsespriser!$D$5-(2009-E$3)/($C67+E68)*Genanskaffelsespriser!$D$5*E67)<0,0,(E67*Genanskaffelsespriser!$D$5-(2009-E$3)/($C67+E68)*Genanskaffelsespriser!$D$5*E67)) -> 0 | AC67: =IF((F67*Genanskaffelsespriser!$D$5-(2009-F$3)/($C67+F68)*Genanskaffelsespriser!$D$5*F67)<0,0,(F67*Genanskaffelsespriser!$D$5-(2009-F$3)/($C67+F68)*Genanskaffelsespriser!$D$5*F67)) -> 0 | AD67: =IF((G67*Genanskaffelsespriser!$D$5-(2009-G$3)/($C67+G68)*Genanskaffelsespriser!$D$5*G67)<0,0,(G67*Genanskaffelsespriser!$D$5-(2009-G$3)/($C67+G68)*Genanskaffelsespriser!$D$5*G67)) -> 0 | AE67: =IF((H67*Genanskaffelsespriser!$D$5-(2009-H$3)/($C67+H68)*Genanskaffelsespriser!$D$5*H67)<0,0,(H67*Genanskaffelsespriser!$D$5-(2009-H$3)/($C67+H68)*Genanskaffelsespriser!$D$5*H67)) -> 0 | AF67: =IF((I67*Genanskaffelsespriser!$D$5-(2009-I$3)/($C67+I68)*Genanskaffelsespriser!$D$5*I67)<0,0,(I67*Genanskaffelsespriser!$D$5-(2009-I$3)/($C67+I68)*Genanskaffelsespriser!$D$5*I67)) -> 0 | AG67: =IF((J67*Genanskaffelsespriser!$D$5-(2009-J$3)/($C67+J68)*Genanskaffelsespriser!$D$5*J67)<0,0,(J67*Genanskaffelsespriser!$D$5-(2009-J$3)/($C67+J68)*Genanskaffelsespriser!$D$5*J67)) -> 0 | AH67: =IF((K67*Genanskaffelsespriser!$D$5-(2009-K$3)/($C67+K68)*Genanskaffelsespriser!$D$5*K67)<0,0,(K67*Genanskaffelsespriser!$D$5-(2009-K$3)/($C67+K68)*Genanskaffelsespriser!$D$5*K67)) -> 0 | AI67: =IF((L67*Genanskaffelsespriser!$D$5-(2009-L$3)/($C67+L68)*Genanskaffelsespriser!$D$5*L67)<0,0,(L67*Genanskaffelsespriser!$D$5-(2009-L$3)/($C67+L68)*Genanskaffelsespriser!$D$5*L67)) -> 0 | AJ67: =IF((M67*Genanskaffelsespriser!$D$5-(2009-M$3)/($C67+M68)*Genanskaffelsespriser!$D$5*M67)<0,0,(M67*Genanskaffelsespriser!$D$5-(2009-M$3)/($C67+M68)*Genanskaffelsespriser!$D$5*M67)) -> 0 | AK67: =IF((N67*Genanskaffelsespriser!$D$5-(2009-N$3)/($C67+N68)*Genanskaffelsespriser!$D$5*N67)<0,0,(N67*Genanskaffelsespriser!$D$5-(2009-N$3)/($C67+N68)*Genanskaffelsespriser!$D$5*N67)) -> 0 | AL67: =IF((O67*Genanskaffelsespriser!$D$5-(2009-O$3)/($C67+O68)*Genanskaffelsespriser!$D$5*O67)<0,0,(O67*Genanskaffelsespriser!$D$5-(2009-O$3)/($C67+O68)*Genanskaffelsespriser!$D$5*O67)) -> 0 | AM67: =IF((P67*Genanskaffelsespriser!$D$5-(2009-P$3)/($C67+P68)*Genanskaffelsespriser!$D$5*P67)<0,0,(P67*Genanskaffelsespriser!$D$5-(2009-P$3)/($C67+P68)*Genanskaffelsespriser!$D$5*P67)) -> 0 | AN67: =IF((Q67*Genanskaffelsespriser!$D$5-(2009-Q$3)/($C67+Q68)*Genanskaffelsespriser!$D$5*Q67)<0,0,(Q67*Genanskaffelsespriser!$D$5-(2009-Q$3)/($C67+Q68)*Genanskaffelsespriser!$D$5*Q67)) -> 0 | AO67: =IF((R67*Genanskaffelsespriser!$D$5-(2009-R$3)/($C67+R68)*Genanskaffelsespriser!$D$5*R67)<0,0,(R67*Genanskaffelsespriser!$D$5-(2009-R$3)/($C67+R68)*Genanskaffelsespriser!$D$5*R67)) -> 0 | AP67: =IF((S67*Genanskaffelsespriser!$D$5-(2009-S$3)/($C67+S68)*Genanskaffelsespriser!$D$5*S67)<0,0,(S67*Genanskaffelsespriser!$D$5-(2009-S$3)/($C67+S68)*Genanskaffelsespriser!$D$5*S67)) -> 0 | AQ67: =IF((T67*Genanskaffelsespriser!$D$5-(2009-T$3)/($C67+T68)*Genanskaffelsespriser!$D$5*T67)<0,0,(T67*Genanskaffelsespriser!$D$5-(2009-T$3)/($C67+T68)*Genanskaffelsespriser!$D$5*T67)) -> 0 | AR67: =IF((U67*Genanskaffelsespriser!$D$5-(2009-U$3)/($C67+U68)*Genanskaffelsespriser!$D$5*U67)<0,0,(U67*Genanskaffelsespriser!$D$5-(2009-U$3)/($C67+U68)*Genanskaffelsespriser!$D$5*U67)) -> 0 | AS67: =IF((V67*Genanskaffelsespriser!$D$5-(2009-V$3)/($C67+V68)*Genanskaffelsespriser!$D$5*V67)<0,0,(V67*Genanskaffelsespriser!$D$5-(2009-V$3)/($C67+V68)*Genanskaffelsespriser!$D$5*V67)) -> 0 | AT67: =IF((W67*Genanskaffelsespriser!$D$5-(2009-W$3)/($C67+W68)*Genanskaffelsespriser!$D$5*W67)<0,0,(W67*Genanskaffelsespriser!$D$5-(2009-W$3)/($C67+W68)*Genanskaffelsespriser!$D$5*W67)) -> 0 | AU67: =IF((X67*Genanskaffelsespriser!$D$5-(2009-X$3)/($C67+X68)*Genanskaffelsespriser!$D$5*X67)<0,0,(X67*Genanskaffelsespriser!$D$5-(2009-X$3)/($C67+X68)*Genanskaffelsespriser!$D$5*X67)) -> 0 | AV67: =IF((Y67*Genanskaffelsespriser!$D$5-(2009-Y$3)/($C67+Y68)*Genanskaffelsespriser!$D$5*Y67)<0,0,(Y67*Genanskaffelsespriser!$D$5-(2009-Y$3)/($C67+Y68)*Genanskaffelsespriser!$D$5*Y67)) -> 0 | AW67: =+SUM(AA67:AV67) -> 0 | AX67: =VLOOKUP(D$3,Prisindeks!$A$1:$B$111,2,FALSE)/100*AA67 -> 0 | AY67: =VLOOKUP(E$3,Prisindeks!$A$1:$B$111,2,FALSE)/100*AB67 -> 0 | AZ67: =VLOOKUP(F$3,Prisindeks!$A$1:$B$111,2,FALSE)/100*AC67 -> 0 | BA67: =VLOOKUP(G$3,Prisindeks!$A$1:$B$111,2,FALSE)/100*AD67 -> 0 | BB67: =VLOOKUP(H$3,Prisindeks!$A$1:$B$111,2,FALSE)/100*AE67 -> 0 | BC67: =VLOOKUP(I$3,Prisindeks!$A$1:$B$111,2,FALSE)/100*AF67 -> 0 | BD67: =VLOOKUP(J$3,Prisindeks!$A$1:$B$111,2,FALSE)/100*AG67 -> 0 | BE67: =VLOOKUP(K$3,Prisindeks!$A$1:$B$111,2,FALSE)/100*AH67 -> 0 | BF67: =VLOOKUP(L$3,Prisindeks!$A$1:$B$111,2,FALSE)/100*AI67 -> 0 | BG67: =VLOOKUP(M$3,Prisindeks!$A$1:$B$111,2,FALSE)/100*AJ67 -> 0 | BH67: =VLOOKUP(N$3,Prisindeks!$A$1:$B$111,2,FALSE)/100*AK67 -> 0 | BI67: =VLOOKUP(O$3,Prisindeks!$A$1:$B$111,2,FALSE)/100*AL67 -> 0 | BJ67: =VLOOKUP(P$3,Prisindeks!$A$1:$B$111,2,FALSE)/100*AM67 -> 0 | BK67: =VLOOKUP(Q$3,Prisindeks!$A$1:$B$111,2,FALSE)/100*AN67 -> 0 | BL67: =VLOOKUP(R$3,Prisindeks!$A$1:$B$111,2,FALSE)/100*AO67 -> 0 | BM67: =VLOOKUP(S$3,Prisindeks!$A$1:$B$111,2,FALSE)/100*AP67 -> 0 | BN67: =VLOOKUP(T$3,Prisindeks!$A$1:$B$111,2,FALSE)/100*AQ67 -> 0 | BO67: =VLOOKUP(U$3,Prisindeks!$A$1:$B$111,2,FALSE)/100*AR67 -> 0 | BP67: =VLOOKUP(V$3,Prisindeks!$A$1:$B$111,2,FALSE)/100*AS67 -> 0 | BQ67: =VLOOKUP(W$3,Prisindeks!$A$1:$B$111,2,FALSE)/100*AT67 -> 0 | BR67: =VLOOKUP(X$3,Prisindeks!$A$1:$B$111,2,FALSE)/100*AU67 -> 0 | BS67: =VLOOKUP(Y$3,Prisindeks!$A$1:$B$111,2,FALSE)/100*AV67 -> 0 | BT67: =+SUM(AX67:BS67) -> 0 | BU67: =(AA67+AX67)/2 -> 0 | BV67: 0 | BW67: 0 | BX67: 0 | BY67: 0 | BZ67: 0 | CA67: 0 | CB67: 0 | CC67: 0 | CD67: 0 | CE67: 0 | CF67: 0 | CG67: 0 | CH67: 0 | CI67: 0 | CJ67: 0 | CK67: 0 | CL67: 0 | CM67: 0 | CN67: 0 | CO67: 0 | CP67: 0 | CQ67: =AVERAGE(AW67,BT67) -> 0 | CR67: =SUM(D67:Y67) -> 0
A68: Levetidsforlængelse | B68: år | C68: - | D68: 0 | E68: 0 | F68: 0 | G68: 0 | H68: 0 | I68: 0 | J68: 0 | K68: 0 | L68: 0 | M68: 0 | N68: 0 | O68: 0 | P68: 0 | Q68: 0 | R68: 0 | S68: 0 | T68: 0 | U68: 0 | V68: 0 | W68: 0 | X68: 0 | Y68: 0
A69: Boring (inkl. etablering, forerør, filter og prøvepumpning) - 33 | B69: dybdemeter | C69: =Genanskaffelsespriser!$E$5 -> 30 | D69: 0 | E69: 0 | F69: 0 | G69: 0 | H69: 0 | I69: 0 | J69: 0 | K69: 0 | L69: 0 | M69: 0 | N69: 0 | O69: 0 | P69: 0 | Q69: 0 | R69: 0 | S69: 0 | T69: 0 | U69: 0 | V69: 0 | W69: 0 | X69: 0 | Y69: 0 | AA69: =IF((D69*Genanskaffelsespriser!$D$5-(2009-D$3)/($C69+D70)*Genanskaffelsespriser!$D$5*D69)<0,0,(D69*Genanskaffelsespriser!$D$5-(2009-D$3)/($C69+D70)*Genanskaffelsespriser!$D$5*D69)) -> 0 | AB69: =IF((E69*Genanskaffelsespriser!$D$5-(2009-E$3)/($C69+E70)*Genanskaffelsespriser!$D$5*E69)<0,0,(E69*Genanskaffelsespriser!$D$5-(2009-E$3)/($C69+E70)*Genanskaffelsespriser!$D$5*E69)) -> 0 | AC69: =IF((F69*Genanskaffelsespriser!$D$5-(2009-F$3)/($C69+F70)*Genanskaffelsespriser!$D$5*F69)<0,0,(F69*Genanskaffelsespriser!$D$5-(2009-F$3)/($C69+F70)*Genanskaffelsespriser!$D$5*F69)) -> 0 | AD69: =IF((G69*Genanskaffelsespriser!$D$5-(2009-G$3)/($C69+G70)*Genanskaffelsespriser!$D$5*G69)<0,0,(G69*Genanskaffelsespriser!$D$5-(2009-G$3)/($C69+G70)*Genanskaffelsespriser!$D$5*G69)) -> 0 | AE69: =IF((H69*Genanskaffelsespriser!$D$5-(2009-H$3)/($C69+H70)*Genanskaffelsespriser!$D$5*H69)<0,0,(H69*Genanskaffelsespriser!$D$5-(2009-H$3)/($C69+H70)*Genanskaffelsespriser!$D$5*H69)) -> 0 | AF69: =IF((I69*Genanskaffelsespriser!$D$5-(2009-I$3)/($C69+I70)*Genanskaffelsespriser!$D$5*I69)<0,0,(I69*Genanskaffelsespriser!$D$5-(2009-I$3)/($C69+I70)*Genanskaffelsespriser!$D$5*I69)) -> 0 | AG69: =IF((J69*Genanskaffelsespriser!$D$5-(2009-J$3)/($C69+J70)*Genanskaffelsespriser!$D$5*J69)<0,0,(J69*Genanskaffelsespriser!$D$5-(2009-J$3)/($C69+J70)*Genanskaffelsespriser!$D$5*J69)) -> 0 | AH69: =IF((K69*Genanskaffelsespriser!$D$5-(2009-K$3)/($C69+K70)*Genanskaffelsespriser!$D$5*K69)<0,0,(K69*Genanskaffelsespriser!$D$5-(2009-K$3)/($C69+K70)*Genanskaffelsespriser!$D$5*K69)) -> 0 | AI69: =IF((L69*Genanskaffelsespriser!$D$5-(2009-L$3)/($C69+L70)*Genanskaffelsespriser!$D$5*L69)<0,0,(L69*Genanskaffelsespriser!$D$5-(2009-L$3)/($C69+L70)*Genanskaffelsespriser!$D$5*L69)) -> 0 | AJ69: =IF((M69*Genanskaffelsespriser!$D$5-(2009-M$3)/($C69+M70)*Genanskaffelsespriser!$D$5*M69)<0,0,(M69*Genanskaffelsespriser!$D$5-(2009-M$3)/($C69+M70)*Genanskaffelsespriser!$D$5*M69)) -> 0 | AK69: =IF((N69*Genanskaffelsespriser!$D$5-(2009-N$3)/($C69+N70)*Genanskaffelsespriser!$D$5*N69)<0,0,(N69*Genanskaffelsespriser!$D$5-(2009-N$3)/($C69+N70)*Genanskaffelsespriser!$D$5*N69)) -> 0 | AL69: =IF((O69*Genanskaffelsespriser!$D$5-(2009-O$3)/($C69+O70)*Genanskaffelsespriser!$D$5*O69)<0,0,(O69*Genanskaffelsespriser!$D$5-(2009-O$3)/($C69+O70)*Genanskaffelsespriser!$D$5*O69)) -> 0 | AM69: =IF((P69*Genanskaffelsespriser!$D$5-(2009-P$3)/($C69+P70)*Genanskaffelsespriser!$D$5*P69)<0,0,(P69*Genanskaffelsespriser!$D$5-(2009-P$3)/($C69+P70)*Genanskaffelsespriser!$D$5*P69)) -> 0 | AN69: =IF((Q69*Genanskaffelsespriser!$D$5-(2009-Q$3)/($C69+Q70)*Genanskaffelsespriser!$D$5*Q69)<0,0,(Q69*Genanskaffelsespriser!$D$5-(2009-Q$3)/($C69+Q70)*Genanskaffelsespriser!$D$5*Q69)) -> 0 | AO69: =IF((R69*Genanskaffelsespriser!$D$5-(2009-R$3)/($C69+R70)*Genanskaffelsespriser!$D$5*R69)<0,0,(R69*Genanskaffelsespriser!$D$5-(2009-R$3)/($C69+R70)*Genanskaffelsespriser!$D$5*R69)) -> 0 | AP69: =IF((S69*Genanskaffelsespriser!$D$5-(2009-S$3)/($C69+S70)*Genanskaffelsespriser!$D$5*S69)<0,0,(S69*Genanskaffelsespriser!$D$5-(2009-S$3)/($C69+S70)*Genanskaffelsespriser!$D$5*S69)) -> 0 | AQ69: =IF((T69*Genanskaffelsespriser!$D$5-(2009-T$3)/($C69+T70)*Genanskaffelsespriser!$D$5*T69)<0,0,(T69*Genanskaffelsespriser!$D$5-(2009-T$3)/($C69+T70)*Genanskaffelsespriser!$D$5*T69)) -> 0 | AR69: =IF((U69*Genanskaffelsespriser!$D$5-(2009-U$3)/($C69+U70)*Genanskaffelsespriser!$D$5*U69)<0,0,(U69*Genanskaffelsespriser!$D$5-(2009-U$3)/($C69+U70)*Genanskaffelsespriser!$D$5*U69)) -> 0 | AS69: =IF((V69*Genanskaffelsespriser!$D$5-(2009-V$3)/($C69+V70)*Genanskaffelsespriser!$D$5*V69)<0,0,(V69*Genanskaffelsespriser!$D$5-(2009-V$3)/($C69+V70)*Genanskaffelsespriser!$D$5*V69)) -> 0 | AT69: =IF((W69*Genanskaffelsespriser!$D$5-(2009-W$3)/($C69+W70)*Genanskaffelsespriser!$D$5*W69)<0,0,(W69*Genanskaffelsespriser!$D$5-(2009-W$3)/($C69+W70)*Genanskaffelsespriser!$D$5*W69)) -> 0 | AU69: =IF((X69*Genanskaffelsespriser!$D$5-(2009-X$3)/($C69+X70)*Genanskaffelsespriser!$D$5*X69)<0,0,(X69*Genanskaffelsespriser!$D$5-(2009-X$3)/($C69+X70)*Genanskaffelsespriser!$D$5*X69)) -> 0 | AV69: =IF((Y69*Genanskaffelsespriser!$D$5-(2009-Y$3)/($C69+Y70)*Genanskaffelsespriser!$D$5*Y69)<0,0,(Y69*Genanskaffelsespriser!$D$5-(2009-Y$3)/($C69+Y70)*Genanskaffelsespriser!$D$5*Y69)) -> 0 | AW69: =+SUM(AA69:AV69) -> 0 | AX69: =VLOOKUP(D$3,Prisindeks!$A$1:$B$111,2,FALSE)/100*AA69 -> 0 | AY69: =VLOOKUP(E$3,Prisindeks!$A$1:$B$111,2,FALSE)/100*AB69 -> 0 | AZ69: =VLOOKUP(F$3,Prisindeks!$A$1:$B$111,2,FALSE)/100*AC69 -> 0 | BA69: =VLOOKUP(G$3,Prisindeks!$A$1:$B$111,2,FALSE)/100*AD69 -> 0 | BB69: =VLOOKUP(H$3,Prisindeks!$A$1:$B$111,2,FALSE)/100*AE69 -> 0 | BC69: =VLOOKUP(I$3,Prisindeks!$A$1:$B$111,2,FALSE)/100*AF69 -> 0 | BD69: =VLOOKUP(J$3,Prisindeks!$A$1:$B$111,2,FALSE)/100*AG69 -> 0 | BE69: =VLOOKUP(K$3,Prisindeks!$A$1:$B$111,2,FALSE)/100*AH69 -> 0 | BF69: =VLOOKUP(L$3,Prisindeks!$A$1:$B$111,2,FALSE)/100*AI69 -> 0 | BG69: =VLOOKUP(M$3,Prisindeks!$A$1:$B$111,2,FALSE)/100*AJ69 -> 0 | BH69: =VLOOKUP(N$3,Prisindeks!$A$1:$B$111,2,FALSE)/100*AK69 -> 0 | BI69: =VLOOKUP(O$3,Prisindeks!$A$1:$B$111,2,FALSE)/100*AL69 -> 0 | BJ69: =VLOOKUP(P$3,Prisindeks!$A$1:$B$111,2,FALSE)/100*AM69 -> 0 | BK69: =VLOOKUP(Q$3,Prisindeks!$A$1:$B$111,2,FALSE)/100*AN69 -> 0 | BL69: =VLOOKUP(R$3,Prisindeks!$A$1:$B$111,2,FALSE)/100*AO69 -> 0 | BM69: =VLOOKUP(S$3,Prisindeks!$A$1:$B$111,2,FALSE)/100*AP69 -> 0 | BN69: =VLOOKUP(T$3,Prisindeks!$A$1:$B$111,2,FALSE)/100*AQ69 -> 0 | BO69: =VLOOKUP(U$3,Prisindeks!$A$1:$B$111,2,FALSE)/100*AR69 -> 0 | BP69: =VLOOKUP(V$3,Prisindeks!$A$1:$B$111,2,FALSE)/100*AS69 -> 0 | BQ69: =VLOOKUP(W$3,Prisindeks!$A$1:$B$111,2,FALSE)/100*AT69 -> 0 | BR69: =VLOOKUP(X$3,Prisindeks!$A$1:$B$111,2,FALSE)/100*AU69 -> 0 | BS69: =VLOOKUP(Y$3,Prisindeks!$A$1:$B$111,2,FALSE)/100*AV69 -> 0 | BT69: =+SUM(AX69:BS69) -> 0 | BU69: =(AA69+AX69)/2 -> 0 | BV69: 0 | BW69: 0 | BX69: 0 | BY69: 0 | BZ69: 0 | CA69: 0 | CB69: 0 | CC69: 0 | CD69: 0 | CE69: 0 | CF69: 0 | CG69: 0 | CH69: 0 | CI69: 0 | CJ69: 0 | CK69: 0 | CL69: 0 | CM69: 0 | CN69: 0 | CO69: 0 | CP69: 0 | CQ69: =AVERAGE(AW69,BT69) -> 0 | CR69: =SUM(D69:Y69) -> 0
A70: Levetidsforlængelse | B70: år | C70: - | D70: 0 | E70: 0 | F70: 0 | G70: 0 | H70: 0 | I70: 0 | J70: 0 | K70: 0 | L70: 0 | M70: 0 | N70: 0 | O70: 0 | P70: 0 | Q70: 0 | R70: 0 | S70: 0 | T70: 0 | U70: 0 | V70: 0 | W70: 0 | X70: 0 | Y70: 0
A71: Boring (inkl. etablering, forerør, filter og prøvepumpning) - 34 | B71: dybdemeter | C71: =Genanskaffelsespriser!$E$5 -> 30 | D71: 0 | E71: 0 | F71: 0 | G71: 0 | H71: 0 | I71: 0 | J71: 0 | K71: 0 | L71: 0 | M71: 0 | N71: 0 | O71: 0 | P71: 0 | Q71: 0 | R71: 0 | S71: 0 | T71: 0 | U71: 0 | V71: 0 | W71: 0 | X71: 0 | Y71: 0 | AA71: =IF((D71*Genanskaffelsespriser!$D$5-(2009-D$3)/($C71+D72)*Genanskaffelsespriser!$D$5*D71)<0,0,(D71*Genanskaffelsespriser!$D$5-(2009-D$3)/($C71+D72)*Genanskaffelsespriser!$D$5*D71)) -> 0 | AB71: =IF((E71*Genanskaffelsespriser!$D$5-(2009-E$3)/($C71+E72)*Genanskaffelsespriser!$D$5*E71)<0,0,(E71*Genanskaffelsespriser!$D$5-(2009-E$3)/($C71+E72)*Genanskaffelsespriser!$D$5*E71)) -> 0 | AC71: =IF((F71*Genanskaffelsespriser!$D$5-(2009-F$3)/($C71+F72)*Genanskaffelsespriser!$D$5*F71)<0,0,(F71*Genanskaffelsespriser!$D$5-(2009-F$3)/($C71+F72)*Genanskaffelsespriser!$D$5*F71)) -> 0 | AD71: =IF((G71*Genanskaffelsespriser!$D$5-(2009-G$3)/($C71+G72)*Genanskaffelsespriser!$D$5*G71)<0,0,(G71*Genanskaffelsespriser!$D$5-(2009-G$3)/($C71+G72)*Genanskaffelsespriser!$D$5*G71)) -> 0 | AE71: =IF((H71*Genanskaffelsespriser!$D$5-(2009-H$3)/($C71+H72)*Genanskaffelsespriser!$D$5*H71)<0,0,(H71*Genanskaffelsespriser!$D$5-(2009-H$3)/($C71+H72)*Genanskaffelsespriser!$D$5*H71)) -> 0 | AF71: =IF((I71*Genanskaffelsespriser!$D$5-(2009-I$3)/($C71+I72)*Genanskaffelsespriser!$D$5*I71)<0,0,(I71*Genanskaffelsespriser!$D$5-(2009-I$3)/($C71+I72)*Genanskaffelsespriser!$D$5*I71)) -> 0 | AG71: =IF((J71*Genanskaffelsespriser!$D$5-(2009-J$3)/($C71+J72)*Genanskaffelsespriser!$D$5*J71)<0,0,(J71*Genanskaffelsespriser!$D$5-(2009-J$3)/($C71+J72)*Genanskaffelsespriser!$D$5*J71)) -> 0 | AH71: =IF((K71*Genanskaffelsespriser!$D$5-(2009-K$3)/($C71+K72)*Genanskaffelsespriser!$D$5*K71)<0,0,(K71*Genanskaffelsespriser!$D$5-(2009-K$3)/($C71+K72)*Genanskaffelsespriser!$D$5*K71)) -> 0 | AI71: =IF((L71*Genanskaffelsespriser!$D$5-(2009-L$3)/($C71+L72)*Genanskaffelsespriser!$D$5*L71)<0,0,(L71*Genanskaffelsespriser!$D$5-(2009-L$3)/($C71+L72)*Genanskaffelsespriser!$D$5*L71)) -> 0 | AJ71: =IF((M71*Genanskaffelsespriser!$D$5-(2009-M$3)/($C71+M72)*Genanskaffelsespriser!$D$5*M71)<0,0,(M71*Genanskaffelsespriser!$D$5-(2009-M$3)/($C71+M72)*Genanskaffelsespriser!$D$5*M71)) -> 0 | AK71: =IF((N71*Genanskaffelsespriser!$D$5-(2009-N$3)/($C71+N72)*Genanskaffelsespriser!$D$5*N71)<0,0,(N71*Genanskaffelsespriser!$D$5-(2009-N$3)/($C71+N72)*Genanskaffelsespriser!$D$5*N71)) -> 0 | AL71: =IF((O71*Genanskaffelsespriser!$D$5-(2009-O$3)/($C71+O72)*Genanskaffelsespriser!$D$5*O71)<0,0,(O71*Genanskaffelsespriser!$D$5-(2009-O$3)/($C71+O72)*Genanskaffelsespriser!$D$5*O71)) -> 0 | AM71: =IF((P71*Genanskaffelsespriser!$D$5-(2009-P$3)/($C71+P72)*Genanskaffelsespriser!$D$5*P71)<0,0,(P71*Genanskaffelsespriser!$D$5-(2009-P$3)/($C71+P72)*Genanskaffelsespriser!$D$5*P71)) -> 0 | AN71: =IF((Q71*Genanskaffelsespriser!$D$5-(2009-Q$3)/($C71+Q72)*Genanskaffelsespriser!$D$5*Q71)<0,0,(Q71*Genanskaffelsespriser!$D$5-(2009-Q$3)/($C71+Q72)*Genanskaffelsespriser!$D$5*Q71)) -> 0 | AO71: =IF((R71*Genanskaffelsespriser!$D$5-(2009-R$3)/($C71+R72)*Genanskaffelsespriser!$D$5*R71)<0,0,(R71*Genanskaffelsespriser!$D$5-(2009-R$3)/($C71+R72)*Genanskaffelsespriser!$D$5*R71)) -> 0 | AP71: =IF((S71*Genanskaffelsespriser!$D$5-(2009-S$3)/($C71+S72)*Genanskaffelsespriser!$D$5*S71)<0,0,(S71*Genanskaffelsespriser!$D$5-(2009-S$3)/($C71+S72)*Genanskaffelsespriser!$D$5*S71)) -> 0 | AQ71: =IF((T71*Genanskaffelsespriser!$D$5-(2009-T$3)/($C71+T72)*Genanskaffelsespriser!$D$5*T71)<0,0,(T71*Genanskaffelsespriser!$D$5-(2009-T$3)/($C71+T72)*Genanskaffelsespriser!$D$5*T71)) -> 0 | AR71: =IF((U71*Genanskaffelsespriser!$D$5-(2009-U$3)/($C71+U72)*Genanskaffelsespriser!$D$5*U71)<0,0,(U71*Genanskaffelsespriser!$D$5-(2009-U$3)/($C71+U72)*Genanskaffelsespriser!$D$5*U71)) -> 0 | AS71: =IF((V71*Genanskaffelsespriser!$D$5-(2009-V$3)/($C71+V72)*Genanskaffelsespriser!$D$5*V71)<0,0,(V71*Genanskaffelsespriser!$D$5-(2009-V$3)/($C71+V72)*Genanskaffelsespriser!$D$5*V71)) -> 0 | AT71: =IF((W71*Genanskaffelsespriser!$D$5-(2009-W$3)/($C71+W72)*Genanskaffelsespriser!$D$5*W71)<0,0,(W71*Genanskaffelsespriser!$D$5-(2009-W$3)/($C71+W72)*Genanskaffelsespriser!$D$5*W71)) -> 0 | AU71: =IF((X71*Genanskaffelsespriser!$D$5-(2009-X$3)/($C71+X72)*Genanskaffelsespriser!$D$5*X71)<0,0,(X71*Genanskaffelsespriser!$D$5-(2009-X$3)/($C71+X72)*Genanskaffelsespriser!$D$5*X71)) -> 0 | AV71: =IF((Y71*Genanskaffelsespriser!$D$5-(2009-Y$3)/($C71+Y72)*Genanskaffelsespriser!$D$5*Y71)<0,0,(Y71*Genanskaffelsespriser!$D$5-(2009-Y$3)/($C71+Y72)*Genanskaffelsespriser!$D$5*Y71)) -> 0 | AW71: =+SUM(AA71:AV71) -> 0 | AX71: =VLOOKUP(D$3,Prisindeks!$A$1:$B$111,2,FALSE)/100*AA71 -> 0 | AY71: =VLOOKUP(E$3,Prisindeks!$A$1:$B$111,2,FALSE)/100*AB71 -> 0 | AZ71: =VLOOKUP(F$3,Prisindeks!$A$1:$B$111,2,FALSE)/100*AC71 -> 0 | BA71: =VLOOKUP(G$3,Prisindeks!$A$1:$B$111,2,FALSE)/100*AD71 -> 0 | BB71: =VLOOKUP(H$3,Prisindeks!$A$1:$B$111,2,FALSE)/100*AE71 -> 0 | BC71: =VLOOKUP(I$3,Prisindeks!$A$1:$B$111,2,FALSE)/100*AF71 -> 0 | BD71: =VLOOKUP(J$3,Prisindeks!$A$1:$B$111,2,FALSE)/100*AG71 -> 0 | BE71: =VLOOKUP(K$3,Prisindeks!$A$1:$B$111,2,FALSE)/100*AH71 -> 0 | BF71: =VLOOKUP(L$3,Prisindeks!$A$1:$B$111,2,FALSE)/100*AI71 -> 0 | BG71: =VLOOKUP(M$3,Prisindeks!$A$1:$B$111,2,FALSE)/100*AJ71 -> 0 | BH71: =VLOOKUP(N$3,Prisindeks!$A$1:$B$111,2,FALSE)/100*AK71 -> 0 | BI71: =VLOOKUP(O$3,Prisindeks!$A$1:$B$111,2,FALSE)/100*AL71 -> 0 | BJ71: =VLOOKUP(P$3,Prisindeks!$A$1:$B$111,2,FALSE)/100*AM71 -> 0 | BK71: =VLOOKUP(Q$3,Prisindeks!$A$1:$B$111,2,FALSE)/100*AN71 -> 0 | BL71: =VLOOKUP(R$3,Prisindeks!$A$1:$B$111,2,FALSE)/100*AO71 -> 0 | BM71: =VLOOKUP(S$3,Prisindeks!$A$1:$B$111,2,FALSE)/100*AP71 -> 0 | BN71: =VLOOKUP(T$3,Prisindeks!$A$1:$B$111,2,FALSE)/100*AQ71 -> 0 | BO71: =VLOOKUP(U$3,Prisindeks!$A$1:$B$111,2,FALSE)/100*AR71 -> 0 | BP71: =VLOOKUP(V$3,Prisindeks!$A$1:$B$111,2,FALSE)/100*AS71 -> 0 | BQ71: =VLOOKUP(W$3,Prisindeks!$A$1:$B$111,2,FALSE)/100*AT71 -> 0 | BR71: =VLOOKUP(X$3,Prisindeks!$A$1:$B$111,2,FALSE)/100*AU71 -> 0 | BS71: =VLOOKUP(Y$3,Prisindeks!$A$1:$B$111,2,FALSE)/100*AV71 -> 0 | BT71: =+SUM(AX71:BS71) -> 0 | BU71: =(AA71+AX71)/2 -> 0 | BV71: 0 | BW71: 0 | BX71: 0 | BY71: 0 | BZ71: 0 | CA71: 0 | CB71: 0 | CC71: 0 | CD71: 0 | CE71: 0 | CF71: 0 | CG71: 0 | CH71: 0 | CI71: 0 | CJ71: 0 | CK71: 0 | CL71: 0 | CM71: 0 | CN71: 0 | CO71: 0 | CP71: 0 | CQ71: =AVERAGE(AW71,BT71) -> 0 | CR71: =SUM(D71:Y71) -> 0
A72: Levetidsforlængelse | B72: år | C72: - | D72: 0 | E72: 0 | F72: 0 | G72: 0 | H72: 0 | I72: 0 | J72: 0 | K72: 0 | L72: 0 | M72: 0 | N72: 0 | O72: 0 | P72: 0 | Q72: 0 | R72: 0 | S72: 0 | T72: 0 | U72: 0 | V72: 0 | W72: 0 | X72: 0 | Y72: 0
A73: Boring (inkl. etablering, forerør, filter og prøvepumpning) - 35 | B73: dybdemeter | C73: =Genanskaffelsespriser!$E$5 -> 30 | D73: 0 | E73: 0 | F73: 0 | G73: 0 | H73: 0 | I73: 0 | J73: 0 | K73: 0 | L73: 0 | M73: 0 | N73: 0 | O73: 0 | P73: 0 | Q73: 0 | R73: 0 | S73: 0 | T73: 0 | U73: 0 | V73: 0 | W73: 0 | X73: 0 | Y73: 0 | AA73: =IF((D73*Genanskaffelsespriser!$D$5-(2009-D$3)/($C73+D74)*Genanskaffelsespriser!$D$5*D73)<0,0,(D73*Genanskaffelsespriser!$D$5-(2009-D$3)/($C73+D74)*Genanskaffelsespriser!$D$5*D73)) -> 0 | AB73: =IF((E73*Genanskaffelsespriser!$D$5-(2009-E$3)/($C73+E74)*Genanskaffelsespriser!$D$5*E73)<0,0,(E73*Genanskaffelsespriser!$D$5-(2009-E$3)/($C73+E74)*Genanskaffelsespriser!$D$5*E73)) -> 0 | AC73: =IF((F73*Genanskaffelsespriser!$D$5-(2009-F$3)/($C73+F74)*Genanskaffelsespriser!$D$5*F73)<0,0,(F73*Genanskaffelsespriser!$D$5-(2009-F$3)/($C73+F74)*Genanskaffelsespriser!$D$5*F73)) -> 0 | AD73: =IF((G73*Genanskaffelsespriser!$D$5-(2009-G$3)/($C73+G74)*Genanskaffelsespriser!$D$5*G73)<0,0,(G73*Genanskaffelsespriser!$D$5-(2009-G$3)/($C73+G74)*Genanskaffelsespriser!$D$5*G73)) -> 0 | AE73: =IF((H73*Genanskaffelsespriser!$D$5-(2009-H$3)/($C73+H74)*Genanskaffelsespriser!$D$5*H73)<0,0,(H73*Genanskaffelsespriser!$D$5-(2009-H$3)/($C73+H74)*Genanskaffelsespriser!$D$5*H73)) -> 0 | AF73: =IF((I73*Genanskaffelsespriser!$D$5-(2009-I$3)/($C73+I74)*Genanskaffelsespriser!$D$5*I73)<0,0,(I73*Genanskaffelsespriser!$D$5-(2009-I$3)/($C73+I74)*Genanskaffelsespriser!$D$5*I73)) -> 0 | AG73: =IF((J73*Genanskaffelsespriser!$D$5-(2009-J$3)/($C73+J74)*Genanskaffelsespriser!$D$5*J73)<0,0,(J73*Genanskaffelsespriser!$D$5-(2009-J$3)/($C73+J74)*Genanskaffelsespriser!$D$5*J73)) -> 0 | AH73: =IF((K73*Genanskaffelsespriser!$D$5-(2009-K$3)/($C73+K74)*Genanskaffelsespriser!$D$5*K73)<0,0,(K73*Genanskaffelsespriser!$D$5-(2009-K$3)/($C73+K74)*Genanskaffelsespriser!$D$5*K73)) -> 0 | AI73: =IF((L73*Genanskaffelsespriser!$D$5-(2009-L$3)/($C73+L74)*Genanskaffelsespriser!$D$5*L73)<0,0,(L73*Genanskaffelsespriser!$D$5-(2009-L$3)/($C73+L74)*Genanskaffelsespriser!$D$5*L73)) -> 0 | AJ73: =IF((M73*Genanskaffelsespriser!$D$5-(2009-M$3)/($C73+M74)*Genanskaffelsespriser!$D$5*M73)<0,0,(M73*Genanskaffelsespriser!$D$5-(2009-M$3)/($C73+M74)*Genanskaffelsespriser!$D$5*M73)) -> 0 | AK73: =IF((N73*Genanskaffelsespriser!$D$5-(2009-N$3)/($C73+N74)*Genanskaffelsespriser!$D$5*N73)<0,0,(N73*Genanskaffelsespriser!$D$5-(2009-N$3)/($C73+N74)*Genanskaffelsespriser!$D$5*N73)) -> 0 | AL73: =IF((O73*Genanskaffelsespriser!$D$5-(2009-O$3)/($C73+O74)*Genanskaffelsespriser!$D$5*O73)<0,0,(O73*Genanskaffelsespriser!$D$5-(2009-O$3)/($C73+O74)*Genanskaffelsespriser!$D$5*O73)) -> 0 | AM73: =IF((P73*Genanskaffelsespriser!$D$5-(2009-P$3)/($C73+P74)*Genanskaffelsespriser!$D$5*P73)<0,0,(P73*Genanskaffelsespriser!$D$5-(2009-P$3)/($C73+P74)*Genanskaffelsespriser!$D$5*P73)) -> 0 | AN73: =IF((Q73*Genanskaffelsespriser!$D$5-(2009-Q$3)/($C73+Q74)*Genanskaffelsespriser!$D$5*Q73)<0,0,(Q73*Genanskaffelsespriser!$D$5-(2009-Q$3)/($C73+Q74)*Genanskaffelsespriser!$D$5*Q73)) -> 0 | AO73: =IF((R73*Genanskaffelsespriser!$D$5-(2009-R$3)/($C73+R74)*Genanskaffelsespriser!$D$5*R73)<0,0,(R73*Genanskaffelsespriser!$D$5-(2009-R$3)/($C73+R74)*Genanskaffelsespriser!$D$5*R73)) -> 0 | AP73: =IF((S73*Genanskaffelsespriser!$D$5-(2009-S$3)/($C73+S74)*Genanskaffelsespriser!$D$5*S73)<0,0,(S73*Genanskaffelsespriser!$D$5-(2009-S$3)/($C73+S74)*Genanskaffelsespriser!$D$5*S73)) -> 0 | AQ73: =IF((T73*Genanskaffelsespriser!$D$5-(2009-T$3)/($C73+T74)*Genanskaffelsespriser!$D$5*T73)<0,0,(T73*Genanskaffelsespriser!$D$5-(2009-T$3)/($C73+T74)*Genanskaffelsespriser!$D$5*T73)) -> 0 | AR73: =IF((U73*Genanskaffelsespriser!$D$5-(2009-U$3)/($C73+U74)*Genanskaffelsespriser!$D$5*U73)<0,0,(U73*Genanskaffelsespriser!$D$5-(2009-U$3)/($C73+U74)*Genanskaffelsespriser!$D$5*U73)) -> 0 | AS73: =IF((V73*Genanskaffelsespriser!$D$5-(2009-V$3)/($C73+V74)*Genanskaffelsespriser!$D$5*V73)<0,0,(V73*Genanskaffelsespriser!$D$5-(2009-V$3)/($C73+V74)*Genanskaffelsespriser!$D$5*V73)) -> 0 | AT73: =IF((W73*Genanskaffelsespriser!$D$5-(2009-W$3)/($C73+W74)*Genanskaffelsespriser!$D$5*W73)<0,0,(W73*Genanskaffelsespriser!$D$5-(2009-W$3)/($C73+W74)*Genanskaffelsespriser!$D$5*W73)) -> 0 | AU73: =IF((X73*Genanskaffelsespriser!$D$5-(2009-X$3)/($C73+X74)*Genanskaffelsespriser!$D$5*X73)<0,0,(X73*Genanskaffelsespriser!$D$5-(2009-X$3)/($C73+X74)*Genanskaffelsespriser!$D$5*X73)) -> 0 | AV73: =IF((Y73*Genanskaffelsespriser!$D$5-(2009-Y$3)/($C73+Y74)*Genanskaffelsespriser!$D$5*Y73)<0,0,(Y73*Genanskaffelsespriser!$D$5-(2009-Y$3)/($C73+Y74)*Genanskaffelsespriser!$D$5*Y73)) -> 0 | AW73: =+SUM(AA73:AV73) -> 0 | AX73: =VLOOKUP(D$3,Prisindeks!$A$1:$B$111,2,FALSE)/100*AA73 -> 0 | AY73: =VLOOKUP(E$3,Prisindeks!$A$1:$B$111,2,FALSE)/100*AB73 -> 0 | AZ73: =VLOOKUP(F$3,Prisindeks!$A$1:$B$111,2,FALSE)/100*AC73 -> 0 | BA73: =VLOOKUP(G$3,Prisindeks!$A$1:$B$111,2,FALSE)/100*AD73 -> 0 | BB73: =VLOOKUP(H$3,Prisindeks!$A$1:$B$111,2,FALSE)/100*AE73 -> 0 | BC73: =VLOOKUP(I$3,Prisindeks!$A$1:$B$111,2,FALSE)/100*AF73 -> 0 | BD73: =VLOOKUP(J$3,Prisindeks!$A$1:$B$111,2,FALSE)/100*AG73 -> 0 | BE73: =VLOOKUP(K$3,Prisindeks!$A$1:$B$111,2,FALSE)/100*AH73 -> 0 | BF73: =VLOOKUP(L$3,Prisindeks!$A$1:$B$111,2,FALSE)/100*AI73 -> 0 | BG73: =VLOOKUP(M$3,Prisindeks!$A$1:$B$111,2,FALSE)/100*AJ73 -> 0 | BH73: =VLOOKUP(N$3,Prisindeks!$A$1:$B$111,2,FALSE)/100*AK73 -> 0 | BI73: =VLOOKUP(O$3,Prisindeks!$A$1:$B$111,2,FALSE)/100*AL73 -> 0 | BJ73: =VLOOKUP(P$3,Prisindeks!$A$1:$B$111,2,FALSE)/100*AM73 -> 0 | BK73: =VLOOKUP(Q$3,Prisindeks!$A$1:$B$111,2,FALSE)/100*AN73 -> 0 | BL73: =VLOOKUP(R$3,Prisindeks!$A$1:$B$111,2,FALSE)/100*AO73 -> 0 | BM73: =VLOOKUP(S$3,Prisindeks!$A$1:$B$111,2,FALSE)/100*AP73 -> 0 | BN73: =VLOOKUP(T$3,Prisindeks!$A$1:$B$111,2,FALSE)/100*AQ73 -> 0 | BO73: =VLOOKUP(U$3,Prisindeks!$A$1:$B$111,2,FALSE)/100*AR73 -> 0 | BP73: =VLOOKUP(V$3,Prisindeks!$A$1:$B$111,2,FALSE)/100*AS73 -> 0 | BQ73: =VLOOKUP(W$3,Prisindeks!$A$1:$B$111,2,FALSE)/100*AT73 -> 0 | BR73: =VLOOKUP(X$3,Prisindeks!$A$1:$B$111,2,FALSE)/100*AU73 -> 0 | BS73: =VLOOKUP(Y$3,Prisindeks!$A$1:$B$111,2,FALSE)/100*AV73 -> 0 | BT73: =+SUM(AX73:BS73) -> 0 | BU73: =(AA73+AX73)/2 -> 0 | BV73: 0 | BW73: 0 | BX73: 0 | BY73: 0 | BZ73: 0 | CA73: 0 | CB73: 0 | CC73: 0 | CD73: 0 | CE73: 0 | CF73: 0 | CG73: 0 | CH73: 0 | CI73: 0 | CJ73: 0 | CK73: 0 | CL73: 0 | CM73: 0 | CN73: 0 | CO73: 0 | CP73: 0 | CQ73: =AVERAGE(AW73,BT73) -> 0 | CR73: =SUM(D73:Y73) -> 0
A74: Levetidsforlængelse | B74: år | C74: - | D74: 0 | E74: 0 | F74: 0 | G74: 0 | H74: 0 | I74: 0 | J74: 0 | K74: 0 | L74: 0 | M74: 0 | N74: 0 | O74: 0 | P74: 0 | Q74: 0 | R74: 0 | S74: 0 | T74: 0 | U74: 0 | V74: 0 | W74: 0 | X74: 0 | Y74: 0
A75: Boring (inkl. etablering, forerør, filter og prøvepumpning) - 36 | B75: dybdemeter | C75: =Genanskaffelsespriser!$E$5 -> 30 | D75: 0 | E75: 0 | F75: 0 | G75: 0 | H75: 0 | I75: 0 | J75: 0 | K75: 0 | L75: 0 | M75: 0 | N75: 0 | O75: 0 | P75: 0 | Q75: 0 | R75: 0 | S75: 0 | T75: 0 | U75: 0 | V75: 0 | W75: 0 | X75: 0 | Y75: 0 | AA75: =IF((D75*Genanskaffelsespriser!$D$5-(2009-D$3)/($C75+D76)*Genanskaffelsespriser!$D$5*D75)<0,0,(D75*Genanskaffelsespriser!$D$5-(2009-D$3)/($C75+D76)*Genanskaffelsespriser!$D$5*D75)) -> 0 | AB75: =IF((E75*Genanskaffelsespriser!$D$5-(2009-E$3)/($C75+E76)*Genanskaffelsespriser!$D$5*E75)<0,0,(E75*Genanskaffelsespriser!$D$5-(2009-E$3)/($C75+E76)*Genanskaffelsespriser!$D$5*E75)) -> 0 | AC75: =IF((F75*Genanskaffelsespriser!$D$5-(2009-F$3)/($C75+F76)*Genanskaffelsespriser!$D$5*F75)<0,0,(F75*Genanskaffelsespriser!$D$5-(2009-F$3)/($C75+F76)*Genanskaffelsespriser!$D$5*F75)) -> 0 | AD75: =IF((G75*Genanskaffelsespriser!$D$5-(2009-G$3)/($C75+G76)*Genanskaffelsespriser!$D$5*G75)<0,0,(G75*Genanskaffelsespriser!$D$5-(2009-G$3)/($C75+G76)*Genanskaffelsespriser!$D$5*G75)) -> 0 | AE75: =IF((H75*Genanskaffelsespriser!$D$5-(2009-H$3)/($C75+H76)*Genanskaffelsespriser!$D$5*H75)<0,0,(H75*Genanskaffelsespriser!$D$5-(2009-H$3)/($C75+H76)*Genanskaffelsespriser!$D$5*H75)) -> 0 | AF75: =IF((I75*Genanskaffelsespriser!$D$5-(2009-I$3)/($C75+I76)*Genanskaffelsespriser!$D$5*I75)<0,0,(I75*Genanskaffelsespriser!$D$5-(2009-I$3)/($C75+I76)*Genanskaffelsespriser!$D$5*I75)) -> 0 | AG75: =IF((J75*Genanskaffelsespriser!$D$5-(2009-J$3)/($C75+J76)*Genanskaffelsespriser!$D$5*J75)<0,0,(J75*Genanskaffelsespriser!$D$5-(2009-J$3)/($C75+J76)*Genanskaffelsespriser!$D$5*J75)) -> 0 | AH75: =IF((K75*Genanskaffelsespriser!$D$5-(2009-K$3)/($C75+K76)*Genanskaffelsespriser!$D$5*K75)<0,0,(K75*Genanskaffelsespriser!$D$5-(2009-K$3)/($C75+K76)*Genanskaffelsespriser!$D$5*K75)) -> 0 | AI75: =IF((L75*Genanskaffelsespriser!$D$5-(2009-L$3)/($C75+L76)*Genanskaffelsespriser!$D$5*L75)<0,0,(L75*Genanskaffelsespriser!$D$5-(2009-L$3)/($C75+L76)*Genanskaffelsespriser!$D$5*L75)) -> 0 | AJ75: =IF((M75*Genanskaffelsespriser!$D$5-(2009-M$3)/($C75+M76)*Genanskaffelsespriser!$D$5*M75)<0,0,(M75*Genanskaffelsespriser!$D$5-(2009-M$3)/($C75+M76)*Genanskaffelsespriser!$D$5*M75)) -> 0 | AK75: =IF((N75*Genanskaffelsespriser!$D$5-(2009-N$3)/($C75+N76)*Genanskaffelsespriser!$D$5*N75)<0,0,(N75*Genanskaffelsespriser!$D$5-(2009-N$3)/($C75+N76)*Genanskaffelsespriser!$D$5*N75)) -> 0 | AL75: =IF((O75*Genanskaffelsespriser!$D$5-(2009-O$3)/($C75+O76)*Genanskaffelsespriser!$D$5*O75)<0,0,(O75*Genanskaffelsespriser!$D$5-(2009-O$3)/($C75+O76)*Genanskaffelsespriser!$D$5*O75)) -> 0 | AM75: =IF((P75*Genanskaffelsespriser!$D$5-(2009-P$3)/($C75+P76)*Genanskaffelsespriser!$D$5*P75)<0,0,(P75*Genanskaffelsespriser!$D$5-(2009-P$3)/($C75+P76)*Genanskaffelsespriser!$D$5*P75)) -> 0 | AN75: =IF((Q75*Genanskaffelsespriser!$D$5-(2009-Q$3)/($C75+Q76)*Genanskaffelsespriser!$D$5*Q75)<0,0,(Q75*Genanskaffelsespriser!$D$5-(2009-Q$3)/($C75+Q76)*Genanskaffelsespriser!$D$5*Q75)) -> 0 | AO75: =IF((R75*Genanskaffelsespriser!$D$5-(2009-R$3)/($C75+R76)*Genanskaffelsespriser!$D$5*R75)<0,0,(R75*Genanskaffelsespriser!$D$5-(2009-R$3)/($C75+R76)*Genanskaffelsespriser!$D$5*R75)) -> 0 | AP75: =IF((S75*Genanskaffelsespriser!$D$5-(2009-S$3)/($C75+S76)*Genanskaffelsespriser!$D$5*S75)<0,0,(S75*Genanskaffelsespriser!$D$5-(2009-S$3)/($C75+S76)*Genanskaffelsespriser!$D$5*S75)) -> 0 | AQ75: =IF((T75*Genanskaffelsespriser!$D$5-(2009-T$3)/($C75+T76)*Genanskaffelsespriser!$D$5*T75)<0,0,(T75*Genanskaffelsespriser!$D$5-(2009-T$3)/($C75+T76)*Genanskaffelsespriser!$D$5*T75)) -> 0 | AR75: =IF((U75*Genanskaffelsespriser!$D$5-(2009-U$3)/($C75+U76)*Genanskaffelsespriser!$D$5*U75)<0,0,(U75*Genanskaffelsespriser!$D$5-(2009-U$3)/($C75+U76)*Genanskaffelsespriser!$D$5*U75)) -> 0 | AS75: =IF((V75*Genanskaffelsespriser!$D$5-(2009-V$3)/($C75+V76)*Genanskaffelsespriser!$D$5*V75)<0,0,(V75*Genanskaffelsespriser!$D$5-(2009-V$3)/($C75+V76)*Genanskaffelsespriser!$D$5*V75)) -> 0 | AT75: =IF((W75*Genanskaffelsespriser!$D$5-(2009-W$3)/($C75+W76)*Genanskaffelsespriser!$D$5*W75)<0,0,(W75*Genanskaffelsespriser!$D$5-(2009-W$3)/($C75+W76)*Genanskaffelsespriser!$D$5*W75)) -> 0 | AU75: =IF((X75*Genanskaffelsespriser!$D$5-(2009-X$3)/($C75+X76)*Genanskaffelsespriser!$D$5*X75)<0,0,(X75*Genanskaffelsespriser!$D$5-(2009-X$3)/($C75+X76)*Genanskaffelsespriser!$D$5*X75)) -> 0 | AV75: =IF((Y75*Genanskaffelsespriser!$D$5-(2009-Y$3)/($C75+Y76)*Genanskaffelsespriser!$D$5*Y75)<0,0,(Y75*Genanskaffelsespriser!$D$5-(2009-Y$3)/($C75+Y76)*Genanskaffelsespriser!$D$5*Y75)) -> 0 | AW75: =+SUM(AA75:AV75) -> 0 | AX75: =VLOOKUP(D$3,Prisindeks!$A$1:$B$111,2,FALSE)/100*AA75 -> 0 | AY75: =VLOOKUP(E$3,Prisindeks!$A$1:$B$111,2,FALSE)/100*AB75 -> 0 | AZ75: =VLOOKUP(F$3,Prisindeks!$A$1:$B$111,2,FALSE)/100*AC75 -> 0 | BA75: =VLOOKUP(G$3,Prisindeks!$A$1:$B$111,2,FALSE)/100*AD75 -> 0 | BB75: =VLOOKUP(H$3,Prisindeks!$A$1:$B$111,2,FALSE)/100*AE75 -> 0 | BC75: =VLOOKUP(I$3,Prisindeks!$A$1:$B$111,2,FALSE)/100*AF75 -> 0 | BD75: =VLOOKUP(J$3,Prisindeks!$A$1:$B$111,2,FALSE)/100*AG75 -> 0 | BE75: =VLOOKUP(K$3,Prisindeks!$A$1:$B$111,2,FALSE)/100*AH75 -> 0 | BF75: =VLOOKUP(L$3,Prisindeks!$A$1:$B$111,2,FALSE)/100*AI75 -> 0 | BG75: =VLOOKUP(M$3,Prisindeks!$A$1:$B$111,2,FALSE)/100*AJ75 -> 0 | BH75: =VLOOKUP(N$3,Prisindeks!$A$1:$B$111,2,FALSE)/100*AK75 -> 0 | BI75: =VLOOKUP(O$3,Prisindeks!$A$1:$B$111,2,FALSE)/100*AL75 -> 0 | BJ75: =VLOOKUP(P$3,Prisindeks!$A$1:$B$111,2,FALSE)/100*AM75 -> 0 | BK75: =VLOOKUP(Q$3,Prisindeks!$A$1:$B$111,2,FALSE)/100*AN75 -> 0 | BL75: =VLOOKUP(R$3,Prisindeks!$A$1:$B$111,2,FALSE)/100*AO75 -> 0 | BM75: =VLOOKUP(S$3,Prisindeks!$A$1:$B$111,2,FALSE)/100*AP75 -> 0 | BN75: =VLOOKUP(T$3,Prisindeks!$A$1:$B$111,2,FALSE)/100*AQ75 -> 0 | BO75: =VLOOKUP(U$3,Prisindeks!$A$1:$B$111,2,FALSE)/100*AR75 -> 0 | BP75: =VLOOKUP(V$3,Prisindeks!$A$1:$B$111,2,FALSE)/100*AS75 -> 0 | BQ75: =VLOOKUP(W$3,Prisindeks!$A$1:$B$111,2,FALSE)/100*AT75 -> 0 | BR75: =VLOOKUP(X$3,Prisindeks!$A$1:$B$111,2,FALSE)/100*AU75 -> 0 | BS75: =VLOOKUP(Y$3,Prisindeks!$A$1:$B$111,2,FALSE)/100*AV75 -> 0 | BT75: =+SUM(AX75:BS75) -> 0 | BU75: =(AA75+AX75)/2 -> 0 | BV75: 0 | BW75: 0 | BX75: 0 | BY75: 0 | BZ75: 0 | CA75: 0 | CB75: 0 | CC75: 0 | CD75: 0 | CE75: 0 | CF75: 0 | CG75: 0 | CH75: 0 | CI75: 0 | CJ75: 0 | CK75: 0 | CL75: 0 | CM75: 0 | CN75: 0 | CO75: 0 | CP75: 0 | CQ75: =AVERAGE(AW75,BT75) -> 0 | CR75: =SUM(D75:Y75) -> 0
A76: Levetidsforlængelse | B76: år | C76: - | D76: 0 | E76: 0 | F76: 0 | G76: 0 | H76: 0 | I76: 0 | J76: 0 | K76: 0 | L76: 0 | M76: 0 | N76: 0 | O76: 0 | P76: 0 | Q76: 0 | R76: 0 | S76: 0 | T76: 0 | U76: 0 | V76: 0 | W76: 0 | X76: 0 | Y76: 0
A77: Boring (inkl. etablering, forerør, filter og prøvepumpning) - 37 | B77: dybdemeter | C77: =Genanskaffelsespriser!$E$5 -> 30 | D77: 0 | E77: 0 | F77: 0 | G77: 0 | H77: 0 | I77: 0 | J77: 0 | K77: 0 | L77: 0 | M77: 0 | N77: 0 | O77: 0 | P77: 0 | Q77: 0 | R77: 0 | S77: 0 | T77: 0 | U77: 0 | V77: 0 | W77: 0 | X77: 0 | Y77: 0 | AA77: =IF((D77*Genanskaffelsespriser!$D$5-(2009-D$3)/($C77+D78)*Genanskaffelsespriser!$D$5*D77)<0,0,(D77*Genanskaffelsespriser!$D$5-(2009-D$3)/($C77+D78)*Genanskaffelsespriser!$D$5*D77)) -> 0 | AB77: =IF((E77*Genanskaffelsespriser!$D$5-(2009-E$3)/($C77+E78)*Genanskaffelsespriser!$D$5*E77)<0,0,(E77*Genanskaffelsespriser!$D$5-(2009-E$3)/($C77+E78)*Genanskaffelsespriser!$D$5*E77)) -> 0 | AC77: =IF((F77*Genanskaffelsespriser!$D$5-(2009-F$3)/($C77+F78)*Genanskaffelsespriser!$D$5*F77)<0,0,(F77*Genanskaffelsespriser!$D$5-(2009-F$3)/($C77+F78)*Genanskaffelsespriser!$D$5*F77)) -> 0 | AD77: =IF((G77*Genanskaffelsespriser!$D$5-(2009-G$3)/($C77+G78)*Genanskaffelsespriser!$D$5*G77)<0,0,(G77*Genanskaffelsespriser!$D$5-(2009-G$3)/($C77+G78)*Genanskaffelsespriser!$D$5*G77)) -> 0 | AE77: =IF((H77*Genanskaffelsespriser!$D$5-(2009-H$3)/($C77+H78)*Genanskaffelsespriser!$D$5*H77)<0,0,(H77*Genanskaffelsespriser!$D$5-(2009-H$3)/($C77+H78)*Genanskaffelsespriser!$D$5*H77)) -> 0 | AF77: =IF((I77*Genanskaffelsespriser!$D$5-(2009-I$3)/($C77+I78)*Genanskaffelsespriser!$D$5*I77)<0,0,(I77*Genanskaffelsespriser!$D$5-(2009-I$3)/($C77+I78)*Genanskaffelsespriser!$D$5*I77)) -> 0 | AG77: =IF((J77*Genanskaffelsespriser!$D$5-(2009-J$3)/($C77+J78)*Genanskaffelsespriser!$D$5*J77)<0,0,(J77*Genanskaffelsespriser!$D$5-(2009-J$3)/($C77+J78)*Genanskaffelsespriser!$D$5*J77)) -> 0 | AH77: =IF((K77*Genanskaffelsespriser!$D$5-(2009-K$3)/($C77+K78)*Genanskaffelsespriser!$D$5*K77)<0,0,(K77*Genanskaffelsespriser!$D$5-(2009-K$3)/($C77+K78)*Genanskaffelsespriser!$D$5*K77)) -> 0 | AI77: =IF((L77*Genanskaffelsespriser!$D$5-(2009-L$3)/($C77+L78)*Genanskaffelsespriser!$D$5*L77)<0,0,(L77*Genanskaffelsespriser!$D$5-(2009-L$3)/($C77+L78)*Genanskaffelsespriser!$D$5*L77)) -> 0 | AJ77: =IF((M77*Genanskaffelsespriser!$D$5-(2009-M$3)/($C77+M78)*Genanskaffelsespriser!$D$5*M77)<0,0,(M77*Genanskaffelsespriser!$D$5-(2009-M$3)/($C77+M78)*Genanskaffelsespriser!$D$5*M77)) -> 0 | AK77: =IF((N77*Genanskaffelsespriser!$D$5-(2009-N$3)/($C77+N78)*Genanskaffelsespriser!$D$5*N77)<0,0,(N77*Genanskaffelsespriser!$D$5-(2009-N$3)/($C77+N78)*Genanskaffelsespriser!$D$5*N77)) -> 0 | AL77: =IF((O77*Genanskaffelsespriser!$D$5-(2009-O$3)/($C77+O78)*Genanskaffelsespriser!$D$5*O77)<0,0,(O77*Genanskaffelsespriser!$D$5-(2009-O$3)/($C77+O78)*Genanskaffelsespriser!$D$5*O77)) -> 0 | AM77: =IF((P77*Genanskaffelsespriser!$D$5-(2009-P$3)/($C77+P78)*Genanskaffelsespriser!$D$5*P77)<0,0,(P77*Genanskaffelsespriser!$D$5-(2009-P$3)/($C77+P78)*Genanskaffelsespriser!$D$5*P77)) -> 0 | AN77: =IF((Q77*Genanskaffelsespriser!$D$5-(2009-Q$3)/($C77+Q78)*Genanskaffelsespriser!$D$5*Q77)<0,0,(Q77*Genanskaffelsespriser!$D$5-(2009-Q$3)/($C77+Q78)*Genanskaffelsespriser!$D$5*Q77)) -> 0 | AO77: =IF((R77*Genanskaffelsespriser!$D$5-(2009-R$3)/($C77+R78)*Genanskaffelsespriser!$D$5*R77)<0,0,(R77*Genanskaffelsespriser!$D$5-(2009-R$3)/($C77+R78)*Genanskaffelsespriser!$D$5*R77)) -> 0 | AP77: =IF((S77*Genanskaffelsespriser!$D$5-(2009-S$3)/($C77+S78)*Genanskaffelsespriser!$D$5*S77)<0,0,(S77*Genanskaffelsespriser!$D$5-(2009-S$3)/($C77+S78)*Genanskaffelsespriser!$D$5*S77)) -> 0 | AQ77: =IF((T77*Genanskaffelsespriser!$D$5-(2009-T$3)/($C77+T78)*Genanskaffelsespriser!$D$5*T77)<0,0,(T77*Genanskaffelsespriser!$D$5-(2009-T$3)/($C77+T78)*Genanskaffelsespriser!$D$5*T77)) -> 0 | AR77: =IF((U77*Genanskaffelsespriser!$D$5-(2009-U$3)/($C77+U78)*Genanskaffelsespriser!$D$5*U77)<0,0,(U77*Genanskaffelsespriser!$D$5-(2009-U$3)/($C77+U78)*Genanskaffelsespriser!$D$5*U77)) -> 0 | AS77: =IF((V77*Genanskaffelsespriser!$D$5-(2009-V$3)/($C77+V78)*Genanskaffelsespriser!$D$5*V77)<0,0,(V77*Genanskaffelsespriser!$D$5-(2009-V$3)/($C77+V78)*Genanskaffelsespriser!$D$5*V77)) -> 0 | AT77: =IF((W77*Genanskaffelsespriser!$D$5-(2009-W$3)/($C77+W78)*Genanskaffelsespriser!$D$5*W77)<0,0,(W77*Genanskaffelsespriser!$D$5-(2009-W$3)/($C77+W78)*Genanskaffelsespriser!$D$5*W77)) -> 0 | AU77: =IF((X77*Genanskaffelsespriser!$D$5-(2009-X$3)/($C77+X78)*Genanskaffelsespriser!$D$5*X77)<0,0,(X77*Genanskaffelsespriser!$D$5-(2009-X$3)/($C77+X78)*Genanskaffelsespriser!$D$5*X77)) -> 0 | AV77: =IF((Y77*Genanskaffelsespriser!$D$5-(2009-Y$3)/($C77+Y78)*Genanskaffelsespriser!$D$5*Y77)<0,0,(Y77*Genanskaffelsespriser!$D$5-(2009-Y$3)/($C77+Y78)*Genanskaffelsespriser!$D$5*Y77)) -> 0 | AW77: =+SUM(AA77:AV77) -> 0 | AX77: =VLOOKUP(D$3,Prisindeks!$A$1:$B$111,2,FALSE)/100*AA77 -> 0 | AY77: =VLOOKUP(E$3,Prisindeks!$A$1:$B$111,2,FALSE)/100*AB77 -> 0 | AZ77: =VLOOKUP(F$3,Prisindeks!$A$1:$B$111,2,FALSE)/100*AC77 -> 0 | BA77: =VLOOKUP(G$3,Prisindeks!$A$1:$B$111,2,FALSE)/100*AD77 -> 0 | BB77: =VLOOKUP(H$3,Prisindeks!$A$1:$B$111,2,FALSE)/100*AE77 -> 0 | BC77: =VLOOKUP(I$3,Prisindeks!$A$1:$B$111,2,FALSE)/100*AF77 -> 0 | BD77: =VLOOKUP(J$3,Prisindeks!$A$1:$B$111,2,FALSE)/100*AG77 -> 0 | BE77: =VLOOKUP(K$3,Prisindeks!$A$1:$B$111,2,FALSE)/100*AH77 -> 0 | BF77: =VLOOKUP(L$3,Prisindeks!$A$1:$B$111,2,FALSE)/100*AI77 -> 0 | BG77: =VLOOKUP(M$3,Prisindeks!$A$1:$B$111,2,FALSE)/100*AJ77 -> 0 | BH77: =VLOOKUP(N$3,Prisindeks!$A$1:$B$111,2,FALSE)/100*AK77 -> 0 | BI77: =VLOOKUP(O$3,Prisindeks!$A$1:$B$111,2,FALSE)/100*AL77 -> 0 | BJ77: =VLOOKUP(P$3,Prisindeks!$A$1:$B$111,2,FALSE)/100*AM77 -> 0 | BK77: =VLOOKUP(Q$3,Prisindeks!$A$1:$B$111,2,FALSE)/100*AN77 -> 0 | BL77: =VLOOKUP(R$3,Prisindeks!$A$1:$B$111,2,FALSE)/100*AO77 -> 0 | BM77: =VLOOKUP(S$3,Prisindeks!$A$1:$B$111,2,FALSE)/100*AP77 -> 0 | BN77: =VLOOKUP(T$3,Prisindeks!$A$1:$B$111,2,FALSE)/100*AQ77 -> 0 | BO77: =VLOOKUP(U$3,Prisindeks!$A$1:$B$111,2,FALSE)/100*AR77 -> 0 | BP77: =VLOOKUP(V$3,Prisindeks!$A$1:$B$111,2,FALSE)/100*AS77 -> 0 | BQ77: =VLOOKUP(W$3,Prisindeks!$A$1:$B$111,2,FALSE)/100*AT77 -> 0 | BR77: =VLOOKUP(X$3,Prisindeks!$A$1:$B$111,2,FALSE)/100*AU77 -> 0 | BS77: =VLOOKUP(Y$3,Prisindeks!$A$1:$B$111,2,FALSE)/100*AV77 -> 0 | BT77: =+SUM(AX77:BS77) -> 0 | BU77: =(AA77+AX77)/2 -> 0 | BV77: 0 | BW77: 0 | BX77: 0 | BY77: 0 | BZ77: 0 | CA77: 0 | CB77: 0 | CC77: 0 | CD77: 0 | CE77: 0 | CF77: 0 | CG77: 0 | CH77: 0 | CI77: 0 | CJ77: 0 | CK77: 0 | CL77: 0 | CM77: 0 | CN77: 0 | CO77: 0 | CP77: 0 | CQ77: =AVERAGE(AW77,BT77) -> 0 | CR77: =SUM(D77:Y77) -> 0
A78: Levetidsforlængelse | B78: år | C78: - | D78: 0 | E78: 0 | F78: 0 | G78: 0 | H78: 0 | I78: 0 | J78: 0 | K78: 0 | L78: 0 | M78: 0 | N78: 0 | O78: 0 | P78: 0 | Q78: 0 | R78: 0 | S78: 0 | T78: 0 | U78: 0 | V78: 0 | W78: 0 | X78: 0 | Y78: 0
A79: Boring (inkl. etablering, forerør, filter og prøvepumpning) - 38 | B79: dybdemeter | C79: =Genanskaffelsespriser!$E$5 -> 30 | D79: 0 | E79: 0 | F79: 0 | G79: 0 | H79: 0 | I79: 0 | J79: 0 | K79: 0 | L79: 0 | M79: 0 | N79: 0 | O79: 0 | P79: 0 | Q79: 0 | R79: 0 | S79: 0 | T79: 0 | U79: 0 | V79: 0 | W79: 0 | X79: 0 | Y79: 0 | AA79: =IF((D79*Genanskaffelsespriser!$D$5-(2009-D$3)/($C79+D80)*Genanskaffelsespriser!$D$5*D79)<0,0,(D79*Genanskaffelsespriser!$D$5-(2009-D$3)/($C79+D80)*Genanskaffelsespriser!$D$5*D79)) -> 0 | AB79: =IF((E79*Genanskaffelsespriser!$D$5-(2009-E$3)/($C79+E80)*Genanskaffelsespriser!$D$5*E79)<0,0,(E79*Genanskaffelsespriser!$D$5-(2009-E$3)/($C79+E80)*Genanskaffelsespriser!$D$5*E79)) -> 0 | AC79: =IF((F79*Genanskaffelsespriser!$D$5-(2009-F$3)/($C79+F80)*Genanskaffelsespriser!$D$5*F79)<0,0,(F79*Genanskaffelsespriser!$D$5-(2009-F$3)/($C79+F80)*Genanskaffelsespriser!$D$5*F79)) -> 0 | AD79: =IF((G79*Genanskaffelsespriser!$D$5-(2009-G$3)/($C79+G80)*Genanskaffelsespriser!$D$5*G79)<0,0,(G79*Genanskaffelsespriser!$D$5-(2009-G$3)/($C79+G80)*Genanskaffelsespriser!$D$5*G79)) -> 0 | AE79: =IF((H79*Genanskaffelsespriser!$D$5-(2009-H$3)/($C79+H80)*Genanskaffelsespriser!$D$5*H79)<0,0,(H79*Genanskaffelsespriser!$D$5-(2009-H$3)/($C79+H80)*Genanskaffelsespriser!$D$5*H79)) -> 0 | AF79: =IF((I79*Genanskaffelsespriser!$D$5-(2009-I$3)/($C79+I80)*Genanskaffelsespriser!$D$5*I79)<0,0,(I79*Genanskaffelsespriser!$D$5-(2009-I$3)/($C79+I80)*Genanskaffelsespriser!$D$5*I79)) -> 0 | AG79: =IF((J79*Genanskaffelsespriser!$D$5-(2009-J$3)/($C79+J80)*Genanskaffelsespriser!$D$5*J79)<0,0,(J79*Genanskaffelsespriser!$D$5-(2009-J$3)/($C79+J80)*Genanskaffelsespriser!$D$5*J79)) -> 0 | AH79: =IF((K79*Genanskaffelsespriser!$D$5-(2009-K$3)/($C79+K80)*Genanskaffelsespriser!$D$5*K79)<0,0,(K79*Genanskaffelsespriser!$D$5-(2009-K$3)/($C79+K80)*Genanskaffelsespriser!$D$5*K79)) -> 0 | AI79: =IF((L79*Genanskaffelsespriser!$D$5-(2009-L$3)/($C79+L80)*Genanskaffelsespriser!$D$5*L79)<0,0,(L79*Genanskaffelsespriser!$D$5-(2009-L$3)/($C79+L80)*Genanskaffelsespriser!$D$5*L79)) -> 0 | AJ79: =IF((M79*Genanskaffelsespriser!$D$5-(2009-M$3)/($C79+M80)*Genanskaffelsespriser!$D$5*M79)<0,0,(M79*Genanskaffelsespriser!$D$5-(2009-M$3)/($C79+M80)*Genanskaffelsespriser!$D$5*M79)) -> 0 | AK79: =IF((N79*Genanskaffelsespriser!$D$5-(2009-N$3)/($C79+N80)*Genanskaffelsespriser!$D$5*N79)<0,0,(N79*Genanskaffelsespriser!$D$5-(2009-N$3)/($C79+N80)*Genanskaffelsespriser!$D$5*N79)) -> 0 | AL79: =IF((O79*Genanskaffelsespriser!$D$5-(2009-O$3)/($C79+O80)*Genanskaffelsespriser!$D$5*O79)<0,0,(O79*Genanskaffelsespriser!$D$5-(2009-O$3)/($C79+O80)*Genanskaffelsespriser!$D$5*O79)) -> 0 | AM79: =IF((P79*Genanskaffelsespriser!$D$5-(2009-P$3)/($C79+P80)*Genanskaffelsespriser!$D$5*P79)<0,0,(P79*Genanskaffelsespriser!$D$5-(2009-P$3)/($C79+P80)*Genanskaffelsespriser!$D$5*P79)) -> 0 | AN79: =IF((Q79*Genanskaffelsespriser!$D$5-(2009-Q$3)/($C79+Q80)*Genanskaffelsespriser!$D$5*Q79)<0,0,(Q79*Genanskaffelsespriser!$D$5-(2009-Q$3)/($C79+Q80)*Genanskaffelsespriser!$D$5*Q79)) -> 0 | AO79: =IF((R79*Genanskaffelsespriser!$D$5-(2009-R$3)/($C79+R80)*Genanskaffelsespriser!$D$5*R79)<0,0,(R79*Genanskaffelsespriser!$D$5-(2009-R$3)/($C79+R80)*Genanskaffelsespriser!$D$5*R79)) -> 0 | AP79: =IF((S79*Genanskaffelsespriser!$D$5-(2009-S$3)/($C79+S80)*Genanskaffelsespriser!$D$5*S79)<0,0,(S79*Genanskaffelsespriser!$D$5-(2009-S$3)/($C79+S80)*Genanskaffelsespriser!$D$5*S79)) -> 0 | AQ79: =IF((T79*Genanskaffelsespriser!$D$5-(2009-T$3)/($C79+T80)*Genanskaffelsespriser!$D$5*T79)<0,0,(T79*Genanskaffelsespriser!$D$5-(2009-T$3)/($C79+T80)*Genanskaffelsespriser!$D$5*T79)) -> 0 | AR79: =IF((U79*Genanskaffelsespriser!$D$5-(2009-U$3)/($C79+U80)*Genanskaffelsespriser!$D$5*U79)<0,0,(U79*Genanskaffelsespriser!$D$5-(2009-U$3)/($C79+U80)*Genanskaffelsespriser!$D$5*U79)) -> 0 | AS79: =IF((V79*Genanskaffelsespriser!$D$5-(2009-V$3)/($C79+V80)*Genanskaffelsespriser!$D$5*V79)<0,0,(V79*Genanskaffelsespriser!$D$5-(2009-V$3)/($C79+V80)*Genanskaffelsespriser!$D$5*V79)) -> 0 | AT79: =IF((W79*Genanskaffelsespriser!$D$5-(2009-W$3)/($C79+W80)*Genanskaffelsespriser!$D$5*W79)<0,0,(W79*Genanskaffelsespriser!$D$5-(2009-W$3)/($C79+W80)*Genanskaffelsespriser!$D$5*W79)) -> 0 | AU79: =IF((X79*Genanskaffelsespriser!$D$5-(2009-X$3)/($C79+X80)*Genanskaffelsespriser!$D$5*X79)<0,0,(X79*Genanskaffelsespriser!$D$5-(2009-X$3)/($C79+X80)*Genanskaffelsespriser!$D$5*X79)) -> 0 | AV79: =IF((Y79*Genanskaffelsespriser!$D$5-(2009-Y$3)/($C79+Y80)*Genanskaffelsespriser!$D$5*Y79)<0,0,(Y79*Genanskaffelsespriser!$D$5-(2009-Y$3)/($C79+Y80)*Genanskaffelsespriser!$D$5*Y79)) -> 0 | AW79: =+SUM(AA79:AV79) -> 0 | AX79: =VLOOKUP(D$3,Prisindeks!$A$1:$B$111,2,FALSE)/100*AA79 -> 0 | AY79: =VLOOKUP(E$3,Prisindeks!$A$1:$B$111,2,FALSE)/100*AB79 -> 0 | AZ79: =VLOOKUP(F$3,Prisindeks!$A$1:$B$111,2,FALSE)/100*AC79 -> 0 | BA79: =VLOOKUP(G$3,Prisindeks!$A$1:$B$111,2,FALSE)/100*AD79 -> 0 | BB79: =VLOOKUP(H$3,Prisindeks!$A$1:$B$111,2,FALSE)/100*AE79 -> 0 | BC79: =VLOOKUP(I$3,Prisindeks!$A$1:$B$111,2,FALSE)/100*AF79 -> 0 | BD79: =VLOOKUP(J$3,Prisindeks!$A$1:$B$111,2,FALSE)/100*AG79 -> 0 | BE79: =VLOOKUP(K$3,Prisindeks!$A$1:$B$111,2,FALSE)/100*AH79 -> 0 | BF79: =VLOOKUP(L$3,Prisindeks!$A$1:$B$111,2,FALSE)/100*AI79 -> 0 | BG79: =VLOOKUP(M$3,Prisindeks!$A$1:$B$111,2,FALSE)/100*AJ79 -> 0 | BH79: =VLOOKUP(N$3,Prisindeks!$A$1:$B$111,2,FALSE)/100*AK79 -> 0 | BI79: =VLOOKUP(O$3,Prisindeks!$A$1:$B$111,2,FALSE)/100*AL79 -> 0 | BJ79: =VLOOKUP(P$3,Prisindeks!$A$1:$B$111,2,FALSE)/100*AM79 -> 0 | BK79: =VLOOKUP(Q$3,Prisindeks!$A$1:$B$111,2,FALSE)/100*AN79 -> 0 | BL79: =VLOOKUP(R$3,Prisindeks!$A$1:$B$111,2,FALSE)/100*AO79 -> 0 | BM79: =VLOOKUP(S$3,Prisindeks!$A$1:$B$111,2,FALSE)/100*AP79 -> 0 | BN79: =VLOOKUP(T$3,Prisindeks!$A$1:$B$111,2,FALSE)/100*AQ79 -> 0 | BO79: =VLOOKUP(U$3,Prisindeks!$A$1:$B$111,2,FALSE)/100*AR79 -> 0 | BP79: =VLOOKUP(V$3,Prisindeks!$A$1:$B$111,2,FALSE)/100*AS79 -> 0 | BQ79: =VLOOKUP(W$3,Prisindeks!$A$1:$B$111,2,FALSE)/100*AT79 -> 0 | BR79: =VLOOKUP(X$3,Prisindeks!$A$1:$B$111,2,FALSE)/100*AU79 -> 0 | BS79: =VLOOKUP(Y$3,Prisindeks!$A$1:$B$111,2,FALSE)/100*AV79 -> 0 | BT79: =+SUM(AX79:BS79) -> 0 | BU79: =(AA79+AX79)/2 -> 0 | BV79: 0 | BW79: 0 | BX79: 0 | BY79: 0 | BZ79: 0 | CA79: 0 | CB79: 0 | CC79: 0 | CD79: 0 | CE79: 0 | CF79: 0 | CG79: 0 | CH79: 0 | CI79: 0 | CJ79: 0 | CK79: 0 | CL79: 0 | CM79: 0 | CN79: 0 | CO79: 0 | CP79: 0 | CQ79: =AVERAGE(AW79,BT79) -> 0 | CR79: =SUM(D79:Y79) -> 0
A80: Levetidsforlængelse | B80: år | C80: - | D80: 0 | E80: 0 | F80: 0 | G80: 0 | H80: 0 | I80: 0 | J80: 0 | K80: 0 | L80: 0 | M80: 0 | N80: 0 | O80: 0 | P80: 0 | Q80: 0 | R80: 0 | S80: 0 | T80: 0 | U80: 0 | V80: 0 | W80: 0 | X80: 0 | Y80: 0
A81: Boring (inkl. etablering, forerør, filter og prøvepumpning) - 39 | B81: dybdemeter | C81: =Genanskaffelsespriser!$E$5 -> 30 | D81: 0 | E81: 0 | F81: 0 | G81: 0 | H81: 0 | I81: 0 | J81: 0 | K81: 0 | L81: 0 | M81: 0 | N81: 0 | O81: 0 | P81: 0 | Q81: 0 | R81: 0 | S81: 0 | T81: 0 | U81: 0 | V81: 0 | W81: 0 | X81: 0 | Y81: 0 | AA81: =IF((D81*Genanskaffelsespriser!$D$5-(2009-D$3)/($C81+D82)*Genanskaffelsespriser!$D$5*D81)<0,0,(D81*Genanskaffelsespriser!$D$5-(2009-D$3)/($C81+D82)*Genanskaffelsespriser!$D$5*D81)) -> 0 | AB81: =IF((E81*Genanskaffelsespriser!$D$5-(2009-E$3)/($C81+E82)*Genanskaffelsespriser!$D$5*E81)<0,0,(E81*Genanskaffelsespriser!$D$5-(2009-E$3)/($C81+E82)*Genanskaffelsespriser!$D$5*E81)) -> 0 | AC81: =IF((F81*Genanskaffelsespriser!$D$5-(2009-F$3)/($C81+F82)*Genanskaffelsespriser!$D$5*F81)<0,0,(F81*Genanskaffelsespriser!$D$5-(2009-F$3)/($C81+F82)*Genanskaffelsespriser!$D$5*F81)) -> 0 | AD81: =IF((G81*Genanskaffelsespriser!$D$5-(2009-G$3)/($C81+G82)*Genanskaffelsespriser!$D$5*G81)<0,0,(G81*Genanskaffelsespriser!$D$5-(2009-G$3)/($C81+G82)*Genanskaffelsespriser!$D$5*G81)) -> 0 | AE81: =IF((H81*Genanskaffelsespriser!$D$5-(2009-H$3)/($C81+H82)*Genanskaffelsespriser!$D$5*H81)<0,0,(H81*Genanskaffelsespriser!$D$5-(2009-H$3)/($C81+H82)*Genanskaffelsespriser!$D$5*H81)) -> 0 | AF81: =IF((I81*Genanskaffelsespriser!$D$5-(2009-I$3)/($C81+I82)*Genanskaffelsespriser!$D$5*I81)<0,0,(I81*Genanskaffelsespriser!$D$5-(2009-I$3)/($C81+I82)*Genanskaffelsespriser!$D$5*I81)) -> 0 | AG81: =IF((J81*Genanskaffelsespriser!$D$5-(2009-J$3)/($C81+J82)*Genanskaffelsespriser!$D$5*J81)<0,0,(J81*Genanskaffelsespriser!$D$5-(2009-J$3)/($C81+J82)*Genanskaffelsespriser!$D$5*J81)) -> 0 | AH81: =IF((K81*Genanskaffelsespriser!$D$5-(2009-K$3)/($C81+K82)*Genanskaffelsespriser!$D$5*K81)<0,0,(K81*Genanskaffelsespriser!$D$5-(2009-K$3)/($C81+K82)*Genanskaffelsespriser!$D$5*K81)) -> 0 | AI81: =IF((L81*Genanskaffelsespriser!$D$5-(2009-L$3)/($C81+L82)*Genanskaffelsespriser!$D$5*L81)<0,0,(L81*Genanskaffelsespriser!$D$5-(2009-L$3)/($C81+L82)*Genanskaffelsespriser!$D$5*L81)) -> 0 | AJ81: =IF((M81*Genanskaffelsespriser!$D$5-(2009-M$3)/($C81+M82)*Genanskaffelsespriser!$D$5*M81)<0,0,(M81*Genanskaffelsespriser!$D$5-(2009-M$3)/($C81+M82)*Genanskaffelsespriser!$D$5*M81)) -> 0 | AK81: =IF((N81*Genanskaffelsespriser!$D$5-(2009-N$3)/($C81+N82)*Genanskaffelsespriser!$D$5*N81)<0,0,(N81*Genanskaffelsespriser!$D$5-(2009-N$3)/($C81+N82)*Genanskaffelsespriser!$D$5*N81)) -> 0 | AL81: =IF((O81*Genanskaffelsespriser!$D$5-(2009-O$3)/($C81+O82)*Genanskaffelsespriser!$D$5*O81)<0,0,(O81*Genanskaffelsespriser!$D$5-(2009-O$3)/($C81+O82)*Genanskaffelsespriser!$D$5*O81)) -> 0 | AM81: =IF((P81*Genanskaffelsespriser!$D$5-(2009-P$3)/($C81+P82)*Genanskaffelsespriser!$D$5*P81)<0,0,(P81*Genanskaffelsespriser!$D$5-(2009-P$3)/($C81+P82)*Genanskaffelsespriser!$D$5*P81)) -> 0 | AN81: =IF((Q81*Genanskaffelsespriser!$D$5-(2009-Q$3)/($C81+Q82)*Genanskaffelsespriser!$D$5*Q81)<0,0,(Q81*Genanskaffelsespriser!$D$5-(2009-Q$3)/($C81+Q82)*Genanskaffelsespriser!$D$5*Q81)) -> 0 | AO81: =IF((R81*Genanskaffelsespriser!$D$5-(2009-R$3)/($C81+R82)*Genanskaffelsespriser!$D$5*R81)<0,0,(R81*Genanskaffelsespriser!$D$5-(2009-R$3)/($C81+R82)*Genanskaffelsespriser!$D$5*R81)) -> 0 | AP81: =IF((S81*Genanskaffelsespriser!$D$5-(2009-S$3)/($C81+S82)*Genanskaffelsespriser!$D$5*S81)<0,0,(S81*Genanskaffelsespriser!$D$5-(2009-S$3)/($C81+S82)*Genanskaffelsespriser!$D$5*S81)) -> 0 | AQ81: =IF((T81*Genanskaffelsespriser!$D$5-(2009-T$3)/($C81+T82)*Genanskaffelsespriser!$D$5*T81)<0,0,(T81*Genanskaffelsespriser!$D$5-(2009-T$3)/($C81+T82)*Genanskaffelsespriser!$D$5*T81)) -> 0 | AR81: =IF((U81*Genanskaffelsespriser!$D$5-(2009-U$3)/($C81+U82)*Genanskaffelsespriser!$D$5*U81)<0,0,(U81*Genanskaffelsespriser!$D$5-(2009-U$3)/($C81+U82)*Genanskaffelsespriser!$D$5*U81)) -> 0 | AS81: =IF((V81*Genanskaffelsespriser!$D$5-(2009-V$3)/($C81+V82)*Genanskaffelsespriser!$D$5*V81)<0,0,(V81*Genanskaffelsespriser!$D$5-(2009-V$3)/($C81+V82)*Genanskaffelsespriser!$D$5*V81)) -> 0 | AT81: =IF((W81*Genanskaffelsespriser!$D$5-(2009-W$3)/($C81+W82)*Genanskaffelsespriser!$D$5*W81)<0,0,(W81*Genanskaffelsespriser!$D$5-(2009-W$3)/($C81+W82)*Genanskaffelsespriser!$D$5*W81)) -> 0 | AU81: =IF((X81*Genanskaffelsespriser!$D$5-(2009-X$3)/($C81+X82)*Genanskaffelsespriser!$D$5*X81)<0,0,(X81*Genanskaffelsespriser!$D$5-(2009-X$3)/($C81+X82)*Genanskaffelsespriser!$D$5*X81)) -> 0 | AV81: =IF((Y81*Genanskaffelsespriser!$D$5-(2009-Y$3)/($C81+Y82)*Genanskaffelsespriser!$D$5*Y81)<0,0,(Y81*Genanskaffelsespriser!$D$5-(2009-Y$3)/($C81+Y82)*Genanskaffelsespriser!$D$5*Y81)) -> 0 | AW81: =+SUM(AA81:AV81) -> 0 | AX81: =VLOOKUP(D$3,Prisindeks!$A$1:$B$111,2,FALSE)/100*AA81 -> 0 | AY81: =VLOOKUP(E$3,Prisindeks!$A$1:$B$111,2,FALSE)/100*AB81 -> 0 | AZ81: =VLOOKUP(F$3,Prisindeks!$A$1:$B$111,2,FALSE)/100*AC81 -> 0 | BA81: =VLOOKUP(G$3,Prisindeks!$A$1:$B$111,2,FALSE)/100*AD81 -> 0 | BB81: =VLOOKUP(H$3,Prisindeks!$A$1:$B$111,2,FALSE)/100*AE81 -> 0 | BC81: =VLOOKUP(I$3,Prisindeks!$A$1:$B$111,2,FALSE)/100*AF81 -> 0 | BD81: =VLOOKUP(J$3,Prisindeks!$A$1:$B$111,2,FALSE)/100*AG81 -> 0 | BE81: =VLOOKUP(K$3,Prisindeks!$A$1:$B$111,2,FALSE)/100*AH81 -> 0 | BF81: =VLOOKUP(L$3,Prisindeks!$A$1:$B$111,2,FALSE)/100*AI81 -> 0 | BG81: =VLOOKUP(M$3,Prisindeks!$A$1:$B$111,2,FALSE)/100*AJ81 -> 0 | BH81: =VLOOKUP(N$3,Prisindeks!$A$1:$B$111,2,FALSE)/100*AK81 -> 0 | BI81: =VLOOKUP(O$3,Prisindeks!$A$1:$B$111,2,FALSE)/100*AL81 -> 0 | BJ81: =VLOOKUP(P$3,Prisindeks!$A$1:$B$111,2,FALSE)/100*AM81 -> 0 | BK81: =VLOOKUP(Q$3,Prisindeks!$A$1:$B$111,2,FALSE)/100*AN81 -> 0 | BL81: =VLOOKUP(R$3,Prisindeks!$A$1:$B$111,2,FALSE)/100*AO81 -> 0 | BM81: =VLOOKUP(S$3,Prisindeks!$A$1:$B$111,2,FALSE)/100*AP81 -> 0 | BN81: =VLOOKUP(T$3,Prisindeks!$A$1:$B$111,2,FALSE)/100*AQ81 -> 0 | BO81: =VLOOKUP(U$3,Prisindeks!$A$1:$B$111,2,FALSE)/100*AR81 -> 0 | BP81: =VLOOKUP(V$3,Prisindeks!$A$1:$B$111,2,FALSE)/100*AS81 -> 0 | BQ81: =VLOOKUP(W$3,Prisindeks!$A$1:$B$111,2,FALSE)/100*AT81 -> 0 | BR81: =VLOOKUP(X$3,Prisindeks!$A$1:$B$111,2,FALSE)/100*AU81 -> 0 | BS81: =VLOOKUP(Y$3,Prisindeks!$A$1:$B$111,2,FALSE)/100*AV81 -> 0 | BT81: =+SUM(AX81:BS81) -> 0 | BU81: =(AA81+AX81)/2 -> 0 | BV81: 0 | BW81: 0 | BX81: 0 | BY81: 0 | BZ81: 0 | CA81: 0 | CB81: 0 | CC81: 0 | CD81: 0 | CE81: 0 | CF81: 0 | CG81: 0 | CH81: 0 | CI81: 0 | CJ81: 0 | CK81: 0 | CL81: 0 | CM81: 0 | CN81: 0 | CO81: 0 | CP81: 0 | CQ81: =AVERAGE(AW81,BT81) -> 0 | CR81: =SUM(D81:Y81) -> 0
A82: Levetidsforlængelse | B82: år | C82: - | D82: 0 | E82: 0 | F82: 0 | G82: 0 | H82: 0 | I82: 0 | J82: 0 | K82: 0 | L82: 0 | M82: 0 | N82: 0 | O82: 0 | P82: 0 | Q82: 0 | R82: 0 | S82: 0 | T82: 0 | U82: 0 | V82: 0 | W82: 0 | X82: 0 | Y82: 0
A83: Boring (inkl. etablering, forerør, filter og prøvepumpning) - 40 | B83: dybdemeter | C83: =Genanskaffelsespriser!$E$5 -> 30 | D83: 0 | E83: 0 | F83: 0 | G83: 0 | H83: 0 | I83: 0 | J83: 0 | K83: 0 | L83: 0 | M83: 0 | N83: 0 | O83: 0 | P83: 0 | Q83: 0 | R83: 0 | S83: 0 | T83: 0 | U83: 0 | V83: 0 | W83: 0 | X83: 0 | Y83: 0 | AA83: =IF((D83*Genanskaffelsespriser!$D$5-(2009-D$3)/($C83+D84)*Genanskaffelsespriser!$D$5*D83)<0,0,(D83*Genanskaffelsespriser!$D$5-(2009-D$3)/($C83+D84)*Genanskaffelsespriser!$D$5*D83)) -> 0 | AB83: =IF((E83*Genanskaffelsespriser!$D$5-(2009-E$3)/($C83+E84)*Genanskaffelsespriser!$D$5*E83)<0,0,(E83*Genanskaffelsespriser!$D$5-(2009-E$3)/($C83+E84)*Genanskaffelsespriser!$D$5*E83)) -> 0 | AC83: =IF((F83*Genanskaffelsespriser!$D$5-(2009-F$3)/($C83+F84)*Genanskaffelsespriser!$D$5*F83)<0,0,(F83*Genanskaffelsespriser!$D$5-(2009-F$3)/($C83+F84)*Genanskaffelsespriser!$D$5*F83)) -> 0 | AD83: =IF((G83*Genanskaffelsespriser!$D$5-(2009-G$3)/($C83+G84)*Genanskaffelsespriser!$D$5*G83)<0,0,(G83*Genanskaffelsespriser!$D$5-(2009-G$3)/($C83+G84)*Genanskaffelsespriser!$D$5*G83)) -> 0 | AE83: =IF((H83*Genanskaffelsespriser!$D$5-(2009-H$3)/($C83+H84)*Genanskaffelsespriser!$D$5*H83)<0,0,(H83*Genanskaffelsespriser!$D$5-(2009-H$3)/($C83+H84)*Genanskaffelsespriser!$D$5*H83)) -> 0 | AF83: =IF((I83*Genanskaffelsespriser!$D$5-(2009-I$3)/($C83+I84)*Genanskaffelsespriser!$D$5*I83)<0,0,(I83*Genanskaffelsespriser!$D$5-(2009-I$3)/($C83+I84)*Genanskaffelsespriser!$D$5*I83)) -> 0 | AG83: =IF((J83*Genanskaffelsespriser!$D$5-(2009-J$3)/($C83+J84)*Genanskaffelsespriser!$D$5*J83)<0,0,(J83*Genanskaffelsespriser!$D$5-(2009-J$3)/($C83+J84)*Genanskaffelsespriser!$D$5*J83)) -> 0 | AH83: =IF((K83*Genanskaffelsespriser!$D$5-(2009-K$3)/($C83+K84)*Genanskaffelsespriser!$D$5*K83)<0,0,(K83*Genanskaffelsespriser!$D$5-(2009-K$3)/($C83+K84)*Genanskaffelsespriser!$D$5*K83)) -> 0 | AI83: =IF((L83*Genanskaffelsespriser!$D$5-(2009-L$3)/($C83+L84)*Genanskaffelsespriser!$D$5*L83)<0,0,(L83*Genanskaffelsespriser!$D$5-(2009-L$3)/($C83+L84)*Genanskaffelsespriser!$D$5*L83)) -> 0 | AJ83: =IF((M83*Genanskaffelsespriser!$D$5-(2009-M$3)/($C83+M84)*Genanskaffelsespriser!$D$5*M83)<0,0,(M83*Genanskaffelsespriser!$D$5-(2009-M$3)/($C83+M84)*Genanskaffelsespriser!$D$5*M83)) -> 0 | AK83: =IF((N83*Genanskaffelsespriser!$D$5-(2009-N$3)/($C83+N84)*Genanskaffelsespriser!$D$5*N83)<0,0,(N83*Genanskaffelsespriser!$D$5-(2009-N$3)/($C83+N84)*Genanskaffelsespriser!$D$5*N83)) -> 0 | AL83: =IF((O83*Genanskaffelsespriser!$D$5-(2009-O$3)/($C83+O84)*Genanskaffelsespriser!$D$5*O83)<0,0,(O83*Genanskaffelsespriser!$D$5-(2009-O$3)/($C83+O84)*Genanskaffelsespriser!$D$5*O83)) -> 0 | AM83: =IF((P83*Genanskaffelsespriser!$D$5-(2009-P$3)/($C83+P84)*Genanskaffelsespriser!$D$5*P83)<0,0,(P83*Genanskaffelsespriser!$D$5-(2009-P$3)/($C83+P84)*Genanskaffelsespriser!$D$5*P83)) -> 0 | AN83: =IF((Q83*Genanskaffelsespriser!$D$5-(2009-Q$3)/($C83+Q84)*Genanskaffelsespriser!$D$5*Q83)<0,0,(Q83*Genanskaffelsespriser!$D$5-(2009-Q$3)/($C83+Q84)*Genanskaffelsespriser!$D$5*Q83)) -> 0 | AO83: =IF((R83*Genanskaffelsespriser!$D$5-(2009-R$3)/($C83+R84)*Genanskaffelsespriser!$D$5*R83)<0,0,(R83*Genanskaffelsespriser!$D$5-(2009-R$3)/($C83+R84)*Genanskaffelsespriser!$D$5*R83)) -> 0 | AP83: =IF((S83*Genanskaffelsespriser!$D$5-(2009-S$3)/($C83+S84)*Genanskaffelsespriser!$D$5*S83)<0,0,(S83*Genanskaffelsespriser!$D$5-(2009-S$3)/($C83+S84)*Genanskaffelsespriser!$D$5*S83)) -> 0 | AQ83: =IF((T83*Genanskaffelsespriser!$D$5-(2009-T$3)/($C83+T84)*Genanskaffelsespriser!$D$5*T83)<0,0,(T83*Genanskaffelsespriser!$D$5-(2009-T$3)/($C83+T84)*Genanskaffelsespriser!$D$5*T83)) -> 0 | AR83: =IF((U83*Genanskaffelsespriser!$D$5-(2009-U$3)/($C83+U84)*Genanskaffelsespriser!$D$5*U83)<0,0,(U83*Genanskaffelsespriser!$D$5-(2009-U$3)/($C83+U84)*Genanskaffelsespriser!$D$5*U83)) -> 0 | AS83: =IF((V83*Genanskaffelsespriser!$D$5-(2009-V$3)/($C83+V84)*Genanskaffelsespriser!$D$5*V83)<0,0,(V83*Genanskaffelsespriser!$D$5-(2009-V$3)/($C83+V84)*Genanskaffelsespriser!$D$5*V83)) -> 0 | AT83: =IF((W83*Genanskaffelsespriser!$D$5-(2009-W$3)/($C83+W84)*Genanskaffelsespriser!$D$5*W83)<0,0,(W83*Genanskaffelsespriser!$D$5-(2009-W$3)/($C83+W84)*Genanskaffelsespriser!$D$5*W83)) -> 0 | AU83: =IF((X83*Genanskaffelsespriser!$D$5-(2009-X$3)/($C83+X84)*Genanskaffelsespriser!$D$5*X83)<0,0,(X83*Genanskaffelsespriser!$D$5-(2009-X$3)/($C83+X84)*Genanskaffelsespriser!$D$5*X83)) -> 0 | AV83: =IF((Y83*Genanskaffelsespriser!$D$5-(2009-Y$3)/($C83+Y84)*Genanskaffelsespriser!$D$5*Y83)<0,0,(Y83*Genanskaffelsespriser!$D$5-(2009-Y$3)/($C83+Y84)*Genanskaffelsespriser!$D$5*Y83)) -> 0 | AW83: =+SUM(AA83:AV83) -> 0 | AX83: =VLOOKUP(D$3,Prisindeks!$A$1:$B$111,2,FALSE)/100*AA83 -> 0 | AY83: =VLOOKUP(E$3,Prisindeks!$A$1:$B$111,2,FALSE)/100*AB83 -> 0 | AZ83: =VLOOKUP(F$3,Prisindeks!$A$1:$B$111,2,FALSE)/100*AC83 -> 0 | BA83: =VLOOKUP(G$3,Prisindeks!$A$1:$B$111,2,FALSE)/100*AD83 -> 0 | BB83: =VLOOKUP(H$3,Prisindeks!$A$1:$B$111,2,FALSE)/100*AE83 -> 0 | BC83: =VLOOKUP(I$3,Prisindeks!$A$1:$B$111,2,FALSE)/100*AF83 -> 0 | BD83: =VLOOKUP(J$3,Prisindeks!$A$1:$B$111,2,FALSE)/100*AG83 -> 0 | BE83: =VLOOKUP(K$3,Prisindeks!$A$1:$B$111,2,FALSE)/100*AH83 -> 0 | BF83: =VLOOKUP(L$3,Prisindeks!$A$1:$B$111,2,FALSE)/100*AI83 -> 0 | BG83: =VLOOKUP(M$3,Prisindeks!$A$1:$B$111,2,FALSE)/100*AJ83 -> 0 | BH83: =VLOOKUP(N$3,Prisindeks!$A$1:$B$111,2,FALSE)/100*AK83 -> 0 | BI83: =VLOOKUP(O$3,Prisindeks!$A$1:$B$111,2,FALSE)/100*AL83 -> 0 | BJ83: =VLOOKUP(P$3,Prisindeks!$A$1:$B$111,2,FALSE)/100*AM83 -> 0 | BK83: =VLOOKUP(Q$3,Prisindeks!$A$1:$B$111,2,FALSE)/100*AN83 -> 0 | BL83: =VLOOKUP(R$3,Prisindeks!$A$1:$B$111,2,FALSE)/100*AO83 -> 0 | BM83: =VLOOKUP(S$3,Prisindeks!$A$1:$B$111,2,FALSE)/100*AP83 -> 0 | BN83: =VLOOKUP(T$3,Prisindeks!$A$1:$B$111,2,FALSE)/100*AQ83 -> 0 | BO83: =VLOOKUP(U$3,Prisindeks!$A$1:$B$111,2,FALSE)/100*AR83 -> 0 | BP83: =VLOOKUP(V$3,Prisindeks!$A$1:$B$111,2,FALSE)/100*AS83 -> 0 | BQ83: =VLOOKUP(W$3,Prisindeks!$A$1:$B$111,2,FALSE)/100*AT83 -> 0 | BR83: =VLOOKUP(X$3,Prisindeks!$A$1:$B$111,2,FALSE)/100*AU83 -> 0 | BS83: =VLOOKUP(Y$3,Prisindeks!$A$1:$B$111,2,FALSE)/100*AV83 -> 0 | BT83: =+SUM(AX83:BS83) -> 0 | BU83: =(AA83+AX83)/2 -> 0 | BV83: 0 | BW83: 0 | BX83: 0 | BY83: 0 | BZ83: 0 | CA83: 0 | CB83: 0 | CC83: 0 | CD83: 0 | CE83: 0 | CF83: 0 | CG83: 0 | CH83: 0 | CI83: 0 | CJ83: 0 | CK83: 0 | CL83: 0 | CM83: 0 | CN83: 0 | CO83: 0 | CP83: 0 | CQ83: =AVERAGE(AW83,BT83) -> 0 | CR83: =SUM(D83:Y83) -> 0
A84: Levetidsforlængelse | B84: år | C84: - | D84: 0 | E84: 0 | F84: 0 | G84: 0 | H84: 0 | I84: 0 | J84: 0 | K84: 0 | L84: 0 | M84: 0 | N84: 0 | O84: 0 | P84: 0 | Q84: 0 | R84: 0 | S84: 0 | T84: 0 | U84: 0 | V84: 0 | W84: 0 | X84: 0 | Y84: 0
A85: Boring (inkl. etablering, forerør, filter og prøvepumpning) - 41 | B85: dybdemeter | C85: =Genanskaffelsespriser!$E$5 -> 30 | D85: 0 | E85: 0 | F85: 0 | G85: 0 | H85: 0 | I85: 0 | J85: 0 | K85: 0 | L85: 0 | M85: 0 | N85: 0 | O85: 0 | P85: 0 | Q85: 0 | R85: 0 | S85: 0 | T85: 0 | U85: 0 | V85: 0 | W85: 0 | X85: 0 | Y85: 0 | AA85: =IF((D85*Genanskaffelsespriser!$D$5-(2009-D$3)/($C85+D86)*Genanskaffelsespriser!$D$5*D85)<0,0,(D85*Genanskaffelsespriser!$D$5-(2009-D$3)/($C85+D86)*Genanskaffelsespriser!$D$5*D85)) -> 0 | AB85: =IF((E85*Genanskaffelsespriser!$D$5-(2009-E$3)/($C85+E86)*Genanskaffelsespriser!$D$5*E85)<0,0,(E85*Genanskaffelsespriser!$D$5-(2009-E$3)/($C85+E86)*Genanskaffelsespriser!$D$5*E85)) -> 0 | AC85: =IF((F85*Genanskaffelsespriser!$D$5-(2009-F$3)/($C85+F86)*Genanskaffelsespriser!$D$5*F85)<0,0,(F85*Genanskaffelsespriser!$D$5-(2009-F$3)/($C85+F86)*Genanskaffelsespriser!$D$5*F85)) -> 0 | AD85: =IF((G85*Genanskaffelsespriser!$D$5-(2009-G$3)/($C85+G86)*Genanskaffelsespriser!$D$5*G85)<0,0,(G85*Genanskaffelsespriser!$D$5-(2009-G$3)/($C85+G86)*Genanskaffelsespriser!$D$5*G85)) -> 0 | AE85: =IF((H85*Genanskaffelsespriser!$D$5-(2009-H$3)/($C85+H86)*Genanskaffelsespriser!$D$5*H85)<0,0,(H85*Genanskaffelsespriser!$D$5-(2009-H$3)/($C85+H86)*Genanskaffelsespriser!$D$5*H85)) -> 0 | AF85: =IF((I85*Genanskaffelsespriser!$D$5-(2009-I$3)/($C85+I86)*Genanskaffelsespriser!$D$5*I85)<0,0,(I85*Genanskaffelsespriser!$D$5-(2009-I$3)/($C85+I86)*Genanskaffelsespriser!$D$5*I85)) -> 0 | AG85: =IF((J85*Genanskaffelsespriser!$D$5-(2009-J$3)/($C85+J86)*Genanskaffelsespriser!$D$5*J85)<0,0,(J85*Genanskaffelsespriser!$D$5-(2009-J$3)/($C85+J86)*Genanskaffelsespriser!$D$5*J85)) -> 0 | AH85: =IF((K85*Genanskaffelsespriser!$D$5-(2009-K$3)/($C85+K86)*Genanskaffelsespriser!$D$5*K85)<0,0,(K85*Genanskaffelsespriser!$D$5-(2009-K$3)/($C85+K86)*Genanskaffelsespriser!$D$5*K85)) -> 0 | AI85: =IF((L85*Genanskaffelsespriser!$D$5-(2009-L$3)/($C85+L86)*Genanskaffelsespriser!$D$5*L85)<0,0,(L85*Genanskaffelsespriser!$D$5-(2009-L$3)/($C85+L86)*Genanskaffelsespriser!$D$5*L85)) -> 0 | AJ85: =IF((M85*Genanskaffelsespriser!$D$5-(2009-M$3)/($C85+M86)*Genanskaffelsespriser!$D$5*M85)<0,0,(M85*Genanskaffelsespriser!$D$5-(2009-M$3)/($C85+M86)*Genanskaffelsespriser!$D$5*M85)) -> 0 | AK85: =IF((N85*Genanskaffelsespriser!$D$5-(2009-N$3)/($C85+N86)*Genanskaffelsespriser!$D$5*N85)<0,0,(N85*Genanskaffelsespriser!$D$5-(2009-N$3)/($C85+N86)*Genanskaffelsespriser!$D$5*N85)) -> 0 | AL85: =IF((O85*Genanskaffelsespriser!$D$5-(2009-O$3)/($C85+O86)*Genanskaffelsespriser!$D$5*O85)<0,0,(O85*Genanskaffelsespriser!$D$5-(2009-O$3)/($C85+O86)*Genanskaffelsespriser!$D$5*O85)) -> 0 | AM85: =IF((P85*Genanskaffelsespriser!$D$5-(2009-P$3)/($C85+P86)*Genanskaffelsespriser!$D$5*P85)<0,0,(P85*Genanskaffelsespriser!$D$5-(2009-P$3)/($C85+P86)*Genanskaffelsespriser!$D$5*P85)) -> 0 | AN85: =IF((Q85*Genanskaffelsespriser!$D$5-(2009-Q$3)/($C85+Q86)*Genanskaffelsespriser!$D$5*Q85)<0,0,(Q85*Genanskaffelsespriser!$D$5-(2009-Q$3)/($C85+Q86)*Genanskaffelsespriser!$D$5*Q85)) -> 0 | AO85: =IF((R85*Genanskaffelsespriser!$D$5-(2009-R$3)/($C85+R86)*Genanskaffelsespriser!$D$5*R85)<0,0,(R85*Genanskaffelsespriser!$D$5-(2009-R$3)/($C85+R86)*Genanskaffelsespriser!$D$5*R85)) -> 0 | AP85: =IF((S85*Genanskaffelsespriser!$D$5-(2009-S$3)/($C85+S86)*Genanskaffelsespriser!$D$5*S85)<0,0,(S85*Genanskaffelsespriser!$D$5-(2009-S$3)/($C85+S86)*Genanskaffelsespriser!$D$5*S85)) -> 0 | AQ85: =IF((T85*Genanskaffelsespriser!$D$5-(2009-T$3)/($C85+T86)*Genanskaffelsespriser!$D$5*T85)<0,0,(T85*Genanskaffelsespriser!$D$5-(2009-T$3)/($C85+T86)*Genanskaffelsespriser!$D$5*T85)) -> 0 | AR85: =IF((U85*Genanskaffelsespriser!$D$5-(2009-U$3)/($C85+U86)*Genanskaffelsespriser!$D$5*U85)<0,0,(U85*Genanskaffelsespriser!$D$5-(2009-U$3)/($C85+U86)*Genanskaffelsespriser!$D$5*U85)) -> 0 | AS85: =IF((V85*Genanskaffelsespriser!$D$5-(2009-V$3)/($C85+V86)*Genanskaffelsespriser!$D$5*V85)<0,0,(V85*Genanskaffelsespriser!$D$5-(2009-V$3)/($C85+V86)*Genanskaffelsespriser!$D$5*V85)) -> 0 | AT85: =IF((W85*Genanskaffelsespriser!$D$5-(2009-W$3)/($C85+W86)*Genanskaffelsespriser!$D$5*W85)<0,0,(W85*Genanskaffelsespriser!$D$5-(2009-W$3)/($C85+W86)*Genanskaffelsespriser!$D$5*W85)) -> 0 | AU85: =IF((X85*Genanskaffelsespriser!$D$5-(2009-X$3)/($C85+X86)*Genanskaffelsespriser!$D$5*X85)<0,0,(X85*Genanskaffelsespriser!$D$5-(2009-X$3)/($C85+X86)*Genanskaffelsespriser!$D$5*X85)) -> 0 | AV85: =IF((Y85*Genanskaffelsespriser!$D$5-(2009-Y$3)/($C85+Y86)*Genanskaffelsespriser!$D$5*Y85)<0,0,(Y85*Genanskaffelsespriser!$D$5-(2009-Y$3)/($C85+Y86)*Genanskaffelsespriser!$D$5*Y85)) -> 0 | AW85: =+SUM(AA85:AV85) -> 0 | AX85: =VLOOKUP(D$3,Prisindeks!$A$1:$B$111,2,FALSE)/100*AA85 -> 0 | AY85: =VLOOKUP(E$3,Prisindeks!$A$1:$B$111,2,FALSE)/100*AB85 -> 0 | AZ85: =VLOOKUP(F$3,Prisindeks!$A$1:$B$111,2,FALSE)/100*AC85 -> 0 | BA85: =VLOOKUP(G$3,Prisindeks!$A$1:$B$111,2,FALSE)/100*AD85 -> 0 | BB85: =VLOOKUP(H$3,Prisindeks!$A$1:$B$111,2,FALSE)/100*AE85 -> 0 | BC85: =VLOOKUP(I$3,Prisindeks!$A$1:$B$111,2,FALSE)/100*AF85 -> 0 | BD85: =VLOOKUP(J$3,Prisindeks!$A$1:$B$111,2,FALSE)/100*AG85 -> 0 | BE85: =VLOOKUP(K$3,Prisindeks!$A$1:$B$111,2,FALSE)/100*AH85 -> 0 | BF85: =VLOOKUP(L$3,Prisindeks!$A$1:$B$111,2,FALSE)/100*AI85 -> 0 | BG85: =VLOOKUP(M$3,Prisindeks!$A$1:$B$111,2,FALSE)/100*AJ85 -> 0 | BH85: =VLOOKUP(N$3,Prisindeks!$A$1:$B$111,2,FALSE)/100*AK85 -> 0 | BI85: =VLOOKUP(O$3,Prisindeks!$A$1:$B$111,2,FALSE)/100*AL85 -> 0 | BJ85: =VLOOKUP(P$3,Prisindeks!$A$1:$B$111,2,FALSE)/100*AM85 -> 0 | BK85: =VLOOKUP(Q$3,Prisindeks!$A$1:$B$111,2,FALSE)/100*AN85 -> 0 | BL85: =VLOOKUP(R$3,Prisindeks!$A$1:$B$111,2,FALSE)/100*AO85 -> 0 | BM85: =VLOOKUP(S$3,Prisindeks!$A$1:$B$111,2,FALSE)/100*AP85 -> 0 | BN85: =VLOOKUP(T$3,Prisindeks!$A$1:$B$111,2,FALSE)/100*AQ85 -> 0 | BO85: =VLOOKUP(U$3,Prisindeks!$A$1:$B$111,2,FALSE)/100*AR85 -> 0 | BP85: =VLOOKUP(V$3,Prisindeks!$A$1:$B$111,2,FALSE)/100*AS85 -> 0 | BQ85: =VLOOKUP(W$3,Prisindeks!$A$1:$B$111,2,FALSE)/100*AT85 -> 0 | BR85: =VLOOKUP(X$3,Prisindeks!$A$1:$B$111,2,FALSE)/100*AU85 -> 0 | BS85: =VLOOKUP(Y$3,Prisindeks!$A$1:$B$111,2,FALSE)/100*AV85 -> 0 | BT85: =+SUM(AX85:BS85) -> 0 | BU85: =(AA85+AX85)/2 -> 0 | BV85: 0 | BW85: 0 | BX85: 0 | BY85: 0 | BZ85: 0 | CA85: 0 | CB85: 0 | CC85: 0 | CD85: 0 | CE85: 0 | CF85: 0 | CG85: 0 | CH85: 0 | CI85: 0 | CJ85: 0 | CK85: 0 | CL85: 0 | CM85: 0 | CN85: 0 | CO85: 0 | CP85: 0 | CQ85: =AVERAGE(AW85,BT85) -> 0 | CR85: =SUM(D85:Y85) -> 0
A86: Levetidsforlængelse | B86: år | C86: - | D86: 0 | E86: 0 | F86: 0 | G86: 0 | H86: 0 | I86: 0 | J86: 0 | K86: 0 | L86: 0 | M86: 0 | N86: 0 | O86: 0 | P86: 0 | Q86: 0 | R86: 0 | S86: 0 | T86: 0 | U86: 0 | V86: 0 | W86: 0 | X86: 0 | Y86: 0
A87: Boring (inkl. etablering, forerør, filter og prøvepumpning) - 42 | B87: dybdemeter | C87: =Genanskaffelsespriser!$E$5 -> 30 | D87: 0 | E87: 0 | F87: 0 | G87: 0 | H87: 0 | I87: 0 | J87: 0 | K87: 0 | L87: 0 | M87: 0 | N87: 0 | O87: 0 | P87: 0 | Q87: 0 | R87: 0 | S87: 0 | T87: 0 | U87: 0 | V87: 0 | W87: 0 | X87: 0 | Y87: 0 | AA87: =IF((D87*Genanskaffelsespriser!$D$5-(2009-D$3)/($C87+D88)*Genanskaffelsespriser!$D$5*D87)<0,0,(D87*Genanskaffelsespriser!$D$5-(2009-D$3)/($C87+D88)*Genanskaffelsespriser!$D$5*D87)) -> 0 | AB87: =IF((E87*Genanskaffelsespriser!$D$5-(2009-E$3)/($C87+E88)*Genanskaffelsespriser!$D$5*E87)<0,0,(E87*Genanskaffelsespriser!$D$5-(2009-E$3)/($C87+E88)*Genanskaffelsespriser!$D$5*E87)) -> 0 | AC87: =IF((F87*Genanskaffelsespriser!$D$5-(2009-F$3)/($C87+F88)*Genanskaffelsespriser!$D$5*F87)<0,0,(F87*Genanskaffelsespriser!$D$5-(2009-F$3)/($C87+F88)*Genanskaffelsespriser!$D$5*F87)) -> 0 | AD87: =IF((G87*Genanskaffelsespriser!$D$5-(2009-G$3)/($C87+G88)*Genanskaffelsespriser!$D$5*G87)<0,0,(G87*Genanskaffelsespriser!$D$5-(2009-G$3)/($C87+G88)*Genanskaffelsespriser!$D$5*G87)) -> 0 | AE87: =IF((H87*Genanskaffelsespriser!$D$5-(2009-H$3)/($C87+H88)*Genanskaffelsespriser!$D$5*H87)<0,0,(H87*Genanskaffelsespriser!$D$5-(2009-H$3)/($C87+H88)*Genanskaffelsespriser!$D$5*H87)) -> 0 | AF87: =IF((I87*Genanskaffelsespriser!$D$5-(2009-I$3)/($C87+I88)*Genanskaffelsespriser!$D$5*I87)<0,0,(I87*Genanskaffelsespriser!$D$5-(2009-I$3)/($C87+I88)*Genanskaffelsespriser!$D$5*I87)) -> 0 | AG87: =IF((J87*Genanskaffelsespriser!$D$5-(2009-J$3)/($C87+J88)*Genanskaffelsespriser!$D$5*J87)<0,0,(J87*Genanskaffelsespriser!$D$5-(2009-J$3)/($C87+J88)*Genanskaffelsespriser!$D$5*J87)) -> 0 | AH87: =IF((K87*Genanskaffelsespriser!$D$5-(2009-K$3)/($C87+K88)*Genanskaffelsespriser!$D$5*K87)<0,0,(K87*Genanskaffelsespriser!$D$5-(2009-K$3)/($C87+K88)*Genanskaffelsespriser!$D$5*K87)) -> 0 | AI87: =IF((L87*Genanskaffelsespriser!$D$5-(2009-L$3)/($C87+L88)*Genanskaffelsespriser!$D$5*L87)<0,0,(L87*Genanskaffelsespriser!$D$5-(2009-L$3)/($C87+L88)*Genanskaffelsespriser!$D$5*L87)) -> 0 | AJ87: =IF((M87*Genanskaffelsespriser!$D$5-(2009-M$3)/($C87+M88)*Genanskaffelsespriser!$D$5*M87)<0,0,(M87*Genanskaffelsespriser!$D$5-(2009-M$3)/($C87+M88)*Genanskaffelsespriser!$D$5*M87)) -> 0 | AK87: =IF((N87*Genanskaffelsespriser!$D$5-(2009-N$3)/($C87+N88)*Genanskaffelsespriser!$D$5*N87)<0,0,(N87*Genanskaffelsespriser!$D$5-(2009-N$3)/($C87+N88)*Genanskaffelsespriser!$D$5*N87)) -> 0 | AL87: =IF((O87*Genanskaffelsespriser!$D$5-(2009-O$3)/($C87+O88)*Genanskaffelsespriser!$D$5*O87)<0,0,(O87*Genanskaffelsespriser!$D$5-(2009-O$3)/($C87+O88)*Genanskaffelsespriser!$D$5*O87)) -> 0 | AM87: =IF((P87*Genanskaffelsespriser!$D$5-(2009-P$3)/($C87+P88)*Genanskaffelsespriser!$D$5*P87)<0,0,(P87*Genanskaffelsespriser!$D$5-(2009-P$3)/($C87+P88)*Genanskaffelsespriser!$D$5*P87)) -> 0 | AN87: =IF((Q87*Genanskaffelsespriser!$D$5-(2009-Q$3)/($C87+Q88)*Genanskaffelsespriser!$D$5*Q87)<0,0,(Q87*Genanskaffelsespriser!$D$5-(2009-Q$3)/($C87+Q88)*Genanskaffelsespriser!$D$5*Q87)) -> 0 | AO87: =IF((R87*Genanskaffelsespriser!$D$5-(2009-R$3)/($C87+R88)*Genanskaffelsespriser!$D$5*R87)<0,0,(R87*Genanskaffelsespriser!$D$5-(2009-R$3)/($C87+R88)*Genanskaffelsespriser!$D$5*R87)) -> 0 | AP87: =IF((S87*Genanskaffelsespriser!$D$5-(2009-S$3)/($C87+S88)*Genanskaffelsespriser!$D$5*S87)<0,0,(S87*Genanskaffelsespriser!$D$5-(2009-S$3)/($C87+S88)*Genanskaffelsespriser!$D$5*S87)) -> 0 | AQ87: =IF((T87*Genanskaffelsespriser!$D$5-(2009-T$3)/($C87+T88)*Genanskaffelsespriser!$D$5*T87)<0,0,(T87*Genanskaffelsespriser!$D$5-(2009-T$3)/($C87+T88)*Genanskaffelsespriser!$D$5*T87)) -> 0 | AR87: =IF((U87*Genanskaffelsespriser!$D$5-(2009-U$3)/($C87+U88)*Genanskaffelsespriser!$D$5*U87)<0,0,(U87*Genanskaffelsespriser!$D$5-(2009-U$3)/($C87+U88)*Genanskaffelsespriser!$D$5*U87)) -> 0 | AS87: =IF((V87*Genanskaffelsespriser!$D$5-(2009-V$3)/($C87+V88)*Genanskaffelsespriser!$D$5*V87)<0,0,(V87*Genanskaffelsespriser!$D$5-(2009-V$3)/($C87+V88)*Genanskaffelsespriser!$D$5*V87)) -> 0 | AT87: =IF((W87*Genanskaffelsespriser!$D$5-(2009-W$3)/($C87+W88)*Genanskaffelsespriser!$D$5*W87)<0,0,(W87*Genanskaffelsespriser!$D$5-(2009-W$3)/($C87+W88)*Genanskaffelsespriser!$D$5*W87)) -> 0 | AU87: =IF((X87*Genanskaffelsespriser!$D$5-(2009-X$3)/($C87+X88)*Genanskaffelsespriser!$D$5*X87)<0,0,(X87*Genanskaffelsespriser!$D$5-(2009-X$3)/($C87+X88)*Genanskaffelsespriser!$D$5*X87)) -> 0 | AV87: =IF((Y87*Genanskaffelsespriser!$D$5-(2009-Y$3)/($C87+Y88)*Genanskaffelsespriser!$D$5*Y87)<0,0,(Y87*Genanskaffelsespriser!$D$5-(2009-Y$3)/($C87+Y88)*Genanskaffelsespriser!$D$5*Y87)) -> 0 | AW87: =+SUM(AA87:AV87) -> 0 | AX87: =VLOOKUP(D$3,Prisindeks!$A$1:$B$111,2,FALSE)/100*AA87 -> 0 | AY87: =VLOOKUP(E$3,Prisindeks!$A$1:$B$111,2,FALSE)/100*AB87 -> 0 | AZ87: =VLOOKUP(F$3,Prisindeks!$A$1:$B$111,2,FALSE)/100*AC87 -> 0 | BA87: =VLOOKUP(G$3,Prisindeks!$A$1:$B$111,2,FALSE)/100*AD87 -> 0 | BB87: =VLOOKUP(H$3,Prisindeks!$A$1:$B$111,2,FALSE)/100*AE87 -> 0 | BC87: =VLOOKUP(I$3,Prisindeks!$A$1:$B$111,2,FALSE)/100*AF87 -> 0 | BD87: =VLOOKUP(J$3,Prisindeks!$A$1:$B$111,2,FALSE)/100*AG87 -> 0 | BE87: =VLOOKUP(K$3,Prisindeks!$A$1:$B$111,2,FALSE)/100*AH87 -> 0 | BF87: =VLOOKUP(L$3,Prisindeks!$A$1:$B$111,2,FALSE)/100*AI87 -> 0 | BG87: =VLOOKUP(M$3,Prisindeks!$A$1:$B$111,2,FALSE)/100*AJ87 -> 0 | BH87: =VLOOKUP(N$3,Prisindeks!$A$1:$B$111,2,FALSE)/100*AK87 -> 0 | BI87: =VLOOKUP(O$3,Prisindeks!$A$1:$B$111,2,FALSE)/100*AL87 -> 0 | BJ87: =VLOOKUP(P$3,Prisindeks!$A$1:$B$111,2,FALSE)/100*AM87 -> 0 | BK87: =VLOOKUP(Q$3,Prisindeks!$A$1:$B$111,2,FALSE)/100*AN87 -> 0 | BL87: =VLOOKUP(R$3,Prisindeks!$A$1:$B$111,2,FALSE)/100*AO87 -> 0 | BM87: =VLOOKUP(S$3,Prisindeks!$A$1:$B$111,2,FALSE)/100*AP87 -> 0 | BN87: =VLOOKUP(T$3,Prisindeks!$A$1:$B$111,2,FALSE)/100*AQ87 -> 0 | BO87: =VLOOKUP(U$3,Prisindeks!$A$1:$B$111,2,FALSE)/100*AR87 -> 0 | BP87: =VLOOKUP(V$3,Prisindeks!$A$1:$B$111,2,FALSE)/100*AS87 -> 0 | BQ87: =VLOOKUP(W$3,Prisindeks!$A$1:$B$111,2,FALSE)/100*AT87 -> 0 | BR87: =VLOOKUP(X$3,Prisindeks!$A$1:$B$111,2,FALSE)/100*AU87 -> 0 | BS87: =VLOOKUP(Y$3,Prisindeks!$A$1:$B$111,2,FALSE)/100*AV87 -> 0 | BT87: =+SUM(AX87:BS87) -> 0 | BU87: =(AA87+AX87)/2 -> 0 | BV87: 0 | BW87: 0 | BX87: 0 | BY87: 0 | BZ87: 0 | CA87: 0 | CB87: 0 | CC87: 0 | CD87: 0 | CE87: 0 | CF87: 0 | CG87: 0 | CH87: 0 | CI87: 0 | CJ87: 0 | CK87: 0 | CL87: 0 | CM87: 0 | CN87: 0 | CO87: 0 | CP87: 0 | CQ87: =AVERAGE(AW87,BT87) -> 0 | CR87: =SUM(D87:Y87) -> 0
A88: Levetidsforlængelse | B88: år | C88: - | D88: 0 | E88: 0 | F88: 0 | G88: 0 | H88: 0 | I88: 0 | J88: 0 | K88: 0 | L88: 0 | M88: 0 | N88: 0 | O88: 0 | P88: 0 | Q88: 0 | R88: 0 | S88: 0 | T88: 0 | U88: 0 | V88: 0 | W88: 0 | X88: 0 | Y88: 0
A89: Boring (inkl. etablering, forerør, filter og prøvepumpning) - 43 | B89: dybdemeter | C89: =Genanskaffelsespriser!$E$5 -> 30 | D89: 0 | E89: 0 | F89: 0 | G89: 0 | H89: 0 | I89: 0 | J89: 0 | K89: 0 | L89: 0 | M89: 0 | N89: 0 | O89: 0 | P89: 0 | Q89: 0 | R89: 0 | S89: 0 | T89: 0 | U89: 0 | V89: 0 | W89: 0 | X89: 0 | Y89: 0 | AA89: =IF((D89*Genanskaffelsespriser!$D$5-(2009-D$3)/($C89+D90)*Genanskaffelsespriser!$D$5*D89)<0,0,(D89*Genanskaffelsespriser!$D$5-(2009-D$3)/($C89+D90)*Genanskaffelsespriser!$D$5*D89)) -> 0 | AB89: =IF((E89*Genanskaffelsespriser!$D$5-(2009-E$3)/($C89+E90)*Genanskaffelsespriser!$D$5*E89)<0,0,(E89*Genanskaffelsespriser!$D$5-(2009-E$3)/($C89+E90)*Genanskaffelsespriser!$D$5*E89)) -> 0 | AC89: =IF((F89*Genanskaffelsespriser!$D$5-(2009-F$3)/($C89+F90)*Genanskaffelsespriser!$D$5*F89)<0,0,(F89*Genanskaffelsespriser!$D$5-(2009-F$3)/($C89+F90)*Genanskaffelsespriser!$D$5*F89)) -> 0 | AD89: =IF((G89*Genanskaffelsespriser!$D$5-(2009-G$3)/($C89+G90)*Genanskaffelsespriser!$D$5*G89)<0,0,(G89*Genanskaffelsespriser!$D$5-(2009-G$3)/($C89+G90)*Genanskaffelsespriser!$D$5*G89)) -> 0 | AE89: =IF((H89*Genanskaffelsespriser!$D$5-(2009-H$3)/($C89+H90)*Genanskaffelsespriser!$D$5*H89)<0,0,(H89*Genanskaffelsespriser!$D$5-(2009-H$3)/($C89+H90)*Genanskaffelsespriser!$D$5*H89)) -> 0 | AF89: =IF((I89*Genanskaffelsespriser!$D$5-(2009-I$3)/($C89+I90)*Genanskaffelsespriser!$D$5*I89)<0,0,(I89*Genanskaffelsespriser!$D$5-(2009-I$3)/($C89+I90)*Genanskaffelsespriser!$D$5*I89)) -> 0 | AG89: =IF((J89*Genanskaffelsespriser!$D$5-(2009-J$3)/($C89+J90)*Genanskaffelsespriser!$D$5*J89)<0,0,(J89*Genanskaffelsespriser!$D$5-(2009-J$3)/($C89+J90)*Genanskaffelsespriser!$D$5*J89)) -> 0 | AH89: =IF((K89*Genanskaffelsespriser!$D$5-(2009-K$3)/($C89+K90)*Genanskaffelsespriser!$D$5*K89)<0,0,(K89*Genanskaffelsespriser!$D$5-(2009-K$3)/($C89+K90)*Genanskaffelsespriser!$D$5*K89)) -> 0 | AI89: =IF((L89*Genanskaffelsespriser!$D$5-(2009-L$3)/($C89+L90)*Genanskaffelsespriser!$D$5*L89)<0,0,(L89*Genanskaffelsespriser!$D$5-(2009-L$3)/($C89+L90)*Genanskaffelsespriser!$D$5*L89)) -> 0 | AJ89: =IF((M89*Genanskaffelsespriser!$D$5-(2009-M$3)/($C89+M90)*Genanskaffelsespriser!$D$5*M89)<0,0,(M89*Genanskaffelsespriser!$D$5-(2009-M$3)/($C89+M90)*Genanskaffelsespriser!$D$5*M89)) -> 0 | AK89: =IF((N89*Genanskaffelsespriser!$D$5-(2009-N$3)/($C89+N90)*Genanskaffelsespriser!$D$5*N89)<0,0,(N89*Genanskaffelsespriser!$D$5-(2009-N$3)/($C89+N90)*Genanskaffelsespriser!$D$5*N89)) -> 0 | AL89: =IF((O89*Genanskaffelsespriser!$D$5-(2009-O$3)/($C89+O90)*Genanskaffelsespriser!$D$5*O89)<0,0,(O89*Genanskaffelsespriser!$D$5-(2009-O$3)/($C89+O90)*Genanskaffelsespriser!$D$5*O89)) -> 0 | AM89: =IF((P89*Genanskaffelsespriser!$D$5-(2009-P$3)/($C89+P90)*Genanskaffelsespriser!$D$5*P89)<0,0,(P89*Genanskaffelsespriser!$D$5-(2009-P$3)/($C89+P90)*Genanskaffelsespriser!$D$5*P89)) -> 0 | AN89: =IF((Q89*Genanskaffelsespriser!$D$5-(2009-Q$3)/($C89+Q90)*Genanskaffelsespriser!$D$5*Q89)<0,0,(Q89*Genanskaffelsespriser!$D$5-(2009-Q$3)/($C89+Q90)*Genanskaffelsespriser!$D$5*Q89)) -> 0 | AO89: =IF((R89*Genanskaffelsespriser!$D$5-(2009-R$3)/($C89+R90)*Genanskaffelsespriser!$D$5*R89)<0,0,(R89*Genanskaffelsespriser!$D$5-(2009-R$3)/($C89+R90)*Genanskaffelsespriser!$D$5*R89)) -> 0 | AP89: =IF((S89*Genanskaffelsespriser!$D$5-(2009-S$3)/($C89+S90)*Genanskaffelsespriser!$D$5*S89)<0,0,(S89*Genanskaffelsespriser!$D$5-(2009-S$3)/($C89+S90)*Genanskaffelsespriser!$D$5*S89)) -> 0 | AQ89: =IF((T89*Genanskaffelsespriser!$D$5-(2009-T$3)/($C89+T90)*Genanskaffelsespriser!$D$5*T89)<0,0,(T89*Genanskaffelsespriser!$D$5-(2009-T$3)/($C89+T90)*Genanskaffelsespriser!$D$5*T89)) -> 0 | AR89: =IF((U89*Genanskaffelsespriser!$D$5-(2009-U$3)/($C89+U90)*Genanskaffelsespriser!$D$5*U89)<0,0,(U89*Genanskaffelsespriser!$D$5-(2009-U$3)/($C89+U90)*Genanskaffelsespriser!$D$5*U89)) -> 0 | AS89: =IF((V89*Genanskaffelsespriser!$D$5-(2009-V$3)/($C89+V90)*Genanskaffelsespriser!$D$5*V89)<0,0,(V89*Genanskaffelsespriser!$D$5-(2009-V$3)/($C89+V90)*Genanskaffelsespriser!$D$5*V89)) -> 0 | AT89: =IF((W89*Genanskaffelsespriser!$D$5-(2009-W$3)/($C89+W90)*Genanskaffelsespriser!$D$5*W89)<0,0,(W89*Genanskaffelsespriser!$D$5-(2009-W$3)/($C89+W90)*Genanskaffelsespriser!$D$5*W89)) -> 0 | AU89: =IF((X89*Genanskaffelsespriser!$D$5-(2009-X$3)/($C89+X90)*Genanskaffelsespriser!$D$5*X89)<0,0,(X89*Genanskaffelsespriser!$D$5-(2009-X$3)/($C89+X90)*Genanskaffelsespriser!$D$5*X89)) -> 0 | AV89: =IF((Y89*Genanskaffelsespriser!$D$5-(2009-Y$3)/($C89+Y90)*Genanskaffelsespriser!$D$5*Y89)<0,0,(Y89*Genanskaffelsespriser!$D$5-(2009-Y$3)/($C89+Y90)*Genanskaffelsespriser!$D$5*Y89)) -> 0 | AW89: =+SUM(AA89:AV89) -> 0 | AX89: =VLOOKUP(D$3,Prisindeks!$A$1:$B$111,2,FALSE)/100*AA89 -> 0 | AY89: =VLOOKUP(E$3,Prisindeks!$A$1:$B$111,2,FALSE)/100*AB89 -> 0 | AZ89: =VLOOKUP(F$3,Prisindeks!$A$1:$B$111,2,FALSE)/100*AC89 -> 0 | BA89: =VLOOKUP(G$3,Prisindeks!$A$1:$B$111,2,FALSE)/100*AD89 -> 0 | BB89: =VLOOKUP(H$3,Prisindeks!$A$1:$B$111,2,FALSE)/100*AE89 -> 0 | BC89: =VLOOKUP(I$3,Prisindeks!$A$1:$B$111,2,FALSE)/100*AF89 -> 0 | BD89: =VLOOKUP(J$3,Prisindeks!$A$1:$B$111,2,FALSE)/100*AG89 -> 0 | BE89: =VLOOKUP(K$3,Prisindeks!$A$1:$B$111,2,FALSE)/100*AH89 -> 0 | BF89: =VLOOKUP(L$3,Prisindeks!$A$1:$B$111,2,FALSE)/100*AI89 -> 0 | BG89: =VLOOKUP(M$3,Prisindeks!$A$1:$B$111,2,FALSE)/100*AJ89 -> 0 | BH89: =VLOOKUP(N$3,Prisindeks!$A$1:$B$111,2,FALSE)/100*AK89 -> 0 | BI89: =VLOOKUP(O$3,Prisindeks!$A$1:$B$111,2,FALSE)/100*AL89 -> 0 | BJ89: =VLOOKUP(P$3,Prisindeks!$A$1:$B$111,2,FALSE)/100*AM89 -> 0 | BK89: =VLOOKUP(Q$3,Prisindeks!$A$1:$B$111,2,FALSE)/100*AN89 -> 0 | BL89: =VLOOKUP(R$3,Prisindeks!$A$1:$B$111,2,FALSE)/100*AO89 -> 0 | BM89: =VLOOKUP(S$3,Prisindeks!$A$1:$B$111,2,FALSE)/100*AP89 -> 0 | BN89: =VLOOKUP(T$3,Prisindeks!$A$1:$B$111,2,FALSE)/100*AQ89 -> 0 | BO89: =VLOOKUP(U$3,Prisindeks!$A$1:$B$111,2,FALSE)/100*AR89 -> 0 | BP89: =VLOOKUP(V$3,Prisindeks!$A$1:$B$111,2,FALSE)/100*AS89 -> 0 | BQ89: =VLOOKUP(W$3,Prisindeks!$A$1:$B$111,2,FALSE)/100*AT89 -> 0 | BR89: =VLOOKUP(X$3,Prisindeks!$A$1:$B$111,2,FALSE)/100*AU89 -> 0 | BS89: =VLOOKUP(Y$3,Prisindeks!$A$1:$B$111,2,FALSE)/100*AV89 -> 0 | BT89: =+SUM(AX89:BS89) -> 0 | BU89: =(AA89+AX89)/2 -> 0 | BV89: 0 | BW89: 0 | BX89: 0 | BY89: 0 | BZ89: 0 | CA89: 0 | CB89: 0 | CC89: 0 | CD89: 0 | CE89: 0 | CF89: 0 | CG89: 0 | CH89: 0 | CI89: 0 | CJ89: 0 | CK89: 0 | CL89: 0 | CM89: 0 | CN89: 0 | CO89: 0 | CP89: 0 | CQ89: =AVERAGE(AW89,BT89) -> 0 | CR89: =SUM(D89:Y89) -> 0
A90: Levetidsforlængelse | B90: år | C90: - | D90: 0 | E90: 0 | F90: 0 | G90: 0 | H90: 0 | I90: 0 | J90: 0 | K90: 0 | L90: 0 | M90: 0 | N90: 0 | O90: 0 | P90: 0 | Q90: 0 | R90: 0 | S90: 0 | T90: 0 | U90: 0 | V90: 0 | W90: 0 | X90: 0 | Y90: 0
A91: Boring (inkl. etablering, forerør, filter og prøvepumpning) - 44 | B91: dybdemeter | C91: =Genanskaffelsespriser!$E$5 -> 30 | D91: 0 | E91: 0 | F91: 0 | G91: 0 | H91: 0 | I91: 0 | J91: 0 | K91: 0 | L91: 0 | M91: 0 | N91: 0 | O91: 0 | P91: 0 | Q91: 0 | R91: 0 | S91: 0 | T91: 0 | U91: 0 | V91: 0 | W91: 0 | X91: 0 | Y91: 0 | AA91: =IF((D91*Genanskaffelsespriser!$D$5-(2009-D$3)/($C91+D92)*Genanskaffelsespriser!$D$5*D91)<0,0,(D91*Genanskaffelsespriser!$D$5-(2009-D$3)/($C91+D92)*Genanskaffelsespriser!$D$5*D91)) -> 0 | AB91: =IF((E91*Genanskaffelsespriser!$D$5-(2009-E$3)/($C91+E92)*Genanskaffelsespriser!$D$5*E91)<0,0,(E91*Genanskaffelsespriser!$D$5-(2009-E$3)/($C91+E92)*Genanskaffelsespriser!$D$5*E91)) -> 0 | AC91: =IF((F91*Genanskaffelsespriser!$D$5-(2009-F$3)/($C91+F92)*Genanskaffelsespriser!$D$5*F91)<0,0,(F91*Genanskaffelsespriser!$D$5-(2009-F$3)/($C91+F92)*Genanskaffelsespriser!$D$5*F91)) -> 0 | AD91: =IF((G91*Genanskaffelsespriser!$D$5-(2009-G$3)/($C91+G92)*Genanskaffelsespriser!$D$5*G91)<0,0,(G91*Genanskaffelsespriser!$D$5-(2009-G$3)/($C91+G92)*Genanskaffelsespriser!$D$5*G91)) -> 0 | AE91: =IF((H91*Genanskaffelsespriser!$D$5-(2009-H$3)/($C91+H92)*Genanskaffelsespriser!$D$5*H91)<0,0,(H91*Genanskaffelsespriser!$D$5-(2009-H$3)/($C91+H92)*Genanskaffelsespriser!$D$5*H91)) -> 0 | AF91: =IF((I91*Genanskaffelsespriser!$D$5-(2009-I$3)/($C91+I92)*Genanskaffelsespriser!$D$5*I91)<0,0,(I91*Genanskaffelsespriser!$D$5-(2009-I$3)/($C91+I92)*Genanskaffelsespriser!$D$5*I91)) -> 0 | AG91: =IF((J91*Genanskaffelsespriser!$D$5-(2009-J$3)/($C91+J92)*Genanskaffelsespriser!$D$5*J91)<0,0,(J91*Genanskaffelsespriser!$D$5-(2009-J$3)/($C91+J92)*Genanskaffelsespriser!$D$5*J91)) -> 0 | AH91: =IF((K91*Genanskaffelsespriser!$D$5-(2009-K$3)/($C91+K92)*Genanskaffelsespriser!$D$5*K91)<0,0,(K91*Genanskaffelsespriser!$D$5-(2009-K$3)/($C91+K92)*Genanskaffelsespriser!$D$5*K91)) -> 0 | AI91: =IF((L91*Genanskaffelsespriser!$D$5-(2009-L$3)/($C91+L92)*Genanskaffelsespriser!$D$5*L91)<0,0,(L91*Genanskaffelsespriser!$D$5-(2009-L$3)/($C91+L92)*Genanskaffelsespriser!$D$5*L91)) -> 0 | AJ91: =IF((M91*Genanskaffelsespriser!$D$5-(2009-M$3)/($C91+M92)*Genanskaffelsespriser!$D$5*M91)<0,0,(M91*Genanskaffelsespriser!$D$5-(2009-M$3)/($C91+M92)*Genanskaffelsespriser!$D$5*M91)) -> 0 | AK91: =IF((N91*Genanskaffelsespriser!$D$5-(2009-N$3)/($C91+N92)*Genanskaffelsespriser!$D$5*N91)<0,0,(N91*Genanskaffelsespriser!$D$5-(2009-N$3)/($C91+N92)*Genanskaffelsespriser!$D$5*N91)) -> 0 | AL91: =IF((O91*Genanskaffelsespriser!$D$5-(2009-O$3)/($C91+O92)*Genanskaffelsespriser!$D$5*O91)<0,0,(O91*Genanskaffelsespriser!$D$5-(2009-O$3)/($C91+O92)*Genanskaffelsespriser!$D$5*O91)) -> 0 | AM91: =IF((P91*Genanskaffelsespriser!$D$5-(2009-P$3)/($C91+P92)*Genanskaffelsespriser!$D$5*P91)<0,0,(P91*Genanskaffelsespriser!$D$5-(2009-P$3)/($C91+P92)*Genanskaffelsespriser!$D$5*P91)) -> 0 | AN91: =IF((Q91*Genanskaffelsespriser!$D$5-(2009-Q$3)/($C91+Q92)*Genanskaffelsespriser!$D$5*Q91)<0,0,(Q91*Genanskaffelsespriser!$D$5-(2009-Q$3)/($C91+Q92)*Genanskaffelsespriser!$D$5*Q91)) -> 0 | AO91: =IF((R91*Genanskaffelsespriser!$D$5-(2009-R$3)/($C91+R92)*Genanskaffelsespriser!$D$5*R91)<0,0,(R91*Genanskaffelsespriser!$D$5-(2009-R$3)/($C91+R92)*Genanskaffelsespriser!$D$5*R91)) -> 0 | AP91: =IF((S91*Genanskaffelsespriser!$D$5-(2009-S$3)/($C91+S92)*Genanskaffelsespriser!$D$5*S91)<0,0,(S91*Genanskaffelsespriser!$D$5-(2009-S$3)/($C91+S92)*Genanskaffelsespriser!$D$5*S91)) -> 0 | AQ91: =IF((T91*Genanskaffelsespriser!$D$5-(2009-T$3)/($C91+T92)*Genanskaffelsespriser!$D$5*T91)<0,0,(T91*Genanskaffelsespriser!$D$5-(2009-T$3)/($C91+T92)*Genanskaffelsespriser!$D$5*T91)) -> 0 | AR91: =IF((U91*Genanskaffelsespriser!$D$5-(2009-U$3)/($C91+U92)*Genanskaffelsespriser!$D$5*U91)<0,0,(U91*Genanskaffelsespriser!$D$5-(2009-U$3)/($C91+U92)*Genanskaffelsespriser!$D$5*U91)) -> 0 | AS91: =IF((V91*Genanskaffelsespriser!$D$5-(2009-V$3)/($C91+V92)*Genanskaffelsespriser!$D$5*V91)<0,0,(V91*Genanskaffelsespriser!$D$5-(2009-V$3)/($C91+V92)*Genanskaffelsespriser!$D$5*V91)) -> 0 | AT91: =IF((W91*Genanskaffelsespriser!$D$5-(2009-W$3)/($C91+W92)*Genanskaffelsespriser!$D$5*W91)<0,0,(W91*Genanskaffelsespriser!$D$5-(2009-W$3)/($C91+W92)*Genanskaffelsespriser!$D$5*W91)) -> 0 | AU91: =IF((X91*Genanskaffelsespriser!$D$5-(2009-X$3)/($C91+X92)*Genanskaffelsespriser!$D$5*X91)<0,0,(X91*Genanskaffelsespriser!$D$5-(2009-X$3)/($C91+X92)*Genanskaffelsespriser!$D$5*X91)) -> 0 | AV91: =IF((Y91*Genanskaffelsespriser!$D$5-(2009-Y$3)/($C91+Y92)*Genanskaffelsespriser!$D$5*Y91)<0,0,(Y91*Genanskaffelsespriser!$D$5-(2009-Y$3)/($C91+Y92)*Genanskaffelsespriser!$D$5*Y91)) -> 0 | AW91: =+SUM(AA91:AV91) -> 0 | AX91: =VLOOKUP(D$3,Prisindeks!$A$1:$B$111,2,FALSE)/100*AA91 -> 0 | AY91: =VLOOKUP(E$3,Prisindeks!$A$1:$B$111,2,FALSE)/100*AB91 -> 0 | AZ91: =VLOOKUP(F$3,Prisindeks!$A$1:$B$111,2,FALSE)/100*AC91 -> 0 | BA91: =VLOOKUP(G$3,Prisindeks!$A$1:$B$111,2,FALSE)/100*AD91 -> 0 | BB91: =VLOOKUP(H$3,Prisindeks!$A$1:$B$111,2,FALSE)/100*AE91 -> 0 | BC91: =VLOOKUP(I$3,Prisindeks!$A$1:$B$111,2,FALSE)/100*AF91 -> 0 | BD91: =VLOOKUP(J$3,Prisindeks!$A$1:$B$111,2,FALSE)/100*AG91 -> 0 | BE91: =VLOOKUP(K$3,Prisindeks!$A$1:$B$111,2,FALSE)/100*AH91 -> 0 | BF91: =VLOOKUP(L$3,Prisindeks!$A$1:$B$111,2,FALSE)/100*AI91 -> 0 | BG91: =VLOOKUP(M$3,Prisindeks!$A$1:$B$111,2,FALSE)/100*AJ91 -> 0 | BH91: =VLOOKUP(N$3,Prisindeks!$A$1:$B$111,2,FALSE)/100*AK91 -> 0 | BI91: =VLOOKUP(O$3,Prisindeks!$A$1:$B$111,2,FALSE)/100*AL91 -> 0 | BJ91: =VLOOKUP(P$3,Prisindeks!$A$1:$B$111,2,FALSE)/100*AM91 -> 0 | BK91: =VLOOKUP(Q$3,Prisindeks!$A$1:$B$111,2,FALSE)/100*AN91 -> 0 | BL91: =VLOOKUP(R$3,Prisindeks!$A$1:$B$111,2,FALSE)/100*AO91 -> 0 | BM91: =VLOOKUP(S$3,Prisindeks!$A$1:$B$111,2,FALSE)/100*AP91 -> 0 | BN91: =VLOOKUP(T$3,Prisindeks!$A$1:$B$111,2,FALSE)/100*AQ91 -> 0 | BO91: =VLOOKUP(U$3,Prisindeks!$A$1:$B$111,2,FALSE)/100*AR91 -> 0 | BP91: =VLOOKUP(V$3,Prisindeks!$A$1:$B$111,2,FALSE)/100*AS91 -> 0 | BQ91: =VLOOKUP(W$3,Prisindeks!$A$1:$B$111,2,FALSE)/100*AT91 -> 0 | BR91: =VLOOKUP(X$3,Prisindeks!$A$1:$B$111,2,FALSE)/100*AU91 -> 0 | BS91: =VLOOKUP(Y$3,Prisindeks!$A$1:$B$111,2,FALSE)/100*AV91 -> 0 | BT91: =+SUM(AX91:BS91) -> 0 | BU91: =(AA91+AX91)/2 -> 0 | BV91: 0 | BW91: 0 | BX91: 0 | BY91: 0 | BZ91: 0 | CA91: 0 | CB91: 0 | CC91: 0 | CD91: 0 | CE91: 0 | CF91: 0 | CG91: 0 | CH91: 0 | CI91: 0 | CJ91: 0 | CK91: 0 | CL91: 0 | CM91: 0 | CN91: 0 | CO91: 0 | CP91: 0 | CQ91: =AVERAGE(AW91,BT91) -> 0 | CR91: =SUM(D91:Y91) -> 0
A92: Levetidsforlængelse | B92: år | C92: - | D92: 0 | E92: 0 | F92: 0 | G92: 0 | H92: 0 | I92: 0 | J92: 0 | K92: 0 | L92: 0 | M92: 0 | N92: 0 | O92: 0 | P92: 0 | Q92: 0 | R92: 0 | S92: 0 | T92: 0 | U92: 0 | V92: 0 | W92: 0 | X92: 0 | Y92: 0
